Workbook

Sheet AER only (hidden)
B1: Data in these columns used for data validation and database purposes.
B2: Date last modified:
B3: 14 April 2015 | C3: merged cell C46/47
B4: 17 April 2015 | C4: adjusted dms_RYE to automate based on dms_Model (NB: EB & CA refer to CRCP_y5)
B5: 14 May 2015 | C5: adapted this cover for use in CA & EB RINs
B6: October 2015 | C6: added full Trading Name for worksheet headings
C7: added new formulas for distinguishing RYE for RFM vs PTRM and Reset (set by ref to CRCP or FRCP) and EB & CA (set by ref to CRY)
B11: dms_TradingName_List | C11: dms_TradingNameFull_List | D11: dms_ABN_List | E11: dms_JurisdictionList | F11: dms_Sector_List | G11: dms_Segment_List | H11: dms_FormControl_List | I11: dms_RPT_List | J11: dms_RPTMonth_List | K11: dms_CRCPlength_List | L11: dms_FRCPlength_List | M11: dms_663_List | N11: dms_DeterminationRef_List | R11: dms_Addr1_List | S11: dms_Addr2_List | T11: dms_Suburb_List | U11: dms_State_List | V11: dms_PostCode_List | W11: dms_PAddr1_List | X11: dms_PAddr2_List | Y11: dms_PSuburb_List | Z11: dms_PState_List | AA11: dms_PPostCode_List | AB11: dms_ContactName1_List | AC11: dms_ContactPh1_List | AD11: dms_ContactEmail_List
B12: ActewAGL Distribution | C12: ActewAGL Distribution | D12: 76670568688 | E12: ACT | F12: Electricity | G12: Distribution | H12: Revenue cap | I12: Calendar | J12: December | K12: 5 | L12: 5 | M12: 5 | N12: 2014-19 Distribution Determination | R12: 40 Bunda Street | T12: CANBERRA | U12: ACT | V12: 2601 | W12: GPO BOX 366 | Y12: CANBERRA | Z12: ACT | AA12: 2601 | AB12: Robert Walker | AC12: 02 6248 3847 | AD12: robert.walker@actewagle.com.au
B13: ActewAGL Distribution (Tx Assets) | C13: ActewAGL Distribution (Tx Assets) | D13: 76670568688 | E13: ACT | F13: Electricity | G13: Distribution | H13: Revenue cap | I13: Calendar | J13: December | K13: 5 | L13: 5 | M13: 5 | N13: distribution determination | U13: ACT
B14: AGN | C14: AGN | D14: 78551685 | E14: SA | F14: Gas | G14: Distribution | H14: Revenue cap | I14: Financial | J14: June | K14: 5 | L14: 5 | M14: 5 | N14: distribution determination | U14: SA
B15: Ausgrid | C15: Ausgrid | D15: 67505337385 | E15: NSW | F15: Electricity | G15: Distribution | H15: Revenue cap | I15: Financial | J15: June | K15: 5 | L15: 5 | M15: 5 | N15: 2014-19 Distribution Determination | R15: 570 George St | T15: SYDNEY | U15: NSW | V15: 2000 | AB15: John Thomson | AC15: (02) 9269 2312 | AD15: john.thomson@ausgrid.com.au
B16: Ausgrid (Tx Assets) | C16: Ausgrid (Tx Assets) | D16: 67505337385 | E16: NSW | F16: Electricity | G16: Distribution | H16: Revenue cap | I16: Financial | J16: June | K16: 5 | L16: 5 | M16: 5 | N16: distribution determination | U16: NSW
B17: AusNet (D) | C17: AusNet Services (D) | D17: 91064651118 | E17: Vic | F17: Electricity | G17: Distribution | H17: Revenue cap | I17: Calendar | J17: December | K17: 5 | L17: 5 | M17: 2 | N17: 2016-20 Distribution Determination | R17: Level 32 | S17: 2 Southbank Boulevard | T17: SOUTHBANK | U17: Vic | V17: 3006 | W17: Locked Bag 14051 | Y17: MELBOURNE CITY MAIL CENTRE | Z17: VIC | AB17: Tom Hallam | AC17: 03 9695 6617 | AD17: Thomas.hallam@SP-Ausnet.com.au
B18: AusNet (T) | C18: AusNet (T) | D18: 48116124362 | E18: Vic | F18: Electricity | G18: Transmission | H18: Revenue cap | I18: Financial | J18: March | K18: 5 | L18: 5 | M18: 2 | N18: transmission determination | R18: Level 32 | S18: 2 Southbank Boulevard | T18: SOUTHBANK | U18: Vic | V18: 3006 | AB18: Tom Hallam | AC18: 03 9695 6617 | AD18: Thomas.hallam@SP-Ausnet.com.au
B19: Australian Distribution Co. | C19: Australian Distribution Co. | D19: 11222333444 | E19: - | F19: Electricity | G19: Distribution | H19: Revenue cap | I19: Financial | J19: June | K19: 5 | L19: 5 | M19: 2 | N19: distribution determination | U19: -
B20: Australian Transmission Co. | C20: Australian Transmission Co. | D20: 11222333444 | E20: - | F20: Electricity | G20: Transmission | H20: Revenue cap | I20: Financial | J20: June | K20: 5 | L20: 5 | M20: 5 | N20: transmission determination | U20: -
B21: CitiPower | C21: CitiPower | D21: 76064651056 | E21: Vic | F21: Electricity | G21: Distribution | H21: Revenue cap | I21: Calendar | J21: December | K21: 5 | L21: 5 | M21: 2 | N21: 2016-20 Distribution Determination | R21: 40 Market Street | T21: MELBOURNE | U21: Vic | V21: 3000 | W21: Locked Bag 14090 | Y21: MELBOURNE | Z21: VIC | AB21: Hannah Williams | AC21: 03 9683 4088 | AD21: hwilliams@powercor.com.au
B22: Directlink | C22: Directlink | D22: 16779340889 | E22: Qld | F22: Electricity | G22: Transmission | H22: Revenue cap | I22: Financial | J22: June | K22: 10 | L22: 5 | M22: 5 | N22: transmission determination | U22: NSW
B23: ElectraNet | C23: ElectraNet | D23: 41094482416 | E23: SA | F23: Electricity | G23: Transmission | H23: Revenue cap | I23: Financial | J23: June | K23: 5 | L23: 5 | M23: 5 | N23: transmission determination | R23: 52-55 East Terrace | S23: Rymill Park | T23: ADELAIDE | U23: SA | V23: 5000 | W23: PO Box 7096 | X23: Hutt Street Post Office | Y23: ADELAIDE | Z23: SA | AB23: Bill Jackson | AC23: 08 8404 7969 | AD23: jackson.bill@electranet.com.au
B24: Endeavour Energy | C24: Endeavour Energy | D24: 59253130878 | E24: NSW | F24: Electricity | G24: Distribution | H24: Revenue cap | I24: Financial | J24: June | K24: 5 | L24: 5 | M24: 5 | N24: 2014-19 Distribution Determination | R24: 51 Huntingwood Drive | T24: HUNTINGWOOD | U24: NSW | V24: 2148 | W24: PO Box 811 | Y24: SEVEN HILLS | Z24: NSW | AB24: Jon Hocking | AC24: 02 9853 4386 / 0407 348 156 | AD24: Jon.Hocking@Endeavourenergy.com.au
B25: Energex | C25: Energex | D25: 40078849055 | E25: Qld | F25: Electricity | G25: Distribution | H25: Revenue cap | I25: Financial | J25: June | K25: 5 | L25: 5 | M25: 5 | N25: 2015-20 Distribution Determination | R25: 26 Reddacliff Street | T25: NEWSTEAD | U25: Qld | V25: 4006 | W25: 26 Reddacliff Street | Y25: NEWSTEAD | Z25: QLD | AA25: 4006 | AB25: Nicola Roscoe | AC25: 07 3664 5891 | AD25: nicolaroscoe@energex.com.au
B26: Ergon Energy | C26: Ergon Energy | D26: 50087646062 | E26: Qld | F26: Electricity | G26: Distribution | H26: Revenue cap | I26: Financial | J26: June | K26: 5 | L26: 5 | M26: 5 | N26: 2015-20 Distribution Determination | R26: 22 Walker Street | T26: TOWNSVILLE | U26: Qld | V26: 4810 | AB26: Jenny Doyle, Group Manager Regulatory Affairs | AC26: (07) 3851 6416 | AD26: jenny.doyle@ergon.com.au
B27: Essential Energy | C27: Essential Energy | D27: 37428185226 | E27: NSW | F27: Electricity | G27: Distribution | H27: Revenue cap | I27: Financial | J27: June | K27: 5 | L27: 5 | M27: 5 | N27: 2014-19 Distribution Determination | R27: 8 Buller Street | T27: PORT MACQUARIE | U27: NSW | V27: 2444 | W27: PO Box 5730 | Y27: Port MacQuarie | Z27: NSW | AB27: Catherine Waddell | AC27: 02 6338 3553 | AD27: Catherine.waddell@essentialenergy.com.au
B28: Jemena Electricity | C28: Jemena Electricity | D28: 82064651083 | E28: Vic | F28: Electricity | G28: Distribution | H28: Revenue cap | I28: Calendar | J28: December | K28: 5 | L28: 5 | M28: 2 | N28: 2016-20 Distribution Determination | R28: 321 Ferntree Gully Road | T28: MT WAVERLEY | U28: Vic | V28: 3149 | W28: 321 Ferntree Gully Road | Y28: MT WAVERLEY | Z28: VIC | AA28: 3149 | AB28: Anton Murashev | AC28: 03 8544 9036 | AD28: anton.murashev@jemena.com.au
B29: Murraylink | C29: Murraylink | D29: 79181207909 | E29: SA | F29: Electricity | G29: Transmission | H29: Revenue cap | I29: Financial | J29: June | K29: 5 | L29: 5 | M29: 5 | N29: transmission determination | U29: NSW
B30: Powercor Australia | C30: Powercor Australia | D30: 89064651109 | E30: Vic | F30: Electricity | G30: Distribution | H30: Revenue cap | I30: Calendar | J30: December | K30: 5 | L30: 5 | M30: 2 | N30: 2016-20 Distribution Determination | R30: 40 Market Street | T30: MELBOURNE | U30: Vic | V30: 3000 | W30: Locked bag 14090 | Y30: MELBOURNE | Z30: VIC | AA30: 3001 | AB30: Hannah Williams | AC30: 03 9683 4088 | AD30: hwilliams@powercor.com.au
B31: Powerlink | C31: Queensland Electricity Transmission Corporation Limited trading as Powerlink Queensland | D31: 82078849233 | E31: Qld | F31: Electricity | G31: Transmission | H31: Revenue cap | I31: Financial | J31: June | K31: 5 | L31: 5 | M31: 5 | N31: transmission determination | R31: 33 Harold St | T31: VIRGINIA | U31: Qld | V31: 4014 | W31: PO Box 1193 | Y31: VIRGINIA | Z31: QLD | AA31: 4014 | AB31: Jennifer Harris | AC31: 07 3860 2667 | AD31: jharris@powerlink.com.au
B32: Qld,SA &ACT Gas Reset | C32: Qld,SA &ACT Gas Reset | D32: 22222222222 | E32: - | F32: Gas | G32: Distribution | H32: ? | K32: 5 | L32: 5 | M32: x | N32: n/a | U32: -
B33: Roma to Brisbane Pipeline | C33: APT Petroleum Pipelines Limited t/a Roma to Brisbane Pipeline | D33: 009 737 393 | E33: Qld | F33: Gas | G33: Distribution | H33: ? | I33: Financial | J33: June | K33: 5 | L33: 5 | M33: x | N33: n/a
B34: SA Power Networks | C34: SA Power Networks | D34: 13332330749 | E34: SA | F34: Electricity | G34: Distribution | H34: Revenue cap | I34: Financial | J34: June | K34: 5 | L34: 5 | M34: 5 | N34: 2015-20 Distribution Determination | R34: 1 Anzac Highway | T34: KESWICK | U34: SA | V34: 5035 | W34: GPO Box 77 | Y34: ADELAIDE | Z34: SA | AB34: Damien O'Connor | AC34: 08 8404 5066 | AD34: damien.oconnor@sapowernetworks.com.au
B35: TasNetworks (D) | C35: TasNetworks (D) | D35: 24167357299 | E35: Tas | F35: Electricity | G35: Distribution | H35: Revenue cap | I35: Financial | J35: June | K35: 5 | L35: 5 | M35: 5 | N35: distribution determination | R35: 21 Kirksway Place | T35: HOBART | U35: Tas | V35: 7000 | W35: GPO Box 191 | Y35: HOBART | Z35: Tas | AB35: Leigh Mayne | AC35: 03 6270 3691 | AD35: rrp2012@auroraenergy.com.au
B36: TasNetworks (T) | C36: TasNetworks (T) | D36: 24167357299 | E36: Tas | F36: Electricity | G36: Transmission | H36: Revenue cap | I36: Financial | J36: March | K36: 5 | L36: 5 | M36: 5 | N36: transmission determination | R36: 1-7 Maria Street | T36: LENAH VALLEY | U36: Tas | V36: 7008 | W36: PO Box 606 | Y36: MOONAH | Z36: Tas | AB36: Heath Dillon | AC36: 03 6274 3664 | AD36: heath.dillon@transend.com.au
B37: TransGrid | C37: TransGrid | D37: 19622755774 | E37: NSW | F37: Electricity | G37: Transmission | H37: Revenue cap | I37: Financial | J37: June | K37: 5 | L37: 5 | M37: 5 | N37: transmission determination | R37: 180 Thomas Street | T37: HAYMARKET | U37: NSW | V37: 2000 | W37: PO Box A1000 | Y37: SYDNEY SOUTH | Z37: NSW | AB37: Andrew Kingsmill | AC37: 02 9284 3149 | AD37: andrew.kingsmill@transgrid.com.au
B38: United Energy | C38: United Energy | D38: 70064651029 | E38: Vic | F38: Electricity | G38: Distribution | H38: Revenue cap | I38: Calendar | J38: December | K38: 5 | L38: 5 | M38: 2 | N38: 2016-20 Distribution Determination | R38: 6 Nexus Court | T38: MULGRAVE | U38: Vic | V38: 3170 | W38: PO Box 449 | Y38: MOUNT WAVERLEY | Z38: VIC | AB38: Mathew Abraham | AC38: 03 8846 9758 | AD38: mathew.abraham@ue.com.au
B39: Victorian DNSP Backcasting | C39: Victorian DNSP Backcasting | D39: 33333333666 | E39: Vic | F39: Electricity | G39: Distribution | H39: ? | I39: Calendar | K39: 5 | L39: 5 | M39: x | N39: distribution determination | U39: Vic
B40: Victorian DNSP Reset | C40: Victorian DNSP Reset | D40: 33333333333 | E40: Vic | F40: Electricity | G40: Distribution | H40: ? | I40: Calendar | K40: 5 | L40: 5 | M40: x | N40: distribution determination | U40: Vic
B41: Western Power (D) | C41: Western Power (D) | D41: 18540492861 | E41: WA | F41: Electricity | G41: Distribution | H41: Revenue cap | I41: Financial | J41: June | K41: 5 | L41: 4 | M41: x | N41: distribution determination | U41: WA | AB41: Judy Hunter | AC41: 08 9326 6239
B42: Western Power (T) | C42: Western Power (T) | D42: 18540492861 | E42: WA | F42: Electricity | G42: Transmission | H42: Revenue cap | I42: Financial | J42: June | K42: 5 | L42: 4 | M42: x | N42: transmission determination | U42: WA | AB42: Judy Hunter | AC42: 08 9326 6239
B47: dms_Model_List | C47: DELETE NR 'CRY' IF NOT AN ANNUAL RIN (EB, CA , ARR) | E47: dms_RYE_Formula_Result | N47: dms_0203_ProjectType | R47: dms_020303_01_UOM | S47: dms_020501_01_UOM | T47: dms_020501_02_UOM | U47: dms_020501_03_UOM | V47: dms_020501_04_UOM | W47: dms_020603_01_UOM | X47: dms_040102_01_UOM | Y47: dms_040102_04_UOM
B48: ARR | C48: ANNUAL REPORTING STATEMENT | E48: =LEFT(dms_SingleYear_FinalYear_Result,2)&RIGHT(dms_SingleYear_FinalYear_Result,2) -> 2017 | F48: =LEFT(dms_SingleYear_FinalYear_Result,2)&RIGHT(dms_SingleYear_FinalYear_Result,2) | H48: Formula errors are OK | N48: New line on new route - single circuit | R48: Circuit line length in km | S48: 0's | T48: 0's | U48: 0's | V48: 0's | W48: 0's | X48: 0's | Y48: days
B49: CA | C49: CATEGORY ANALYSIS | E49: =LEFT(dms_SingleYear_FinalYear_Result,2)&RIGHT(dms_SingleYear_FinalYear_Result,2) -> 2017 | F49: =LEFT(dms_SingleYear_FinalYear_Result,2)&RIGHT(dms_SingleYear_FinalYear_Result,2) | H49: Formula errors are OK | N49: New line on new route - dual circuit | R49: Circuit line length in km | S49: 0's | T49: 0's | U49: 0's | V49: 0's | W49: 0's | X49: 0's | Y49: 0's
B50: CPI | C50: CPI | N50: New line on new route - other | R50: Circuit line length in km | S50: MVA added | T50: MVA added | U50: MVA added | V50: MVA added | W50: 0's | X50: 0's | Y50: $0s
B51: EB | C51: ECONOMIC BENCHMARKING | E51: =LEFT(dms_SingleYear_FinalYear_Result,2)&RIGHT(dms_SingleYear_FinalYear_Result,2) -> 2017 | F51: =LEFT(dms_SingleYear_FinalYear_Result,2)&RIGHT(dms_SingleYear_FinalYear_Result,2) | H51: Formula errors are OK | N51: Line rebuild over existing route - single circuit | R51: Circuit line length in km | S51: 0's | T51: 0's | U51: 0's | V51: 0's | W51: 0's | X51: $0s | Y51: 0's
B52: PTRM | C52: POST TAX REVENUE MODEL | E52: =LEFT(dms_MultiYear_FinalYear_Result,2)&RIGHT(dms_MultiYear_FinalYear_Result,2) -> 2019 | F52: =LEFT(dms_MultiYear_FinalYear_Result,2)&RIGHT(dms_MultiYear_FinalYear_Result,2) | N52: Line rebuild over existing route - dual circuit | R52: Number | S52: total spend $0s | T52: total spend $0s | U52: total spend $0s | V52: total spend $0s | W52: (per cent)
B53: Reset | C53: REGULATORY REPORTING STATEMENT | E53: =LEFT(dms_MultiYear_FinalYear_Result,2)&RIGHT(dms_MultiYear_FinalYear_Result,2) -> 2019 | F53: =LEFT(dms_MultiYear_FinalYear_Result,2)&RIGHT(dms_MultiYear_FinalYear_Result,2) | H53: Formula errors are OK | N53: Reconductor - Single circuit | R53: Number | S53: net circuit km added | T53: net circuit km added | U53: net circuit km added | V53: net circuit km added
B54: RFM | C54: ROLL FORWARD MODEL | E54: =LEFT(dms_CRCP_FinalYear_Result,2)&RIGHT(dms_CRCP_FinalYear_Result,2) -> 2017 | F54: =LEFT(dms_CRCP_FinalYear_Result,2)&RIGHT(dms_CRCP_FinalYear_Result,2) | N54: Reconductor - Dual circuit | R54: Number | S54: total spend $0s | T54: total spend $0s | U54: total spend $0s | V54: total spend $0s
B55: WACC | C55: WEIGHTED AVERAGE COST OF CAPITAL | E55: =LEFT(dms_MultiYear_FinalYear_Result,2)&RIGHT(dms_MultiYear_FinalYear_Result,2) -> 2019 | F55: =LEFT(dms_MultiYear_FinalYear_Result,2)&RIGHT(dms_MultiYear_FinalYear_Result,2) | N55: Other | S55: net circuit km added | T55: net circuit km added | U55: net circuit km added | V55: net circuit km added
S56: total spend $0s | T56: total spend $0s | U56: total spend $0s | V56: total spend $0s
S57: 0's | U57: $0s
S58: 0's
S59: 0's
S60: $0s
B65: dms_SourceList | C65: dms_FormControl_Choices | E65: dms_FRCPlength_Num_List | F65: dms_FinalYear_List | G65: dms_CRCPlength_Num_List | H65: dms_CFinalYear_List | I65: dms_RCP_fyear_list | J65: dms_CRY_ListF | K65: dms_CRY_ListC | L65: dms_RCP_cyear_list
B66: After appeal | C66: Revenue cap | E66: 1 | F66: FRCP_y1 | G66: 1 | H66: CRCP_y1 | I66: dms_fy1 | J66: 2005-06 | K66: 2006 | L66: dms_cy1
B67: Draft decision | C67: Revenue yield | E67: 2 | F67: FRCP_y2 | G67: 2 | H67: CRCP_y2 | I67: dms_fy2 | J67: 2006-07 | K67: 2007 | L67: dms_cy2
B68: Final decision | C68: Weighted average price cap | E68: 3 | F68: FRCP_y3 | G68: 3 | H68: CRCP_y3 | I68: dms_fy3 | J68: 2007-08 | K68: 2008 | L68: dms_cy3
B69: Pass through decision | E69: 4 | F69: FRCP_y4 | G69: 4 | H69: CRCP_y4 | I69: dms_fy4 | J69: 2008-09 | K69: 2009 | L69: dms_cy4
B70: PTRM annual update | E70: 5 | F70: FRCP_y5 | G70: 5 | H70: CRCP_y5 | I70: dms_fy5 | J70: 2009-10 | K70: 2010 | L70: dms_cy5
B71: PTRM interim update 1 | E71: 6 | F71: FRCP_y6 | G71: 6 | H71: CRCP_y6 | I71: dms_fy6 | J71: 2010-11 | K71: 2011 | L71: dms_cy6
B72: PTRM interim update 2 | E72: 7 | F72: FRCP_y7 | G72: 7 | H72: CRCP_y7 | I72: dms_fy7 | J72: 2011-12 | K72: 2012 | L72: dms_cy7
B73: PTRM interim update 3 | E73: 8 | F73: FRCP_y8 | G73: 8 | H73: CRCP_y8 | I73: dms_fy8 | J73: 2012-13 | K73: 2013 | L73: dms_cy8
B74: PTRM interim update 4 | E74: 9 | F74: FRCP_y9 | G74: 9 | H74: CRCP_y9 | I74: dms_fy9 | J74: 2013-14 | K74: 2014 | L74: dms_cy9
B75: Regulatory proposal | E75: 10 | F75: FRCP_y10 | G75: 10 | H75: CRCP_y10 | I75: dms_fy10 | J75: 2014-15 | K75: 2015 | L75: dms_cy10
B76: Reporting | I76: dms_fy11 | J76: 2015-16 | K76: 2016 | L76: dms_cy11
B77: Revised regulatory proposal | I77: dms_fy12 | J77: 2016-17 | K77: 2017 | L77: dms_cy12
B78: RFM annual update | D78: dms_FRCP_years | F78: dms_CRCP_years | H78: dms_CRCP_index | I78: dms_fy13 | J78: 2017-18 | K78: 2018 | L78: dms_cy13
B79: WACC annual update | D79: =FRCP_y1 -> 2015-16 | E79: dms_FRCP_y1 | F79: =IF(dms_RPT="financial",VALUE(LEFT(dms_FRCP_y1,4)-1)&"-"&TEXT(VALUE(RIGHT(dms_FRCP_y1,2)-1),"0#"),VALUE(LEFT(dms_FRCP_y1,4)-1)) -> 2014 | G79: dms_CRCP_yZ | H79: 1 | I79: dms_fy14 | J79: 2018-19 | K79: 2019 | L79: dms_cy14
D80: =IF(dms_RPT="financial",VALUE(LEFT(dms_FRCP_y1,4)+1)&"-"&VALUE(MID(dms_FRCP_y1,3,2)+2),VALUE(LEFT(dms_FRCP_y1,4)+1)) -> 2016 | E80: dms_FRCP_y2 | F80: =IF(dms_RPT="financial",VALUE(LEFT(dms_CRCP_yZ,4)-1)&"-"&TEXT(VALUE(RIGHT(dms_CRCP_yZ,2)-1),"0#"),VALUE(LEFT(dms_CRCP_yZ,4)-1)) -> 2013 | G80: dms_CRCP_yY | H80: 2 | I80: dms_fy15 | J80: 2019-20 | K80: 2020 | L80: dms_cy15
D81: =IF(dms_RPT="financial",VALUE(LEFT(dms_FRCP_y2,4)+1)&"-"&VALUE(MID(dms_FRCP_y2,3,2)+2),VALUE(LEFT(dms_FRCP_y2,4)+1)) -> 2017 | E81: dms_FRCP_y3 | F81: =IF(dms_RPT="financial",VALUE(LEFT(dms_CRCP_yY,4)-1)&"-"&TEXT(VALUE(RIGHT(dms_CRCP_yY,2)-1),"0#"),VALUE(LEFT(dms_CRCP_yY,4)-1)) -> 2012 | G81: dms_CRCP_yX | H81: 3
D82: =IF(dms_RPT="financial",VALUE(LEFT(dms_FRCP_y3,4)+1)&"-"&VALUE(MID(dms_FRCP_y3,3,2)+2),VALUE(LEFT(dms_FRCP_y3,4)+1)) -> 2018 | E82: dms_FRCP_y4 | F82: =IF(dms_RPT="financial",VALUE(LEFT(dms_CRCP_yX,4)-1)&"-"&TEXT(VALUE(RIGHT(dms_CRCP_yX,2)-1),"0#"),VALUE(LEFT(dms_CRCP_yX,4)-1)) -> 2011 | G82: dms_CRCP_yW | H82: 4
D83: =IF(dms_RPT="financial",VALUE(LEFT(dms_FRCP_y4,4)+1)&"-"&VALUE(MID(dms_FRCP_y4,3,2)+2),VALUE(LEFT(dms_FRCP_y4,4)+1)) -> 2019 | E83: dms_FRCP_y5 | F83: =IF(dms_RPT="financial",VALUE(LEFT(dms_CRCP_yW,4)-1)&"-"&TEXT(VALUE(RIGHT(dms_CRCP_yW,2)-1),"0#"),VALUE(LEFT(dms_CRCP_yW,4)-1)) -> 2010 | G83: dms_CRCP_yV | H83: 5
D84: =IF(dms_RPT="financial",VALUE(LEFT(dms_FRCP_y5,4)+1)&"-"&VALUE(MID(dms_FRCP_y5,3,2)+2),VALUE(LEFT(dms_FRCP_y5,4)+1)) -> 2020 | E84: dms_FRCP_y6 | F84: =IF(dms_RPT="financial",VALUE(LEFT(dms_CRCP_yV,4)-1)&"-"&TEXT(VALUE(RIGHT(dms_CRCP_yV,2)-1),"0#"),VALUE(LEFT(dms_CRCP_yV,4)-1)) -> 2009 | G84: dms_CRCP_yU | H84: 6
D85: =IF(dms_RPT="financial",VALUE(LEFT(dms_FRCP_y6,4)+1)&"-"&VALUE(MID(dms_FRCP_y6,3,2)+2),VALUE(LEFT(dms_FRCP_y6,4)+1)) -> 2021 | E85: dms_FRCP_y7 | F85: =IF(dms_RPT="financial",VALUE(LEFT(dms_CRCP_yU,4)-1)&"-"&TEXT(VALUE(RIGHT(dms_CRCP_yU,2)-1),"0#"),VALUE(LEFT(dms_CRCP_yU,4)-1)) -> 2008 | G85: dms_CRCP_yT | H85: 7
D86: =IF(dms_RPT="financial",VALUE(LEFT(dms_FRCP_y7,4)+1)&"-"&VALUE(MID(dms_FRCP_y7,3,2)+2),VALUE(LEFT(dms_FRCP_y7,4)+1)) -> 2022 | E86: dms_FRCP_y8 | F86: =IF(dms_RPT="financial",VALUE(LEFT(dms_CRCP_yT,4)-1)&"-"&TEXT(VALUE(RIGHT(dms_CRCP_yT,2)-1),"0#"),VALUE(LEFT(dms_CRCP_yT,4)-1)) -> 2007 | G86: dms_CRCP_yS | H86: 8
D87: =IF(dms_RPT="financial",VALUE(LEFT(dms_FRCP_y8,4)+1)&"-"&VALUE(MID(dms_FRCP_y8,3,2)+2),VALUE(LEFT(dms_FRCP_y8,4)+1)) -> 2023 | E87: dms_FRCP_y9 | F87: =IF(dms_RPT="financial",VALUE(LEFT(dms_CRCP_yS,4)-1)&"-"&TEXT(VALUE(RIGHT(dms_CRCP_yS,2)-1),"0#"),VALUE(LEFT(dms_CRCP_yS,4)-1)) -> 2006 | G87: dms_CRCP_yR | H87: 9
D88: =IF(dms_RPT="financial",VALUE(LEFT(dms_FRCP_y9,4)+1)&"-"&VALUE(MID(dms_FRCP_y9,3,2)+2),VALUE(LEFT(dms_FRCP_y9,4)+1)) -> 2024 | E88: dms_FRCP_y10 | F88: =IF(dms_RPT="financial",VALUE(LEFT(dms_CRCP_yR,4)-1)&"-"&TEXT(VALUE(RIGHT(dms_CRCP_yR,2)-1),"0#"),VALUE(LEFT(dms_CRCP_yR,4)-1)) -> 2005 | G88: dms_CRCP_yQ | H88: 10
B100: Reason for interruption | C100: Detailed reason for interruption | D100: dms_Reason_Interruption
B101: Animal | C101: Animal impact | D101: Animal
C102: Animal nesting/burrowing, etc and other | D102: Asset failure
C103: Other | D103: Other
B104: Asset failure | C104: LV | D104: Overloads
C105: Distribution substation | D105: Planned
C106: HV | D106: Network business
C107: Zone substation | D107: Third party
C108: Subtransmission | D108: Unknown
B109: Other | C109: insert description of 'other' | D109: Vegetation
B110: Overloads | C110: - | D110: Weather
B111: Planned | C111: - | D111: 2 - STPIS Exclusion (3.3)(a)
B112: Network business | C112: Network error | D112: 3 - STPIS Exclusion (3.3)(a)
C113: Switching and protection error | D113: 4 - STPIS Exclusion (3.3)(a)
B114: Third party | C114: Fire | D114: 5 - STPIS Exclusion (3.3)(a)
C115: Other | D115: 6 - STPIS Exclusion (3.3)(a)
C116: Dig-in | D116: 7 - STPIS Exclusion (3.3)(a)
C117: Unauthorised access
C118: Vehicle impact
B119: Unknown | C119: Unknown
B120: Vegetation | C120: Blow-in/Fall-in - NSP responsibility
C121: Grow-in - NSP responsibility
C122: Blow-in/Fall-in - Other responsible party
C123: Grow-in - Other responsible party
B124: Weather | C124: -
B125: 2 - STPIS Exclusion (3.3)(a) | C125: -
B126: 3 - STPIS Exclusion (3.3)(a) | C126: -
B127: 4 - STPIS Exclusion (3.3)(a) | C127: -
B128: 5 - STPIS Exclusion (3.3)(a) | C128: -
B129: 6 - STPIS Exclusion (3.3)(a) | C129: -
B130: 7 - STPIS Exclusion (3.3)(a) | C130: -

Sheet Instructions (hidden)
B2: =CONCATENATE(dms_Segment," Network Service Provider") -> Distribution Network Service Provider
B3: Annual Reporting RIN Template
C4: =CONCATENATE("This template is to be used by ",dms_TradingName," to fulfil its reporting obligations to the AER.") -> This template is to be used by AusNet (D) to fulfil its reporting obligations to the AER.
C5: INSTRUCTIONS
C6: Complete the Business & other details worksheet before entering data or values in any other worksheets. The Business & other details worksheet is linked to other worksheets within the workbook and automatically generates certain column headings and conditional formatting.
C8: Identifying CONFIDENTIAL INFORMATION: Please use the macro at the top of each worksheet to identify confidential information.
C9: -Do this by selecting the cell or cells that contain confidential information and then run the Mark selected cells as CONFIDENTIAL macro. This will format the cells a specific colour that is identified by the AER's database which in turn marks that information as confidential. -To reverse this, select the cell or cells and run the Return cells to NON-CONFIDENTIAL macro
C11: UNITS OF MEASURE All amounts are to be unrounded and reported in nominal terms on a one for one basis: that is 1000 is to be entered as '1000'.
C13: COLOUR CODING OF INPUT / NON-INPUT CELLS:
D14: Yellow = Input cell (mandatory)
D15: Darker yellow = input cell (mandatory)
D16: Orange = input cell (if data available)
D17: Grey = Not applicable/No inputs required
D18: Leave coloured cells blank if no information exists. PLEASE DO NOT ENTER TEXT into cells that are to contain numeric data.
C21: WORKSHEET NAVIGATION Many tables in the worksheets have been "grouped" to allow for easy navigation. To ungroup or group data use the outline symbols in the left margin of excel (for Row groupings) or above the columns (for column groupings).
C23: RETURNING COMPLETED RESPONSES Please return four (4) files to the AER: 1. A confidential version which must contain a complete set of all responses with confidential information marked using the Mark selected cells CONFIDENTIAL macro and which has been completed using the locked template file provided by the AER. 2. An actual and an estimate version with confidential information marked using the Mark selected cells CONFIDENTIAL macro and which has been completed using the locked template file provided by the AER. 3. A public version with confidential information either removed completely or aggregated in some form together with writtten consent to disclose the public version of the response. Use the drop down box on the Business and other details worksheet to identify the file as either confidential ('consolidated') or public.
C25: SUBMITTING AMENDED DATA TO THE AER If an NSP wishes to correct data previously submitted to the AER it should resubmit that data using the original completed submission as the starting point. Please make any necessary changes to the data. Data that is not being amended should be left unchanged. NSPs must identify the reason for the amendments in the Amendment Reason box on the Business and other details worksheet. NSPs may provide further details regarding any amendments in the Amendments worksheet. .
C26: NSP may use Amended Data macro to highlight cells that contain amended data.
C27: Please resubmit two (2) files - a confidential version and a public version of the amended submission to the AER

Sheet Contents
B1: REGULATORY REPORTING STATEMENT
B2: =INDEX(dms_TradingNameFull_List,MATCH(dms_TradingName,dms_TradingName_List)) -> AusNet Services (D)
B3: =CONCATENATE((LOOKUP(dms_Model,dms_Model_List,dms_Worksheet_List))&" "&CRY) -> CATEGORY ANALYSIS 2017
B4: CONTENTS
E7: 1. Business details | L7: 2. Expenditure
E27: 4. Alternative control services | L27: 5. Network information | S27: 6. Service & quality

Sheet Business & other details
B1: REGULATORY REPORTING STATEMENT
B2: =INDEX(dms_TradingNameFull_List,MATCH(dms_TradingName,dms_TradingName_List)) -> AusNet Services (D)
B3: =CONCATENATE((LOOKUP(dms_Model,dms_Model_List,dms_Worksheet_List))&" "&CRY) -> CATEGORY ANALYSIS 2017
B4: BUSINESS & OTHER DETAILS
B7: Instructions
B8: Complete the following business details regulatory template before entering data or values in any other regulatory template. This regulatory template is linked to other cells within the spreadsheet and automatically generates column headings.
B10: SUBMISSION PARTICULARS INPUT SHEETS
B12: ENTITY DETAILS
B14: Short name | C14: AusNet (D)
B15: ACN / ABN | C15: =INDEX(dms_ABN_List,MATCH(dms_TradingName,dms_TradingName_List)) -> 91064651118
B18: Business address | C18: Address 1 | E18: =INDEX(dms_Addr1_List,MATCH(dms_TradingName,dms_TradingName_List)) -> Level 32
D19: Address 2 | E19: =IF(ISBLANK(INDEX(dms_Addr2_List,MATCH(dms_TradingName,dms_TradingName_List))),"",INDEX(dms_Addr2_List,MATCH(dms_TradingName,dms_TradingName_List))) -> 2 Southbank Boulevard
C20: Suburb | E20: =INDEX(dms_Suburb_List,MATCH(dms_TradingName,dms_TradingName_List)) -> SOUTHBANK
D21: State | E21: =INDEX(dms_State_List,MATCH(dms_TradingName,dms_TradingName_List)) -> Vic | F21: p/code | G21: =INDEX(dms_PostCode_List,MATCH(dms_TradingName,dms_TradingName_List)) -> 3006
B23: Postal address | C23: Address 1 | E23: =INDEX(dms_PAddr1_List,MATCH(dms_TradingName,dms_TradingName_List)) -> Locked Bag 14051
D24: Address 2 | E24: =IF(ISBLANK(INDEX(dms_PAddr2_List,MATCH(dms_TradingName,dms_TradingName_List))),"",INDEX(dms_PAddr2_List,MATCH(dms_TradingName,dms_TradingName_List))) -> 
C25: Suburb | E25: =INDEX(dms_PSuburb_List,MATCH(dms_TradingName,dms_TradingName_List)) -> MELBOURNE CITY MAIL CENTRE
D26: State | E26: =INDEX(dms_PState_List,MATCH(dms_TradingName,dms_TradingName_List)) -> VIC | F26: p/code | G26: =INDEX(dms_PPostCode_List,MATCH(dms_TradingName,dms_TradingName_List)) -> 0
B29: Contact name/s | C29: Clare Thompson
B30: Contact phone/s | AA30: Tom Hallam
B31: Contact email address/s | C31: Clare.E.Thompson@ausnetservices.com.au | AA31: Tom Hallam
B33: REGULATORY CONTROL PERIODS
B35: Forthcoming regulatory control period | C35: 2015-16 | D35: =dms_FRCP_y2 -> 2016 | E35: =dms_FRCP_y3 -> 2017 | F35: =dms_FRCP_y4 -> 2018 | G35: =dms_FRCP_y5 -> 2019 | H35: =dms_FRCP_y6 -> 2020 | I35: =IF(dms_RPT="financial",VALUE(LEFT(FRCP_y6,4)+1)&"-"&VALUE(MID(FRCP_y6,3,2)+2),VALUE(LEFT(FRCP_y6,4)+1)) -> 2021
B38: Current regulatory control period | C38: =dms_CRCP_FirstYear_Result -> 2010 | D38: =IF(dms_RPT="financial",VALUE(LEFT(CRCP_y1,4)+1)&"-"&TEXT(VALUE(RIGHT(CRCP_y1,2)+1),"0#"),VALUE(LEFT(CRCP_y1,4)+1)) -> 2011 | E38: =IF(dms_RPT="financial",VALUE(LEFT(CRCP_y2,4)+1)&"-"&TEXT(VALUE(RIGHT(CRCP_y2,2)+1),"0#"),VALUE(LEFT(CRCP_y2,4)+1)) -> 2012 | F38: =IF(dms_RPT="financial",VALUE(LEFT(CRCP_y3,4)+1)&"-"&TEXT(VALUE(RIGHT(CRCP_y3,2)+1),"0#"),VALUE(LEFT(CRCP_y3,4)+1)) -> 2013 | G38: =IF(dms_RPT="financial",VALUE(LEFT(CRCP_y4,4)+1)&"-"&TEXT(VALUE(RIGHT(CRCP_y4,2)+1),"0#"),VALUE(LEFT(CRCP_y4,4)+1)) -> 2014 | H38: =IF(dms_RPT="financial",VALUE(LEFT(CRCP_y5,4)+1)&"-"&TEXT(VALUE(RIGHT(CRCP_y5,2)+1),"0#"),VALUE(LEFT(CRCP_y5,4)+1)) -> 2015
B41: Previous regulatory control period | C41: =IF(dms_RPT="financial",VALUE(LEFT(PRCP_y2,4)-1)&"-"&TEXT(VALUE(MID(PRCP_y2,3,2)),"0#"),VALUE(LEFT(PRCP_y2,4)-1)) -> 2005 | D41: =IF(dms_RPT="financial",VALUE(LEFT(PRCP_y3,4)-1)&"-"&TEXT(VALUE(MID(PRCP_y3,3,2)),"0#"),VALUE(LEFT(PRCP_y3,4)-1)) -> 2006 | E41: =IF(dms_RPT="financial",VALUE(LEFT(PRCP_y4,4)-1)&"-"&TEXT(VALUE(MID(PRCP_y4,3,2)),"0#"),VALUE(LEFT(PRCP_y4,4)-1)) -> 2007 | F41: =IF(dms_RPT="financial",VALUE(LEFT(PRCP_y5,4)-1)&"-"&TEXT(VALUE(RIGHT(PRCP_y5,2)-1),"0#"),VALUE(LEFT(PRCP_y5,4)-1)) -> 2008 | G41: =IF(dms_RPT="financial",VALUE(LEFT(CRCP_y1,4)-1)&"-"&TEXT(VALUE(RIGHT(CRCP_y1,2)-1),"0#"),VALUE(LEFT(CRCP_y1,4)-1)) -> 2009
B44: Current regulatory year | C44: 2017 | D44: CRY
C47: DELETE NR 'CRY' IF NOT AN ANNUAL RIN (EB, CA , ARR)
C48: APPLY NR 'CRY' IF AN ANNUAL RIN (EB, CA , ARR)
B50: Source | C50: Reporting | E50: Please select the correct submission type from the dropdown list.
B51: Data quality (actual, estimate, public, consolidated) | C51: Consolidated
B52: Amended RIN submission - amendment reason | C52: Correction to Public lighting opex
B53: Submission Date | C53: dd/mm/yyyy | D53: dms_SubmissionDate | E53: Please enter date this file submitted to AER (dd/mm/yyyy)
B54: EBSS - First application of scheme in forthcoming period? | C54: No
A55: HIDE THESE ROWS | B55: Sector | C55: =INDEX(dms_Sector_List,MATCH(dms_TradingName,dms_TradingName_List)) -> Electricity | D55: dms_Sector | E55: =INDEX(dms_Sector_List,MATCH(dms_TradingName,dms_TradingName_List))
B56: Segment | C56: =INDEX(dms_Segment_List,MATCH(dms_TradingName,dms_TradingName_List)) -> Distribution | D56: dms_Segment | E56: =INDEX(dms_Segment_List,MATCH(dms_TradingName,dms_TradingName_List))
B57: Regulatory Year Ending | C57: =IF(dms_MultiYear_Flag=1,LEFT(dms_Specified_FinalYear,2)&RIGHT(dms_Specified_FinalYear,2),INDEX(dms_RYE_Formula_Result,MATCH(dms_Model,dms_Model_List))) -> 2017 | D57: dms_RYE | E57: =IF(dms_MultiYear_Flag=1,LEFT(dms_Specified_FinalYear,2)&RIGHT(dms_Specified_FinalYear,2),INDEX(dms_RYE_Formula_Result,MATCH(dms_Model,dms_Model_List)))
B58: Reporting Period Type | C58: =INDEX(dms_RPT_List,MATCH(dms_TradingName,dms_TradingName_List)) -> Calendar | D58: dms_RPT | E58: =INDEX(dms_RPT_List,MATCH(dms_TradingName,dms_TradingName_List))
B59: Model or RIN Type | C59: CA | D59: dms_Model | E59: Drop down selection
B60: Security Classification | C60: Public | D60: dms_Classification | E60: Always Public
B61: Template - version no. | C61: 5 | D61: dms_TemplateNumber
B62: Dollar $ real month | C62: =INDEX(dms_RPTMonth_List,MATCH(dms_TradingName,dms_TradingName_List)) -> December | D62: dms_RPTMonth | E62: =INDEX(dms_RPTMonth_List,MATCH(dms_TradingName,dms_TradingName_List))
B63: Dollar $ real (the last month before the FRCP_y1) | C63: =IF(SUM(dms_SingleYear_Model)>0,CONCATENATE(dms_RPTMonth)&" "&VALUE((LEFT(CRY,2))&RIGHT(CRY,2)),CONCATENATE(dms_RPTMonth)&" "&VALUE((LEFT(dms_CRCP_FinalYear_Result,2))&RIGHT(dms_CRCP_FinalYear_Result,2))) -> December 2017 | D63: dms_DollarReal | E63: =IF(SUM(dms_SingleYear_Model)>0,CONCATENATE(dms_RPTMonth)&" "&VALUE((LEFT(CRY,2))&RIGHT(CRY,2)),CONCATENATE(dms_RPTMonth)&" "&VALUE((LEFT(dms_CRCP_FinalYear_Result,2))&RIGHT(dms_CRCP_FinalYear_Result,2)))
B64: Form of control | C64: =INDEX(dms_FormControl_List,MATCH(dms_TradingName,dms_TradingName_List)) -> Revenue cap | D64: dms_FormControl | E64: =INDEX(dms_FormControl_List,MATCH(dms_TradingName,dms_TradingName_List))
B65: RIN response - version no. | C65: 1 | D65: dms_RINversion
B66: Jurisdiction | C66: =INDEX(dms_JurisdictionList,MATCH(dms_TradingName,dms_TradingName_List)) -> Vic | D66: dms_Jurisdiction | E66: =INDEX(dms_JurisdictionList,MATCH(dms_TradingName,dms_TradingName_List))
B67: Backcast Multiyear EB, CA or ARR? | C67: 0 | D67: dms_MultiYear_Flag | E67: 1=y, 0-n
C68: 2013 | D68: dms_Specified_FinalYear | E68: The result here is returned to dms_CRCP_FinalYear_Result if dms_MultiYear_Flag is set to 1
B69: Single Year Model T/F | C69: =IF(dms_Model="EB",1,0) -> 0 | D69: dms_EB
C70: =IF(dms_Model="CA",1,0) -> 1 | D70: dms_CA | E70: =dms_SingleYear_Model
C71: =IF(dms_Model="ARR",1,0) -> 0 | D71: dms_ARR
B72: Single Year Final Year Reference | C72: CRY | D72: dms_SingleYear_FinalYear_Ref | E72: This is the reference for EB, CA & ARR RINs
B73: Single Year Final Year Result | C73: =INDIRECT(dms_SingleYear_FinalYear_Ref) -> 2017 | D73: dms_SingleYear_FinalYear_Result | E73: =INDIRECT(dms_SingleYear_FinalYear_Ref) | I73: Formula errors OK
B74: FRCP length in years | C74: =INDEX(dms_FRCPlength_List,MATCH(dms_TradingName,dms_TradingName_List)) -> 5 | D74: dms_FRCPlength_Num | E74: =INDEX(dms_FRCPlength_List,MATCH(dms_TradingName,dms_TradingName_List))
B75: Multi Year Final Year Reference | C75: =INDEX(dms_FinalYear_List,MATCH(dms_FRCPlength_Num,dms_FRCPlength_Num_List)) -> FRCP_y5 | D75: dms_MultiYear_FinalYear_Ref | E75: =INDEX(dms_FinalYear_List,MATCH(dms_FRCPlength_Num,dms_FRCPlength_Num_List))
B76: Multi Year Final Year Result | C76: =IF(dms_MultiYear_Flag=0,INDIRECT(dms_MultiYear_FinalYear_Ref),dms_Specified_FinalYear) -> 2019 | D76: dms_MultiYear_FinalYear_Result | E76: =IF(dms_MultiYear_Flag=0,INDIRECT(dms_MultiYear_FinalYear_Ref),dms_Specified_FinalYear) | I76: Formula errors OK
B77: CRCP length in years | C77: =INDEX(dms_CRCPlength_List,MATCH(dms_TradingName,dms_TradingName_List)) -> 5 | D77: dms_CRCPlength_Num | E77: =INDEX(dms_CRCPlength_List,MATCH(dms_TradingName,dms_TradingName_List))
B78: CRCP Final Year Reference | C78: =INDEX(dms_CFinalYear_List,MATCH(dms_CRCPlength_Num,dms_CRCPlength_Num_List)) -> CRCP_y5 | D78: dms_CRCP_FinalYear_Ref | E78: =INDEX(dms_CFinalYear_List,MATCH(dms_CRCPlength_Num,dms_CRCPlength_Num_List))
B79: CRCP First Year Result | C79: =INDEX(dms_CRCP_years,MATCH(dms_CRCPlength_Num,dms_CRCP_index)) -> 2010 | D79: dms_CRCP_FirstYear_Result | E79: =INDEX(dms_CRCP_years,MATCH(dms_CRCPlength_Num,dms_CRCP_index))
B80: CRCP Final Year Result | C80: =IF(dms_MultiYear_Flag=0,(IF(SUM(dms_SingleYear_Model)>0,CRY,dms_CRCP_yZ)),dms_Specified_FinalYear) -> 2017 | D80: dms_CRCP_FinalYear_Result | E80: =IF(dms_MultiYear_Flag=0,(IF(SUM(dms_SingleYear_Model)>0,CRY,dms_CRCP_yZ)),dms_Specified_FinalYear)
B81: Table 6.6.3 - Public lighting repair - no. business days | C81: =INDEX(dms_663_List,MATCH(dms_TradingName,dms_TradingName_List)) -> 2 | D81: dms_663
B82: Distribution Determination Reference | C82: =INDEX(dms_DeterminationRef_List,MATCH(dms_TradingName,dms_TradingName_List)) -> 2016-20 Distribution Determination
B83: Backcast templates only - unit of measure | C83: $0s | D83: dms_Backcast_UOM | E83: If the cover sheet is for Backcast data ensure to apply dms_Backcast_UOM named range to this field. Otherwise, do not apply this named range.
B84: EB/CA Unit of Measure for Monetary Values | C84: $0s | D84: dms_dollar_nom_UOM | E84: If the cover sheet is attached to an EB files make sure this field is set
B86: discard this record? | C86: NO | D86: dms_DISCARD | E86: If record is to be discarded from DB set this flag to YES
B88: USES NAMED RANGES FLAG | C88: yes | D88: dms_Defined_Names_Used

Sheet 2.1 Expenditure summary
B1: REGULATORY REPORTING STATEMENT
B2: AusNet Services (D)
B3: CATEGORY ANALYSIS 2017
B4: 2.1 EXPENDITURE SUMMARY & RECONCILIATION
B6: There are SIX tables on this worksheet. Each has been grouped for ease of navigation. See the Instructions sheet on how to group or ungroup tables.
B8: 2.1.1 - STANDARD CONTROL SERVICES CAPEX
C9: EXPENDITURE ($0's)
C10: 2017
B11: Replacement expenditure | C11: 125850770.1
B12: Connections | C12: 64124286.33
B13: Augmentation Expenditure | C13: 77718815.32
B14: Non-network | C14: 40855125.57
B15: capitalised network overheads | C15: 29267094.92
B16: capitalised corporate overheads | C16: 5910615.207
B17: Metering | C17: 0
B18: Public Lighting | C18: 0
B26: balancing item | C26: 0
B27: capcons (included in the above) | C27: -24783646.71
B28: TOTAL GROSS CAPEX (including capcons) | C28: 318943060.8
B30: 2.1.2 - STANDARD CONTROL SERVICES OPEX
C31: EXPENDITURE ($0's)
C32: 2017
B33: Vegetation management | C33: 37601388.83
B34: Maintenance | C34: 21655584.19
B35: Emergency response | C35: 16516475.28
B36: Non-network | C36: 35355243.42
B37: network overheads | C37: 70781271.11
B38: corporate overheads | C38: 27744532.76
B39: Metering | C39: 7074357.05
B40: Public Lighting | C40: 0
B48: balancing item | C48: 0
B49: TOTAL OPEX | C49: 216728852.6
B51: 2.1.3 - ALTERNATIVE CONTROL SERVICES CAPEX
C52: EXPENDITURE ($0's)
C53: 2017
B54: Connections | C54: 3657181.264
B55: capitalised network overheads | C55: 977782.6281
B56: capitalised corporate overheads | C56: 1138329.22
B57: Metering | C57: 10426901.53
B58: Public lighting | C58: 7298181.328
B59: Fee and quoted | C59: 3657181.264
B67: balancing item | C67: -4963761.614
B68: TOTAL CAPEX | C68: 22191795.62
B70: 2.1.4 - ALTERNATIVE CONTROL SERVICES OPEX
C71: EXPENDITURE ($0's)
C72: 2017
B73: Connections | C73: 0
B74: network overheads | C74: 0
B75: corporate overheads | C75: 0
B76: Metering | C76: 25398168.57
B77: Public lighting | C77: 2338331
B78: Fee and quoted | C78: 5687194.281
B86: balancing item | C86: -2068259.46
B87: TOTAL OPEX | C87: =SUM(C76:C86) -> 31355434.39
B89: 2.1.5 - DUAL FUNCTION ASSETS CAPEX
C90: EXPENDITURE ($0's)
C91: 2017
B92: Replacement expenditure | C92: 0
B93: Connections | C93: 0
B94: Augmentation Expenditure | C94: 0
B95: Non-network | C95: 0
B96: Capitalised network overheads | C96: 0
B97: Capitalised corporate overheads | C97: 0
B105: balancing item | C105: 0
B106: capcons (included in the above) | C106: 0
B107: TOTAL GROSS CAPEX (including capcons) | C107: 0
B109: 2.1.6 - DUAL FUNCTION ASSETS OPEX
C110: EXPENDITURE ($0's)
C111: 2017
B112: Vegetation management | C112: 0
B113: Maintenance | C113: 0
B114: Emergency response | C114: 0
B115: Non-network | C115: 0
B116: Network overheads | C116: 0
B117: Corporate overheads | C117: 0
B125: balancing item | C125: 0
B126: TOTAL OPEX | C126: 0

Sheet 2.2 Repex
B1: REGULATORY REPORTING STATEMENT
B2: AusNet Services (D)
B3: CATEGORY ANALYSIS 2017
B4: 2.2 REPEX
B6: There are TWO tables on this worksheet. Each has been grouped for ease of navigation. See the Instructions sheet on how to group or ungroup tables.
B8: 2.2.1 - REPLACEMENT EXPENDITURE, VOLUMES AND ASSET FAILURES BY ASSET CATEGORY
E9: EXPENDITURE ($0's) | F9: ASSET REPLACEMENTS (0's) | G9: ASSET FAILURES (0's)
B10: ASSET GROUP | C10: ASSET CATEGORY | E10: 2017 | F10: 2017 | G10: 2017
B11: POLES BY: HIGHEST OPERATING VOLTAGE ; MATERIAL TYPE; STAKING (IF WOOD) | C11: Staking of a wooden pole | E11: 1216184.699 | F11: 1442.413867 | G11: 0
C12: ˂ = 1 kV; Wood | E12: 7333461.493 | F12: 1267.967352 | G12: 2300.728012
C13: > 1 kV & < = 11 kV; Wood | E13: 645.5069225 | F13: 0.3216124575 | G13: 0.5835661215
C14: ˃ 11 kV & < = 22 kV; Wood | E14: 11249386.28 | F14: 1398.644082 | G14: 2537.841068
C15: > 22 kV & < = 66 kV; Wood | E15: 503622.3537 | F15: 39.74341098 | G15: 72.11445844
C16: > 66 kV & < = 132 kV; Wood | E16: 0 | F16: 0 | G16: 0
C17: > 132 kV; Wood | E17: 0 | F17: 0 | G17: 0
C18: ˂ = 1 kV; Concrete | E18: 2523444.279 | F18: 403.4573525 | G18: 732.0737642
C19: > 1 kV & < = 11 kV; Concrete | E19: 195.245921 | F19: 0.09727784209 | G19: 0.1765107405
C20: ˃ 11 kV & < = 22 kV; Concrete | E20: 15348440.96 | F20: 1649.64051 | G20: 2993.274333
C21: > 22 kV & < = 66 kV; Concrete | E21: 2269010.781 | F21: 178.172123 | G21: 323.293493
C22: > 66 kV & < = 132 kV; Concrete | E22: 0 | F22: 0 | G22: 0
C23: > 132 kV; Concrete | E23: 0 | F23: 0 | G23: 0
C24: ˂ = 1 kV; Steel | E24: 59281.22919 | F24: 48.5485226 | G24: 88.09134215
C25: > 1 kV & < = 11 kV; Steel | E25: 1.593844253 | F25: 0.0007941048334 | G25: 0.001440904004
C26: ˃ 11 kV & < = 22 kV; Steel
C27: > 22 kV & < = 66 kV; Steel | E27: 43.83071696 | F27: 0.02183788292 | G27: 0.03962486011
C28: > 66 kV & < = 132 kV; Steel | E28: 0 | F28: 0 | G28: 0
C29: > 132 kV; Steel | E29: 0 | F29: 0 | G29: 0
C30: Other | E30: 2.39076638 | F30: 0.00119115725 | G30: 0.002161356006
B31: POLE TOP STRUCTURES BY: HIGHEST OPERATING VOLTAGE | C31: ˂ = 1 kV | E31: 10853141.53 | F31: 11444.84714 | G31: 11526.59205
C32: > 1 kV & < = 11 kV | E32: 0 | F32: 0 | G32: 0
C33: ˃ 11 kV & < = 22 kV | E33: 5157333.944 | F33: 5088.813011 | G33: 5125.159898
C34: > 22 kV & < = 66 kV | E34: 157443.6076 | F34: 124.26035 | G34: 125.1478805
C35: > 66 kV & < = 132 kV | E35: 679.8409512 | F35: 1.172267452 | G35: 1.180640382
C36: > 132 kV | E36: 0 | F36: 0 | G36: 0
C37: Other | E37: 1547900.055 | F37: 5169.699465 | G37: 5206.624084
B38: OVERHEAD CONDUCTORS BY: HIGHEST OPERATING VOLTAGE; NUMBER OF PHASES (AT HV) | C38: ˂ = 1 kV | E38: 329425.1763 | F38: 5.717133103 | G38: 749.535958
C39: > 1 kV & < = 11 kV | E39: 65.43102257 | F39: 0.001103946158 | G39: 0.1447311661
C40: ˃ 11 kV & < = 22 kV ; SWER | E40: 66780.3807 | F40: 1.1986944 | G40: 157.152989
C41: ˃ 11 kV & < = 22 kV ; Single-Phase | E41: 7207241.906 | F41: 71.56573662 | G41: 9382.516024
C42: ˃ 11 kV & < = 22 kV ; Multiple-Phase | E42: 2682660.368 | F42: 26.59343424 | G42: 3486.491367
C43: > 22 kV & < = 66 kV | E43: 3012.461866 | G43: 0
C44: > 66 kV & < = 132 kV | E44: 0 | F44: 0 | G44: 0
C45: > 132 kV | E45: 0 | F45: 0 | G45: 0
C46: Other | E46: 0 | F46: 0 | G46: 0
B47: UNDERGROUND CABLES BY: HIGHEST OPERATING VOLTAGE | C47: ˂ = 1 kV | E47: 0 | F47: 0 | G47: 0
C48: > 1 kV & < = 11 kV | E48: 748938.6641 | F48: 1082.940824 | G48: 0
C49: > 11 kV & < = 22 kV | E49: 476226.6854 | F49: 61.07554935 | G49: 0
C50: > 22 kV & < = 33 kV | E50: 0 | F50: 0 | G50: 0
C51: > 33 kV & < = 66 kV | E51: 0 | F51: 0 | G51: 0
C52: > 66 kV & < = 132 kV | E52: 0 | F52: 0 | G52: 0
C53: > 132 kV | E53: 0 | F53: 0 | G53: 0
C54: Other | E54: 0 | F54: 0 | G54: 0
B55: SERVICE LINES BY: CONNECTION VOLTAGE; CUSTOMER TYPE; CONNECTION COMPLEXITY | C55: ˂ = 11 kV ; Residential ; Simple Type | E55: 6798946.979 | F55: 7732.549803 | G55: 7197.16503
C56: ˂ = 11 kV ; Commercial & Industrial ; Simple Type | E56: 861372.8667 | F56: 979.6529686 | G56: 911.8239476
C57: ˂ = 11 kV ; Residential ; Complex Type | E57: 0 | F57: 0 | G57: 0
C58: ˂ = 11 kV ; Commercial & Industrial ; Complex Type | E58: 0 | F58: 0 | G58: 0
C59: ˂ = 11 kV ; Subdivision ; Complex Type | E59: 0 | F59: 0 | G59: 0
C60: > 11 kV & < = 22 kV ; Commercial & Industrial | E60: 0 | F60: 0 | G60: 0
C61: > 11 kV & < = 22 kV ; Subdivision | E61: 0 | F61: 0 | G61: 0
C62: > 22 kV & < = 33 kV ; Commercial & Industrial | E62: 0 | F62: 0 | G62: 0
C63: > 22 kV & < = 33 kV ; Subdivision | E63: 0 | F63: 0 | G63: 0
C64: > 33 kV & < = 66 kV ; Commercial & Industrial | E64: 0 | F64: 0 | G64: 0
C65: > 33 kV & < = 66 kV ; Subdivision | E65: 0 | F65: 0 | G65: 0
C66: > 66 kV & < = 132 kV ; Commercial & Industrial | E66: 0 | F66: 0 | G66: 0
C67: > 66 kV & < = 132 kV ; Subdivision | E67: 0 | F67: 0 | G67: 0
C68: > 132 kV ; Commercial & Industrial | E68: 0 | F68: 0 | G68: 0
C69: > 132 kV ; Subdivision | E69: 0 | F69: 0 | G69: 0
C70: Other | E70: 0 | F70: 0 | G70: 0
B71: TRANSFORMERS BY: MOUNTING TYPE; HIGHEST OPERATING VOLTAGE ; AMPERE RATING; NUMBER OF PHASES (AT LV) | C71: Pole Mounted ; < = 22kV ; < = 60 kVA ; Single Phase | E71: 1666001.095 | F71: 433.9938773 | G71: 1942.580103
C72: Pole Mounted ; < = 22kV ; > 60 kVA and < = 600 kVA ; Single Phase | E72: 24172.25515 | F72: 1.017791323 | G72: 4.55568909
C73: Pole Mounted ; < = 22kV ; > 600 kVA ; Single Phase | E73: 0 | F73: 0 | G73: 0
C74: Pole Mounted ; < = 22kV ; < = 60 kVA ; Multiple Phase | E74: 1268989.657 | F74: 272.3533006 | G74: 1219.068126
C75: Pole Mounted ; < = 22kV ; > 60 kVA and < = 600 kVA ; Multiple Phase | E75: 1248696.64 | F75: 75.31655787 | G75: 337.1209926
C76: Pole Mounted ; < = 22kV ; > 600 kVA ; Multiple Phase | E76: 0 | F76: 0 | G76: 0
C77: Kiosk Mounted ; < = 22kV ; < = 60 kVA ; Single Phase | E77: 12355.59644 | F77: 1.526686984 | G77: 6.833533634
C78: Kiosk Mounted ; < = 22kV ; > 60 kVA and < = 600 kVA ; Single Phase | E78: 0 | F78: 0 | G78: 0
C79: Kiosk Mounted ; < = 22kV ; > 600 kVA ; Single Phase | E79: 0 | F79: 0 | G79: 0
C80: Kiosk Mounted ; < = 22kV ; < = 60 kVA ; Multiple Phase | E80: 153040.4465 | F80: 4.07116529 | G80: 18.22275636
C81: Kiosk Mounted ; < = 22kV ; > 60 kVA and < = 600 kVA ; Multiple Phase | E81: 112534.1713 | F81: 3.053373968 | G81: 13.66706727
C82: Kiosk Mounted ; < = 22kV ; > 600 kVA ; Multiple Phase | E82: 63561.43455 | F82: 0.5088956613 | G82: 2.277844545
C83: Ground Outdoor / Indoor Chamber Mounted; ˂ 22 kV ; < = 60 kVA ; Single Phase | E83: 0 | F83: 0 | G83: 0
C84: Ground Outdoor / Indoor Chamber Mounted; ˂ 22 kV ; > 60 kVA and < = 600 kVA ; Single Phase | E84: 8034.216561 | F84: 0.5088956613 | G84: 2.277844545
C85: Ground Outdoor / Indoor Chamber Mounted; ˂ 22 kV ; > 600 kVA ; Single Phase | E85: 0 | F85: 0 | G85: 0
C86: Ground Outdoor / Indoor Chamber Mounted; ˂ 22 kV ; < = 60 kVA ; Multiple Phase | E86: 15252.35339 | F86: 1.017791323 | G86: 4.55568909
C87: Ground Outdoor / Indoor Chamber Mounted; ˂ 22 kV ; > 60 kVA and < = 600 kVA ; Multiple Phase | E87: 0 | F87: 0 | G87: 0
C88: Ground Outdoor / Indoor Chamber Mounted; ˂ 22 kV ; > 600 kVA ; Multiple Phase | E88: 17689.38283 | F88: 1.017791323 | G88: 4.55568909
C89: Ground Outdoor / Indoor Chamber Mounted; > = 22 kV & < = 33 kV ; < = 15 MVA | E89: 0 | F89: 0 | G89: 0
C90: Ground Outdoor / Indoor Chamber Mounted; > = 22 kV & < = 33 kV ; > 15 MVA and < = 40 MVA | E90: 0 | F90: 0 | G90: 0
C91: Ground Outdoor / Indoor Chamber Mounted; > = 22 kV & < = 33 kV ; > 40 MVA | E91: 0 | F91: 0 | G91: 0
C92: Ground Outdoor / Indoor Chamber Mounted; > 33 kV & < = 66 kV ; < = 15 MVA | E92: 0 | F92: 0 | G92: 0
C93: Ground Outdoor / Indoor Chamber Mounted; > 33 kV & < = 66 kV ; > 15 MVA and < = 40 MVA | E93: 4487770.232 | F93: 4 | G93: 17.90421666
C94: Ground Outdoor / Indoor Chamber Mounted; > 33 kV & < = 66 kV ; > 40 MVA | E94: 0 | F94: 0 | G94: 0
C95: Ground Outdoor / Indoor Chamber Mounted; > 66 kV & < = 132 kV ; < = 100 MVA | E95: 0 | F95: 0 | G95: 0
C96: Ground Outdoor / Indoor Chamber Mounted; > 66 kV & < = 132 kV ; > 100 MVA | E96: 0 | F96: 0 | G96: 0
C97: Ground Outdoor / Indoor Chamber Mounted; > 132 kV ; < = 100 MVA | E97: 0 | F97: 0 | G97: 0
C98: Ground Outdoor / Indoor Chamber Mounted; > 132 kV ; > 100 MVA | E98: 0 | F98: 0 | G98: 0
C99: Other | E99: 545166.1352 | F99: 3.508895661 | G99: 15.70600704
B100: SWITCHGEAR BY: HIGHEST OPERATING VOLTAGE ; SWITCH FUNCTION | C100: ˂ = 11 kV ; FUSE | E100: 28236.2498 | F100: 27.00874818 | G100: 6.452253914
C101: ˂ = 11 kV ; Switch | E101: 6122.011324 | F101: 1.259181177 | G101: 0.3008120416
C102: ˂ = 11 kV ; Circuit Breaker | E102: 17254.0352 | F102: 0 | G102: 0
C103: > 11 kV & < = 22 kV ; Switch | E103: 10164112.17 | F103: 3072.730611 | G103: 734.0598675
C104: > 11 kV & < = 22 kV ; Circuit Breaker | E104: 3881111.558 | F104: 29.92549648 | G104: 7.149050393
C105: > 22 kV & < = 33 kV ; Switch | E105: 0 | F105: 0 | G105: 0
C106: > 22 kV & < = 33 kV ; Circuit Breaker | E106: 2053504.005 | F106: 6 | G106: 1.433369782
C107: > 33 kV & < = 66 kV ; Switch | E107: 0 | F107: 0 | G107: 0
C108: > 33 kV & < = 66 kV ; Circuit Breaker | E108: 0 | F108: 0 | G108: 0
C109: > 66 kV & < = 132 kV ; Switch | E109: 0 | F109: 0 | G109: 0
C110: > 66 kV & < = 132 kV ; Circuit Breaker | E110: 0 | F110: 0 | G110: 0
C111: > 132 kV ; Switch | E111: 0 | F111: 0 | G111: 0
C112: > 132 kV ; Circuit Breaker | E112: 0 | F112: 0 | G112: 0
C113: Other | E113: 6214599.193 | F113: 2570 | G113: 613.9600566
B114: PUBLIC LIGHTING BY: ASSET TYPE ; LIGHTING OBLIGATION | C114: Luminaires ; Major Road | E114: 0 | F114: 0 | G114: 0
C115: Luminaires ; Minor Road | E115: 0 | F115: 0 | G115: 0
C116: Brackets ; Major Road | E116: 0 | F116: 0 | G116: 0
C117: Brackets ; Minor Road | E117: 0 | F117: 0 | G117: 0
C118: Lamps ; Major Road | E118: 0 | F118: 0 | G118: 0
C119: Lamps ; Minor Road | E119: 0 | F119: 0 | G119: 0
C120: Poles / Columns ; Major Road | E120: 0 | F120: 0 | G120: 0
C121: Poles / Columns ; Minor Road | E121: 0 | F121: 0 | G121: 0
C122: Other | E122: 0 | F122: 0 | G122: 0
B123: SCADA, NETWORK CONTROL AND PROTECTION SYSTEMS BY: FUNCTION | C123: Field Devices | E123: 3807534.966 | F123: 49 | G123: 0
C124: Local Network Wiring Assets | E124: 0 | F124: 0 | G124: 0
C125: Communications Network Assets | E125: 2207815.06 | F125: 4 | G125: 0
C126: Master Station Assets | E126: 0 | F126: 0 | G126: 0
C127: Communications Site Infrastructure | E127: 0 | F127: 0 | G127: 0
C128: Communications Linear Assets | E128: 0 | F128: 0 | G128: 0
C129: AFLC | E129: 0 | F129: 0 | G129: 0
C130: Other | E130: 0 | F130: 0 | G130: 0
B131: OTHER BY: DNSP DEFINED | C131: OTHER - EARTHING | E131: 766657.525 | F131: 229 | G131: 0
C132: OTHER - MEASURING TRANSFORMERS | E132: 295880.23 | F132: 8 | G132: 0
C133: OTHER - REGULATORS | E133: 7147.52 | F133: 0 | G133: 0
C134: OTHER - SITE REPAIRS REFURBISHMENTS | E134: 2998838.931 | F134: 632 | G134: 0
C135: OTHER - SURGE DIVERTERS | E135: 6383802.527 | F135: 6412 | G135: 0
B149: 2.2.2 - SELECTED ASSET CHARACTERISTICS
E150: ASSET VOLUMES CURRENTLY IN COMMISSION | F150: ASSET REPLACEMENTS (0's)
B151: ASSET GROUP | C151: METRIC | D151: UNITS | E151: 2017 | F151: 2017
B152: TOTAL POLES BY: FEEDER TYPE | C152: Total CBD poles | D152: Number | E152: 0 | F152: 0
C153: Total urban poles | D153: Number | E153: 20310.79422 | F153: 418.5281943
C154: Total rural long poles | D154: Number | E154: 179239.0917 | F154: 3693.435747
C155: Total rural short poles | D155: Number | E155: 112445.1141 | F155: 2317.065993
B156: OVERHEAD CONDUCTORS BY: CONDUCTOR LENGTH BY FEEDER TYPE | C156: Conductors CBD | D156: KM | E156: 0 | F156: 0
C157: Conductors urban | D157: KM | E157: 2495.439491 | F157: 6.840427221
C158: Conductors rural long | D158: KM | E158: 22021.80294 | F158: 60.36553514
C159: Conductors rural short | D159: KM | E159: 13815.31295 | F159: 37.87013995
B160: OVERHEAD CONDUCTORS BY: CONDUCTOR LENGTH MATERIAL TYPE | C160: OH conductor LV ABC | D160: KM | E160: 1172.544615 | F160: 3.214145696
C161: OH conductor steel | D161: KM | E161: 18362.16227 | F161: 50.33383302
C162: OH conductor ACSR | D162: KM | E162: 9281.058227 | F162: 25.44097084
C163: OH conductor AAAC | D163: KM | E163: 0 | F163: 0
C164: OH conductor AAC | D164: KM | E164: 7931.659645 | F164: 21.74203812
C165: OH conductor HDBC | D165: KM | E165: 1585.130617 | F165: 4.345114623
C166: Other | D166: KM | E166: 0 | F166: 0
B167: UNDERGROUND CABLES BY: CABLE LENGTH BY FEEDER TYPE | C167: Cable CBD | D167: KM
C168: Cable urban | D168: KM | E168: 2632.109672 | F168: 457.9813594
C169: Cable rural long | D169: KM | E169: 726.2132016 | F169: 126.3595179
C170: Cable rural short | D170: KM | E170: 3216.566036 | F170: 559.6754957
B171: TRANSFORMERS BY: TOTAL MVA | C171: Total MVA replaced | D171: MVA | E171: 8975.223 | F171: 212.786
C172: Total MVA disposed of | D172: MVA | E172: 0 | F172: 116.753

Sheet 2.3(a) Augex
B1: REGULATORY REPORTING STATEMENT
B2: AusNet Services (D)
B3: CATEGORY ANALYSIS 2017
B4: 2.3 AUGEX PROJECT DATA
B7: There are TWO tables on this worksheet - each has been 'grouped' for easy navigation. Both ROWS and COLUMNS have been grouped. See the Instructions sheet on how to group or ungroup tables.
B9: 2.3.1 - AUGEX ASSET DATA - SUBTRANSMISSION SUBSTATIONS, SWITCHING STATIONS AND ZONE SUBSTATIONS
B10: NOTE: DNSP MUST PROVIDE EXPENDITURE INFORMATION ON A PROJECT CLOSE BASIS.
B11: PROJECT DESCRIPTION AND CHANGES | L11: PLANT AND EQUIPMENT EXPENDITURE AND VOLUME | X11: OTHER EXPENDITURE | Z11: TOTAL DIRECT EXPENDITURE ($0's) | AA11: YEARS INCURRED | AB11: ALL RELATED PARTY CONTRACTS | AD11: ALL NON RELATED PARTYCONTRACTS | AE11: LAND AND EASEMENTS
B12: SUBSTATION ID | C12: SUBSTATION TYPE (drop down) | D12: PROJECT ID | E12: PROJECT TYPE (drop down) | F12: PROJECT TRIGGER (drop down) | G12: VOLTAGE (KV) | H12: SUBSTATION RATING NORMAL CYCLIC (MVA) | J12: SUBSTATION RATING N-1 EMERGENCY (MVA) | L12: TRANSFORMERS | O12: SWITCHGEAR | Q12: CAPACITORS | U12: OTHER PLANT ITEM | V12: INSTALLATION (LABOUR) | X12: CIVIL WORKS | Y12: OTHER DIRECT | AB12: RELATED PARTY MARGINS | AC12: TOTAL | AE12: LAND PURCHASE | AF12: EASEMENTS
H13: PRE | I13: POST | J13: PRE | K13: POST | L13: UNITS ADDED | M13: MVA ADDED | N13: EXPENDITURE ($0's) | O13: UNITS ADDED | P13: EXPENDITURE ($0's) | Q13: MVAR ADDED | R13: EXPENDITURE ($0's) | U13: EXPENDITURE ($0's) | V13: VOLUME | W13: EXPENDITURE ($0's) | X13: EXPENDITURE ($0's) | AB13: EXPENDITURE ($0's) | AE13: EXPENDITURE ($0's)
B14: Worri Yallock Zone Sub Station GFN Installation | C14: Zone substation | D14: DD-0001410 | E14: Other | F14: Safety | G14: 22 | I14: 88.4 | K14: 43.2 | L14: 0 | M14: 0 | N14: 0 | O14: 10 | P14: 251630.8749 | Q14: 0 | T14: 0 | U14: 2011147.894 | V14: 25093.24197 | W14: 2337347.173 | X14: 0 | Y14: 0 | Z14: 4600125.941 | AA14: 2015, 2016, 2017 | AB14: 0 | AC14: 0 | AD14: 0 | AE14: 0 | AF14: 0
Z15: 0
Z16: 0
Z17: 0
Z18: 0
Z19: 0
Z20: 0
Z21: 0
Z22: 0
Z23: 0
Z24: 0
Z25: 0
Z26: 0
Z27: 0
Z28: 0
Z29: 0
Z30: 0
Z31: 0
Z32: 0
Z33: 0
Z34: 0
Z35: 0
Z36: 0
Z37: 0
Z38: 0
Z39: 0
Z40: 0
Z41: 0
Z42: 0
Z43: 0
Z44: 0
Z45: 0
Z46: 0
Z47: 0
Z48: 0
Z49: 0
Z50: 0
Z51: 0
Z52: 0
Z53: 0
Z54: 0
Z55: 0
Z56: 0
Z57: 0
Z58: 0
Z59: 0
Z60: 0
Z61: 0
Z62: 0
Z63: 0
Z64: 0
Z65: 0
D66: Non material projects - [actual] | Z66: 4460271.676 | AA66: 2015, 2016, 2017 | AE66: 0 | AF66: 0
D67: Non material projects - [forecast]
B70: AUG232_1 | C70: AUG232_2 | D70: AUG232_3 | E70: AUG232_4 | F70: AUG232_5 | G70: AUG232_6 | H70: ED_AUG232_00001 | I70: ED_AUG232_00002 | J70: ED_AUG232_00003 | K70: ED_AUG232_00004 | L70: ED_AUG232_00005 | M70: ED_AUG232_00006 | N70: ED_AUG232_00007 | O70: ED_AUG232_00008 | P70: ED_AUG232_00009 | Q70: ED_AUG232_00010 | R70: ED_AUG232_00011 | S70: ED_AUG232_00012 | T70: ED_AUG232_00013 | U70: ED_AUG232_00014 | V70: ED_AUG232_00015 | W70: ED_AUG232_00016 | X70: ED_AUG232_00017 | Y70: ED_AUG232_00018 | Z70: ED_AUG232_00019 | AA70: ED_AUG232_00020 | AB70: ED_AUG232_00021
B71: 2.3.2 - AUGEX ASSET DATA - SUBTRANSMISSION LINES
B72: NOTE: DNSP MUST PROVIDE EXPENDITURE INFORMATION ON A PROJECT CLOSE BASIS.
B73: PROJECT DESCRIPTION AND CHANGES | L73: PLANT AND EQUIPMENT EXPENDITURE AND VOLUME | X73: OTHER EXPENDITURE | Z73: TOTAL DIRECT EXPENDITURE ($0's) | AA73: YEARS INCURRED | AB73: ALL RELATED PARTY CONTRACTS | AD73: ALL NON RELATED PARTYCONTRACTS | AE73: LAND AND EASEMENTS
B74: LINE ID | C74: PROJECT ID | D74: PROJECT TYPE | E74: PROJECT TRIGGER | G74: VOLTAGE (KV) | H74: ROUTE LINE LENGTH ADDED | L74: POLES/TOWERS (INCLUDING STRUCTURES, AND CIVIL WORKS) | O74: OVERHEAD LINES | R74: UNDERGROUND CABLES | U74: OTHER PLANT ITEM | V74: INSTALLATION (LABOUR) | X74: CIVIL WORKS | Y74: OTHER DIRECT | AB74: RELATED PARTY MARGINS | AC74: TOTAL | AE74: LAND PURCHASE | AF74: EASEMENTS
H75: KM ADDED | L75: POLES/TOWERS ADDED | M75: POLES/TOWERS UPGRADED | N75: EXPENDITURE ($0's) | O75: CIRCUIT KM ADDED | P75: CIRCUIT KM UPGRADED | Q75: EXPENDITURE ($0's) | R75: CIRCUIT KM ADDED | S75: CIRCUIT KM UPGRADED | T75: EXPENDITURE ($0's) | U75: EXPENDITURE ($0's) | V75: VOLUME | W75: EXPENDITURE ($0's) | X75: EXPENDITURE ($0's) | AB75: EXPENDITURE ($0's) | AE75: EXPENDITURE ($0's)
Z76: 0 | AH76: New line on new route - single circuit
Z77: 0 | AH77: New line on new route - dual circuit
Z78: 0 | AH78: New line on new route - other
Z79: 0 | AH79: Line rebuild over existing route - single circuit
Z80: 0 | AH80: Line rebuild over existing route - dual circuit
Z81: 0 | AH81: Reconductor - Single circuit
Z82: 0 | AH82: Reconductor - Dual circuit
Z83: 0 | AH83: Reconductor - Other
Z84: 0 | AH84: Line upgrade - raising/retensoring
Z85: 0 | AH85: Line upgrade - voltage upgrade
Z86: 0 | AH86: Line upgrade - capacity
Z87: 0 | AH87: String spare circuit
Z88: 0 | AH88: Other
Z89: 0
Z90: 0
Z91: 0
Z92: 0
Z93: 0
Z94: 0
Z95: 0
Z96: 0
Z97: 0
Z98: 0
Z99: 0
Z100: 0
Z101: 0
Z102: 0
Z103: 0
Z104: 0
Z105: 0
Z106: 0
Z107: 0
Z108: 0
Z109: 0
Z110: 0
Z111: 0
Z112: 0
Z113: 0
Z114: 0
Z115: 0
Z116: 0
Z117: 0
Z118: 0
Z119: 0
Z120: 0
Z121: 0
Z122: 0
Z123: 0
Z124: 0
Z125: 0
Z126: 0
Z127: 0
Z128: 0
Z129: 0
C130: Non material projects - [actual] | Z130: 3126242.373 | AA130: 2015, 2016, 2017 | AE130: 0 | AF130: 0
C131: Non material projects - [actual]

Sheet 2.3(b) Augex
B1: REGULATORY REPORTING STATEMENT
B2: AusNet Services (D)
B3: CATEGORY ANALYSIS 2017
B4: 2.3 AUGEX DATA
B6: There are TWO tables on this worksheet. Each has been grouped for ease of navigation. See the Instructions sheet on how to group or ungroup tables.
B8: 2.3.3 - AUGEX DATA - HV/LV FEEDERS AND DISTRIBUTION SUBSTATIONS
B9: NOTE: DNSP MUST PROVIDE EXPENDITURE INFORMATION ON AN AS INCURRED BASIS.
B10: DESCRIPTOR METRICS
B11: PROJECT TYPE | D11: UNITS ADDED (0's) | E11: UNITS UPGRADED (0's)
C12: UNITS | D12: 2017 | E12: 2017
B13: HV Feeder Augmentations - Overhead Lines | C13: Circuit line length in km | D13: 14.518 | E13: 2.5271
B14: HV Feeder Augmentations - Underground Cables | C14: Circuit line length in km | D14: 34.146268 | E14: 0.401
B15: LV Feeder Augmentations - Overhead Lines | C15: Circuit line length in km | D15: 0.128 | E15: 13.6694
B16: LV Feeder Augmentations - Underground Cables | C16: Circuit line length in km | D16: 1.810605 | E16: 0.001
B17: Distribution Substation Augmentations - Pole Mounted | C17: Number | D17: 54.47567473 | E17: 17.75092747
B18: Distribution Substation Augmentations - Ground Mounted | C18: Number | D18: 29.88596044 | E18: 9.738356044
B19: Distribution Substation Augmentations - Indoor | C19: Number | D19: 1.702364835 | E19: 0.5547164835
B21: COST METRICS
B22: TOTAL DIRECT EXPENDITURE - Project Type | D22: EXPENDITURE ($0's)
D23: 2017
B24: HV Feeder Augmentations - Overhead Lines | D24: 26897371.22
B25: HV Feeder Augmentations - Underground Cables | D25: 14546137.86
B26: HV Feeder Non-Material Projects | D26: 1956870.757
B27: LV Feeder Augmentations - Overhead Lines | D27: 6727578.821
B28: LV Feeder Augmentations - Underground Cables | D28: 849154.2946
B29: LV Feeder Non-Material Projects | D29: 22298.84413
B30: Distribution Substation Augmentations - Pole Mounted | D30: 4227584.362
B31: Distribution Substation Augmentations - Ground Mounted | D31: 2319299.754
B32: Distribution Substation Augmentations - Indoor | D32: 132112.0113
B35: 2.3.4 - AUGEX DATA - TOTAL EXPENDITURE
B36: AUGMENTATION CAPEX (As incurred) | D36: EXPENDITURE ($0's)
D37: 2017
B38: Subtransmission Substations, Switching Stations, Zone Substations | D38: 10078907.7
B39: Subtransmission Lines | D39: 3477673.9
B40: HV Feeders | D40: 48279163.99
B41: HV Feeders - Land Purchases and Easements | D41: 0
B42: Distribution Substations | D42: 7429804.774
B43: Distribution Substations - Land Purchases And Easements | D43: 0
B44: LV Feeders | D44: 8453264.96
B45: LV Feeders - Land Purchases And Easements | D45: 0
B46: Other Assets | D46: 0

Sheet 2.5 Connections
B1: REGULATORY REPORTING STATEMENT
B2: AusNet Services (D)
B3: CATEGORY ANALYSIS 2017
B4: 2.5 CONNECTIONS
B6: There are TWO tables on this worksheet. Each has been grouped for ease of navigation. See the Instructions sheet on how to group or ungroup tables.
B8: 2.5.1 - DESCRIPTOR METRICS
B9: <<<GROUP-ROW>>>
E11: VOLUMES AND EXPENDITURE
B12: CONNECTION SUBCATEGORY | C12: DESCRIPTOR METRIC | D12: UNITS | E12: 2017
B13: RESIDENTIAL | C13: Underground connections | D13: 0's | E13: 16673.67018
C14: Overhead connections | D14: 0's | E14: 1005.821163
C15: Distribution substation installed | D15: MVA added | E15: 177.3600884
C16: Distribution substations installed | D16: 0's | E16: 886.8004418
C17: Distribution substation installed | D17: total spend $0s | E17: 6828548.799
C18: Augmentation HV | D18: net circuit km added | E18: 166.3765665
C19: Augmentation HV | D19: total spend $0s | E19: 3024621.622
C20: Augmentation LV | D20: net circuit km added | E20: 36.87846473
C21: Augmentation LV | D21: total spend $0s | E21: 2432277.158
C22: Mean days to connect residential customer with LV single phase connection | D22: 0's | E22: 9.72
C23: Volume of GSL breaches for residential customers | D23: 0's | E23: 587
C24: Volume of customer complaints relating to connection services | D24: 0's | E24: 307
C25: GSL payments | D25: $0s | E25: 127360
B26: COMMERCIAL/INDUSTRIAL | C26: Underground connections | D26: 0's | E26: 1990.366572
C27: Overhead connections | D27: 0's | E27: 326.1420839
C28: Distribution substation installed | D28: MVA added | E28: 752
C29: Distribution substations installed | D29: 0's | E29: 752
C30: Distribution substation installed | D30: total spend $0s | E30: 17170447.82
C31: Augmentation HV | D31: net circuit km added | E31: 205.0536167
C32: Augmentation HV | D32: total spend $0s | E32: 8783603.404
C33: Augmentation LV | D33: net circuit km added | E33: 33.51828
C34: Augmentation LV | D34: total spend $0s | E34: 3543355.755
B35: SUBDIVISION | C35: Underground connections | D35: 0's | E35: 353.3639796
C36: Overhead connections | D36: 0's | E36: 37.63602045
C37: Distribution substation installed | D37: MVA added | E37: 199.4399116
C38: Distribution substations installed | D38: 0's | E38: 559.1995582
C39: Distribution substation installed | D39: total spend $0s | E39: 11332378.57
C40: Augmentation HV | D40: net circuit km added | E40: 157.4265404
C41: Augmentation HV | D41: total spend $0s | E41: 6995074.411
C42: Augmentation LV | D42: net circuit km added | E42: 201.6858343
C43: Augmentation LV | D43: total spend $0s | E43: 9284460.836
C44: Cost per lot ($) | D44: $0s | E44: 2006.643265
B45: EMBEDDED GENERATION | C45: Underground connections | D45: 0's | E45: 0
C46: Overhead connections | D46: 0's | E46: 0
C47: Distribution substation installed | D47: MVA added | E47: 2.5
C48: Distribution substations installed | D48: 0's | E48: 5
C49: Distribution substation installed | D49: total spend $0s | E49: 230782.8755
C50: Augmentation HV | D50: net circuit km added | E50: 3.62553373
C51: Augmentation HV | D51: total spend $0s | E51: 141087.9547
C52: Augmentation LV | D52: net circuit km added | E52: 0.005
C53: Augmentation LV | D53: total spend $0s | E53: 9084.015167
B57: 2.5.2 - COST METRICS BY CONNECTION CLASSIFICATION
D58: EXPENDITURE ($0's) | E58: VOLUMES (0's)
B59: CONNECTION SUBCATEGORY | C59: CONNECTION CLASSIFICATION | D59: 2017 | E59: 2017
B60: RESIDENTIAL | C60: Simple connection LV | D60: 12217185.92 | E60: 15667.85656
C61: Complex connection LV | D61: 12340978.12 | E61: 1628.977771
C62: Complex connection HV | D62: 4315410.923 | E62: 382.6570112
B63: COMMERCIAL/INDUSTRIAL | C63: Simple connection LV | D63: 1014513.823 | E63: 1851.143438
C64: Complex connection HV (customer connected at LV, minor HV works) | D64: 3766643.879 | E64: 210.4805579
C65: Complex connection HV (customer connected at LV, upstream asset works) | D65: 8114210.705 | E65: 128.366782
C66: Complex connection HV (customer connected at HV) | D66: 3535296.03 | E66: 117.0092272
C67: Complex connection sub-transmission | D67: 25291.10071 | E67: 9.508650519
B68: SUBDIVISION | C68: Complex connection LV | D68: 15905032.01 | E68: 254.1951264
C69: Complex connection HV (no upstream asset works) | D69: 6391295.906 | E69: 133.4704079
C70: Complex connection HV (with upstream asset works) | D70: 29455.73911 | E70: 3.334465724
B71: EMBEDDED GENERATION | C71: Simple connection LV | D71: 0 | E71: 0
C72: Complex connection HV (small capacity) | D72: 126153.4331 | E72: 0
C73: Complex connection HV (large capacity) | D73: 0 | E73: 0

Sheet 2.6 Non-network
B1: REGULATORY REPORTING STATEMENT
B2: AusNet Services (D)
B3: CATEGORY ANALYSIS 2017
B4: 2.6 NON NETWORK EXPENDITURE
B6: There are THREE tables on this worksheet. Each has been grouped (and sub-grouped) for ease of navigation. See the Instructions sheet on how to group or ungroup tables.
B8: 2.6.1 - NON-NETWORK EXPENDITURE
F9: EXPENDITURE ($0's)
B10: SERVICE SUBCATEGORY | C10: ASSET CATEGORY | F10: 2017
B11: OPEX
B12: IT & COMMUNICATIONS | C12: Client device expenditure | F12: 0
C13: Recurrent expenditure | F13: 22714400.78
C14: Non-recurrent expenditure | F14: 1434813.936
B15: MOTOR VEHICLES | C15: Car | F15: 182280.9154
C16: Light commercial vehicle | F16: 1549775.736
C17: Elevated work platform (LCV) | F17: 0
C18: Elevated work platform (HCV) | F18: 522379.6873
C19: Heavy commercial vehicle | F19: 151703.1109
B20: BUILDINGS AND PROPERTY | C20: Total buildings and property expenditure | F20: 8799889.26
B21: OTHER | C21: Other expenditure | F21: 0
B22: OTHER - DNSP nominated | C22: General Equipment | F22: 0
C23: Motor Vehcile | F23: 0
B33: CAPEX
B34: IT & COMMUNICATIONS | C34: Client device expenditure | F34: 0
C35: Recurrent expenditure | F35: 29012499
C36: Non-recurrent expenditure | F36: 6528583.815
B37: MOTOR VEHICLES | C37: Car | F37: 95710.3219
C38: Light commercial vehicle | F38: 1819894.663
C39: Elevated work platform (LCV) | F39: 0
C40: Elevated work platform (HCV) | F40: 20668.42797
C41: Heavy commercial vehicle | F41: 0
B42: BUILDINGS AND PROPERTY | C42: Total buildings and property expenditure | F42: 263409.26
B43: OTHER | C43: Other expenditure | F43: 0
B44: OTHER - DNSP nominated | C44: General Equipment | F44: 2082261.55
C45: Motor Vehcile | F45: 1032098.527
B58: 2.6.2 - ANNUAL DESCRIPTOR METRICS - IT & COMMUNICATIONS EXPENDITURE
F59: VOLUMES (0's)
B61: NON-NETWORK CATEGORY | C61: DESCRIPTOR METRIC | F61: 2017
B62: IT & COMMUNICATIONS | C62: Employee numbers | F62: 757
C63: User numbers | F63: 1384
C64: Number of devices | F64: 1624
B67: 2.6.3 - ANNUAL DESCRIPTOR METRICS - MOTOR VEHICLES
F68: VOLUMES / %
B69: NON-NETWORK CATEGORY | C69: ASSET CATEGORY | D69: DESCRIPTOR METRIC | E69: UNITS | F69: 2017
B70: MOTOR VEHICLES | C70: CAR | D70: Average kilometres travelled | E70: 0's | F70: 23677.61702
D71: Number purchased | E71: 0's | F71: 3.811377239
D72: Number leased | E72: 0's | F72: 47.07050891
D73: Number in fleet | E73: 0's | F73: 66.88967055
D74: Proportion of total fleet expenditure allocated as regulatory expenditure | E74: (per cent) | F74: 0.7622754479
C75: LIGHT COMMERCIAL VEHICLE | D75: Average kilometres travelled | E75: 0's | F75: 25631.42754
D76: Number purchased | E76: 0's | F76: 50.31017956
D77: Number leased | E77: 0's | F77: 237.9569856
D78: Number in fleet | E78: 0's | F78: 355.5470482
D79: Proportion of total fleet expenditure allocated as regulatory expenditure | E79: (per cent) | F79: 0.7622754479
C80: ELEVATED WORK PLATFORM (LCV) | D80: Average kilometres travelled | E80: 0's | F80: 0
D81: Number purchased | E81: 0's | F81: 0
D82: Number leased | E82: 0's | F82: 0
D83: Number in fleet | E83: 0's | F83: 0
D84: Proportion of total fleet expenditure allocated as regulatory expenditure | E84: (per cent) | F84: 0
C85: ELEVATED WORK PLATFORM (HCV) | D85: Average kilometres travelled | E85: 0's | F85: 16931.24393
D86: Number purchased | E86: 0's | F86: 0.7622754479
D87: Number leased | E87: 0's | F87: 19.18393211
D88: Number in fleet | E88: 0's | F88: 30.87215564
D89: Proportion of total fleet expenditure allocated as regulatory expenditure | E89: (per cent) | F89: 0.7622754479
C90: HEAVY COMMERCIAL VEHICLE | D90: Average kilometres travelled | E90: 0's | F90: 12943.3444
D91: Number purchased | E91: 0's | F91: 0
D92: Number leased | E92: 0's | F92: 7.622754479
D93: Number in fleet | E93: 0's | F93: 28.20419157
D94: Proportion of total fleet expenditure allocated as regulatory expenditure | E94: (per cent) | F94: 0.7622754479

Sheet 2.7 Vegetation management
B1: REGULATORY REPORTING STATEMENT
B2: AusNet Services (D)
B3: CATEGORY ANALYSIS 2017
B4: 2.7 VEGETATION MANAGEMENT
B6: There are THREE tables on this worksheet. Each has been grouped (and sub-grouped) for ease of navigation. See the Instructions sheet on how to group or ungroup tables.
B8: Please enter a description for each Zone in table 2.7.1 - Urban and CBD. The zone description will then autopopulate in tables 2.7.1 - Rural and 2.7.2.
A11: ` | B11: 2.7.1 - DESCRIPTOR METRICS BY ZONE
B12: URBAN AND CBD
E13: 2017
B14: ZONES | C14: ASSET | D14: UNITS
B15: HBRA | C15: Route line length within zone | D15: km | E15: 560.456334
C16: Number of maintenance spans | D16: 0's | E16: 1647
C17: Total length of maintenance spans | D17: km | E17: 233.0328781
C18: Length of vegetation corridors | D18: km | E18: 266.7073316
C19: Average number of trees per maintenance span | D19: 0's | E19: 7.984820886
C20: Average frequency of cutting cycle | D20: years | E20: 1
B21: LBRA | C21: Route line length within zone | D21: km | E21: 131.465066
C22: Number of maintenance spans | D22: 0's | E22: 8784
C23: Total length of maintenance spans | D23: km | E23: 482.9551433
C24: Length of vegetation corridors | D24: km | E24: 979.6006135
C25: Average number of trees per maintenance span | D25: 0's | E25: 5.920081967
C26: Average frequency of cutting cycle | D26: years | E26: 1
B27: ZONE 3 | C27: Route line length within zone | D27: km
C28: Number of maintenance spans | D28: 0's
C29: Total length of maintenance spans | D29: km
C30: Length of vegetation corridors | D30: km
C31: Average number of trees per maintenance span | D31: 0's
C32: Average frequency of cutting cycle | D32: years
B33: ZONE 4 | C33: Route line length within zone | D33: km
C34: Number of maintenance spans | D34: 0's
C35: Total length of maintenance spans | D35: km
C36: Length of vegetation corridors | D36: km
C37: Average number of trees per maintenance span | D37: 0's
C38: Average frequency of cutting cycle | D38: years
B39: ZONE 5 | C39: Route line length within zone | D39: km
C40: Number of maintenance spans | D40: 0's
C41: Total length of maintenance spans | D41: km
C42: Length of vegetation corridors | D42: km
C43: Average number of trees per maintenance span | D43: 0's
C44: Average frequency of cutting cycle | D44: years
B45: ZONE 6 | C45: Route line length within zone | D45: km
C46: Number of maintenance spans | D46: 0's
C47: Total length of maintenance spans | D47: km
C48: Length of vegetation corridors | D48: km
C49: Average number of trees per maintenance span | D49: 0's
C50: Average frequency of cutting cycle | D50: years
B51: ZONE 7 | C51: Route line length within zone | D51: km
C52: Number of maintenance spans | D52: 0's
C53: Total length of maintenance spans | D53: km
C54: Length of vegetation corridors | D54: km
C55: Average number of trees per maintenance span | D55: 0's
C56: Average frequency of cutting cycle | D56: years
B57: ZONE 8 | C57: Route line length within zone | D57: km
C58: Number of maintenance spans | D58: 0's
C59: Total length of maintenance spans | D59: km
C60: Length of vegetation corridors | D60: km
C61: Average number of trees per maintenance span | D61: 0's
C62: Average frequency of cutting cycle | D62: years
B63: ZONE 9 | C63: Route line length within zone | D63: km
C64: Number of maintenance spans | D64: 0's
C65: Total length of maintenance spans | D65: km
C66: Length of vegetation corridors | D66: km
C67: Average number of trees per maintenance span | D67: 0's
C68: Average frequency of cutting cycle | D68: years
B69: ZONE 10 | C69: Route line length within zone | D69: km
C70: Number of maintenance spans | D70: 0's
C71: Total length of maintenance spans | D71: km
C72: Length of vegetation corridors | D72: km
C73: Average number of trees per maintenance span | D73: 0's
C74: Average frequency of cutting cycle | D74: years
B75: ZONE 11 | C75: Route line length within zone | D75: km
C76: Number of maintenance spans | D76: 0's
C77: Total length of maintenance spans | D77: km
C78: Length of vegetation corridors | D78: km
C79: Average number of trees per maintenance span | D79: 0's
C80: Average frequency of cutting cycle | D80: years
B81: ZONE 12 | C81: Route line length within zone | D81: km
C82: Number of maintenance spans | D82: 0's
C83: Total length of maintenance spans | D83: km
C84: Length of vegetation corridors | D84: km
C85: Average number of trees per maintenance span | D85: 0's
C86: Average frequency of cutting cycle | D86: years
B87: ZONE 13 | C87: Route line length within zone | D87: km
C88: Number of maintenance spans | D88: 0's
C89: Total length of maintenance spans | D89: km
C90: Length of vegetation corridors | D90: km
C91: Average number of trees per maintenance span | D91: 0's
C92: Average frequency of cutting cycle | D92: years
B93: ZONE 14 | C93: Route line length within zone | D93: km
C94: Number of maintenance spans | D94: 0's
C95: Total length of maintenance spans | D95: km
C96: Length of vegetation corridors | D96: km
C97: Average number of trees per maintenance span | D97: 0's
C98: Average frequency of cutting cycle | D98: years
B99: ZONE 15 | C99: Route line length within zone | D99: km
C100: Number of maintenance spans | D100: 0's
C101: Total length of maintenance spans | D101: km
C102: Length of vegetation corridors | D102: km
C103: Average number of trees per maintenance span | D103: 0's
C104: Average frequency of cutting cycle | D104: years
B105: ZONE 16 | C105: Route line length within zone | D105: km
C106: Number of maintenance spans | D106: 0's
C107: Total length of maintenance spans | D107: km
C108: Length of vegetation corridors | D108: km
C109: Average number of trees per maintenance span | D109: 0's
C110: Average frequency of cutting cycle | D110: years
B111: ZONE 17 | C111: Route line length within zone | D111: km
C112: Number of maintenance spans | D112: 0's
C113: Total length of maintenance spans | D113: km
C114: Length of vegetation corridors | D114: km
C115: Average number of trees per maintenance span | D115: 0's
C116: Average frequency of cutting cycle | D116: years
B117: ZONE 18 | C117: Route line length within zone | D117: km
C118: Number of maintenance spans | D118: 0's
C119: Total length of maintenance spans | D119: km
C120: Length of vegetation corridors | D120: km
C121: Average number of trees per maintenance span | D121: 0's
C122: Average frequency of cutting cycle | D122: years
B124: RURAL
E125: 2017
B126: ZONES | C126: ASSET | D126: UNITS
B127: HBRA | C127: Route line length within zone | D127: km | E127: 27462.36037
C128: Number of maintenance spans | D128: 0's | E128: 51269
C129: Total length of maintenance spans | D129: km | E129: 7254.014952
C130: Length of vegetation corridors | D130: km | E130: 11331.59511
C131: Average number of trees per maintenance span | D131: 0's | E131: 7.506485401
C132: Average frequency of cutting cycle | D132: years | E132: 1
B133: LBRA | C133: Route line length within zone | D133: km | E133: 6441.788234
C134: Number of maintenance spans | D134: 0's | E134: 12071
C135: Total length of maintenance spans | D135: km | E135: 663.6784535
C136: Length of vegetation corridors | D136: km | E136: 421.2662008
C137: Average number of trees per maintenance span | D137: 0's | E137: 6.85634993
C138: Average frequency of cutting cycle | D138: years | E138: 1
B139: ZONE 3 | C139: Route line length within zone | D139: km
C140: Number of maintenance spans | D140: 0's
C141: Total length of maintenance spans | D141: km
C142: Length of vegetation corridors | D142: km
C143: Average number of trees per maintenance span | D143: 0's
C144: Average frequency of cutting cycle | D144: years
B145: ZONE 4 | C145: Route line length within zone | D145: km
C146: Number of maintenance spans | D146: 0's
C147: Total length of maintenance spans | D147: km
C148: Length of vegetation corridors | D148: km
C149: Average number of trees per maintenance span | D149: 0's
C150: Average frequency of cutting cycle | D150: years
B151: ZONE 5 | C151: Route line length within zone | D151: km
C152: Number of maintenance spans | D152: 0's
C153: Total length of maintenance spans | D153: km
C154: Length of vegetation corridors | D154: km
C155: Average number of trees per maintenance span | D155: 0's
C156: Average frequency of cutting cycle | D156: years
B157: ZONE 6 | C157: Route line length within zone | D157: km
C158: Number of maintenance spans | D158: 0's
C159: Total length of maintenance spans | D159: km
C160: Length of vegetation corridors | D160: km
C161: Average number of trees per maintenance span | D161: 0's
C162: Average frequency of cutting cycle | D162: years
B163: ZONE 7 | C163: Route line length within zone | D163: km
C164: Number of maintenance spans | D164: 0's
C165: Total length of maintenance spans | D165: km
C166: Length of vegetation corridors | D166: km
C167: Average number of trees per maintenance span | D167: 0's
C168: Average frequency of cutting cycle | D168: years
B169: ZONE 8 | C169: Route line length within zone | D169: km
C170: Number of maintenance spans | D170: 0's
C171: Total length of maintenance spans | D171: km
C172: Length of vegetation corridors | D172: km
C173: Average number of trees per maintenance span | D173: 0's
C174: Average frequency of cutting cycle | D174: years
B175: ZONE 9 | C175: Route line length within zone | D175: km
C176: Number of maintenance spans | D176: 0's
C177: Total length of maintenance spans | D177: km
C178: Length of vegetation corridors | D178: km
C179: Average number of trees per maintenance span | D179: 0's
C180: Average frequency of cutting cycle | D180: years
B181: ZONE 10 | C181: Route line length within zone | D181: km
C182: Number of maintenance spans | D182: 0's
C183: Total length of maintenance spans | D183: km
C184: Length of vegetation corridors | D184: km
C185: Average number of trees per maintenance span | D185: 0's
C186: Average frequency of cutting cycle | D186: years
B187: ZONE 11 | C187: Route line length within zone | D187: km
C188: Number of maintenance spans | D188: 0's
C189: Total length of maintenance spans | D189: km
C190: Length of vegetation corridors | D190: km
C191: Average number of trees per maintenance span | D191: 0's
C192: Average frequency of cutting cycle | D192: years
B193: ZONE 12 | C193: Route line length within zone | D193: km
C194: Number of maintenance spans | D194: 0's
C195: Total length of maintenance spans | D195: km
C196: Length of vegetation corridors | D196: km
C197: Average number of trees per maintenance span | D197: 0's
C198: Average frequency of cutting cycle | D198: years
B199: ZONE 13 | C199: Route line length within zone | D199: km
C200: Number of maintenance spans | D200: 0's
C201: Total length of maintenance spans | D201: km
C202: Length of vegetation corridors | D202: km
C203: Average number of trees per maintenance span | D203: 0's
C204: Average frequency of cutting cycle | D204: years
B205: ZONE 14 | C205: Route line length within zone | D205: km
... 201 more rows

Sheet 2.8 Maintenance
B1: REGULATORY REPORTING STATEMENT
B2: AusNet Services (D)
B3: CATEGORY ANALYSIS 2017
B4: 2.8 MAINTENANCE
B6: There are TWO tables on this worksheet. Each has been grouped for ease of navigation. See the Instructions sheet on how to group or ungroup tables.
B8: 2.8.1 - DESCRIPTOR METRICS FOR ROUTINE AND NON-ROUTINE MAINTENANCE
F9: ASSET QUANTITY (0's) | H9: AVERAGE AGE OF ASSET GROUP | I9: INSPECTION CYCLE (YEARS) | J9: MAINTENANCE CYCLE (YEARS)
F10: AT YEAR END | G10: INSPECTED / MAINTAINED
B11: MAINTENANCE ACTIVITY | C11: MAINTENANCE ASSET CATEGORY | D11: ASSET QUANTITY | E11: Units | F11: 2017 | G11: 2017 | H11: 2017
B12: Pole top, overhead line & service line maintenance | C12: Pole tops and overhead lines | D12: Number of poles | E12: Number | F12: 405037 | G12: 127774.544 | H12: 23.71612074 | I12: 3 | J12: 0
C13: Service lines | D13: Number of customers | E13: Number | F13: 259055 | G13: 41564.63004 | H13: 19.6453523 | I13: 3 | J13: 0
B14: Pole inspection and treatment | C14: All poles | D14: Number of poles | E14: Number | F14: 311995 | G14: 95318.86257 | H14: 33.28872893 | I14: 5 | J14: 0
B15: Overhead asset inspection | C15: All overhead assets | D15: Line patrolled (route KM) | E15: KM | F15: 34596.07343 | G15: 7469 | H15: 39.4693506 | I15: 5 | J15: 0
B16: Network underground cable maintenance: by voltage | C16: LV - 11 to 22 KV | D16: Length (KM) | E16: KM | F16: 6563.709821 | G16: 1524 | H16: 18.5590693 | I16: 0 | J16: 0
C17: 33 KV and above | D17: Length (KM) | E17: KM | F17: 11.179089 | G17: 0 | H17: 28.58061507 | I17: 0 | J17: 0
B18: Network underground cable maintenance: by location | C18: Cbd | D18: Length (KM) | E18: KM | F18: 0 | G18: 0 | H18: 0 | I18: 0 | J18: 0
C19: Non-CBD | D19: Length (KM) | E19: KM | F19: 6574.88891 | G19: 1524 | H19: 18.5590693 | I19: 0 | J19: 0
B20: Distribution substation equipment & property maintenance | C20: Distribution substation transformers | D20: Number of installed transformers | E20: Number | F20: 60822 | G20: 20274 | H20: 25.40970935 | I20: 3 | J20: 0
C21: Distribution substation switchgear (within-substations and stand-alone switchgear) | D21: Number of switches | E21: Number | F21: 161040 | G21: 16104 | H21: 29.65085217 | I21: 0 | J21: 10
C22: Distribution substation - other equipment | D22: Earth mat | E22: Number | F22: 213700 | G22: 858 | H22: 28.49639328 | I22: 0 | J22: 0
C23: Distribution substation - property | D23: Number of distribution substation properties maintained | E23: Number | F23: 4395 | G23: 288 | H23: 40 | I23: 3 | J23: 0
B24: Zone substation equipment maintenance | C24: Transformers - zone substation | D24: Number | E24: Number | F24: 141 | G24: 1495 | H24: 37.56028369 | I24: 1 | J24: 4
C25: Transformers - distribution | D25: Number of distribution transformers within zone substation | E25: Number | F25: 0 | G25: 0 | H25: 0 | I25: 0 | J25: 0
C26: Transformers - HV | D26: Number of HV transformers | E26: Number | F26: 0 | G26: 0 | H26: 0 | I26: 0 | J26: 0
C27: Zone substation - other equipment | D27: Other | E27: Other | F27: 2598 | G27: 2270 | H27: 25.54984925 | I27: 1 | J27: 4
B28: Zone substation property maintenance | C28: All zone substation properties | D28: Number of zone substation properties maintained | E28: Number | F28: 71 | G28: 1624 | H28: 40 | I28: 0 | J28: 1
B29: Public lighting maintenance | C29: Minor roads | D29: Number of public lights maintained | E29: Number | F29: 0 | G29: 0 | H29: 0 | I29: 0 | J29: 0
C30: Major roads | D30: Number of public lights maintained | E30: Number | F30: 0 | G30: 0 | H30: 0 | I30: 0 | J30: 0
B31: SCADA & network control maintenance | C31: SCADA & network control | D31: Number of systems | E31: Number | F31: 9031.215406 | G31: 3010.405135 | H31: 8.44688825 | I31: 6 | J31: 6
B32: Protection systems maintenance | C32: Protection systems | D32: Number of systems | E32: Number | F32: 327.7845943 | G32: 675 | H32: 10.06646648 | I32: 6 | J32: 6
B33: Subtransmission asset maintenance | C33: Subtransmission asset maintenance - for DNSPs with dual function assets | D33: <DNSP to nominate> | E33: <DNSP to nominate> | F33: 0 | G33: 0 | H33: 0 | I33: 0 | J33: 0
B34: Various assets | C34: includes rates, electricity, communications equip, metering | D34: Various | E34: Number | F34: 0 | G34: 0 | H34: 0 | I34: 0 | J34: 0
B35: Ground clearance - access tracks | C35: Access tracks | D35: Number | E35: Number | F35: 0 | G35: 0 | H35: 0 | I35: 0 | J35: 0
B36: Other | C36: Duplicates | D36: Duplicates | F36: 0 | G36: 0 | H36: 0 | I36: 0 | J36: 0
C37: < DNSP to nominate > | D37: < DNSP to nominate >
C38: < DNSP to nominate > | D38: < DNSP to nominate >
C39: < DNSP to nominate > | D39: < DNSP to nominate >
C40: < DNSP to nominate > | D40: < DNSP to nominate >
C41: < DNSP to nominate > | D41: < DNSP to nominate >
C42: < DNSP to nominate > | D42: < DNSP to nominate >
C43: < DNSP to nominate > | D43: < DNSP to nominate >
C44: < DNSP to nominate > | D44: < DNSP to nominate >
C45: < DNSP to nominate > | D45: < DNSP to nominate >
B48: 2.8.2 - COST METRICS FOR ROUTINE AND NON-ROUTINE MAINTENANCE
F49: EXPENDITURE ($0'S)
F50: ROUTINE MAINTENANCE | G50: NON-ROUTINE MAINTENANCE
B51: MAINTENANCE ACTIVITY | C51: MAINTENANCE ASSET CATEGORY | D51: ASSET QUANTITY | E51: Units | F51: 2017 | G51: 2017
B52: Pole top, overhead line & service line maintenance | C52: Pole tops and overhead lines | D52: Number of poles | E52: Number | F52: 688644.7595 | G52: 676376.8018
C53: Service lines | D53: Number of customers | E53: Number | F53: 78.18 | G53: 328641.9015
B54: Pole inspection and treatment | C54: All poles | D54: Number of poles | E54: Number | F54: 7155486.885 | G54: 150508.4524
B55: Overhead asset inspection | C55: All overhead assets | D55: Line patrolled (route KM) | E55: KM | F55: 831841.5325 | G55: 5449771.572
B56: Network underground cable maintenance: by voltage | C56: LV - 11 to 22 KV | D56: Length (KM) | E56: KM | F56: 0 | G56: 686702.3516
C57: 33 KV and above | D57: Length (KM) | E57: KM | F57: 0 | G57: 0
B58: Network underground cable maintenance: by location | C58: Cbd | D58: Length (KM) | E58: KM | F58: 0 | G58: 0
C59: Non-CBD | D59: Length (KM) | E59: KM | F59: 0 | G59: 686702.3516
B60: Distribution substation equipment & property maintenance | C60: Distribution substation transformers | D60: Number of installed transformers | E60: Number | F60: 293807.8656 | G60: 230178.3098
C61: Distribution substation switchgear (within-substations and stand-alone switchgear) | D61: Number of switches | E61: Number | F61: 120779.72 | G61: 778552.9544
C62: Distribution substation - other equipment | D62: Earth mat | E62: Number | F62: 164887.4369 | G62: 80436.4751
C63: Distribution substation - property | D63: Number of distribution substation properties maintained | E63: Number | F63: 15325.32 | G63: 365833.3523
B64: Zone substation equipment maintenance | C64: Transformers - zone substation | D64: Number | E64: Number | F64: 330545.3246 | G64: 80176.64
C65: Transformers - distribution | D65: Number of distribution transformers within zone substation | E65: Number | F65: 0 | G65: 0
C66: Transformers - HV | D66: Number of HV transformers | E66: Number | F66: 0 | G66: 0
C67: Zone substation - other equipment | D67: Other | E67: Other | F67: 939532.2529 | G67: 571129.3228
B68: Zone substation property maintenance | C68: All zone substation properties | D68: Number of zone substation properties maintained | E68: Number | F68: 428925.68 | G68: 542487.31
B69: Public lighting maintenance | C69: Minor roads | D69: Number of public lights maintained | E69: Number | F69: 0 | G69: 0
C70: Major roads | D70: Number of public lights maintained | E70: Number | F70: 0 | G70: 0
B71: SCADA & network control maintenance | C71: SCADA & network control | D71: Number of systems | E71: Number | F71: 1358.01 | G71: 145682.6893
B72: Protection systems maintenance | C72: Protection systems | D72: Number of systems | E72: Number | F72: 332626.54 | G72: 265266.5511
B73: Subtransmission asset maintenance | C73: Subtransmission asset maintenance - for DNSPs with dual function assets | D73: <DNSP to nominate> | E73: <DNSP to nominate> | F73: 0 | G73: 0
B74: Various assets | C74: includes rates, electricity, communications equip, metering | D74: Various | E74: Number | F74: 0 | G74: 0
B75: Ground clearance - access tracks | C75: Access tracks | D75: Number | E75: Number | F75: 0 | G75: 0
B76: Other | C76: Duplicates | D76: Duplicates | F76: 0 | G76: -686702.3516
C77: < DNSP to nominate > | D77: < DNSP to nominate >
C78: < DNSP to nominate > | D78: < DNSP to nominate >
C79: < DNSP to nominate > | D79: < DNSP to nominate >
C80: < DNSP to nominate > | D80: < DNSP to nominate >
C81: < DNSP to nominate > | D81: < DNSP to nominate >
C82: < DNSP to nominate > | D82: < DNSP to nominate >
C83: < DNSP to nominate > | D83: < DNSP to nominate >
C84: < DNSP to nominate > | D84: < DNSP to nominate >
C85: < DNSP to nominate > | D85: < DNSP to nominate >

Sheet 2.9 Emergency Response
B1: REGULATORY REPORTING STATEMENT
B2: AusNet Services (D)
B3: CATEGORY ANALYSIS 2017
B4: 2.9 EMERGENCY RESPONSE
B7: There is ONE table on this worksheet. It has been sub-grouped for ease of navigation. See the Instructions sheet on how to group or ungroup tables.
B9: 2.9.1 - EMERGENCY RESPONSE EXPENDITURE (OPEX)
D10: EXPENDITURE ($0's)
D11: 2017
B12: (A) TOTAL EMERGENCY RESPONSE EXPENDITURE | C12: Total Expenditure | D12: 16516475.28
B13: (B) MAJOR EVENTS O&M EXPENDITURE | C13: 19/12/2017 Major Event Day | D13: 135284.835
B56: (C) MAJOR EVENT DAYS O&M EXPENDITURE | C56: 2017-12-19 | D56: 135284.835

Sheet 2.10 Overheads (hidden)
B1: REGULATORY REPORTING STATEMENT
B2: =INDEX(dms_TradingNameFull_List,MATCH(dms_TradingName,dms_TradingName_List)) -> AusNet Services (D)
B3: =CONCATENATE((LOOKUP(dms_Model,dms_Model_List,dms_Worksheet_List))&" "&CRY) -> CATEGORY ANALYSIS 2017
B4: 2.10 OVERHEADS
B6: There are TWO tables on this worksheet. Each has been grouped (and sub-grouped) for ease of navigation. See the Instructions sheet on how to group or ungroup tables.
B8: 2.10.1 - NETWORK OVERHEADS EXPENDITURE
D9: EXPENDITURE ($0's)
D10: =CRY -> 2017
B11: NETWORK OVERHEADS
B12: Standard Control Services | C12: Network management
C13: Network planning
C14: Network control and operational switching
C15: Quality and standard functions
C16: Project governance and related functions
B40: Alternative Control Services | C40: Network management
C41: Network planning
C42: Network control and operational switching
C43: Quality and standard functions
C44: Project governance and related functions
B68: Negotiated Services | C68: Total
B69: Unregulated Services | C69: Total
B71: CAPITALISED NETWORK OVERHEADS
B72: Standard Control Services | C72: Network management
C73: Network planning
C74: Network control and operational switching
C75: Quality and standard functions
C76: Project governance and related functions
B104: 2.10.2 - CORPORATE OVERHEADS EXPENDITURE
D105: EXPENDITURE ($0's)
D106: =CRY -> 2017
B107: CORPORATE OVERHEADS
B108: Standard Control Services
B129: Alternative Control Services
B150: Negotiated Services | C150: Total
B151: Unregulated Services | C151: Total
B153: CAPITALISED CORPORATE OVERHEADS
B154: Standard Control Services

Sheet 2.10(A) Overheads
B1: REGULATORY REPORTING STATEMENT
B2: Australian Distribution Co. (Victoria)
B3: CATEGORY ANALYSIS 2017
B4: 2.10(A) OVERHEADS
B6: This worksheet may be completed on a voluntary basis. Please see worksheet 2.10 for an explanation of Overheads reporting options.
B9: There are TWO tables on this worksheet. Each has been grouped (and sub-grouped) for ease of navigation. See the Instructions sheet on how to group or ungroup tables.
B11: 2.10.1 - NETWORK OVERHEADS EXPENDITURE
D12: EXPENDITURE ($0's)
D13: 2017
B14: OPEX
B15: Standard Control Services | C15: Total | D15: 70781271.11
B16: Alternative Control Services | C16: Total | D16: 0
B17: CAPEX
B18: Standard Control Services | C18: Total | D18: 29267094.92
B19: Alternative Control Services | C19: Total | D19: 977782.6281
B20: OTHER DISTRIBUTION SERVICES
B21: Negotiated Services | C21: Total | D21: 114015.9284
B22: Unregulated Services | C22: Total | D22: 4072393.59
B26: 2.10.2 - CORPORATE OVERHEADS EXPENDITURE
D27: EXPENDITURE ($0's)
D28: 2017
B29: OPEX
B30: Standard Control Services | C30: Total | D30: 27744532.76
B31: Alternative Control Services | C31: Total | D31: 0
B32: CAPEX
B33: Standard Control Services | C33: Total | D33: 5910615.207
B34: Alternative Control Services | C34: Total | D34: 1138329.22
B35: OTHER DISTRIBUTION SERVICES
B36: Negotiated Services | C36: Total | D36: 0
B37: Unregulated Services | C37: Total | D37: 0

Sheet 2.11 Labour
B1: REGULATORY REPORTING STATEMENT
B2: AusNet Services (D)
B3: CATEGORY ANALYSIS 2017
B4: 2.11 LABOUR
B6: There are TWO tables on this worksheet. Each has been grouped for ease of navigation. See the Instructions sheet on how to group or ungroup tables.
B8: 2.11.1 - COST METRICS PER ANNUM
D9: ASL (0's) | E9: TOTAL LABOUR EXPENDITURE ($0's) | F9: AVERAGE PRODUCTIVE WORK HOURS PER ASL (0's) | G9: STAND-DOWN OCCURENCES PER ASL (0's)
D11: 2017 | E11: 2017 | F11: 2017 | G11: 2017
B12: INTERNAL LABOUR EXPENDITURE
B13: CORPORATE OVERHEADS | C13: Executive manager
C14: Senior manager
C15: Manager
C16: Professional
C17: Semi professional
C18: Support staff
C19: Intern, junior staff, apprentice
B20: NETWORK OVERHEADS | C20: Executive manager
C21: Senior manager
C22: Manager
C23: Professional
C24: Semi professional
C25: Support staff
C26: Intern, junior staff, apprentice
B27: TOTAL DIRECT NETWORK LABOUR | C27: Skilled electrical worker
C28: Skilled non electical worker
C29: Apprentice
C30: Unskilled worker
B33: 2.11.2 - DESCRIPTOR METRICS
D34: ORDINARY TIME (0's) | F34: OVERTIME (0's)
D35: PER ASL | E35: HOURLY RATE PER ASL | F35: PER ASL | G35: HOURLY RATE PER ASL
D36: 2017 | E36: 2017 | F36: 2017 | G36: 2017
B37: AVERAGE PRODUCTIVE WORK HOURS PER ASL
B38: CORPORATE OVERHEADS | C38: Executive manager
C39: Senior manager
C40: Manager
C41: Professional
C42: Semi professional
C43: Support staff
C44: Intern, junior staff, apprentice
B45: NETWORK OVERHEADS | C45: Executive manager
C46: Senior manager
C47: Manager
C48: Professional
C49: Semi professional
C50: Support staff
C51: Intern, junior staff, apprentice
B52: TOTAL DIRECT NETWORK LABOUR | C52: Skilled electrical worker
C53: Skilled non electical worker
C54: Apprentice
C55: Unskilled worker

Sheet 2.12 Input tables
B1: REGULATORY REPORTING STATEMENT
B2: AusNet Services (D)
B3: CATEGORY ANALYSIS 2017
B4: 2.12 INPUT TABLES
B6: There is ONE table on this worksheet. It has been sub-grouped for ease of navigation. See the Instructions sheet on how to group or ungroup tables.
B8: 2.12.1 - INPUT TABLES
D9: DIRECT MATERIAL EXPENDITURE | E9: DIRECT LABOUR EXPENDITURE | F9: CONTRACT EXPENDITURE | G9: OTHER EXPENDITURE | H9: RELATED PARTY CONTRACT EXPENDITURE | I9: RELATED PARTY CONTRACT MARGIN EXPENDITURE
D10: EXPENDITURE ($0's)
D11: 2017 | E11: 2017 | F11: 2017 | G11: 2017 | H11: 2017 | I11: 2017
B12: VEGETATION MANAGEMENT | C12: HBRA | D12: 7168.997853 | E12: 3434687.399 | F12: 26713736.4 | G12: 581424.0545
C13: LBRA | D13: 1601.082147 | E13: 767083.0411 | F13: 5966090.003 | G13: 129597.8555
C14: ZONE 3 | D14: 0 | E14: 0 | F14: 0 | G14: 0
C15: ZONE 4 | D15: 0 | E15: 0 | F15: 0 | G15: 0
C16: ZONE 5 | D16: 0 | E16: 0 | F16: 0 | G16: 0
C17: ZONE 6 | D17: 0 | E17: 0 | F17: 0 | G17: 0
C18: ZONE 7 | D18: 0 | E18: 0 | F18: 0 | G18: 0
C19: ZONE 8 | D19: 0 | E19: 0 | F19: 0 | G19: 0
C20: ZONE 9 | D20: 0 | E20: 0 | F20: 0 | G20: 0
C21: ZONE 10 | D21: 0 | E21: 0 | F21: 0 | G21: 0
C22: ZONE 11 | D22: 0 | E22: 0 | F22: 0 | G22: 0
C23: ZONE 12 | D23: 0 | E23: 0 | F23: 0 | G23: 0
C24: ZONE 13 | D24: 0 | E24: 0 | F24: 0 | G24: 0
C25: ZONE 14 | D25: 0 | E25: 0 | F25: 0 | G25: 0
C26: ZONE 15 | D26: 0 | E26: 0 | F26: 0 | G26: 0
C27: ZONE 16 | D27: 0 | E27: 0 | F27: 0 | G27: 0
C28: ZONE 17 | D28: 0 | E28: 0 | F28: 0 | G28: 0
C29: ZONE 18 | D29: 0 | E29: 0 | F29: 0 | G29: 0
B30: ROUTINE MAINTENANCE | C30: Pole top, overhead line & service line maintenance | D30: 326730.7353 | E30: 289697.5758 | F30: 22914.13662 | G30: 49380.49483
C31: Pole inspection and treatment | D31: 3394568.93 | E31: 3009812.924 | F31: 238066.4192 | G31: 513038.6442
C32: Overhead asset inspection | D32: 394626.3149 | E32: 349897.5591 | F32: 27675.75962 | G32: 59641.90263
C33: Network underground cable maintenance | D33: 0 | E33: 0 | F33: 0 | G33: 0
C34: Distribution substation equipment & property maintenance | D34: 282173.7772 | E34: 250190.9076 | F34: 19789.28757 | G34: 42646.37281
C35: Zone substation equipment maintenance | D35: 602525.8592 | E35: 534232.8158 | F35: 42256.07927 | G35: 91062.82897
C36: Zone substation property maintenance | D36: 203482.6994 | E36: 180419.0373 | F36: 14270.55942 | G36: 30753.38588
C37: Public lighting maintenance | D37: 0 | E37: 0 | F37: 0 | G37: 0
C38: Scada & network control maintenance | D38: 644.2410735 | E38: 571.2198365 | F38: 45.18163239 | G38: 97.36746366
C39: Protection systems maintenance | D39: 157798.3072 | E39: 139912.7236 | F39: 11066.64167 | G39: 23848.86897
C40: Subtransmission asset maintenance - for dnsps with dual function assets | D40: 0 | E40: 0 | F40: 0 | G40: 0
C41: Other | D41: 0 | E41: 0 | F41: 0 | G41: 0
B42: NON-ROUTINE MAINTENANCE | C42: Pole top, overhead line & service line maintenance | D42: 476781.7087 | E42: 422741.0839 | F42: 33437.44567 | G42: 72058.46942
C43: Pole inspection and treatment | D43: 71401.33503 | E43: 63308.38035 | F43: 5007.487109 | G43: 10791.25063
C44: Overhead asset inspection | D44: 2585376.167 | E44: 2292337.778 | F44: 181316.4673 | G44: 390741.1842
C45: Network underground cable maintenance | D45: 325772.1668 | E45: 288847.6558 | F45: 22846.91071 | G45: 49235.62144
C46: Distribution substation equipment & property maintenance | D46: 690253.7281 | E46: 612017.2058 | F46: 48408.57169 | G46: 104321.5926
C47: Zone substation equipment maintenance | D47: 308980.0905 | E47: 273958.8704 | F47: 21669.25618 | G47: 46697.74866
C48: Zone substation property maintenance | D48: 257356.4311 | E48: 228186.4732 | F48: 18048.80834 | G48: 38895.59977
C49: Public lighting maintenance | D49: 0 | E49: 0 | F49: 0 | G49: 0
C50: SCADA & network control maintenance | D50: 69111.98899 | E50: 61278.51929 | F50: 4846.931697 | G50: 10445.25001
C51: Protection systems maintenance | D51: 125842.6725 | E51: 111579.087 | F51: 8825.543107 | G51: 19019.24969
C52: Subtransmission asset maintenance - for DNSP with dual function assets | D52: 0 | E52: 0 | F52: 0 | G52: 0
C53: Other | D53: 0 | E53: 0 | F53: 0 | G53: 0
B54: OVERHEADS | C54: Network overheads | D54: -127.6516878 | E54: 60712473.87 | F54: 1314953.902 | G54: 38021053.48
C55: Corporate overheads | D55: 53997.35 | E55: 22372373.64 | F55: 909940.6369 | G55: 10318848.34
B56: AUGMENTATION | C56: Subtransmission substations, switching stations, zone substations | D56: 4152424.973 | E56: 1450994.77 | F56: 2766323.948 | G56: 1709164.004
C57: Subtransmission lines | D57: 1432772.319 | E57: 500658.0864 | F57: 954505.4765 | G57: 589738.018
C58: HV feeders | D58: 19890608.42 | E58: 6950437.147 | F58: 13251020.01 | G58: 8187098.418
C59: Distribution substations | D59: 3061016.91 | E59: 1069620.657 | F59: 2039233.565 | G59: 1259933.642
C60: LV feeders | D60: 3482673.876 | E60: 1216961.561 | F60: 2320139.246 | G60: 1433490.277
C61: Other assets | D61: 0 | E61: 0 | F61: 0 | G61: 0
B62: CONNECTIONS | C62: Simple and complex customer connections | D62: 7162321.345 | E62: 6357600.345 | F62: 49106059.98 | G62: 5155485.929
B63: EMERGENCY RESPONSE | C63: Major storms | D63: 30558.12841 | E63: 1424.509137 | F63: 85874.17698 | G63: 17428.02548
C64: Major event days | D64: 30558.12841 | E64: 1424.509137 | F64: 85874.17698 | G64: 17428.02548
B65: PUBLIC LIGHTING | C65: All public lighting services | D65: 2727350.271 | E65: 379183.4848 | F65: 6164088.85 | G65: 365780.759
B66: METERING | C66: All metering services | D66: 6594331.45 | E66: 16546612.34 | F66: 1961593.62 | G66: 17796889.77
B67: FEE-BASED SERVICES | C67: All fee-based services | D67: 425977.2358 | E67: 2367130.602 | F67: 4649041.999 | G67: 1594540.951
B68: QUOTED SERVICES | C68: All quoted services | D68: 22990.55893 | E68: 137210.4058 | F68: 63954.69066 | G68: 83529.10134
B69: REPLACEMENT | C69: Poles | D69: 9123305.967 | E69: 3487649.446 | F69: 24408156.81 | G69: 3484608.564
C70: Pole top structures | D70: 3990572.676 | E70: 1525512.641 | F70: 10676231.18 | G70: 1524182.546
C71: Overhead conductors | D71: 2317599.174 | E71: 885969.7906 | F71: 6200419.483 | G71: 885197.3133
C72: Underground cables | D72: 275963.7428 | E72: 105495.1789 | F72: 738303.2348 | G72: 105403.1976
C73: Service lines | D73: 1725457.332 | E73: 659606.3238 | F73: 4616225.005 | G73: 659031.2129
C74: Transformers | D74: 2167602.803 | E74: 828629.3085 | F74: 5799124.715 | G74: 827906.8265
C75: Switchgear | D75: 5037615.811 | E75: 1925775.378 | F75: 13477451.83 | G75: 1924096.294
C76: Public lighting | D76: 0 | E76: 0 | F76: 0 | G76: 0
C77: SCADA network control and protection systems | D77: 1354934.261 | E77: 517963.0873 | F77: 3624941.225 | G77: 517511.4751
C78: Other | D78: 2354346.054 | E78: 900017.3557 | F78: 6298730.732 | G78: 899232.6304
B79: NON-NETWORK EXPENDITURE | C79: IT and communications | D79: 13544.03 | E79: 32709927.58 | F79: 333317.21 | G79: 26633508.71
C80: Motor vehicles | D80: 265134.5578 | E80: 148.9726122 | F80: 636431.7231 | G80: 3440697.529
C81: Buildings and property | D81: 88527.62 | E81: 682856.8 | F81: 649159.66 | G81: 7642754.44
C82: Other | D82: 1105278.432 | E82: 225956.4274 | F82: 765131.3469 | G82: 1017993.871

Sheet 4.1 Public lighting
B1: REGULATORY REPORTING STATEMENT
B2: AusNet Services (D)
B3: CATEGORY ANALYSIS 2017
B4: 4.1 PUBLIC LIGHTING
B7: There are THREE tables on this worksheet. Each has been grouped for ease of navigation. See the Instructions sheet on how to group or ungroup tables.
B9: 4.1.1 - DESCRIPTOR METRICS OVER YEAR
C10: LIGHT TYPE | E10: VOLUME (0's)
E11: 2017
B12: POPULATION OF LIGHTS | C12: CC Mercury Vapour 125W | E12: 395
C13: CC Mercury Vapour 250W | E13: 966
C14: CC Mercury Vapour 400W | E14: 233
C15: CC Mercury Vapour 50W | E15: 217
C16: CC Mercury Vapour 80W | E16: 32028
C17: Compact Flourescent 32W | E17: 3662
C18: Compact Flourescent 42W | E18: 4349
C19: HP Sodium 100W | E19: 3158
C20: HP Sodium 150W | E20: 21026
C21: HP Sodium 250W | E21: 11903
C22: HP Sodium 400W | E22: 636
C23: HP Sodium 50W | E23: 0
C24: LED 18W | E24: 36275
C25: Metal Halide 100W | E25: 34
C26: Metal Halide 150W | E26: 33
C27: Metal Halide 70W | E27: 31
C28: T5 Fluor 14W | E28: 29088
C29: T5 Fluor 24W | E29: 2719
B116: 4.1.2 - DESCRIPTOR METRICS ANNUALLY
E119: VOLUMES & EXPENDITURE
B120: SERVICE/SERVICE QUALITY | C120: DESCRIPTOR METRIC | D120: UNITS | E120: 2017
B121: LIGHT INSTALLATION | C121: Major road light installation | D121: 0's | E121: 0
C122: Minor road light installation | D122: 0's | E122: 0
C123: Number of poles installed | D123: 0's | E123: 2309
C124: Total cost | D124: $0s | E124: 1969723.862
B125: LIGHT REPLACEMENT | C125: Major road light replacement | D125: 0's | E125: 1122
C126: Minor road light replacement | D126: 0's | E126: 1098
C127: Number of poles replaced | D127: 0's | E127: 301
C128: Total cost | D128: $0s | E128: 5328457.467
B129: LIGHT MAINTENANCE | C129: Major road light maintenance | D129: 0's | E129: 2090
C130: Minor road light maintenance | D130: 0's | E130: 5219
C131: Number of poles installed | D131: 0's | E131: 0
C132: Total cost | D132: $0s | E132: 2338331
B133: QUALITY OF SUPPLY | C133: Mean days to rectify/replace public lighting assets | D133: days | E133: 1.76
C134: GSO breaches | D134: 0's | E134: 33
C135: GSL payments | D135: $0s | E135: 825
C136: Customer complaints | D136: 0's | E136: 9
B139: 4.1.3 - COST METRICS
E140: AVERAGE UNIT COST ($)
B141: ACTIVITY TYPE | C141: LIGHT TYPE | E141: 2017
B142: LIGHT INSTALLATION | C142: Major Road - all light types
C143: CC Mercury Vapour 125W
C144: CC Mercury Vapour 80W
C145: CC Mercury Vapour 50W
C146: Compact Fluorescent 32W
C147: Compact Fluorescent 42W
C148: Fluorescent 20W
C149: HP Sodium 100W
C150: HP Sodium 50W
C151: Metal halide 100W
C152: Metal halide 70W
C153: T5 Fluor 14W
C154: T5 Fluor 24W
C155: LED 20W
C156: LED 18W
C157: Other minor
B172: LIGHT REPLACEMENT | C172: Major Road - all light types
C173: CC Mercury Vapour 125W
C174: CC Mercury Vapour 80W
C175: CC Mercury Vapour 50W
C176: Compact Fluorescent 32W
C177: Compact Fluorescent 42W
C178: Fluorescent 20W
C179: HP Sodium 100W
C180: HP Sodium 50W
C181: Metal halide 100W
C182: Metal halide 70W
C183: T5 Fluor 14W
C184: T5 Fluor 24W
C185: LED 20W
C186: LED 18W
C187: Other minor
B202: LIGHT MAINTENANCE | C202: Major Road - all light types
C203: CC Mercury Vapour 125W
C204: CC Mercury Vapour 80W
C205: CC Mercury Vapour 50W
C206: Compact Fluorescent 32W
C207: Compact Fluorescent 42W
C208: Fluorescent 20W
C209: HP Sodium 100W
C210: HP Sodium 50W
C211: Metal halide 100W
C212: Metal halide 70W
C213: T5 Fluor 14W
C214: T5 Fluor 24W
C215: LED 20W
C216: LED 18W
C217: Other minor

Sheet 4.2 Metering
B1: REGULATORY REPORTING STATEMENT
B2: AusNet Services (D)
B3: CATEGORY ANALYSIS 2017
B4: 4.2 METERING
B6: There are TWO tables on this worksheet. Each has been grouped for ease of navigation. See the Instructions sheet on how to group or ungroup tables.
B8: 4.2.1 - METERING DESCRIPTOR METRIC
D9: VOLUMES (0's)
B10: ASSET CATEGORY | C10: ASSET SUBCATEGORY | D10: 2017
B11: Meter Type 4 | C11: Single phase meter population | D11: 595374
C12: Multi phase meter population | D12: 130861
C13: Current transformer connected meter population | D13: 3985
C14: Direct connect meter population | D14: 722250
B15: Meter Type 5 | C15: Single phase meter population | D15: 1029
C16: Multi phase meter population | D16: 498
C17: Current transformer connected meter population | D17: 99
C18: Direct connect meter population | D18: 1428
B19: Meter Type 6 | C19: Single phase meter population | D19: 15947
C20: Multi phase meter population | D20: 6264
C21: Current transformer connected meter population | D21: 146
C22: Direct connect meter population | D22: 22065
B25: 4.2.2 - COST METRICS
D26: VOLUMES (0's) | E26: EXPENDITURE ($0's)
B27: SERVICE SUBCATEGORY | C27: METER TYPE | D27: 2017 | E27: 2017
B28: Meter purchase | C28: Meter Type 4 | D28: 53663 | E28: 4705758.35
C29: Meter Type 5 | D29: 0 | E29: 0
C30: Meter Type 6 | D30: 0 | E30: 0
B31: Meter testing | C31: Meter Type 4 | D31: 328 | E31: 287109.5644
C32: Meter Type 5 | D32: 3 | E32: 2626.002113
C33: Meter Type 6 | D33: 136 | E33: 119045.4291
B34: Meter investigation | C34: Meter Type 4 | D34: 2839 | E34: 2485073.333
C35: Meter Type 5 | D35: 4 | E35: 3501.336151
C36: Meter Type 6 | D36: 48 | E36: 42016.03381
B37: Scheduled meter reading | C37: Meter Type 4 | D37: 0 | E37: 0
C38: Meter Type 5 | D38: 4116 | E38: 59817.97632
C39: Meter Type 6 | D39: 71420 | E39: 1037949.434
B40: Special meter reading | C40: Meter Type 4 | D40: 51587 | E40: 1696376.57
C41: Meter Type 5 | D41: 424 | E41: 13942.73103
C42: Meter Type 6 | D42: 10885 | E42: 357940.1587
B43: New meter installation | C43: Meter Type 4 | D43: 0 | E43: 0
C44: Meter Type 5 | D44: 0 | E44: 0
C45: Meter Type 6 | D45: 0 | E45: 0
B46: Meter replacement | C46: Meter Type 4 | D46: 60 | E46: 19494.37294
C47: Meter Type 5 | D47: 333 | E47: 108193.7698
C48: Meter Type 6 | D48: 5970 | E48: 1939690.107
B49: Meter maintenance | C49: Meter Type 4 | D49: 9127 | E49: 1999599.572
C50: Meter Type 5 | D50: 53 | E50: 11611.56758
C51: Meter Type 6 | D51: 182 | E51: 39873.68489
B52: Remote meter reading | C52: Meter Type 4 | D52: 751563 | E52: 3732959.159
B53: Remote meter re-configuration | C53: Meter Type 4 | D53: 6666 | E53: 33109.54072
B54: Other metering | C54: Meter Type 4 | D54: 0 | E54: 7074357.05
C55: Meter Type 5 | D55: 10 | E55: 857742.0235
C56: Meter Type 6 | D56: 0 | E56: 0
C57: Meter Type 7 | D57: 0 | E57: 0
B58: IT infrastructure capex | C58: Meter Type 4 | E58: 1829950.41
B59: IT infrastructure opex | C59: Meter Type 4 | E59: 7983998.886
B60: Communications infrastructure capex | C60: Meter Type 4 | E60: 1823814.52
B61: Communications infrastructure opex | C61: Meter Type 4 | E61: 4633875.565

Sheet 4.3 Fee-based services
B1: REGULATORY REPORTING STATEMENT
B2: AusNet Services (D)
B3: CATEGORY ANALYSIS 2017
B4: 4.3 ANCILLARY SERVICES - FEE BASED SERVICES
B6: 4.3.1 - COST METRICS FOR FEE-BASED SERVICES
D7: EXPENDITURE ($0's) | F7: VOLUMES (0's)
B8: SERVICE | C8: SERVICE SUBCATEGORY | D8: 2017 | F8: 2017
B9: Common Fee-Based Services | C9: Energisation | D9: 0 | E9: ED_FEE431_00001 | F9: 0
C10: De-energisation | D10: 0 | E10: ED_FEE431_00002 | F10: 0
C11: Re-energisation | D11: 0 | E11: ED_FEE431_00003 | F11: 0
B12: Miscellaneous Fee-Based Services | C12: FIELD OFFICER VISITS | D12: 2068259.46 | E12: ED_FEE431_00004 | F12: 206041
C13: NEW CONNECTIONS | D13: 3657181.264 | E13: ED_FEE431_00005 | F13: 16397
C14: SERVICE TRUCK VISITS | D14: 1844045.099 | E14: ED_FEE431_00006 | F14: 7191
C15: METER EQUIPMENT TESTS | D15: 1467204.966 | E15: ED_FEE431_00007 | F15: 11020
E16: ED_FEE431_00008
E17: ED_FEE431_00009
E18: ED_FEE431_00010
E19: ED_FEE431_00011
E20: ED_FEE431_00012
E21: ED_FEE431_00013
E22: ED_FEE431_00014
E23: ED_FEE431_00015
E24: ED_FEE431_00016
E25: ED_FEE431_00017
E26: ED_FEE431_00018
E27: ED_FEE431_00019
E28: ED_FEE431_00020
E29: ED_FEE431_00021
E30: ED_FEE431_00022
E31: ED_FEE431_00023
E32: ED_FEE431_00024
E33: ED_FEE431_00025
E34: ED_FEE431_00026
E35: ED_FEE431_00027
E36: ED_FEE431_00028
E37: ED_FEE431_00029
E38: ED_FEE431_00030
E39: ED_FEE431_00031
E40: ED_FEE431_00032
E41: ED_FEE431_00033
E42: ED_FEE431_00034
E43: ED_FEE431_00035
E44: ED_FEE431_00036
E45: ED_FEE431_00037
E46: ED_FEE431_00038
E47: ED_FEE431_00039
E48: ED_FEE431_00040
E49: ED_FEE431_00041
E50: ED_FEE431_00042
E51: ED_FEE431_00043
E52: ED_FEE431_00044
E53: ED_FEE431_00045
E54: ED_FEE431_00046
E55: ED_FEE431_00047
E56: ED_FEE431_00048
E57: ED_FEE431_00049
E58: ED_FEE431_00050
E59: ED_FEE431_00051
E60: ED_FEE431_00052
E61: ED_FEE431_00053
E62: ED_FEE431_00054
E63: ED_FEE431_00055
E64: ED_FEE431_00056
E65: ED_FEE431_00057
E66: ED_FEE431_00058
E67: ED_FEE431_00059
E68: ED_FEE431_00060
E69: ED_FEE431_00061
E70: ED_FEE431_00062
E71: ED_FEE431_00063
E72: ED_FEE431_00064
E73: ED_FEE431_00065
E74: ED_FEE431_00066
E75: ED_FEE431_00067
E76: ED_FEE431_00068
E77: ED_FEE431_00069
E78: ED_FEE431_00070
E79: ED_FEE431_00071
E80: ED_FEE431_00072
E81: ED_FEE431_00073
E82: ED_FEE431_00074
E83: ED_FEE431_00075
E84: ED_FEE431_00076
E85: ED_FEE431_00077
E86: ED_FEE431_00078
E87: ED_FEE431_00079
E88: ED_FEE431_00080
E89: ED_FEE431_00081
E90: ED_FEE431_00082
E91: ED_FEE431_00083
E92: ED_FEE431_00084
E93: ED_FEE431_00085
E94: ED_FEE431_00086
E95: ED_FEE431_00087
E96: ED_FEE431_00088
E97: ED_FEE431_00089
E98: ED_FEE431_00090
E99: ED_FEE431_00091
E100: ED_FEE431_00092
E101: ED_FEE431_00093
E102: ED_FEE431_00094
E103: ED_FEE431_00095
E104: ED_FEE431_00096
E105: ED_FEE431_00097
E106: ED_FEE431_00098
E107: ED_FEE431_00099
E108: ED_FEE431_00100
E109: ED_FEE431_00101
E110: ED_FEE431_00102
E111: ED_FEE431_00103
E112: ED_FEE431_00104
E113: ED_FEE431_00105
E114: ED_FEE431_00106
E115: ED_FEE431_00107
E116: ED_FEE431_00108
E117: ED_FEE431_00109
E118: ED_FEE431_00110
E119: ED_FEE431_00111
E120: ED_FEE431_00112
E121: ED_FEE431_00113
E122: ED_FEE431_00114
E123: ED_FEE431_00115
E124: ED_FEE431_00116
E125: ED_FEE431_00117
E126: ED_FEE431_00118
E127: ED_FEE431_00119
E128: ED_FEE431_00120
E129: ED_FEE431_00121
E130: ED_FEE431_00122
E131: ED_FEE431_00123
E132: ED_FEE431_00124
E133: ED_FEE431_00125
E134: ED_FEE431_00126
E135: ED_FEE431_00127
E136: ED_FEE431_00128
E137: ED_FEE431_00129
E138: ED_FEE431_00130
E139: ED_FEE431_00131
E140: ED_FEE431_00132
E141: ED_FEE431_00133
E142: ED_FEE431_00134
E143: ED_FEE431_00135
E144: ED_FEE431_00136
E145: ED_FEE431_00137
E146: ED_FEE431_00138
E147: ED_FEE431_00139
E148: ED_FEE431_00140
E149: ED_FEE431_00141
E150: ED_FEE431_00142
E151: ED_FEE431_00143
E152: ED_FEE431_00144
E153: ED_FEE431_00145
E154: ED_FEE431_00146
E155: ED_FEE431_00147
E156: ED_FEE431_00148
E157: ED_FEE431_00149
E158: ED_FEE431_00150
E159: ED_FEE431_00151
E160: ED_FEE431_00152
E161: ED_FEE431_00153
E162: ED_FEE431_00154
E163: ED_FEE431_00155
E164: ED_FEE431_00156
E165: ED_FEE431_00157
E166: ED_FEE431_00158
E167: ED_FEE431_00159
E168: ED_FEE431_00160
E169: ED_FEE431_00161
E170: ED_FEE431_00162
E171: ED_FEE431_00163
E172: ED_FEE431_00164
E173: ED_FEE431_00165
E174: ED_FEE431_00166
E175: ED_FEE431_00167
E176: ED_FEE431_00168
E177: ED_FEE431_00169
E178: ED_FEE431_00170
E179: ED_FEE431_00171
E180: ED_FEE431_00172
E181: ED_FEE431_00173
E182: ED_FEE431_00174
E183: ED_FEE431_00175
E184: ED_FEE431_00176
E185: ED_FEE431_00177
E186: ED_FEE431_00178
E187: ED_FEE431_00179
E188: ED_FEE431_00180
E189: ED_FEE431_00181
E190: ED_FEE431_00182
E191: ED_FEE431_00183
E192: ED_FEE431_00184
E193: ED_FEE431_00185
E194: ED_FEE431_00186
E195: ED_FEE431_00187
E196: ED_FEE431_00188
E197: ED_FEE431_00189
E198: ED_FEE431_00190
E199: ED_FEE431_00191
E200: ED_FEE431_00192
E201: ED_FEE431_00193
... 278 more rows

Sheet 4.4 Quoted services
B1: REGULATORY REPORTING STATEMENT
B2: AusNet Services (D)
B3: CATEGORY ANALYSIS 2017
B4: 4.4 ANCILLARY SERVICES - QUOTED SERVICES
B6: 4.4.1 - COST METRICS FOR QUOTED SERVICES
D7: EXPENDITURE ($0's) | F7: VOLUMES (0's)
B8: SERVICE | C8: SERVICE SUBCATEGORY | D8: 2017 | F8: 2017
B9: Quoted Services | C9: Recoverable Works | D9: 307684.7568 | E9: ED_QUO441_00001 | F9: 122
E10: ED_QUO441_00002
E11: ED_QUO441_00003
E12: ED_QUO441_00004
E13: ED_QUO441_00005
E14: ED_QUO441_00006
E15: ED_QUO441_00007
E16: ED_QUO441_00008
E17: ED_QUO441_00009
E18: ED_QUO441_00010
E19: ED_QUO441_00011
E20: ED_QUO441_00012
E21: ED_QUO441_00013
E22: ED_QUO441_00014
E23: ED_QUO441_00015
E24: ED_QUO441_00016
E25: ED_QUO441_00017
E26: ED_QUO441_00018
E27: ED_QUO441_00019
E28: ED_QUO441_00020
E29: ED_QUO441_00021
E30: ED_QUO441_00022
E31: ED_QUO441_00023
E32: ED_QUO441_00024
E33: ED_QUO441_00025
E34: ED_QUO441_00026
E35: ED_QUO441_00027
E36: ED_QUO441_00028
E37: ED_QUO441_00029
E38: ED_QUO441_00030
E39: ED_QUO441_00031
E40: ED_QUO441_00032
E41: ED_QUO441_00033
E42: ED_QUO441_00034
E43: ED_QUO441_00035
E44: ED_QUO441_00036
E45: ED_QUO441_00037
E46: ED_QUO441_00038
E47: ED_QUO441_00039
E48: ED_QUO441_00040
E49: ED_QUO441_00041
E50: ED_QUO441_00042
E51: ED_QUO441_00043
E52: ED_QUO441_00044
E53: ED_QUO441_00045
E54: ED_QUO441_00046
E55: ED_QUO441_00047
E56: ED_QUO441_00048
E57: ED_QUO441_00049
E58: ED_QUO441_00050
E59: ED_QUO441_00051
E60: ED_QUO441_00052
E61: ED_QUO441_00053
E62: ED_QUO441_00054
E63: ED_QUO441_00055
E64: ED_QUO441_00056
E65: ED_QUO441_00057
E66: ED_QUO441_00058
E67: ED_QUO441_00059
E68: ED_QUO441_00060
E69: ED_QUO441_00061
E70: ED_QUO441_00062
E71: ED_QUO441_00063
E72: ED_QUO441_00064
E73: ED_QUO441_00065
E74: ED_QUO441_00066
E75: ED_QUO441_00067
E76: ED_QUO441_00068
E77: ED_QUO441_00069
E78: ED_QUO441_00070
E79: ED_QUO441_00071
E80: ED_QUO441_00072
E81: ED_QUO441_00073
E82: ED_QUO441_00074
E83: ED_QUO441_00075
E84: ED_QUO441_00076
E85: ED_QUO441_00077
E86: ED_QUO441_00078
E87: ED_QUO441_00079
E88: ED_QUO441_00080
E89: ED_QUO441_00081
E90: ED_QUO441_00082
E91: ED_QUO441_00083
E92: ED_QUO441_00084
E93: ED_QUO441_00085
E94: ED_QUO441_00086
E95: ED_QUO441_00087
E96: ED_QUO441_00088
E97: ED_QUO441_00089
E98: ED_QUO441_00090
E99: ED_QUO441_00091
E100: ED_QUO441_00092
E101: ED_QUO441_00093
E102: ED_QUO441_00094
E103: ED_QUO441_00095
E104: ED_QUO441_00096
E105: ED_QUO441_00097
E106: ED_QUO441_00098
E107: ED_QUO441_00099
E108: ED_QUO441_00100
E109: ED_QUO441_00101
E110: ED_QUO441_00102
E111: ED_QUO441_00103
E112: ED_QUO441_00104
E113: ED_QUO441_00105
E114: ED_QUO441_00106
E115: ED_QUO441_00107
E116: ED_QUO441_00108
E117: ED_QUO441_00109
E118: ED_QUO441_00110
E119: ED_QUO441_00111
E120: ED_QUO441_00112
E121: ED_QUO441_00113
E122: ED_QUO441_00114
E123: ED_QUO441_00115
E124: ED_QUO441_00116
E125: ED_QUO441_00117
E126: ED_QUO441_00118
E127: ED_QUO441_00119
E128: ED_QUO441_00120
E129: ED_QUO441_00121
E130: ED_QUO441_00122
E131: ED_QUO441_00123
E132: ED_QUO441_00124
E133: ED_QUO441_00125
E134: ED_QUO441_00126
E135: ED_QUO441_00127
E136: ED_QUO441_00128
E137: ED_QUO441_00129
E138: ED_QUO441_00130
E139: ED_QUO441_00131
E140: ED_QUO441_00132
E141: ED_QUO441_00133
E142: ED_QUO441_00134
E143: ED_QUO441_00135
E144: ED_QUO441_00136
E145: ED_QUO441_00137
E146: ED_QUO441_00138
E147: ED_QUO441_00139
E148: ED_QUO441_00140
E149: ED_QUO441_00141
E150: ED_QUO441_00142
E151: ED_QUO441_00143
E152: ED_QUO441_00144
E153: ED_QUO441_00145
E154: ED_QUO441_00146
E155: ED_QUO441_00147
E156: ED_QUO441_00148
E157: ED_QUO441_00149
E158: ED_QUO441_00150
E159: ED_QUO441_00151
E160: ED_QUO441_00152
E161: ED_QUO441_00153
E162: ED_QUO441_00154
E163: ED_QUO441_00155
E164: ED_QUO441_00156
E165: ED_QUO441_00157
E166: ED_QUO441_00158
E167: ED_QUO441_00159
E168: ED_QUO441_00160
E169: ED_QUO441_00161
E170: ED_QUO441_00162
E171: ED_QUO441_00163
E172: ED_QUO441_00164
E173: ED_QUO441_00165
E174: ED_QUO441_00166
E175: ED_QUO441_00167
E176: ED_QUO441_00168
E177: ED_QUO441_00169
E178: ED_QUO441_00170
E179: ED_QUO441_00171
E180: ED_QUO441_00172
E181: ED_QUO441_00173
E182: ED_QUO441_00174
E183: ED_QUO441_00175
E184: ED_QUO441_00176
E185: ED_QUO441_00177
E186: ED_QUO441_00178
E187: ED_QUO441_00179
E188: ED_QUO441_00180
E189: ED_QUO441_00181
E190: ED_QUO441_00182
E191: ED_QUO441_00183
E192: ED_QUO441_00184
E193: ED_QUO441_00185
E194: ED_QUO441_00186
E195: ED_QUO441_00187
E196: ED_QUO441_00188
E197: ED_QUO441_00189
E198: ED_QUO441_00190
E199: ED_QUO441_00191
E200: ED_QUO441_00192
E201: ED_QUO441_00193
... 280 more rows

Sheet 5.2 Asset Age Profile
B1: REGULATORY REPORTING STATEMENT
B2: AusNet Services (D)
B3: CATEGORY ANALYSIS 2017
B4: 5.2 ASSET AGE PROFILE
B6: There is ONE table on this worksheet. Both the ROWS and COLUMNS have been 'grouped' for easy navigation. See the Instructions sheet on how to group or ungroup data.
B8: 5.2.1 - ASSET AGE PROFILE
D9: ECONOMIC LIFE (YEARS) | F9: INSTALLED ASSETS -˃ QUANTITY CURRENTLY IN COMMISSION BY YEAR
B10: ASSET GROUP | C10: ASSET CATEGORY | D10: MEAN | E10: STANDARD DEVIATION | F10: 2017 | G10: 2016 | H10: 2015 | I10: 2014 | J10: 2013 | K10: 2012 | L10: 2011 | M10: 2010 | N10: 2009 | O10: 2008 | P10: 2007 | Q10: 2006 | R10: 2005 | S10: 2004 | T10: 2003 | U10: 2002 | V10: 2001 | W10: 2000 | X10: 1999 | Y10: 1998 | Z10: 1997 | AA10: 1996 | AB10: 1995 | AC10: 1994 | AD10: 1993 | AE10: 1992 | AF10: 1991 | AG10: 1990 | AH10: 1989 | AI10: 1988 | AJ10: 1987 | AK10: 1986 | AL10: 1985 | AM10: 1984 | AN10: 1983 | AO10: 1982 | AP10: 1981 | AQ10: 1980 | AR10: 1979 | AS10: 1978 | AT10: 1977 | AU10: 1976 | AV10: 1975 | AW10: 1974 | AX10: 1973 | AY10: 1972 | AZ10: 1971 | BA10: 1970 | BB10: 1969 | BC10: 1968 | BD10: 1967 | BE10: 1966 | BF10: 1965 | BG10: 1964 | BH10: 1963 | BI10: 1962 | BJ10: 1961 | BK10: 1960 | BL10: 1959 | BM10: 1958 | BN10: 1957 | BO10: 1956 | BP10: 1955 | BQ10: 1954 | BR10: 1953 | BS10: 1952 | BT10: 1951 | BU10: 1950 | BV10: 1949 | BW10: 1948 | BX10: 1947 | BY10: 1946 | BZ10: 1945 | CA10: 1944 | CB10: 1943 | CC10: 1942 | CD10: 1941 | CE10: 1940 | CF10: 1939 | CG10: 1938 | CH10: 1937 | CI10: 1936 | CJ10: 1935 | CK10: 1934 | CL10: 1933 | CM10: 1932 | CN10: 1931 | CO10: 1930 | CP10: 1929 | CQ10: 1928 | CR10: 1927 | CS10: 1926 | CT10: 1925 | CU10: 1924 | CV10: 1923 | CW10: 1922 | CX10: 1921 | CY10: 1920 | CZ10: 1919 | DA10: 1918 | DB10: 1917 | DC10: 1916 | DD10: 1915 | DE10: 1914 | DF10: 1913 | DG10: 1912 | DH10: 1911
B11: POLES BY: HIGHEST OPERATING VOLTAGE ; MATERIAL TYPE; STAKING (IF WOOD) | C11: Staking of a wooden pole | D11: 65 | E11: 8.062257748 | F11: 2060 | G11: 1381.585712 | H11: 900.003502 | I11: 1233.795045 | J11: 946.3653476 | K11: 678.5430748 | L11: 347.5729294 | M11: 404.2873402 | N11: 378.0194362 | O11: 481.2519699 | P11: 432.2966206 | Q11: 500.0333567 | R11: 923.8341797 | S11: 567.4845036 | T11: 206.0232008 | U11: 114.1925232 | V11: 463.5868499 | W11: 1057.053668 | X11: 1049.058309 | Y11: 1115.915952 | Z11: 718.2844511 | AA11: 508.8147435 | AB11: 700.016547 | AC11: 640.962616 | AD11: 555.9310103 | AE11: 604.5607599 | AF11: 718.5923656 | AG11: 1116.638767 | AH11: 1633.565137 | AI11: 437.9170898 | AJ11: 81.96462966 | AK11: 6.133952022 | AL11: 1.022325337 | AM11: 0 | AN11: 0 | AO11: 0 | AP11: 0 | AQ11: 0 | AR11: 1.022325337 | AS11: 0 | AT11: 0 | AU11: 0 | AV11: 0 | AW11: 2.044650674 | AX11: 0.02232533707 | AY11: 0 | AZ11: 1.022325337 | BA11: 1.022325337 | BB11: 1.044650674 | BC11: 3.066976011 | BD11: 4.111626685 | BE11: 1.022325337 | BF11: 2.044650674 | BG11: 1.022325337 | BH11: 0 | BI11: 1.044650674 | BJ11: 1.022325337 | BK11: 4.089301348 | BL11: 0.02232533707 | BM11: 1.022325337 | BN11: 0 | BO11: 0 | BP11: 0 | BQ11: 0 | BR11: 0 | BS11: 0 | BT11: 0 | BU11: 1.022325337 | BV11: 0 | BW11: 0 | BX11: 0 | BY11: 0 | BZ11: 0 | CA11: 0 | CB11: 0 | CC11: 0 | CD11: 1.022325337 | CE11: 0 | CF11: 0 | CG11: 0 | CH11: 0 | CI11: 0 | CJ11: 0 | CK11: 0 | CL11: 0 | CM11: 0 | CN11: 0 | CO11: 0 | CP11: 0 | CQ11: 0 | CR11: 0 | CS11: 0 | CT11: 0 | CU11: 0 | CV11: 0 | CW11: 0 | CX11: 0 | CY11: 0 | CZ11: 0 | DA11: 0 | DB11: 0 | DC11: 0 | DD11: 0 | DE11: 0 | DF11: 0 | DG11: 0 | DH11: 0
C12: ˂ = 1 kV; Wood | D12: 55 | E12: 7.416198487 | F12: 1339 | G12: 980.8795568 | H12: 750.7170723 | I12: 683.6703702 | J12: 274.275348 | K12: 242.2607536 | L12: 157.1527549 | M12: 151.150809 | N12: 182.175133 | O12: 338.3308068 | P12: 367.3580497 | Q12: 334.3278879 | R12: 389.3833467 | S12: 316.3162124 | T12: 206.2023759 | U12: 210.2082137 | V12: 144.1391334 | W12: 1383.400091 | X12: 356.3483201 | Y12: 238.224754 | Z12: 258.251024 | AA12: 132.1313497 | AB12: 90.09145834 | AC12: 50.04864805 | AD12: 90.08853946 | AE12: 50.04962102 | AF12: 92.09145834 | AG12: 506.4942642 | AH12: 695.674262 | AI12: 686.6645324 | AJ12: 567.550696 | AK12: 1556.509063 | AL12: 1261.230796 | AM12: 1412.370902 | AN12: 1180.148094 | AO12: 849.8367465 | AP12: 1325.291119 | AQ12: 2255.216405 | AR12: 1233.209391 | AS12: 1423.411767 | AT12: 1318.319335 | AU12: 1905.863221 | AV12: 1974.956625 | AW12: 1693.679331 | AX12: 2101.114244 | AY12: 1931.928409 | AZ12: 1391.421496 | BA12: 2086.137596 | BB12: 2325.350674 | BC12: 2500.532618 | BD12: 2224.231973 | BE12: 1226.259012 | BF12: 1878.890463 | BG12: 1501.493495 | BH12: 1001.031339 | BI12: 1181.207445 | BJ12: 1143.170472 | BK12: 1265.292092 | BL12: 1023.031339 | BM12: 695.7180453 | BN12: 990.0177173 | BO12: 407.4193462 | BP12: 248.2636725 | BQ12: 220.2471321 | BR12: 138.150809 | BS12: 295.300645 | BT12: 175.1809708 | BU12: 309.3162124 | BV12: 152.1624845 | BW12: 117.125512 | BX12: 173.1907004 | BY12: 130.1401064 | BZ12: 54.06226951 | CA12: 26.02821587 | CB12: 32.03308068 | CC12: 92.09048538 | CD12: 247.2461592 | CE12: 249.249078 | CF12: 305.299672 | CG12: 569.5565337 | CH12: 322.3094016 | CI12: 333.3298338 | CJ12: 233.225727 | CK12: 264.2607536 | CL12: 145.1342686 | CM12: 26.02529699 | CN12: 9.009729611 | CO12: 32.03210772 | CP12: 12.01167553 | CQ12: 30.02821587 | CR12: 0 | CS12: 38.0398914 | CT12: 0 | CU12: 0 | CV12: 0 | CW12: 0 | CX12: 0 | CY12: 0.0009729610972 | CZ12: 0 | DA12: 0 | DB12: 0 | DC12: 0 | DD12: 0 | DE12: 0 | DF12: 0 | DG12: 0 | DH12: 1.000972961
C13: > 1 kV & < = 11 kV; Wood | D13: 55 | E13: 7.416198487 | F13: 8 | G13: 3 | H13: 2 | I13: 5 | J13: 9 | K13: 5 | L13: 12 | M13: 1 | N13: 2 | O13: 7 | P13: 3 | Q13: 0 | R13: 2 | S13: 1 | T13: 1 | U13: 0 | V13: 1 | W13: 3 | X13: 3 | Y13: 4 | Z13: 7 | AA13: 6 | AB13: 7 | AC13: 2 | AD13: 2 | AE13: 0 | AF13: 2 | AG13: 6 | AH13: 14 | AI13: 21 | AJ13: 10 | AK13: 32 | AL13: 7 | AM13: 17 | AN13: 29 | AO13: 18 | AP13: 20 | AQ13: 11 | AR13: 2 | AS13: 9 | AT13: 30 | AU13: 47 | AV13: 43 | AW13: 39 | AX13: 8 | AY13: 4 | AZ13: 6 | BA13: 17 | BB13: 8 | BC13: 11 | BD13: 21 | BE13: 10 | BF13: 21 | BG13: 13 | BH13: 10 | BI13: 10 | BJ13: 8 | BK13: 26 | BL13: 6 | BM13: 16 | BN13: 5 | BO13: 6 | BP13: 0 | BQ13: 5 | BR13: 0 | BS13: 1 | BT13: 1 | BU13: 0 | BV13: 13 | BW13: 0 | BX13: 2 | BY13: 1 | BZ13: 0 | CA13: 0 | CB13: 5 | CC13: 2 | CD13: 14 | CE13: 10 | CF13: 28 | CG13: 31 | CH13: 5 | CI13: 3 | CJ13: 9 | CK13: 14 | CL13: 6 | CM13: 1 | CN13: 0 | CO13: 0 | CP13: 0 | CQ13: 0 | CR13: 0 | CS13: 0 | CT13: 0 | CU13: 0 | CV13: 0 | CW13: 0 | CX13: 0 | CY13: 0 | CZ13: 0 | DA13: 0 | DB13: 0 | DC13: 0 | DD13: 0 | DE13: 0 | DF13: 0 | DG13: 0 | DH13: 0
C14: ˃ 11 kV & < = 22 kV; Wood | D14: 55 | E14: 7.416198487 | F14: 1534 | G14: 1250.205921 | H14: 934.1639443 | I14: 1014.185563 | J14: 600.1089959 | K14: 366.0673793 | L14: 357.0664785 | M14: 409.0751261 | N14: 780.1426856 | O14: 1620.29546 | P14: 1790.324826 | Q14: 1368.24952 | R14: 1420.257807 | S14: 1128.205741 | T14: 789.1425054 | U14: 516.0938626 | V14: 472.0864761 | W14: 1832.337437 | X14: 713.1307951 | Y14: 548.1008888 | Z14: 508.0927816 | AA14: 252.0459404 | AB14: 203.0369325 | AC14: 218.0394547 | AD14: 539.0972856 | AE14: 268.048823 | AF14: 751.1356594 | AG14: 1674.303927 | AH14: 1292.234566 | AI14: 1724.313116 | AJ14: 1195.216551 | AK14: 3523.641905 | AL14: 2565.468052 | AM14: 3002.547682 | AN14: 2772.504804 | AO14: 2274.417067 | AP14: 3649.672352 | AQ14: 3936.722616 | AR14: 1795.328609 | AS14: 3304.61416 | AT14: 4023.749279 | AU14: 3990.743694 | AV14: 3012.56822 | AW14: 2408.449856 | AX14: 1955.366442 | AY14: 2584.480663 | AZ14: 3031.581191 | BA14: 2764.543538 | BB14: 3602.701898 | BC14: 3239.616503 | BD14: 2870.547322 | BE14: 2997.568941 | BF14: 3033.575066 | BG14: 2563.490572 | BH14: 1594.300685 | BI14: 1389.269337 | BJ14: 1839.356173 | BK14: 1269.243034 | BL14: 988.1913284 | BM14: 696.1407038 | BN14: 1319.26177 | BO14: 688.1365602 | BP14: 502.0962047 | BQ14: 609.1163824 | BR14: 599.1124189 | BS14: 300.0571103 | BT14: 193.036392 | BU14: 323.0623349 | BV14: 175.032969 | BW14: 318.0630555 | BX14: 103.0228801 | BY14: 204.039815 | BZ14: 66.01333173 | CA14: 48.00972856 | CB14: 46.00846745 | CC14: 123.0227 | CD14: 176.0327889 | CE14: 576.1073745 | CF14: 445.084134 | CG14: 528.099988 | CH14: 484.0935023 | CI14: 552.1019697 | CJ14: 367.0679198 | CK14: 228.043238 | CL14: 249.0486428 | CM14: 9.001801585 | CN14: 3.000720634 | CO14: 12.0021619 | CP14: 5.001080951 | CQ14: 65.01189046 | CR14: 1.000180159 | CS14: 10.00180159 | CT14: 0 | CU14: 0 | CV14: 1.000180159 | CW14: 0 | CX14: 0 | CY14: 2.000360317 | CZ14: 0 | DA14: 0 | DB14: 0 | DC14: 0 | DD14: 0 | DE14: 0 | DF14: 0 | DG14: 0 | DH14: 0
C15: > 22 kV & < = 66 kV; Wood | D15: 55 | E15: 7.416198487 | F15: 33 | G15: 48.01277683 | H15: 33.01117973 | I15: 84.02651193 | J15: 50.01724872 | K15: 63.01788756 | L15: 37.01213799 | M15: 44.01437394 | N15: 84.02715077 | O15: 100.0319421 | P15: 180.0578152 | Q15: 115.0373722 | R15: 126.0405664 | S15: 32.01022147 | T15: 30.00958262 | U15: 38.01213799 | V15: 51.01629046 | W15: 141.0459966 | X15: 41.01309625 | Y15: 21.00702726 | Z15: 11.00351363 | AA15: 6.001916525 | AB15: 4.001277683 | AC15: 21.00670784 | AD15: 26.00798552 | AE15: 5.001597104 | AF15: 21.00670784 | AG15: 118.0376917 | AH15: 48.01565162 | AI15: 35.01149915 | AJ15: 42.01309625 | AK15: 72.0229983 | AL15: 86.02778961 | AM15: 114.036414 | AN15: 172.0549404 | AO15: 119.0386499 | AP15: 811.2616056 | AQ15: 236.0763416 | AR15: 261.0846465 | AS15: 187.0610094 | AT15: 867.2794932 | AU15: 1371.442717 | AV15: 244.0798552 | AW15: 193.0651618 | AX15: 235.0907155 | AY15: 241.0801746 | AZ15: 110.0367334 | BA15: 133.0443995 | BB15: 292.0983816 | BC15: 134.0440801 | BD15: 340.1121167 | BE15: 174.0574957 | BF15: 146.0488714 | BG15: 44.01629046 | BH15: 71.02427598 | BI15: 23.00798552 | BJ15: 117.0380111 | BK15: 24.00830494 | BL15: 22.0076661 | BM15: 30.00958262 | BN15: 54.01980409 | BO15: 50.0169293 | BP15: 142.0475937 | BQ15: 3.000958262 | BR15: 12.00383305 | BS15: 1.000319421 | BT15: 0 | BU15: 1.000319421 | BV15: 11.00351363 | BW15: 6.001916525 | BX15: 1.000638842 | BY15: 1.000319421 | BZ15: 7.002555366 | CA15: 0 | CB15: 113.0367334 | CC15: 14.00447189 | CD15: 26.00830494 | CE15: 21.00670784 | CF15: 94.03034497 | CG15: 86.02747019 | CH15: 1.000319421 | CI15: 4.001277683 | CJ15: 0 | CK15: 0 | CL15: 0 | CM15: 0 | CN15: 0 | CO15: 0 | CP15: 0 | CQ15: 0 | CR15: 0 | CS15: 0 | CT15: 0 | CU15: 0 | CV15: 0 | CW15: 0 | CX15: 0 | CY15: 0 | CZ15: 0 | DA15: 0 | DB15: 0 | DC15: 0 | DD15: 0 | DE15: 0 | DF15: 0 | DG15: 0 | DH15: 0
C16: > 66 kV & < = 132 kV; Wood | D16: 0 | E16: 0 | F16: 0 | G16: 0 | H16: 0 | I16: 0 | J16: 0 | K16: 0 | L16: 0 | M16: 0 | N16: 0 | O16: 0 | P16: 0 | Q16: 0 | R16: 0 | S16: 0 | T16: 0 | U16: 0 | V16: 0 | W16: 0 | X16: 0 | Y16: 0 | Z16: 0 | AA16: 0 | AB16: 0 | AC16: 0 | AD16: 0 | AE16: 0 | AF16: 0 | AG16: 0 | AH16: 0 | AI16: 0 | AJ16: 0 | AK16: 0 | AL16: 0 | AM16: 0 | AN16: 0 | AO16: 0 | AP16: 0 | AQ16: 0 | AR16: 0 | AS16: 0 | AT16: 0 | AU16: 0 | AV16: 0 | AW16: 0 | AX16: 0 | AY16: 0 | AZ16: 0 | BA16: 0 | BB16: 0 | BC16: 0 | BD16: 0 | BE16: 0 | BF16: 0 | BG16: 0 | BH16: 0 | BI16: 0 | BJ16: 0 | BK16: 0 | BL16: 0 | BM16: 0 | BN16: 0 | BO16: 0 | BP16: 0 | BQ16: 0 | BR16: 0 | BS16: 0 | BT16: 0 | BU16: 0 | BV16: 0 | BW16: 0 | BX16: 0 | BY16: 0 | BZ16: 0 | CA16: 0 | CB16: 0 | CC16: 0 | CD16: 0 | CE16: 0 | CF16: 0 | CG16: 0 | CH16: 0 | CI16: 0 | CJ16: 0 | CK16: 0 | CL16: 0 | CM16: 0 | CN16: 0 | CO16: 0 | CP16: 0 | CQ16: 0 | CR16: 0 | CS16: 0 | CT16: 0 | CU16: 0 | CV16: 0 | CW16: 0 | CX16: 0 | CY16: 0 | CZ16: 0 | DA16: 0 | DB16: 0 | DC16: 0 | DD16: 0 | DE16: 0 | DF16: 0 | DG16: 0 | DH16: 0
C17: > 132 kV; Wood | D17: 0 | E17: 0 | F17: 0 | G17: 0 | H17: 0 | I17: 0 | J17: 0 | K17: 0 | L17: 0 | M17: 0 | N17: 0 | O17: 0 | P17: 0 | Q17: 0 | R17: 0 | S17: 0 | T17: 0 | U17: 0 | V17: 0 | W17: 0 | X17: 0 | Y17: 0 | Z17: 0 | AA17: 0 | AB17: 0 | AC17: 0 | AD17: 0 | AE17: 0 | AF17: 0 | AG17: 0 | AH17: 0 | AI17: 0 | AJ17: 0 | AK17: 0 | AL17: 0 | AM17: 0 | AN17: 0 | AO17: 0 | AP17: 0 | AQ17: 0 | AR17: 0 | AS17: 0 | AT17: 0 | AU17: 0 | AV17: 0 | AW17: 0 | AX17: 0 | AY17: 0 | AZ17: 0 | BA17: 0 | BB17: 0 | BC17: 0 | BD17: 0 | BE17: 0 | BF17: 0 | BG17: 0 | BH17: 0 | BI17: 0 | BJ17: 0 | BK17: 0 | BL17: 0 | BM17: 0 | BN17: 0 | BO17: 0 | BP17: 0 | BQ17: 0 | BR17: 0 | BS17: 0 | BT17: 0 | BU17: 0 | BV17: 0 | BW17: 0 | BX17: 0 | BY17: 0 | BZ17: 0 | CA17: 0 | CB17: 0 | CC17: 0 | CD17: 0 | CE17: 0 | CF17: 0 | CG17: 0 | CH17: 0 | CI17: 0 | CJ17: 0 | CK17: 0 | CL17: 0 | CM17: 0 | CN17: 0 | CO17: 0 | CP17: 0 | CQ17: 0 | CR17: 0 | CS17: 0 | CT17: 0 | CU17: 0 | CV17: 0 | CW17: 0 | CX17: 0 | CY17: 0 | CZ17: 0 | DA17: 0 | DB17: 0 | DC17: 0 | DD17: 0 | DE17: 0 | DF17: 0 | DG17: 0 | DH17: 0
C18: ˂ = 1 kV; Concrete | D18: 100 | E18: 10 | F18: 445 | G18: 312.5291825 | H18: 306.5400935 | I18: 500.9019744 | J18: 629.1420159 | K18: 492.8965189 | L18: 191.3473329 | M18: 176.3164184 | N18: 198.3600623 | O18: 155.285504 | P18: 54.10365431 | Q18: 50.09092484 | R18: 50.09274333 | S18: 50.09092484 | T18: 25.04546242 | U18: 22.04000693 | V18: 32.05819189 | W18: 178.3273294 | X18: 104.1891237 | Y18: 72.13093176 | Z18: 116.2109456 | AA18: 147.267319 | AB18: 596.0856425 | AC18: 714.2965882 | AD18: 1283.32222 | AE18: 1652.995064 | AF18: 1087.969432 | AG18: 1108.009439 | AH18: 1723.129633 | AI18: 1535.785937 | AJ18: 1091.980343 | AK18: 1142.08036 | AL18: 1543.802303 | AM18: 1230.227658 | AN18: 494.9019744 | AO18: 147.2655005 | AP18: 1070.951247 | AQ18: 635.1511084 | AR18: 12.02182196 | AS18: 785.4275199 | AT18: 619.123831 | AU18: 435.7910461 | AV18: 179.3200554 | AW18: 3.009092484 | AX18: 53.09638033 | AY18: 68.12365778 | AZ18: 3.00545549 | BA18: 26.04728091 | BB18: 3.00545549 | BC18: 6.012729477 | BD18: 6.01091098 | BE18: 6.01091098 | BF18: 5.009092484 | BG18: 2.003636993 | BH18: 1 | BI18: 5.009092484 | BJ18: 2.00545549 | BK18: 1.001818497 | BL18: 3.00545549 | BM18: 1.003636993 | BN18: 2.003636993 | BO18: 2.003636993 | BP18: 0 | BQ18: 2.003636993 | BR18: 1.001818497 | BS18: 0 | BT18: 2.001818497 | BU18: 0 | BV18: 1.001818497 | BW18: 0 | BX18: 0 | BY18: 2.003636993 | BZ18: 0 | CA18: 0 | CB18: 0 | CC18: 0 | CD18: 0 | CE18: 0 | CF18: 0 | CG18: 2.003636993 | CH18: 2.003636993 | CI18: 2.003636993 | CJ18: 1.001818497 | CK18: 0 | CL18: 0 | CM18: 0 | CN18: 0 | CO18: 0 | CP18: 0 | CQ18: 1.001818497 | CR18: 0 | CS18: 0 | CT18: 0 | CU18: 0 | CV18: 0 | CW18: 0 | CX18: 0 | CY18: 0 | CZ18: 0 | DA18: 0 | DB18: 0 | DC18: 0 | DD18: 0 | DE18: 0 | DF18: 0 | DG18: 0 | DH18: 0
C19: > 1 kV & < = 11 kV; Concrete | D19: 100 | E19: 10 | F19: 5 | G19: 24 | H19: 4 | I19: 7 | J19: 13 | K19: 14 | L19: 5 | M19: 2 | N19: 1 | O19: 1 | P19: 0 | Q19: 0 | R19: 0 | S19: 1 | T19: 2 | U19: 1 | V19: 0 | W19: 0 | X19: 3 | Y19: 2 | Z19: 1 | AA19: 0 | AB19: 15 | AC19: 18 | AD19: 15 | AE19: 22 | AF19: 3 | AG19: 5 | AH19: 5 | AI19: 6 | AJ19: 4 | AK19: 3 | AL19: 5 | AM19: 21 | AN19: 2 | AO19: 3 | AP19: 6 | AQ19: 8 | AR19: 0 | AS19: 4 | AT19: 4 | AU19: 1 | AV19: 0 | AW19: 0 | AX19: 0 | AY19: 0 | AZ19: 0 | BA19: 0 | BB19: 5 | BC19: 0 | BD19: 0 | BE19: 0 | BF19: 0 | BG19: 0 | BH19: 0 | BI19: 0 | BJ19: 0 | BK19: 0 | BL19: 1 | BM19: 0 | BN19: 0 | BO19: 0 | BP19: 0 | BQ19: 0 | BR19: 0 | BS19: 0 | BT19: 0 | BU19: 0 | BV19: 0 | BW19: 0 | BX19: 0 | BY19: 0 | BZ19: 0 | CA19: 0 | CB19: 0 | CC19: 0 | CD19: 0 | CE19: 0 | CF19: 0 | CG19: 2 | CH19: 0 | CI19: 0 | CJ19: 0 | CK19: 1 | CL19: 0 | CM19: 0 | CN19: 0 | CO19: 0 | CP19: 0 | CQ19: 0 | CR19: 0 | CS19: 0 | CT19: 0 | CU19: 0 | CV19: 0 | CW19: 0 | CX19: 0 | CY19: 0 | CZ19: 0 | DA19: 0 | DB19: 0 | DC19: 0 | DD19: 0 | DE19: 0 | DF19: 0 | DG19: 0 | DH19: 0
C20: ˃ 11 kV & < = 22 kV; Concrete | D20: 100 | E20: 10 | F20: 2043 | G20: 2049.728837 | H20: 1690.170886 | I20: 2830.59129 | J20: 2361.646311 | K20: 1561.092302 | L20: 1230.436121 | M20: 1478.901734 | N20: 1192.351642 | O20: 736.4479202 | P20: 357.701367 | Q20: 337.6620748 | R20: 372.7347655 | S20: 386.7583408 | T20: 282.554021 | U20: 217.4263211 | V20: 264.5265164 | W20: 1020.999977 | X20: 993.9508613 | Y20: 1028.015694 | Z20: 1114.18858 | AA20: 941.8487014 | AB20: 1927.78581 | AC20: 2687.290704 | AD20: 4485.838796 | AE20: 4767.369242 | AF20: 3966.823091 | AG20: 4760.365313 | AH20: 6049.893771 | AI20: 4766.379065 | AJ20: 4798.475331 | AK20: 4045.956685 | AL20: 4448.752353 | AM20: 4451.74646 | AN20: 2027.978342 | AO20: 864.6974261 | AP20: 4106.070633 | AQ20: 1706.363418 | AR20: 70.13752295 | AS20: 1154.271093 | AT20: 836.6483108 | AU20: 343.6797563 | AV20: 171.3418428 | AW20: 21.04518611 | AX20: 69.13948756 | AY20: 56.11394759 | AZ20: 16.03339843 | BA20: 108.2200367 | BB20: 37.08251377 | BC20: 16.03536304 | BD20: 49.09823068 | BE20: 21.04518611 | BF20: 29.05893841 | BG20: 12.02553998 | BH20: 16.03536304 | BI20: 22.04518611 | BJ20: 21.0432215 | BK20: 32.06090302 | BL20: 3.005893841 | BM20: 4.007858454 | BN20: 10.02161075 | BO20: 10.03339843 | BP20: 13.02750459 | BQ20: 19.03732766 | BR20: 3.005893841 | BS20: 3.007858454 | BT20: 2.005893841 | BU20: 11.01964614 | BV20: 4.007858454 | BW20: 1 | BX20: 6.011787681 | BY20: 1.001964614 | BZ20: 0 | CA20: 0 | CB20: 0 | CC20: 0 | CD20: 0 | CE20: 5.009823068 | CF20: 1.001964614 | CG20: 2.005893841 | CH20: 6.011787681 | CI20: 0 | CJ20: 5.009823068 | CK20: 38.07465532 | CL20: 1.001964614 | CM20: 0 | CN20: 0 | CO20: 0 | CP20: 0 | CQ20: 4.007858454 | CR20: 0 | CS20: 0 | CT20: 0 | CU20: 0 | CV20: 0 | CW20: 0 | CX20: 0 | CY20: 0 | CZ20: 0 | DA20: 0 | DB20: 0 | DC20: 0 | DD20: 0 | DE20: 0 | DF20: 0 | DG20: 0 | DH20: 0
C21: > 22 kV & < = 66 kV; Concrete | D21: 100 | E21: 10 | F21: 148 | G21: 232.2278481 | H21: 395.407173 | I21: 596.6308017 | J21: 337.3597046 | K21: 132.1424051 | L21: 272.2879747 | M21: 344.3660338 | N21: 222.2362869 | O21: 321.3396624 | P21: 133.1402954 | Q21: 205.2172996 | R21: 299.3154008 | S21: 88.092827 | T21: 53.05801688 | U21: 25.02637131 | V21: 38.03691983 | W21: 171.1814346 | X21: 188.2004219 | Y21: 60.06329114 | Z21: 79.08333333 | AA21: 74.07805907 | AB21: 317.335443 | AC21: 210.221519 | AD21: 340.3597046 | AE21: 257.2732068 | AF21: 187.1993671 | AG21: 611.6445148 | AH21: 628.6656118 | AI21: 593.6265823 | AJ21: 560.5917722 | AK21: 456.4810127 | AL21: 600.6329114 | AM21: 1206.271097 | AN21: 220.2320675 | AO21: 155.1635021 | AP21: 854.9061181 | AQ21: 387.4082278 | AR21: 8.008438819 | AS21: 240.2531646 | AT21: 31.03270042 | AU21: 29.03164557 | AV21: 14.01476793 | AW21: 11.01265823 | AX21: 5.004219409 | AY21: 28.02953586 | AZ21: 15.01582278 | BA21: 30.03164557 | BB21: 3.003164557 | BC21: 4.004219409 | BD21: 8.008438819 | BE21: 2.002109705 | BF21: 23.0242616 | BG21: 2.002109705 | BH21: 0 | BI21: 0 | BJ21: 2.002109705 | BK21: 0 | BL21: 2.002109705 | BM21: 0 | BN21: 2.002109705 | BO21: 1.001054852 | BP21: 3.003164557 | BQ21: 1.001054852 | BR21: 1.001054852 | BS21: 1.001054852 | BT21: 0 | BU21: 0 | BV21: 0 | BW21: 0 | BX21: 0 | BY21: 1.001054852 | BZ21: 0 | CA21: 0 | CB21: 0 | CC21: 0 | CD21: 0 | CE21: 2.002109705 | CF21: 0 | CG21: 0 | CH21: 0 | CI21: 0 | CJ21: 0 | CK21: 0 | CL21: 0 | CM21: 0 | CN21: 0 | CO21: 0 | CP21: 0 | CQ21: 0 | CR21: 0 | CS21: 0 | CT21: 0 | CU21: 0 | CV21: 0 | CW21: 0 | CX21: 0 | CY21: 0 | CZ21: 0 | DA21: 0 | DB21: 0 | DC21: 0 | DD21: 0 | DE21: 0 | DF21: 0 | DG21: 0 | DH21: 0
C22: > 66 kV & < = 132 kV; Concrete | D22: 0 | E22: 0 | F22: 0 | G22: 0 | H22: 0 | I22: 0 | J22: 0 | K22: 0 | L22: 0 | M22: 0 | N22: 0 | O22: 0 | P22: 0 | Q22: 0 | R22: 0 | S22: 0 | T22: 0 | U22: 0 | V22: 0 | W22: 0 | X22: 0 | Y22: 0 | Z22: 0 | AA22: 0 | AB22: 0 | AC22: 0 | AD22: 0 | AE22: 0 | AF22: 0 | AG22: 0 | AH22: 0 | AI22: 0 | AJ22: 0 | AK22: 0 | AL22: 0 | AM22: 0 | AN22: 0 | AO22: 0 | AP22: 0 | AQ22: 0 | AR22: 0 | AS22: 0 | AT22: 0 | AU22: 0 | AV22: 0 | AW22: 0 | AX22: 0 | AY22: 0 | AZ22: 0 | BA22: 0 | BB22: 0 | BC22: 0 | BD22: 0 | BE22: 0 | BF22: 0 | BG22: 0 | BH22: 0 | BI22: 0 | BJ22: 0 | BK22: 0 | BL22: 0 | BM22: 0 | BN22: 0 | BO22: 0 | BP22: 0 | BQ22: 0 | BR22: 0 | BS22: 0 | BT22: 0 | BU22: 0 | BV22: 0 | BW22: 0 | BX22: 0 | BY22: 0 | BZ22: 0 | CA22: 0 | CB22: 0 | CC22: 0 | CD22: 0 | CE22: 0 | CF22: 0 | CG22: 0 | CH22: 0 | CI22: 0 | CJ22: 0 | CK22: 0 | CL22: 0 | CM22: 0 | CN22: 0 | CO22: 0 | CP22: 0 | CQ22: 0 | CR22: 0 | CS22: 0 | CT22: 0 | CU22: 0 | CV22: 0 | CW22: 0 | CX22: 0 | CY22: 0 | CZ22: 0 | DA22: 0 | DB22: 0 | DC22: 0 | DD22: 0 | DE22: 0 | DF22: 0 | DG22: 0 | DH22: 0
C23: > 132 kV; Concrete | D23: 0 | E23: 0 | F23: 0 | G23: 0 | H23: 0 | I23: 0 | J23: 0 | K23: 0 | L23: 0 | M23: 0 | N23: 0 | O23: 0 | P23: 0 | Q23: 0 | R23: 0 | S23: 0 | T23: 0 | U23: 0 | V23: 0 | W23: 0 | X23: 0 | Y23: 0 | Z23: 0 | AA23: 0 | AB23: 0 | AC23: 0 | AD23: 0 | AE23: 0 | AF23: 0 | AG23: 0 | AH23: 0 | AI23: 0 | AJ23: 0 | AK23: 0 | AL23: 0 | AM23: 0 | AN23: 0 | AO23: 0 | AP23: 0 | AQ23: 0 | AR23: 0 | AS23: 0 | AT23: 0 | AU23: 0 | AV23: 0 | AW23: 0 | AX23: 0 | AY23: 0 | AZ23: 0 | BA23: 0 | BB23: 0 | BC23: 0 | BD23: 0 | BE23: 0 | BF23: 0 | BG23: 0 | BH23: 0 | BI23: 0 | BJ23: 0 | BK23: 0 | BL23: 0 | BM23: 0 | BN23: 0 | BO23: 0 | BP23: 0 | BQ23: 0 | BR23: 0 | BS23: 0 | BT23: 0 | BU23: 0 | BV23: 0 | BW23: 0 | BX23: 0 | BY23: 0 | BZ23: 0 | CA23: 0 | CB23: 0 | CC23: 0 | CD23: 0 | CE23: 0 | CF23: 0 | CG23: 0 | CH23: 0 | CI23: 0 | CJ23: 0 | CK23: 0 | CL23: 0 | CM23: 0 | CN23: 0 | CO23: 0 | CP23: 0 | CQ23: 0 | CR23: 0 | CS23: 0 | CT23: 0 | CU23: 0 | CV23: 0 | CW23: 0 | CX23: 0 | CY23: 0 | CZ23: 0 | DA23: 0 | DB23: 0 | DC23: 0 | DD23: 0 | DE23: 0 | DF23: 0 | DG23: 0 | DH23: 0
C24: ˂ = 1 kV; Steel | D24: 35 | E24: 5.916079783 | F24: 7 | G24: 12.06217617 | H24: 2.010362694 | I24: 9.046632124 | J24: 5.031088083 | K24: 5.03626943 | L24: 10.05181347 | M24: 0 | N24: 3.015544041 | O24: 39.22279793 | P24: 3.020725389 | Q24: 7.041450777 | R24: 12.13989637 | S24: 7.046632124 | T24: 9.051813472 | U24: 2.010362694 | V24: 1.005181347 | W24: 98.51295337 | X24: 16.0880829 | Y24: 10.05181347 | Z24: 0.0207253886 | AA24: 3.020725389 | AB24: 3.015544041 | AC24: 15.07772021 | AD24: 10.05699482 | AE24: 5.025906736 | AF24: 8.041450777 | AG24: 9.046632124 | AH24: 9.046632124 | AI24: 10.05181347 | AJ24: 1.005181347 | AK24: 3.015544041 | AL24: 11.05181347 | AM24: 1.005181347 | AN24: 1.005181347 | AO24: 1.005181347 | AP24: 0 | AQ24: 1.005181347 | AR24: 0 | AS24: 0 | AT24: 1.005181347 | AU24: 0 | AV24: 7.03626943 | AW24: 0 | AX24: 0 | AY24: 0 | AZ24: 0 | BA24: 1.005181347 | BB24: 0 | BC24: 0 | BD24: 0 | BE24: 0 | BF24: 0 | BG24: 0 | BH24: 0 | BI24: 1.005181347 | BJ24: 0 | BK24: 0 | BL24: 1.005181347 | BM24: 0 | BN24: 0 | BO24: 0 | BP24: 0 | BQ24: 0 | BR24: 0 | BS24: 0 | BT24: 0 | BU24: 0 | BV24: 0 | BW24: 0 | BX24: 0 | BY24: 0 | BZ24: 0 | CA24: 0 | CB24: 0 | CC24: 0 | CD24: 0 | CE24: 0 | CF24: 0 | CG24: 0 | CH24: 0 | CI24: 0 | CJ24: 0 | CK24: 0 | CL24: 0 | CM24: 0 | CN24: 0 | CO24: 0 | CP24: 0 | CQ24: 0 | CR24: 0 | CS24: 0 | CT24: 0 | CU24: 0 | CV24: 0 | CW24: 0 | CX24: 0 | CY24: 0 | CZ24: 0 | DA24: 0 | DB24: 0 | DC24: 0 | DD24: 0 | DE24: 0 | DF24: 0 | DG24: 0 | DH24: 0
C25: > 1 kV & < = 11 kV; Steel | D25: 35 | E25: 5.916079783 | F25: 0 | G25: 0 | H25: 0 | I25: 0 | J25: 0 | K25: 2 | L25: 0 | M25: 0 | N25: 0 | O25: 0 | P25: 0 | Q25: 0 | R25: 0 | S25: 0 | T25: 0 | U25: 0 | V25: 0 | W25: 0 | X25: 0 | Y25: 0 | Z25: 0 | AA25: 0 | AB25: 0 | AC25: 0 | AD25: 0 | AE25: 0 | AF25: 0 | AG25: 0 | AH25: 0 | AI25: 0 | AJ25: 0 | AK25: 0 | AL25: 0 | AM25: 0 | AN25: 0 | AO25: 0 | AP25: 0 | AQ25: 0 | AR25: 0 | AS25: 0 | AT25: 0 | AU25: 0 | AV25: 0 | AW25: 0 | AX25: 0 | AY25: 0 | AZ25: 0 | BA25: 0 | BB25: 0 | BC25: 0 | BD25: 0 | BE25: 0 | BF25: 0 | BG25: 0 | BH25: 0 | BI25: 0 | BJ25: 0 | BK25: 0 | BL25: 0 | BM25: 0 | BN25: 0 | BO25: 0 | BP25: 0 | BQ25: 0 | BR25: 0 | BS25: 0 | BT25: 0 | BU25: 0 | BV25: 0 | BW25: 0 | BX25: 0 | BY25: 0 | BZ25: 0 | CA25: 0 | CB25: 0 | CC25: 0 | CD25: 0 | CE25: 0 | CF25: 0 | CG25: 0 | CH25: 0 | CI25: 0 | CJ25: 0 | CK25: 0 | CL25: 0 | CM25: 0 | CN25: 0 | CO25: 0 | CP25: 0 | CQ25: 0 | CR25: 0 | CS25: 0 | CT25: 0 | CU25: 0 | CV25: 0 | CW25: 0 | CX25: 0 | CY25: 0 | CZ25: 0 | DA25: 0 | DB25: 0 | DC25: 0 | DD25: 0 | DE25: 0 | DF25: 0 | DG25: 0 | DH25: 0
C26: ˃ 11 kV & < = 22 kV; Steel | D26: 35 | E26: 5.916079783 | F26: 1 | G26: 4.171428571 | H26: 1.085714286 | I26: 1.028571429 | J26: 0 | K26: 0 | L26: 0 | M26: 3.114285714 | N26: 2.057142857 | O26: 2.085714286 | P26: 1.057142857 | Q26: 0 | R26: 0.02857142857 | S26: 1.028571429 | T26: 0 | U26: 0 | V26: 0 | W26: 2.085714286 | X26: 0 | Y26: 0 | Z26: 0 | AA26: 0 | AB26: 0 | AC26: 1.028571429 | AD26: 0 | AE26: 0 | AF26: 0 | AG26: 2.057142857 | AH26: 1.028571429 | AI26: 0 | AJ26: 0 | AK26: 0 | AL26: 0.05714285714 | AM26: 0 | AN26: 0 | AO26: 0 | AP26: 0 | AQ26: 0 | AR26: 0 | AS26: 0 | AT26: 0 | AU26: 0.02857142857 | AV26: 0 | AW26: 0 | AX26: 0 | AY26: 0 | AZ26: 0 | BA26: 1.028571429 | BB26: 0 | BC26: 0 | BD26: 0 | BE26: 0 | BF26: 0 | BG26: 0 | BH26: 0 | BI26: 0.02857142857 | BJ26: 0 | BK26: 0 | BL26: 0 | BM26: 0 | BN26: 0 | BO26: 0 | BP26: 0 | BQ26: 0 | BR26: 0 | BS26: 0 | BT26: 0 | BU26: 0 | BV26: 0 | BW26: 0 | BX26: 0 | BY26: 0 | BZ26: 0 | CA26: 0 | CB26: 0 | CC26: 0 | CD26: 0 | CE26: 0 | CF26: 0 | CG26: 0 | CH26: 0 | CI26: 0 | CJ26: 0 | CK26: 0 | CL26: 0 | CM26: 0 | CN26: 0 | CO26: 0 | CP26: 0 | CQ26: 0 | CR26: 0 | CS26: 0 | CT26: 0 | CU26: 0 | CV26: 0 | CW26: 0 | CX26: 0 | CY26: 0 | CZ26: 0 | DA26: 0 | DB26: 0 | DC26: 0 | DD26: 0 | DE26: 0 | DF26: 0 | DG26: 0 | DH26: 0
C27: > 22 kV & < = 66 kV; Steel | D27: 35 | E27: 5.916079783 | F27: 0 | G27: 6 | H27: 0 | I27: 30 | J27: 0 | K27: 0 | L27: 0 | M27: 0 | N27: 0 | O27: 10 | P27: 0 | Q27: 1 | R27: 0 | S27: 0 | T27: 0 | U27: 1 | V27: 0 | W27: 4 | X27: 2 | Y27: 0 | Z27: 0 | AA27: 0 | AB27: 0 | AC27: 0 | AD27: 0 | AE27: 0 | AF27: 0 | AG27: 0 | AH27: 0 | AI27: 0 | AJ27: 0 | AK27: 0 | AL27: 1 | AM27: 0 | AN27: 0 | AO27: 0 | AP27: 0 | AQ27: 0 | AR27: 0 | AS27: 0 | AT27: 0 | AU27: 0 | AV27: 0 | AW27: 0 | AX27: 0 | AY27: 0 | AZ27: 0 | BA27: 0 | BB27: 0 | BC27: 0 | BD27: 0 | BE27: 0 | BF27: 0 | BG27: 0 | BH27: 0 | BI27: 0 | BJ27: 0 | BK27: 0 | BL27: 0 | BM27: 0 | BN27: 0 | BO27: 0 | BP27: 0 | BQ27: 0 | BR27: 0 | BS27: 0 | BT27: 0 | BU27: 0 | BV27: 0 | BW27: 0 | BX27: 0 | BY27: 0 | BZ27: 0 | CA27: 0 | CB27: 0 | CC27: 0 | CD27: 0 | CE27: 0 | CF27: 0 | CG27: 0 | CH27: 0 | CI27: 0 | CJ27: 0 | CK27: 0 | CL27: 0 | CM27: 0 | CN27: 0 | CO27: 0 | CP27: 0 | CQ27: 0 | CR27: 0 | CS27: 0 | CT27: 0 | CU27: 0 | CV27: 0 | CW27: 0 | CX27: 0 | CY27: 0 | CZ27: 0 | DA27: 0 | DB27: 0 | DC27: 0 | DD27: 0 | DE27: 0 | DF27: 0 | DG27: 0 | DH27: 0
C28: > 66 kV & < = 132 kV; Steel | D28: 0 | E28: 0 | F28: 0 | G28: 0 | H28: 0 | I28: 0 | J28: 0 | K28: 0 | L28: 0 | M28: 0 | N28: 0 | O28: 0 | P28: 0 | Q28: 0 | R28: 0 | S28: 0 | T28: 0 | U28: 0 | V28: 0 | W28: 0 | X28: 0 | Y28: 0 | Z28: 0 | AA28: 0 | AB28: 0 | AC28: 0 | AD28: 0 | AE28: 0 | AF28: 0 | AG28: 0 | AH28: 0 | AI28: 0 | AJ28: 0 | AK28: 0 | AL28: 0 | AM28: 0 | AN28: 0 | AO28: 0 | AP28: 0 | AQ28: 0 | AR28: 0 | AS28: 0 | AT28: 0 | AU28: 0 | AV28: 0 | AW28: 0 | AX28: 0 | AY28: 0 | AZ28: 0 | BA28: 0 | BB28: 0 | BC28: 0 | BD28: 0 | BE28: 0 | BF28: 0 | BG28: 0 | BH28: 0 | BI28: 0 | BJ28: 0 | BK28: 0 | BL28: 0 | BM28: 0 | BN28: 0 | BO28: 0 | BP28: 0 | BQ28: 0 | BR28: 0 | BS28: 0 | BT28: 0 | BU28: 0 | BV28: 0 | BW28: 0 | BX28: 0 | BY28: 0 | BZ28: 0 | CA28: 0 | CB28: 0 | CC28: 0 | CD28: 0 | CE28: 0 | CF28: 0 | CG28: 0 | CH28: 0 | CI28: 0 | CJ28: 0 | CK28: 0 | CL28: 0 | CM28: 0 | CN28: 0 | CO28: 0 | CP28: 0 | CQ28: 0 | CR28: 0 | CS28: 0 | CT28: 0 | CU28: 0 | CV28: 0 | CW28: 0 | CX28: 0 | CY28: 0 | CZ28: 0 | DA28: 0 | DB28: 0 | DC28: 0 | DD28: 0 | DE28: 0 | DF28: 0 | DG28: 0 | DH28: 0
C29: > 132 kV; Steel | D29: 0 | E29: 0 | F29: 0 | G29: 0 | H29: 0 | I29: 0 | J29: 0 | K29: 0 | L29: 0 | M29: 0 | N29: 0 | O29: 0 | P29: 0 | Q29: 0 | R29: 0 | S29: 0 | T29: 0 | U29: 0 | V29: 0 | W29: 0 | X29: 0 | Y29: 0 | Z29: 0 | AA29: 0 | AB29: 0 | AC29: 0 | AD29: 0 | AE29: 0 | AF29: 0 | AG29: 0 | AH29: 0 | AI29: 0 | AJ29: 0 | AK29: 0 | AL29: 0 | AM29: 0 | AN29: 0 | AO29: 0 | AP29: 0 | AQ29: 0 | AR29: 0 | AS29: 0 | AT29: 0 | AU29: 0 | AV29: 0 | AW29: 0 | AX29: 0 | AY29: 0 | AZ29: 0 | BA29: 0 | BB29: 0 | BC29: 0 | BD29: 0 | BE29: 0 | BF29: 0 | BG29: 0 | BH29: 0 | BI29: 0 | BJ29: 0 | BK29: 0 | BL29: 0 | BM29: 0 | BN29: 0 | BO29: 0 | BP29: 0 | BQ29: 0 | BR29: 0 | BS29: 0 | BT29: 0 | BU29: 0 | BV29: 0 | BW29: 0 | BX29: 0 | BY29: 0 | BZ29: 0 | CA29: 0 | CB29: 0 | CC29: 0 | CD29: 0 | CE29: 0 | CF29: 0 | CG29: 0 | CH29: 0 | CI29: 0 | CJ29: 0 | CK29: 0 | CL29: 0 | CM29: 0 | CN29: 0 | CO29: 0 | CP29: 0 | CQ29: 0 | CR29: 0 | CS29: 0 | CT29: 0 | CU29: 0 | CV29: 0 | CW29: 0 | CX29: 0 | CY29: 0 | CZ29: 0 | DA29: 0 | DB29: 0 | DC29: 0 | DD29: 0 | DE29: 0 | DF29: 0 | DG29: 0 | DH29: 0
C30: Other | D30: 35 | E30: 5.916079783 | F30: 0 | G30: 1 | H30: 0 | I30: 0 | J30: 0 | K30: 0 | L30: 0 | M30: 0 | N30: 0 | O30: 0 | P30: 2 | Q30: 0 | R30: 0 | S30: 0 | T30: 0 | U30: 0 | V30: 0 | W30: 0 | X30: 0 | Y30: 0 | Z30: 0 | AA30: 0 | AB30: 0 | AC30: 0 | AD30: 0 | AE30: 0 | AF30: 0 | AG30: 0 | AH30: 0 | AI30: 0 | AJ30: 0 | AK30: 0 | AL30: 0 | AM30: 0 | AN30: 0 | AO30: 0 | AP30: 0 | AQ30: 0 | AR30: 0 | AS30: 0 | AT30: 0 | AU30: 0 | AV30: 0 | AW30: 0 | AX30: 0 | AY30: 0 | AZ30: 0 | BA30: 0 | BB30: 0 | BC30: 0 | BD30: 0 | BE30: 0 | BF30: 0 | BG30: 0 | BH30: 0 | BI30: 0 | BJ30: 0 | BK30: 0 | BL30: 0 | BM30: 0 | BN30: 0 | BO30: 0 | BP30: 0 | BQ30: 0 | BR30: 0 | BS30: 0 | BT30: 0 | BU30: 0 | BV30: 0 | BW30: 0 | BX30: 0 | BY30: 0 | BZ30: 0 | CA30: 0 | CB30: 0 | CC30: 0 | CD30: 0 | CE30: 0 | CF30: 0 | CG30: 0 | CH30: 0 | CI30: 0 | CJ30: 0 | CK30: 0 | CL30: 0 | CM30: 0 | CN30: 0 | CO30: 0 | CP30: 0 | CQ30: 0 | CR30: 0 | CS30: 0 | CT30: 0 | CU30: 0 | CV30: 0 | CW30: 0 | CX30: 0 | CY30: 0 | CZ30: 0 | DA30: 0 | DB30: 0 | DC30: 0 | DD30: 0 | DE30: 0 | DF30: 0 | DG30: 0 | DH30: 0
B31: OVERHEAD CONDUCTORS BY: HIGHEST OPERATING VOLTAGE; NUMBER OF PHASES (AT HV) | C31: ˂ = 1 kV | D31: 55 | E31: 7.416198487 | F31: 22.685805 | G31: 0 | H31: 106.1757296 | I31: 18.24847457 | J31: 0 | K31: 0 | L31: 0 | M31: 0 | N31: 0 | O31: 0 | P31: 0 | Q31: 0 | R31: 0 | S31: 0 | T31: 0 | U31: 0 | V31: 0 | W31: 0 | X31: 0 | Y31: 0 | Z31: 0 | AA31: 0 | AB31: 0 | AC31: 0 | AD31: 0 | AE31: 0 | AF31: 0 | AG31: 0 | AH31: 0 | AI31: 0 | AJ31: 0 | AK31: 0 | AL31: 0 | AM31: 0 | AN31: 0 | AO31: 0 | AP31: 0 | AQ31: 0 | AR31: 0 | AS31: 0 | AT31: 0 | AU31: 0 | AV31: 0 | AW31: 0 | AX31: 0 | AY31: 0 | AZ31: 0 | BA31: 0 | BB31: 0 | BC31: 0 | BD31: 0 | BE31: 0 | BF31: 0 | BG31: 0 | BH31: 0 | BI31: 0 | BJ31: 0 | BK31: 0 | BL31: 0 | BM31: 0 | BN31: 0 | BO31: 0 | BP31: 0 | BQ31: 0 | BR31: 0 | BS31: 0 | BT31: 0 | BU31: 0 | BV31: 0 | BW31: 0 | BX31: 0 | BY31: 0 | BZ31: 0 | CA31: 0 | CB31: 0 | CC31: 0 | CD31: 0 | CE31: 0 | CF31: 0 | CG31: 0 | CH31: 0 | CI31: 0 | CJ31: 0 | CK31: 0 | CL31: 0 | CM31: 0 | CN31: 0 | CO31: 0 | CP31: 0 | CQ31: 0 | CR31: 0 | CS31: 0 | CT31: 0 | CU31: 6496.207768 | CV31: 0 | CW31: 0 | CX31: 0 | CY31: 0 | CZ31: 0 | DA31: 0 | DB31: 0 | DC31: 0 | DD31: 0 | DE31: 0 | DF31: 0 | DG31: 0 | DH31: 0
C32: > 1 kV & < = 11 kV | D32: 60 | E32: 7.745966692 | F32: 0.62298 | G32: 0 | H32: 1.628937699 | I32: 1.426448917 | J32: 0.3846719946 | K32: 0.09956135272 | L32: 0.002342620064 | M32: 0.07186331549 | N32: 0.08874396007 | O32: 0 | P32: 1.36485179 | Q32: 1.100686927 | R32: 0.8266003796 | S32: 0 | T32: 0.05215774672 | U32: 0.004134035407 | V32: 0 | W32: 0.4858869615 | X32: 0.153648316 | Y32: 1.97207269 | Z32: 3.337406784 | AA32: 1.833927007 | AB32: 1.08463309 | AC32: 0.07034750251 | AD32: 0.8582257505 | AE32: 1.603592334 | AF32: 0.975632356 | AG32: 1.88677376 | AH32: 1.3427347 | AI32: 1.844193195 | AJ32: 1.153395879 | AK32: 0.6348500373 | AL32: 0.7280036351 | AM32: 0.8424475153 | AN32: 0.2658184767 | AO32: 0.3090191467 | AP32: 0.3503595007 | AQ32: 1.807538081 | AR32: 0.01515812983 | AS32: 0.08750374945 | AT32: 1.381319031 | AU32: 1.617027949 | AV32: 1.459727902 | AW32: 0.7862246338 | AX32: 0.2343998076 | AY32: 0.2709860209 | AZ32: 0.9575115008 | BA32: 2.058542931 | BB32: 0.8473394572 | BC32: 0.4267013546 | BD32: 0.4473715316 | BE32: 0.3733033972 | BF32: 0.7479159057 | BG32: 0.4202935997 | BH32: 0.2979950522 | BI32: 0.06352634409 | BJ32: 0.4194667926 | BK32: 0.7143613183 | BL32: 0.2483866274 | BM32: 0.2376381353 | BN32: 0.1767989142 | BO32: 0.1767300136 | BP32: 0 | BQ32: 0.06304403995 | BR32: 0.01495142805 | BS32: 0.1105854471 | BT32: 0 | BU32: 0.04023794463 | BV32: 0.248455528 | BW32: 0.04561219066 | BX32: 0.04258056469 | BY32: 0.3860500064 | BZ32: 0 | CA32: 0 | CB32: 0 | CC32: 0 | CD32: 0.4526079765 | CE32: 0.3538045302 | CF32: 0.5022853019 | CG32: 0.5815209806 | CH32: 0 | CI32: 0.1962977812 | CJ32: 0.1854803886 | CK32: 0.2209641925 | CL32: 0.003513930096 | CM32: 0.3282424113 | CN32: 0.01481362687 | CO32: 0.02363290241 | CP32: 0.008612573764 | CQ32: 0.00620105311 | CR32: 0.004340737177 | CS32: 0.004134035407 | CT32: 0.0160538375 | CU32: 6.309227037 | CV32: 0 | CW32: 0 | CX32: 0 | CY32: 0 | CZ32: 0 | DA32: 0 | DB32: 0 | DC32: 0 | DD32: 0 | DE32: 0 | DF32: 0 | DG32: 0 | DH32: 0
C33: ˃ 11 kV & < = 22 kV ; SWER | D33: 46 | E33: 6.782329983 | F33: 58.178741 | G33: 2.694406608 | H33: 346.3124036 | I33: 206.0612618 | J33: 4.494683609 | K33: 63.85164245 | L33: 15.29090772 | M33: 12.8333975 | N33: 14.18562887 | O33: 22.82804259 | P33: 35.71550717 | Q33: 31.63219543 | R33: 28.23937105 | S33: 29.17542458 | T33: 28.35776407 | U33: 39.48356628 | V33: 30.3272843 | W33: 45.32844797 | X33: 57.98319307 | Y33: 54.5473923 | Z33: 69.00723827 | AA33: 26.35266124 | AB33: 20.80833703 | AC33: 58.80445805 | AD33: 46.30747789 | AE33: 53.22029981 | AF33: 47.96960139 | AG33: 112.8660785 | AH33: 78.1087138 | AI33: 68.68403732 | AJ33: 40.24697487 | AK33: 138.4293605 | AL33: 86.91868924 | AM33: 90.02509676 | AN33: 77.0388327 | AO33: 53.41605034 | AP33: 110.905246 | AQ33: 110.1251089 | AR33: 43.85218581 | AS33: 88.94024325 | AT33: 105.2086097 | AU33: 113.0914042 | AV33: 130.1770615 | AW33: 91.46152489 | AX33: 66.20647145 | AY33: 96.29281069 | AZ33: 88.50225374 | BA33: 76.11091233 | BB33: 113.354623 | BC33: 270.1357345 | BD33: 207.9720938 | BE33: 340.3189547 | BF33: 249.6090084 | BG33: 292.561555 | BH33: 265.7660059 | BI33: 150.7438989 | BJ33: 178.1852954 | BK33: 236.8708983 | BL33: 139.1072784 | BM33: 183.2989315 | BN33: 247.4283031 | BO33: 73.74526992 | BP33: 41.48072079 | BQ33: 3.757985076 | BR33: 0.8855909349 | BS33: 1.767300131 | BT33: 0.386048146 | BU33: 1.142709906 | BV33: 5.994328622 | BW33: 0.4305032952 | BX33: 0.3968615607 | BY33: 19.03613852 | BZ33: 0.2126638219 | CA33: 1.066553891 | CB33: 0 | CC33: 0.3963070266 | CD33: 5.614287928 | CE33: 24.68295911 | CF33: 0.006931676071 | CG33: 0.3005574744 | CH33: 0.1274504174 | CI33: 0.1372471862 | CJ33: 0 | CK33: 0 | CL33: 0 | CM33: 0 | CN33: 0 | CO33: 0 | CP33: 0 | CQ33: 0 | CR33: 0 | CS33: 0 | CT33: 0 | CU33: 90.9297267 | CV33: 0 | CW33: 0 | CX33: 0 | CY33: 0 | CZ33: 0 | DA33: 0 | DB33: 0 | DC33: 0 | DD33: 0 | DE33: 0 | DF33: 0 | DG33: 0 | DH33: 0
C34: ˃ 11 kV & < = 22 kV ; Single-Phase | D34: 56 | E34: 7.483314774 | F34: 73.824334 | G34: 0 | H34: 131.4099748 | I34: 137.2843831 | J34: 11.62124121 | K34: 102.4358867 | L34: 50.16393232 | M34: 67.53388306 | N34: 62.28794082 | O34: 69.02822989 | P34: 52.42276145 | Q34: 60.01222686 | R34: 72.09036103 | S34: 51.36684219 | T34: 130.7544221 | U34: 83.66977564 | V34: 64.30510087 | W34: 92.66156936 | X34: 125.5557035 | Y34: 120.7818428 | Z34: 180.1459309 | AA34: 41.41180309 | AB34: 51.51124997 | AC34: 78.5206321 | AD34: 107.303385 | AE34: 107.473891 | AF34: 107.4740837 | AG34: 160.7941318 | AH34: 177.8465087 | AI34: 164.9174635 | AJ34: 157.8373188 | AK34: 181.3543919 | AL34: 195.4695008 | AM34: 220.9637192 | AN34: 134.2651966 | AO34: 92.49942864 | AP34: 266.1647038 | AQ34: 198.8821658 | AR34: 72.34544546 | AS34: 153.0509681 | AT34: 197.2171973 | AU34: 197.4606011 | AV34: 179.2895457 | AW34: 158.4449803 | AX34: 123.9659843 | AY34: 126.1685692 | AZ34: 175.6748023 | BA34: 199.6688143 | BB34: 246.2482263 | BC34: 271.7274488 | BD34: 262.1155034 | BE34: 246.511676 | BF34: 266.6054443 | BG34: 193.6834086 | BH34: 115.563618 | BI34: 108.9861635 | BJ34: 152.6185928 | BK34: 104.0663916 | BL34: 74.57432134 | BM34: 75.02385128 | BN34: 119.9318184 | BO34: 104.9922051 | BP34: 123.083578 | BQ34: 115.8571751 | BR34: 91.24659669 | BS34: 66.5350947 | BT34: 40.13576413 | BU34: 52.27939451 | BV34: 57.05406469 | BW34: 75.81909637 | BX34: 48.04727508 | BY34: 33.81096547 | BZ34: 12.56702351 | CA34: 7.94528063 | CB34: 5.483370833 | CC34: 9.415842192 | CD34: 20.66261005 | CE34: 65.51414017 | CF34: 2.685190595 | CG34: 11.3875905 | CH34: 3.883011887 | CI34: 6.405599167 | CJ34: 10.45028917 | CK34: 4.130347798 | CL34: 1.916737658 | CM34: 0.104855623 | CN34: 0.01630659136 | CO34: 0.2136433318 | CP34: 0.007016074771 | CQ34: 0.4533463698 | CR34: 0 | CS34: 0.2871964673 | CT34: 0 | CU34: 99.12279597 | CV34: 0 | CW34: 0 | CX34: 0 | CY34: 0 | CZ34: 0 | DA34: 0 | DB34: 0 | DC34: 0 | DD34: 0 | DE34: 0 | DF34: 0 | DG34: 0 | DH34: 0
C35: ˃ 11 kV & < = 22 kV ; Multiple-Phase | D35: 56 | E35: 7.483314774 | F35: 146.578606 | G35: 0 | H35: 269.3934655 | I35: 202.8082548 | J35: 17.16789335 | K35: 151.3270697 | L35: 74.10645942 | M35: 99.7668391 | N35: 92.0170837 | O35: 101.9744163 | P35: 77.44339536 | Q35: 88.65520402 | R35: 106.4980588 | S35: 75.88350096 | T35: 193.1616368 | U35: 123.6041623 | V35: 94.99700537 | W35: 136.8876105 | X35: 185.4816442 | Y35: 178.4292882 | Z35: 266.127006 | AA35: 61.17706414 | AB35: 76.09683251 | AC35: 115.9974062 | AD35: 158.5177552 | AE35: 158.7696413 | AF35: 158.7699261 | AG35: 237.53887 | AH35: 262.7301026 | AI35: 243.630209 | AJ35: 233.1708126 | AK35: 267.9122482 | AL35: 288.7642965 | AM35: 326.4265405 | AN35: 198.3480537 | AO35: 136.6480823 | AP35: 393.2013083 | AQ35: 293.8057777 | AR35: 106.8748914 | AS35: 226.1000051 | AT35: 291.3461436 | AU35: 291.7057206 | AV35: 264.8618804 | AW35: 234.0685022 | AX35: 183.1331748 | AY35: 186.3870219 | AZ35: 259.5218717 | BA35: 294.9678823 | BB35: 363.7789811 | BC35: 401.4190719 | BD35: 387.2194826 | BE35: 364.1681717 | BF35: 393.852408 | BG35: 286.1257281 | BH35: 170.7204792 | BI35: 161.0036999 | BJ35: 225.4612633 | BK35: 153.7357913 | BL35: 110.1675778 | BM35: 110.831662 | BN35: 177.1735592 | BO35: 155.1034823 | BP35: 181.8296085 | BQ35: 171.154147 | BR35: 134.7972916 | BS35: 98.29134335 | BT35: 59.29199004 | BU35: 77.23160144 | BV35: 84.28515338 | BW35: 112.0064662 | BX35: 70.97955196 | BY35: 49.94845549 | BZ35: 18.56508401 | CA35: 11.73744939 | CB35: 8.100505269 | CC35: 13.90988894 | CD35: 30.52457817 | CE35: 96.78310183 | CF35: 3.966793643 | CG35: 16.8227245 | CH35: 5.736317899 | CI35: 9.462899991 | CJ35: 15.43806266 | CK35: 6.101703701 | CL35: 2.831569115 | CM35: 0.1549017114 | CN35: 0.02408949409 | CO35: 0.315612237 | CP35: 0.01036474687 | CQ35: 0.6697221052 | CR35: 0 | CS35: 0.4242712316 | CT35: 0 | CU35: 146.4326881 | CV35: 0 | CW35: 0 | CX35: 0 | CY35: 0 | CZ35: 0 | DA35: 0 | DB35: 0 | DC35: 0 | DD35: 0 | DE35: 0 | DF35: 0 | DG35: 0 | DH35: 0
C36: > 22 kV & < = 66 kV | D36: 61 | E36: 7.810249676 | F36: 0.373631 | G36: 105.1826108 | H36: 26.81959087 | I36: 60.82300768 | J36: 0 | K36: 39.64385785 | L36: 8.398563686 | M36: 0.8389719237 | N36: 2.912414515 | O36: 10.93942201 | P36: 3.308359949 | Q36: 7.657416729 | R36: 21.48003977 | S36: 7.23484861 | T36: 60.91582972 | U36: 13.16045076 | V36: 17.2803559 | W36: 18.67840421 | X36: 3.07652818 | Y36: 75.0931241 | Z36: 29.66124442 | AA36: 1.68455485 | AB36: 4.031192643 | AC36: 0.2310277281 | AD36: 0.7489193522 | AE36: 6.902779753 | AF36: 2.915541341 | AG36: 27.44307448 | AH36: 6.052640596 | AI36: 11.83860765 | AJ36: 39.69969402 | AK36: 11.00839084 | AL36: 50.34992935 | AM36: 104.4304294 | AN36: 15.17260757 | AO36: 0 | AP36: 54.02109038 | AQ36: 31.06679711 | AR36: 33.2598631 | AS36: 33.00846634 | AT36: 3.058392593 | AU36: 34.85856426 | AV36: 73.72393193 | AW36: 65.3172385 | AX36: 96.22170869 | AY36: 7.523856615 | AZ36: 65.95278809 | BA36: 73.62065735 | BB36: 49.09178414 | BC36: 59.55396326 | BD36: 108.8818674 | BE36: 56.11070313 | BF36: 51.72912736 | BG36: 12.61897394 | BH36: 25.40107882 | BI36: 24.39727853 | BJ36: 70.63123359 | BK36: 28.00652842 | BL36: 11.94876125 | BM36: 30.0948011 | BN36: 69.63047079 | BO36: 5.856811988 | BP36: 65.04306058 | BQ36: 11.58336936 | BR36: 7.510813286 | BS36: 12.72653673 | BT36: 21.58590514 | BU36: 7.837075182 | BV36: 42.25305964 | BW36: 30.29134441 | BX36: 12.48487779 | BY36: 4.044057296 | BZ36: 39.67003385 | CA36: 1.035872586 | CB36: 23.44556221 | CC36: 8.392578049 | CD36: 22.96420978 | CE36: 39.15053414 | CF36: 0 | CG36: 0 | CH36: 0 | CI36: 0 | CJ36: 0 | CK36: 0.02421056238 | CL36: 0 | CM36: 0 | CN36: 0 | CO36: 0 | CP36: 0 | CQ36: 0 | CR36: 0 | CS36: 0 | CT36: 0 | CU36: 249.4533955 | CV36: 0 | CW36: 0 | CX36: 0 | CY36: 0 | CZ36: 0 | DA36: 0 | DB36: 0 | DC36: 0 | DD36: 0 | DE36: 0 | DF36: 0 | DG36: 0 | DH36: 0
C37: > 66 kV & < = 132 kV | D37: 0 | E37: 0 | F37: 0 | G37: 0 | H37: 0 | I37: 0 | J37: 0 | K37: 0 | L37: 0 | M37: 0 | N37: 0 | O37: 0 | P37: 0 | Q37: 0 | R37: 0 | S37: 0 | T37: 0 | U37: 0 | V37: 0 | W37: 0 | X37: 0 | Y37: 0 | Z37: 0 | AA37: 0 | AB37: 0 | AC37: 0 | AD37: 0 | AE37: 0 | AF37: 0 | AG37: 0 | AH37: 0 | AI37: 0 | AJ37: 0 | AK37: 0 | AL37: 0 | AM37: 0 | AN37: 0 | AO37: 0 | AP37: 0 | AQ37: 0 | AR37: 0 | AS37: 0 | AT37: 0 | AU37: 0 | AV37: 0 | AW37: 0 | AX37: 0 | AY37: 0 | AZ37: 0 | BA37: 0 | BB37: 0 | BC37: 0 | BD37: 0 | BE37: 0 | BF37: 0 | BG37: 0 | BH37: 0 | BI37: 0 | BJ37: 0 | BK37: 0 | BL37: 0 | BM37: 0 | BN37: 0 | BO37: 0 | BP37: 0 | BQ37: 0 | BR37: 0 | BS37: 0 | BT37: 0 | BU37: 0 | BV37: 0 | BW37: 0 | BX37: 0 | BY37: 0 | BZ37: 0 | CA37: 0 | CB37: 0 | CC37: 0 | CD37: 0 | CE37: 0 | CF37: 0 | CG37: 0 | CH37: 0 | CI37: 0 | CJ37: 0 | CK37: 0 | CL37: 0 | CM37: 0 | CN37: 0 | CO37: 0 | CP37: 0 | CQ37: 0 | CR37: 0 | CS37: 0 | CT37: 0 | CU37: 0 | CV37: 0 | CW37: 0 | CX37: 0 | CY37: 0 | CZ37: 0 | DA37: 0 | DB37: 0 | DC37: 0 | DD37: 0 | DE37: 0 | DF37: 0 | DG37: 0 | DH37: 0
C38: > 132 kV | D38: 0 | E38: 0 | F38: 0 | G38: 0 | H38: 0 | I38: 0 | J38: 0 | K38: 0 | L38: 0 | M38: 0 | N38: 0 | O38: 0 | P38: 0 | Q38: 0 | R38: 0 | S38: 0 | T38: 0 | U38: 0 | V38: 0 | W38: 0 | X38: 0 | Y38: 0 | Z38: 0 | AA38: 0 | AB38: 0 | AC38: 0 | AD38: 0 | AE38: 0 | AF38: 0 | AG38: 0 | AH38: 0 | AI38: 0 | AJ38: 0 | AK38: 0 | AL38: 0 | AM38: 0 | AN38: 0 | AO38: 0 | AP38: 0 | AQ38: 0 | AR38: 0 | AS38: 0 | AT38: 0 | AU38: 0 | AV38: 0 | AW38: 0 | AX38: 0 | AY38: 0 | AZ38: 0 | BA38: 0 | BB38: 0 | BC38: 0 | BD38: 0 | BE38: 0 | BF38: 0 | BG38: 0 | BH38: 0 | BI38: 0 | BJ38: 0 | BK38: 0 | BL38: 0 | BM38: 0 | BN38: 0 | BO38: 0 | BP38: 0 | BQ38: 0 | BR38: 0 | BS38: 0 | BT38: 0 | BU38: 0 | BV38: 0 | BW38: 0 | BX38: 0 | BY38: 0 | BZ38: 0 | CA38: 0 | CB38: 0 | CC38: 0 | CD38: 0 | CE38: 0 | CF38: 0 | CG38: 0 | CH38: 0 | CI38: 0 | CJ38: 0 | CK38: 0 | CL38: 0 | CM38: 0 | CN38: 0 | CO38: 0 | CP38: 0 | CQ38: 0 | CR38: 0 | CS38: 0 | CT38: 0 | CU38: 0 | CV38: 0 | CW38: 0 | CX38: 0 | CY38: 0 | CZ38: 0 | DA38: 0 | DB38: 0 | DC38: 0 | DD38: 0 | DE38: 0 | DF38: 0 | DG38: 0 | DH38: 0
C39: Other | D39: 0 | E39: 0 | F39: 0 | G39: 0 | H39: 0 | I39: 0 | J39: 0 | K39: 0 | L39: 0 | M39: 0 | N39: 0 | O39: 0 | P39: 0 | Q39: 0 | R39: 0 | S39: 0 | T39: 0 | U39: 0 | V39: 0 | W39: 0 | X39: 0 | Y39: 0 | Z39: 0 | AA39: 0 | AB39: 0 | AC39: 0 | AD39: 0 | AE39: 0 | AF39: 0 | AG39: 0 | AH39: 0 | AI39: 0 | AJ39: 0 | AK39: 0 | AL39: 0 | AM39: 0 | AN39: 0 | AO39: 0 | AP39: 0 | AQ39: 0 | AR39: 0 | AS39: 0 | AT39: 0 | AU39: 0 | AV39: 0 | AW39: 0 | AX39: 0 | AY39: 0 | AZ39: 0 | BA39: 0 | BB39: 0 | BC39: 0 | BD39: 0 | BE39: 0 | BF39: 0 | BG39: 0 | BH39: 0 | BI39: 0 | BJ39: 0 | BK39: 0 | BL39: 0 | BM39: 0 | BN39: 0 | BO39: 0 | BP39: 0 | BQ39: 0 | BR39: 0 | BS39: 0 | BT39: 0 | BU39: 0 | BV39: 0 | BW39: 0 | BX39: 0 | BY39: 0 | BZ39: 0 | CA39: 0 | CB39: 0 | CC39: 0 | CD39: 0 | CE39: 0 | CF39: 0 | CG39: 0 | CH39: 0 | CI39: 0 | CJ39: 0 | CK39: 0 | CL39: 0 | CM39: 0 | CN39: 0 | CO39: 0 | CP39: 0 | CQ39: 0 | CR39: 0 | CS39: 0 | CT39: 0 | CU39: 0 | CV39: 0 | CW39: 0 | CX39: 0 | CY39: 0 | CZ39: 0 | DA39: 0 | DB39: 0 | DC39: 0 | DD39: 0 | DE39: 0 | DF39: 0 | DG39: 0 | DH39: 0
B40: UNDERGROUND CABLES BY: HIGHEST OPERATING VOLTAGE | C40: ˂ = 1 kV | D40: 50 | E40: 7.071067812 | F40: 170.0258898 | G40: 196.0737003 | H40: 149.3080815 | I40: 142.0342049 | J40: 126.0810463 | K40: 172.7155909 | L40: 198.7268131 | M40: 124.565292 | N40: 105.5339728 | O40: 77.44079862 | P40: 79.50736029 | Q40: 94.53047395 | R40: 98.03590895 | S40: 152.1322875 | T40: 165.6563493 | U40: 169.3511406 | V40: 138.4175441 | W40: 152.687287 | X40: 173.3968811 | Y40: 138.8288379 | Z40: 99.88424954 | AA40: 60.8016041 | AB40: 41.84341856 | AC40: 35.79130811 | AD40: 33.16888408 | AE40: 40.60717069 | AF40: 27.87929986 | AG40: 27.92865317 | AH40: 25.414718 | AI40: 21.42973872 | AJ40: 20.3094113 | AK40: 19.11445446 | AL40: 7.37805834 | AM40: 7.580667504 | AN40: 3.387098735 | AO40: 3.032437893 | AP40: 3.182468382 | AQ40: 1072.733565 | AR40: 0.6405475069 | AS40: 3.266411391 | AT40: 4.031313805 | AU40: 3.614748803 | AV40: 1.553893496 | AW40: 1.915065396 | AX40: 5.243129013 | AY40: 2.124353867 | AZ40: 0.8465758242 | BA40: 5.230840234 | BB40: 0.1578954661 | BC40: 0.09622386035 | BD40: 0.02841381089 | BE40: 0.05962707277 | BF40: 0.04273391 | BG40: 0 | BH40: 0.00442380203 | BI40: 0.01773925235 | BJ40: 0.128037445 | BK40: 0.1929714065 | BL40: 0 | BM40: 0 | BN40: 0 | BO40: 0 | BP40: 0 | BQ40: 0 | BR40: 0 | BS40: 0 | BT40: 0 | BU40: 0 | BV40: 0 | BW40: 0 | BX40: 0 | BY40: 0 | BZ40: 0 | CA40: 0 | CB40: 0 | CC40: 0 | CD40: 0 | CE40: 0 | CF40: 0 | CG40: 0 | CH40: 0 | CI40: 0 | CJ40: 0 | CK40: 0 | CL40: 0 | CM40: 0 | CN40: 0 | CO40: 0 | CP40: 0 | CQ40: 0 | CR40: 0 | CS40: 0 | CT40: 0 | CU40: 0 | CV40: 0 | CW40: 0 | CX40: 0 | CY40: 0 | CZ40: 0 | DA40: 0 | DB40: 0 | DC40: 0 | DD40: 0 | DE40: 0 | DF40: 0 | DG40: 0 | DH40: 0
C41: > 1 kV & < = 11 kV | D41: 50 | E41: 7.071067812 | F41: 0 | G41: 0 | H41: 0.1036564465 | I41: 0.3732568903 | J41: 0 | K41: 0 | L41: 0 | M41: 0 | N41: 0 | O41: 0 | P41: 0 | Q41: 0 | R41: 0 | S41: 0 | T41: 0 | U41: 0 | V41: 0 | W41: 0 | X41: 0 | Y41: 0.007592589584 | Z41: 0 | AA41: 0 | AB41: 0 | AC41: 0 | AD41: 0 | AE41: 0 | AF41: 0 | AG41: 0 | AH41: 0 | AI41: 0 | AJ41: 0 | AK41: 0 | AL41: 0 | AM41: 0 | AN41: 0 | AO41: 0 | AP41: 0 | AQ41: 0 | AR41: 0 | AS41: 0 | AT41: 0 | AU41: 0.3421222124 | AV41: 10.33964829 | AW41: 0 | AX41: 0 | AY41: 0 | AZ41: 0 | BA41: 3.536271297 | BB41: 0 | BC41: 0 | BD41: 0 | BE41: 0 | BF41: 0 | BG41: 0 | BH41: 0 | BI41: 0 | BJ41: 0 | BK41: 0 | BL41: 0 | BM41: 0 | BN41: 0 | BO41: 0 | BP41: 0 | BQ41: 0 | BR41: 0 | BS41: 0 | BT41: 0 | BU41: 0 | BV41: 0 | BW41: 0 | BX41: 0 | BY41: 0 | BZ41: 0 | CA41: 0 | CB41: 0 | CC41: 0 | CD41: 0 | CE41: 0 | CF41: 0 | CG41: 0 | CH41: 0 | CI41: 0 | CJ41: 0 | CK41: 0 | CL41: 0 | CM41: 0 | CN41: 0 | CO41: 0 | CP41: 0 | CQ41: 0 | CR41: 0 | CS41: 0 | CT41: 0 | CU41: 0 | CV41: 0 | CW41: 0 | CX41: 0 | CY41: 0 | CZ41: 0 | DA41: 0 | DB41: 0 | DC41: 0 | DD41: 0 | DE41: 0 | DF41: 0 | DG41: 0 | DH41: 0.1329132771
C42: > 11 kV & < = 22 kV | D42: 50 | E42: 7.071067812 | F42: 121.7444432 | G42: 116.1419435 | H42: 97.1778303 | I42: 85.63355137 | J42: 62.82181749 | K42: 86.58098517 | L42: 69.35347665 | M42: 49.1903276 | N42: 44.90132455 | O42: 34.26448775 | P42: 36.57197565 | Q42: 30.92988003 | R42: 41.29794745 | S42: 44.26294742 | T42: 50.18626224 | U42: 57.39320496 | V42: 47.3881589 | W42: 54.47317157 | X42: 78.78519555 | Y42: 61.44486023 | Z42: 85.18162751 | AA42: 28.07231202 | AB42: 12.54218176 | AC42: 12.35874014 | AD42: 6.142693663 | AE42: 6.221274835 | AF42: 1.552743459 | AG42: 4.853882072 | AH42: 5.485556542 | AI42: 5.408974687 | AJ42: 3.947377953 | AK42: 6.170398763 | AL42: 1.911949282 | AM42: 3.200724705 | AN42: 0.7749008755 | AO42: 1.121695867 | AP42: 4.735806866 | AQ42: 211.2990854 | AR42: 0 | AS42: 1.13413483 | AT42: 1.251953842 | AU42: 417.7595432 | AV42: 0.2353547035 | AW42: 1.192530944 | AX42: 1.83912996 | AY42: 1.440534589 | AZ42: 0.1950076949 | BA42: 43.26653717 | BB42: 0 | BC42: 0.2112041671 | BD42: 0 | BE42: 0 | BF42: 0 | BG42: 0 | BH42: 0 | BI42: 0 | BJ42: 0 | BK42: 0 | BL42: 0 | BM42: 0 | BN42: 0 | BO42: 0 | BP42: 0 | BQ42: 0 | BR42: 0 | BS42: 0 | BT42: 0 | BU42: 0 | BV42: 0 | BW42: 0 | BX42: 0 | BY42: 0 | BZ42: 0 | CA42: 0 | CB42: 0 | CC42: 0 | CD42: 0 | CE42: 0 | CF42: 0 | CG42: 0 | CH42: 0 | CI42: 0 | CJ42: 0 | CK42: 0 | CL42: 0 | CM42: 0 | CN42: 0 | CO42: 0 | CP42: 0 | CQ42: 0 | CR42: 0 | CS42: 0 | CT42: 0 | CU42: 0 | CV42: 0 | CW42: 0 | CX42: 0 | CY42: 1.260204226 | CZ42: 0 | DA42: 0 | DB42: 0 | DC42: 0 | DD42: 0 | DE42: 0 | DF42: 0 | DG42: 0 | DH42: 1.850893777
C43: > 22 kV & < = 33 kV | D43: 0 | E43: 0 | F43: 0 | G43: 0 | H43: 0 | I43: 0 | J43: 0 | K43: 0 | L43: 0 | M43: 0 | N43: 0 | O43: 0 | P43: 0 | Q43: 0 | R43: 0 | S43: 0 | T43: 0 | U43: 0 | V43: 0 | W43: 0 | X43: 0 | Y43: 0 | Z43: 0 | AA43: 0 | AB43: 0 | AC43: 0 | AD43: 0 | AE43: 0 | AF43: 0 | AG43: 0 | AH43: 0 | AI43: 0 | AJ43: 0 | AK43: 0 | AL43: 0 | AM43: 0 | AN43: 0 | AO43: 0 | AP43: 0 | AQ43: 0 | AR43: 0 | AS43: 0 | AT43: 0 | AU43: 0 | AV43: 0 | AW43: 0 | AX43: 0 | AY43: 0 | AZ43: 0 | BA43: 0 | BB43: 0 | BC43: 0 | BD43: 0 | BE43: 0 | BF43: 0 | BG43: 0 | BH43: 0 | BI43: 0 | BJ43: 0 | BK43: 0 | BL43: 0 | BM43: 0 | BN43: 0 | BO43: 0 | BP43: 0 | BQ43: 0 | BR43: 0 | BS43: 0 | BT43: 0 | BU43: 0 | BV43: 0 | BW43: 0 | BX43: 0 | BY43: 0 | BZ43: 0 | CA43: 0 | CB43: 0 | CC43: 0 | CD43: 0 | CE43: 0 | CF43: 0 | CG43: 0 | CH43: 0 | CI43: 0 | CJ43: 0 | CK43: 0 | CL43: 0 | CM43: 0 | CN43: 0 | CO43: 0 | CP43: 0 | CQ43: 0 | CR43: 0 | CS43: 0 | CT43: 0 | CU43: 0 | CV43: 0 | CW43: 0 | CX43: 0 | CY43: 0 | CZ43: 0 | DA43: 0 | DB43: 0 | DC43: 0 | DD43: 0 | DE43: 0 | DF43: 0 | DG43: 0 | DH43: 0
C44: > 33 kV & < = 66 kV | D44: 50 | E44: 7.071067812 | F44: 0 | G44: 0 | H44: 0 | I44: 0.7574183853 | J44: 0 | K44: 1.224158225 | L44: 0 | M44: 0 | N44: 0 | O44: 0 | P44: 0 | Q44: 0 | R44: 0.3603148889 | S44: 0 | T44: 0 | U44: 0 | V44: 0 | W44: 0 | X44: 0 | Y44: 0.7009361288 | Z44: 0 | AA44: 0 | AB44: 0 | AC44: 0 | AD44: 0 | AE44: 0 | AF44: 0 | AG44: 0 | AH44: 0 | AI44: 0 | AJ44: 0 | AK44: 0 | AL44: 0 | AM44: 0 | AN44: 5.730869724 | AO44: 0 | AP44: 0 | AQ44: 0 | AR44: 0 | AS44: 0 | AT44: 0 | AU44: 2.405391648 | AV44: 0 | AW44: 0 | AX44: 0 | AY44: 0 | AZ44: 0 | BA44: 0 | BB44: 0 | BC44: 0 | BD44: 0 | BE44: 0 | BF44: 0 | BG44: 0 | BH44: 0 | BI44: 0 | BJ44: 0 | BK44: 0 | BL44: 0 | BM44: 0 | BN44: 0 | BO44: 0 | BP44: 0 | BQ44: 0 | BR44: 0 | BS44: 0 | BT44: 0 | BU44: 0 | BV44: 0 | BW44: 0 | BX44: 0 | BY44: 0 | BZ44: 0 | CA44: 0 | CB44: 0 | CC44: 0 | CD44: 0 | CE44: 0 | CF44: 0 | CG44: 0 | CH44: 0 | CI44: 0 | CJ44: 0 | CK44: 0 | CL44: 0 | CM44: 0 | CN44: 0 | CO44: 0 | CP44: 0 | CQ44: 0 | CR44: 0 | CS44: 0 | CT44: 0 | CU44: 0 | CV44: 0 | CW44: 0 | CX44: 0 | CY44: 0 | CZ44: 0 | DA44: 0 | DB44: 0 | DC44: 0 | DD44: 0 | DE44: 0 | DF44: 0 | DG44: 0 | DH44: 0
C45: > 66 kV & < = 132 kV | D45: 0 | E45: 0 | F45: 0 | G45: 0 | H45: 0 | I45: 0 | J45: 0 | K45: 0 | L45: 0 | M45: 0 | N45: 0 | O45: 0 | P45: 0 | Q45: 0 | R45: 0 | S45: 0 | T45: 0 | U45: 0 | V45: 0 | W45: 0 | X45: 0 | Y45: 0 | Z45: 0 | AA45: 0 | AB45: 0 | AC45: 0 | AD45: 0 | AE45: 0 | AF45: 0 | AG45: 0 | AH45: 0 | AI45: 0 | AJ45: 0 | AK45: 0 | AL45: 0 | AM45: 0 | AN45: 0 | AO45: 0 | AP45: 0 | AQ45: 0 | AR45: 0 | AS45: 0 | AT45: 0 | AU45: 0 | AV45: 0 | AW45: 0 | AX45: 0 | AY45: 0 | AZ45: 0 | BA45: 0 | BB45: 0 | BC45: 0 | BD45: 0 | BE45: 0 | BF45: 0 | BG45: 0 | BH45: 0 | BI45: 0 | BJ45: 0 | BK45: 0 | BL45: 0 | BM45: 0 | BN45: 0 | BO45: 0 | BP45: 0 | BQ45: 0 | BR45: 0 | BS45: 0 | BT45: 0 | BU45: 0 | BV45: 0 | BW45: 0 | BX45: 0 | BY45: 0 | BZ45: 0 | CA45: 0 | CB45: 0 | CC45: 0 | CD45: 0 | CE45: 0 | CF45: 0 | CG45: 0 | CH45: 0 | CI45: 0 | CJ45: 0 | CK45: 0 | CL45: 0 | CM45: 0 | CN45: 0 | CO45: 0 | CP45: 0 | CQ45: 0 | CR45: 0 | CS45: 0 | CT45: 0 | CU45: 0 | CV45: 0 | CW45: 0 | CX45: 0 | CY45: 0 | CZ45: 0 | DA45: 0 | DB45: 0 | DC45: 0 | DD45: 0 | DE45: 0 | DF45: 0 | DG45: 0 | DH45: 0
C46: > 132 kV | D46: 0 | E46: 0 | F46: 0 | G46: 0 | H46: 0 | I46: 0 | J46: 0 | K46: 0 | L46: 0 | M46: 0 | N46: 0 | O46: 0 | P46: 0 | Q46: 0 | R46: 0 | S46: 0 | T46: 0 | U46: 0 | V46: 0 | W46: 0 | X46: 0 | Y46: 0 | Z46: 0 | AA46: 0 | AB46: 0 | AC46: 0 | AD46: 0 | AE46: 0 | AF46: 0 | AG46: 0 | AH46: 0 | AI46: 0 | AJ46: 0 | AK46: 0 | AL46: 0 | AM46: 0 | AN46: 0 | AO46: 0 | AP46: 0 | AQ46: 0 | AR46: 0 | AS46: 0 | AT46: 0 | AU46: 0 | AV46: 0 | AW46: 0 | AX46: 0 | AY46: 0 | AZ46: 0 | BA46: 0 | BB46: 0 | BC46: 0 | BD46: 0 | BE46: 0 | BF46: 0 | BG46: 0 | BH46: 0 | BI46: 0 | BJ46: 0 | BK46: 0 | BL46: 0 | BM46: 0 | BN46: 0 | BO46: 0 | BP46: 0 | BQ46: 0 | BR46: 0 | BS46: 0 | BT46: 0 | BU46: 0 | BV46: 0 | BW46: 0 | BX46: 0 | BY46: 0 | BZ46: 0 | CA46: 0 | CB46: 0 | CC46: 0 | CD46: 0 | CE46: 0 | CF46: 0 | CG46: 0 | CH46: 0 | CI46: 0 | CJ46: 0 | CK46: 0 | CL46: 0 | CM46: 0 | CN46: 0 | CO46: 0 | CP46: 0 | CQ46: 0 | CR46: 0 | CS46: 0 | CT46: 0 | CU46: 0 | CV46: 0 | CW46: 0 | CX46: 0 | CY46: 0 | CZ46: 0 | DA46: 0 | DB46: 0 | DC46: 0 | DD46: 0 | DE46: 0 | DF46: 0 | DG46: 0 | DH46: 0
C47: Other | D47: 0 | E47: 0 | F47: 0 | G47: 0 | H47: 0 | I47: 0 | J47: 0 | K47: 0 | L47: 0 | M47: 0 | N47: 0 | O47: 0 | P47: 0 | Q47: 0 | R47: 0 | S47: 0 | T47: 0 | U47: 0 | V47: 0 | W47: 0 | X47: 0 | Y47: 0 | Z47: 0 | AA47: 0 | AB47: 0 | AC47: 0 | AD47: 0 | AE47: 0 | AF47: 0 | AG47: 0 | AH47: 0 | AI47: 0 | AJ47: 0 | AK47: 0 | AL47: 0 | AM47: 0 | AN47: 0 | AO47: 0 | AP47: 0 | AQ47: 0 | AR47: 0 | AS47: 0 | AT47: 0 | AU47: 0 | AV47: 0 | AW47: 0 | AX47: 0 | AY47: 0 | AZ47: 0 | BA47: 0 | BB47: 0 | BC47: 0 | BD47: 0 | BE47: 0 | BF47: 0 | BG47: 0 | BH47: 0 | BI47: 0 | BJ47: 0 | BK47: 0 | BL47: 0 | BM47: 0 | BN47: 0 | BO47: 0 | BP47: 0 | BQ47: 0 | BR47: 0 | BS47: 0 | BT47: 0 | BU47: 0 | BV47: 0 | BW47: 0 | BX47: 0 | BY47: 0 | BZ47: 0 | CA47: 0 | CB47: 0 | CC47: 0 | CD47: 0 | CE47: 0 | CF47: 0 | CG47: 0 | CH47: 0 | CI47: 0 | CJ47: 0 | CK47: 0 | CL47: 0 | CM47: 0 | CN47: 0 | CO47: 0 | CP47: 0 | CQ47: 0 | CR47: 0 | CS47: 0 | CT47: 0 | CU47: 0 | CV47: 0 | CW47: 0 | CX47: 0 | CY47: 0 | CZ47: 0 | DA47: 0 | DB47: 0 | DC47: 0 | DD47: 0 | DE47: 0 | DF47: 0 | DG47: 0 | DH47: 0
B48: SERVICE LINES BY: CONNECTION VOLTAGE; CUSTOMER TYPE; CONNECTION COMPLEXITY | C48: ˂ = 11 kV ; Residential ; Simple Type | D48: 40 | E48: 6.32455532 | F48: 5877.9125 | G48: 7166.643329 | H48: 5071.496241 | I48: 1666.323204 | J48: 2445.336265 | K48: 2364.600092 | L48: 1844.395368 | M48: 1785.841597 | N48: 1649.443721 | O48: 2270.672572 | P48: 2361.937592 | Q48: 1855.928623 | R48: 2616.329658 | S48: 3214.604662 | T48: 2868.946723 | U48: 2640.283666 | V48: 2950.454342 | W48: 3457.463473 | X48: 3214.604662 | Y48: 10155.14795 | Z48: 1071.571872 | AA48: 865.8635161 | AB48: 679.7826231 | AC48: 553.0294869 | AD48: 841.1338152 | AE48: 668.2493688 | AF48: 610.6949049 | AG48: 587.6292498 | AH48: 449.3437128 | AI48: 368.7235938 | AJ48: 265.0378197 | AK48: 195.8391474 | AL48: 149.8179378 | AM48: 92.1525198 | AN48: 23.9540086 | AO48: 23.0665086 | AP48: 30693.99172 | AQ48: 11.5332543 | AR48: 23.0665086 | AS48: 11.5332543 | AT48: 23.0665086 | AU48: 11.5332543 | AV48: 11.5332543 | AW48: 34.5997629 | AX48: 11.5332543 | AY48: 0 | AZ48: 4897.647131 | BA48: 0 | BB48: 0 | BC48: 0 | BD48: 0 | BE48: 11.5332543 | BF48: 0 | BG48: 0 | BH48: 0 | BI48: 0 | BJ48: 0 | BK48: 0 | BL48: 0 | BM48: 0 | BN48: 0 | BO48: 0 | BP48: 0 | BQ48: 0 | BR48: 0 | BS48: 0 | BT48: 0 | BU48: 0 | BV48: 0 | BW48: 0 | BX48: 0 | BY48: 0 | BZ48: 0 | CA48: 0 | CB48: 0 | CC48: 0 | CD48: 0 | CE48: 0 | CF48: 0 | CG48: 0 | CH48: 0 | CI48: 0 | CJ48: 0 | CK48: 0 | CL48: 0 | CM48: 0 | CN48: 0 | CO48: 0 | CP48: 0 | CQ48: 0 | CR48: 0 | CS48: 0 | CT48: 51306.47251 | CU48: 0 | CV48: 0 | CW48: 0 | CX48: 0 | CY48: 0 | CZ48: 0 | DA48: 0 | DB48: 0 | DC48: 0 | DD48: 0 | DE48: 0 | DF48: 0 | DG48: 0 | DH48: 0
C49: ˂ = 11 kV ; Commercial & Industrial ; Simple Type | D49: 40 | E49: 6.32455532 | F49: 745.0875 | G49: 908.4477459 | H49: 642.8657207 | I49: 211.2240681 | J49: 309.9722026 | K49: 299.7380399 | L49: 233.796596 | M49: 226.3742869 | N49: 209.0844153 | O49: 287.8317345 | P49: 299.4005399 | Q49: 235.2585578 | R49: 331.6474214 | S49: 407.485098 | T49: 363.6693029 | U49: 334.683845 | V49: 374.0012546 | W49: 438.2700177 | X49: 407.485098 | Y49: 1287.272276 | Z49: 135.8330542 | AA49: 109.7573471 | AB49: 86.16962827 | AC49: 70.10232932 | AD49: 106.6225963 | AE49: 84.70766646 | AF49: 77.4120302 | AG49: 74.48821476 | AH49: 56.95906218 | AI49: 46.73961048 | AJ49: 33.59634334 | AK49: 24.82468065 | AL49: 18.9910062 | AM49: 11.68130533 | AN49: 3.036423625 | AO49: 2.923923625 | AP49: 3890.787683 | AQ49: 1.461961813 | AR49: 2.923923625 | AS49: 1.461961813 | AT49: 2.923923625 | AU49: 1.461961813 | AV49: 1.461961813 | AW49: 4.385885438 | AX49: 1.461961813 | AY49: 0 | AZ49: 620.8285096 | BA49: 0 | BB49: 0 | BC49: 0 | BD49: 0 | BE49: 1.461961813 | BF49: 0 | BG49: 0 | BH49: 0 | BI49: 0 | BJ49: 0 | BK49: 0 | BL49: 0 | BM49: 0 | BN49: 0 | BO49: 0 | BP49: 0 | BQ49: 0 | BR49: 0 | BS49: 0 | BT49: 0 | BU49: 0 | BV49: 0 | BW49: 0 | BX49: 0 | BY49: 0 | BZ49: 0 | CA49: 0 | CB49: 0 | CC49: 0 | CD49: 0 | CE49: 0 | CF49: 0 | CG49: 0 | CH49: 0 | CI49: 0 | CJ49: 0 | CK49: 0 | CL49: 0 | CM49: 0 | CN49: 0 | CO49: 0 | CP49: 0 | CQ49: 0 | CR49: 0 | CS49: 0 | CT49: 6503.637361 | CU49: 0 | CV49: 0 | CW49: 0 | CX49: 0 | CY49: 0 | CZ49: 0 | DA49: 0 | DB49: 0 | DC49: 0 | DD49: 0 | DE49: 0 | DF49: 0 | DG49: 0 | DH49: 0
C50: ˂ = 11 kV ; Residential ; Complex Type | D50: 0 | E50: 0 | F50: 0 | G50: 0 | H50: 0 | I50: 0 | J50: 0 | K50: 0 | L50: 0 | M50: 0 | N50: 0 | O50: 0 | P50: 0 | Q50: 0 | R50: 0 | S50: 0 | T50: 0 | U50: 0 | V50: 0 | W50: 0 | X50: 0 | Y50: 0 | Z50: 0 | AA50: 0 | AB50: 0 | AC50: 0 | AD50: 0 | AE50: 0 | AF50: 0 | AG50: 0 | AH50: 0 | AI50: 0 | AJ50: 0 | AK50: 0 | AL50: 0 | AM50: 0 | AN50: 0 | AO50: 0 | AP50: 0 | AQ50: 0 | AR50: 0 | AS50: 0 | AT50: 0 | AU50: 0 | AV50: 0 | AW50: 0 | AX50: 0 | AY50: 0 | AZ50: 0 | BA50: 0 | BB50: 0 | BC50: 0 | BD50: 0 | BE50: 0 | BF50: 0 | BG50: 0 | BH50: 0 | BI50: 0 | BJ50: 0 | BK50: 0 | BL50: 0 | BM50: 0 | BN50: 0 | BO50: 0 | BP50: 0 | BQ50: 0 | BR50: 0 | BS50: 0 | BT50: 0 | BU50: 0 | BV50: 0 | BW50: 0 | BX50: 0 | BY50: 0 | BZ50: 0 | CA50: 0 | CB50: 0 | CC50: 0 | CD50: 0 | CE50: 0 | CF50: 0 | CG50: 0 | CH50: 0 | CI50: 0 | CJ50: 0 | CK50: 0 | CL50: 0 | CM50: 0 | CN50: 0 | CO50: 0 | CP50: 0 | CQ50: 0 | CR50: 0 | CS50: 0 | CT50: 0 | CU50: 0 | CV50: 0 | CW50: 0 | CX50: 0 | CY50: 0 | CZ50: 0 | DA50: 0 | DB50: 0 | DC50: 0 | DD50: 0 | DE50: 0 | DF50: 0 | DG50: 0 | DH50: 0
C51: ˂ = 11 kV ; Commercial & Industrial ; Complex Type | D51: 0 | E51: 0 | F51: 0 | G51: 0 | H51: 0 | I51: 0 | J51: 0 | K51: 0 | L51: 0 | M51: 0 | N51: 0 | O51: 0 | P51: 0 | Q51: 0 | R51: 0 | S51: 0 | T51: 0 | U51: 0 | V51: 0 | W51: 0 | X51: 0 | Y51: 0 | Z51: 0 | AA51: 0 | AB51: 0 | AC51: 0 | AD51: 0 | AE51: 0 | AF51: 0 | AG51: 0 | AH51: 0 | AI51: 0 | AJ51: 0 | AK51: 0 | AL51: 0 | AM51: 0 | AN51: 0 | AO51: 0 | AP51: 0 | AQ51: 0 | AR51: 0 | AS51: 0 | AT51: 0 | AU51: 0 | AV51: 0 | AW51: 0 | AX51: 0 | AY51: 0 | AZ51: 0 | BA51: 0 | BB51: 0 | BC51: 0 | BD51: 0 | BE51: 0 | BF51: 0 | BG51: 0 | BH51: 0 | BI51: 0 | BJ51: 0 | BK51: 0 | BL51: 0 | BM51: 0 | BN51: 0 | BO51: 0 | BP51: 0 | BQ51: 0 | BR51: 0 | BS51: 0 | BT51: 0 | BU51: 0 | BV51: 0 | BW51: 0 | BX51: 0 | BY51: 0 | BZ51: 0 | CA51: 0 | CB51: 0 | CC51: 0 | CD51: 0 | CE51: 0 | CF51: 0 | CG51: 0 | CH51: 0 | CI51: 0 | CJ51: 0 | CK51: 0 | CL51: 0 | CM51: 0 | CN51: 0 | CO51: 0 | CP51: 0 | CQ51: 0 | CR51: 0 | CS51: 0 | CT51: 0 | CU51: 0 | CV51: 0 | CW51: 0 | CX51: 0 | CY51: 0 | CZ51: 0 | DA51: 0 | DB51: 0 | DC51: 0 | DD51: 0 | DE51: 0 | DF51: 0 | DG51: 0 | DH51: 0
C52: ˂ = 11 kV ; Subdivision ; Complex Type | D52: 0 | E52: 0 | F52: 0 | G52: 0 | H52: 0 | I52: 0 | J52: 0 | K52: 0 | L52: 0 | M52: 0 | N52: 0 | O52: 0 | P52: 0 | Q52: 0 | R52: 0 | S52: 0 | T52: 0 | U52: 0 | V52: 0 | W52: 0 | X52: 0 | Y52: 0 | Z52: 0 | AA52: 0 | AB52: 0 | AC52: 0 | AD52: 0 | AE52: 0 | AF52: 0 | AG52: 0 | AH52: 0 | AI52: 0 | AJ52: 0 | AK52: 0 | AL52: 0 | AM52: 0 | AN52: 0 | AO52: 0 | AP52: 0 | AQ52: 0 | AR52: 0 | AS52: 0 | AT52: 0 | AU52: 0 | AV52: 0 | AW52: 0 | AX52: 0 | AY52: 0 | AZ52: 0 | BA52: 0 | BB52: 0 | BC52: 0 | BD52: 0 | BE52: 0 | BF52: 0 | BG52: 0 | BH52: 0 | BI52: 0 | BJ52: 0 | BK52: 0 | BL52: 0 | BM52: 0 | BN52: 0 | BO52: 0 | BP52: 0 | BQ52: 0 | BR52: 0 | BS52: 0 | BT52: 0 | BU52: 0 | BV52: 0 | BW52: 0 | BX52: 0 | BY52: 0 | BZ52: 0 | CA52: 0 | CB52: 0 | CC52: 0 | CD52: 0 | CE52: 0 | CF52: 0 | CG52: 0 | CH52: 0 | CI52: 0 | CJ52: 0 | CK52: 0 | CL52: 0 | CM52: 0 | CN52: 0 | CO52: 0 | CP52: 0 | CQ52: 0 | CR52: 0 | CS52: 0 | CT52: 0 | CU52: 0 | CV52: 0 | CW52: 0 | CX52: 0 | CY52: 0 | CZ52: 0 | DA52: 0 | DB52: 0 | DC52: 0 | DD52: 0 | DE52: 0 | DF52: 0 | DG52: 0 | DH52: 0
C53: > 11 kV & < = 22 kV ; Commercial & Industrial | D53: 0 | E53: 0 | F53: 0 | G53: 0 | H53: 0 | I53: 0 | J53: 0 | K53: 0 | L53: 0 | M53: 0 | N53: 0 | O53: 0 | P53: 0 | Q53: 0 | R53: 0 | S53: 0 | T53: 0 | U53: 0 | V53: 0 | W53: 0 | X53: 0 | Y53: 0 | Z53: 0 | AA53: 0 | AB53: 0 | AC53: 0 | AD53: 0 | AE53: 0 | AF53: 0 | AG53: 0 | AH53: 0 | AI53: 0 | AJ53: 0 | AK53: 0 | AL53: 0 | AM53: 0 | AN53: 0 | AO53: 0 | AP53: 0 | AQ53: 0 | AR53: 0 | AS53: 0 | AT53: 0 | AU53: 0 | AV53: 0 | AW53: 0 | AX53: 0 | AY53: 0 | AZ53: 0 | BA53: 0 | BB53: 0 | BC53: 0 | BD53: 0 | BE53: 0 | BF53: 0 | BG53: 0 | BH53: 0 | BI53: 0 | BJ53: 0 | BK53: 0 | BL53: 0 | BM53: 0 | BN53: 0 | BO53: 0 | BP53: 0 | BQ53: 0 | BR53: 0 | BS53: 0 | BT53: 0 | BU53: 0 | BV53: 0 | BW53: 0 | BX53: 0 | BY53: 0 | BZ53: 0 | CA53: 0 | CB53: 0 | CC53: 0 | CD53: 0 | CE53: 0 | CF53: 0 | CG53: 0 | CH53: 0 | CI53: 0 | CJ53: 0 | CK53: 0 | CL53: 0 | CM53: 0 | CN53: 0 | CO53: 0 | CP53: 0 | CQ53: 0 | CR53: 0 | CS53: 0 | CT53: 0 | CU53: 0 | CV53: 0 | CW53: 0 | CX53: 0 | CY53: 0 | CZ53: 0 | DA53: 0 | DB53: 0 | DC53: 0 | DD53: 0 | DE53: 0 | DF53: 0 | DG53: 0 | DH53: 0
C54: > 11 kV & < = 22 kV ; Subdivision | D54: 0 | E54: 0 | F54: 0 | G54: 0 | H54: 0 | I54: 0 | J54: 0 | K54: 0 | L54: 0 | M54: 0 | N54: 0 | O54: 0 | P54: 0 | Q54: 0 | R54: 0 | S54: 0 | T54: 0 | U54: 0 | V54: 0 | W54: 0 | X54: 0 | Y54: 0 | Z54: 0 | AA54: 0 | AB54: 0 | AC54: 0 | AD54: 0 | AE54: 0 | AF54: 0 | AG54: 0 | AH54: 0 | AI54: 0 | AJ54: 0 | AK54: 0 | AL54: 0 | AM54: 0 | AN54: 0 | AO54: 0 | AP54: 0 | AQ54: 0 | AR54: 0 | AS54: 0 | AT54: 0 | AU54: 0 | AV54: 0 | AW54: 0 | AX54: 0 | AY54: 0 | AZ54: 0 | BA54: 0 | BB54: 0 | BC54: 0 | BD54: 0 | BE54: 0 | BF54: 0 | BG54: 0 | BH54: 0 | BI54: 0 | BJ54: 0 | BK54: 0 | BL54: 0 | BM54: 0 | BN54: 0 | BO54: 0 | BP54: 0 | BQ54: 0 | BR54: 0 | BS54: 0 | BT54: 0 | BU54: 0 | BV54: 0 | BW54: 0 | BX54: 0 | BY54: 0 | BZ54: 0 | CA54: 0 | CB54: 0 | CC54: 0 | CD54: 0 | CE54: 0 | CF54: 0 | CG54: 0 | CH54: 0 | CI54: 0 | CJ54: 0 | CK54: 0 | CL54: 0 | CM54: 0 | CN54: 0 | CO54: 0 | CP54: 0 | CQ54: 0 | CR54: 0 | CS54: 0 | CT54: 0 | CU54: 0 | CV54: 0 | CW54: 0 | CX54: 0 | CY54: 0 | CZ54: 0 | DA54: 0 | DB54: 0 | DC54: 0 | DD54: 0 | DE54: 0 | DF54: 0 | DG54: 0 | DH54: 0
C55: > 22 kV & < = 33 kV ; Commercial & Industrial | D55: 0 | E55: 0 | F55: 0 | G55: 0 | H55: 0 | I55: 0 | J55: 0 | K55: 0 | L55: 0 | M55: 0 | N55: 0 | O55: 0 | P55: 0 | Q55: 0 | R55: 0 | S55: 0 | T55: 0 | U55: 0 | V55: 0 | W55: 0 | X55: 0 | Y55: 0 | Z55: 0 | AA55: 0 | AB55: 0 | AC55: 0 | AD55: 0 | AE55: 0 | AF55: 0 | AG55: 0 | AH55: 0 | AI55: 0 | AJ55: 0 | AK55: 0 | AL55: 0 | AM55: 0 | AN55: 0 | AO55: 0 | AP55: 0 | AQ55: 0 | AR55: 0 | AS55: 0 | AT55: 0 | AU55: 0 | AV55: 0 | AW55: 0 | AX55: 0 | AY55: 0 | AZ55: 0 | BA55: 0 | BB55: 0 | BC55: 0 | BD55: 0 | BE55: 0 | BF55: 0 | BG55: 0 | BH55: 0 | BI55: 0 | BJ55: 0 | BK55: 0 | BL55: 0 | BM55: 0 | BN55: 0 | BO55: 0 | BP55: 0 | BQ55: 0 | BR55: 0 | BS55: 0 | BT55: 0 | BU55: 0 | BV55: 0 | BW55: 0 | BX55: 0 | BY55: 0 | BZ55: 0 | CA55: 0 | CB55: 0 | CC55: 0 | CD55: 0 | CE55: 0 | CF55: 0 | CG55: 0 | CH55: 0 | CI55: 0 | CJ55: 0 | CK55: 0 | CL55: 0 | CM55: 0 | CN55: 0 | CO55: 0 | CP55: 0 | CQ55: 0 | CR55: 0 | CS55: 0 | CT55: 0 | CU55: 0 | CV55: 0 | CW55: 0 | CX55: 0 | CY55: 0 | CZ55: 0 | DA55: 0 | DB55: 0 | DC55: 0 | DD55: 0 | DE55: 0 | DF55: 0 | DG55: 0 | DH55: 0
C56: > 22 kV & < = 33 kV ; Subdivision | D56: 0 | E56: 0 | F56: 0 | G56: 0 | H56: 0 | I56: 0 | J56: 0 | K56: 0 | L56: 0 | M56: 0 | N56: 0 | O56: 0 | P56: 0 | Q56: 0 | R56: 0 | S56: 0 | T56: 0 | U56: 0 | V56: 0 | W56: 0 | X56: 0 | Y56: 0 | Z56: 0 | AA56: 0 | AB56: 0 | AC56: 0 | AD56: 0 | AE56: 0 | AF56: 0 | AG56: 0 | AH56: 0 | AI56: 0 | AJ56: 0 | AK56: 0 | AL56: 0 | AM56: 0 | AN56: 0 | AO56: 0 | AP56: 0 | AQ56: 0 | AR56: 0 | AS56: 0 | AT56: 0 | AU56: 0 | AV56: 0 | AW56: 0 | AX56: 0 | AY56: 0 | AZ56: 0 | BA56: 0 | BB56: 0 | BC56: 0 | BD56: 0 | BE56: 0 | BF56: 0 | BG56: 0 | BH56: 0 | BI56: 0 | BJ56: 0 | BK56: 0 | BL56: 0 | BM56: 0 | BN56: 0 | BO56: 0 | BP56: 0 | BQ56: 0 | BR56: 0 | BS56: 0 | BT56: 0 | BU56: 0 | BV56: 0 | BW56: 0 | BX56: 0 | BY56: 0 | BZ56: 0 | CA56: 0 | CB56: 0 | CC56: 0 | CD56: 0 | CE56: 0 | CF56: 0 | CG56: 0 | CH56: 0 | CI56: 0 | CJ56: 0 | CK56: 0 | CL56: 0 | CM56: 0 | CN56: 0 | CO56: 0 | CP56: 0 | CQ56: 0 | CR56: 0 | CS56: 0 | CT56: 0 | CU56: 0 | CV56: 0 | CW56: 0 | CX56: 0 | CY56: 0 | CZ56: 0 | DA56: 0 | DB56: 0 | DC56: 0 | DD56: 0 | DE56: 0 | DF56: 0 | DG56: 0 | DH56: 0
C57: > 33 kV & < = 66 kV ; Commercial & Industrial | D57: 0 | E57: 0 | F57: 0 | G57: 0 | H57: 0 | I57: 0 | J57: 0 | K57: 0 | L57: 0 | M57: 0 | N57: 0 | O57: 0 | P57: 0 | Q57: 0 | R57: 0 | S57: 0 | T57: 0 | U57: 0 | V57: 0 | W57: 0 | X57: 0 | Y57: 0 | Z57: 0 | AA57: 0 | AB57: 0 | AC57: 0 | AD57: 0 | AE57: 0 | AF57: 0 | AG57: 0 | AH57: 0 | AI57: 0 | AJ57: 0 | AK57: 0 | AL57: 0 | AM57: 0 | AN57: 0 | AO57: 0 | AP57: 0 | AQ57: 0 | AR57: 0 | AS57: 0 | AT57: 0 | AU57: 0 | AV57: 0 | AW57: 0 | AX57: 0 | AY57: 0 | AZ57: 0 | BA57: 0 | BB57: 0 | BC57: 0 | BD57: 0 | BE57: 0 | BF57: 0 | BG57: 0 | BH57: 0 | BI57: 0 | BJ57: 0 | BK57: 0 | BL57: 0 | BM57: 0 | BN57: 0 | BO57: 0 | BP57: 0 | BQ57: 0 | BR57: 0 | BS57: 0 | BT57: 0 | BU57: 0 | BV57: 0 | BW57: 0 | BX57: 0 | BY57: 0 | BZ57: 0 | CA57: 0 | CB57: 0 | CC57: 0 | CD57: 0 | CE57: 0 | CF57: 0 | CG57: 0 | CH57: 0 | CI57: 0 | CJ57: 0 | CK57: 0 | CL57: 0 | CM57: 0 | CN57: 0 | CO57: 0 | CP57: 0 | CQ57: 0 | CR57: 0 | CS57: 0 | CT57: 0 | CU57: 0 | CV57: 0 | CW57: 0 | CX57: 0 | CY57: 0 | CZ57: 0 | DA57: 0 | DB57: 0 | DC57: 0 | DD57: 0 | DE57: 0 | DF57: 0 | DG57: 0 | DH57: 0
C58: > 33 kV & < = 66 kV ; Subdivision | D58: 0 | E58: 0 | F58: 0 | G58: 0 | H58: 0 | I58: 0 | J58: 0 | K58: 0 | L58: 0 | M58: 0 | N58: 0 | O58: 0 | P58: 0 | Q58: 0 | R58: 0 | S58: 0 | T58: 0 | U58: 0 | V58: 0 | W58: 0 | X58: 0 | Y58: 0 | Z58: 0 | AA58: 0 | AB58: 0 | AC58: 0 | AD58: 0 | AE58: 0 | AF58: 0 | AG58: 0 | AH58: 0 | AI58: 0 | AJ58: 0 | AK58: 0 | AL58: 0 | AM58: 0 | AN58: 0 | AO58: 0 | AP58: 0 | AQ58: 0 | AR58: 0 | AS58: 0 | AT58: 0 | AU58: 0 | AV58: 0 | AW58: 0 | AX58: 0 | AY58: 0 | AZ58: 0 | BA58: 0 | BB58: 0 | BC58: 0 | BD58: 0 | BE58: 0 | BF58: 0 | BG58: 0 | BH58: 0 | BI58: 0 | BJ58: 0 | BK58: 0 | BL58: 0 | BM58: 0 | BN58: 0 | BO58: 0 | BP58: 0 | BQ58: 0 | BR58: 0 | BS58: 0 | BT58: 0 | BU58: 0 | BV58: 0 | BW58: 0 | BX58: 0 | BY58: 0 | BZ58: 0 | CA58: 0 | CB58: 0 | CC58: 0 | CD58: 0 | CE58: 0 | CF58: 0 | CG58: 0 | CH58: 0 | CI58: 0 | CJ58: 0 | CK58: 0 | CL58: 0 | CM58: 0 | CN58: 0 | CO58: 0 | CP58: 0 | CQ58: 0 | CR58: 0 | CS58: 0 | CT58: 0 | CU58: 0 | CV58: 0 | CW58: 0 | CX58: 0 | CY58: 0 | CZ58: 0 | DA58: 0 | DB58: 0 | DC58: 0 | DD58: 0 | DE58: 0 | DF58: 0 | DG58: 0 | DH58: 0
C59: > 66 kV & < = 132 kV ; Commercial & Industrial | D59: 0 | E59: 0 | F59: 0 | G59: 0 | H59: 0 | I59: 0 | J59: 0 | K59: 0 | L59: 0 | M59: 0 | N59: 0 | O59: 0 | P59: 0 | Q59: 0 | R59: 0 | S59: 0 | T59: 0 | U59: 0 | V59: 0 | W59: 0 | X59: 0 | Y59: 0 | Z59: 0 | AA59: 0 | AB59: 0 | AC59: 0 | AD59: 0 | AE59: 0 | AF59: 0 | AG59: 0 | AH59: 0 | AI59: 0 | AJ59: 0 | AK59: 0 | AL59: 0 | AM59: 0 | AN59: 0 | AO59: 0 | AP59: 0 | AQ59: 0 | AR59: 0 | AS59: 0 | AT59: 0 | AU59: 0 | AV59: 0 | AW59: 0 | AX59: 0 | AY59: 0 | AZ59: 0 | BA59: 0 | BB59: 0 | BC59: 0 | BD59: 0 | BE59: 0 | BF59: 0 | BG59: 0 | BH59: 0 | BI59: 0 | BJ59: 0 | BK59: 0 | BL59: 0 | BM59: 0 | BN59: 0 | BO59: 0 | BP59: 0 | BQ59: 0 | BR59: 0 | BS59: 0 | BT59: 0 | BU59: 0 | BV59: 0 | BW59: 0 | BX59: 0 | BY59: 0 | BZ59: 0 | CA59: 0 | CB59: 0 | CC59: 0 | CD59: 0 | CE59: 0 | CF59: 0 | CG59: 0 | CH59: 0 | CI59: 0 | CJ59: 0 | CK59: 0 | CL59: 0 | CM59: 0 | CN59: 0 | CO59: 0 | CP59: 0 | CQ59: 0 | CR59: 0 | CS59: 0 | CT59: 0 | CU59: 0 | CV59: 0 | CW59: 0 | CX59: 0 | CY59: 0 | CZ59: 0 | DA59: 0 | DB59: 0 | DC59: 0 | DD59: 0 | DE59: 0 | DF59: 0 | DG59: 0 | DH59: 0
C60: > 66 kV & < = 132 kV ; Subdivision | D60: 0 | E60: 0 | F60: 0 | G60: 0 | H60: 0 | I60: 0 | J60: 0 | K60: 0 | L60: 0 | M60: 0 | N60: 0 | O60: 0 | P60: 0 | Q60: 0 | R60: 0 | S60: 0 | T60: 0 | U60: 0 | V60: 0 | W60: 0 | X60: 0 | Y60: 0 | Z60: 0 | AA60: 0 | AB60: 0 | AC60: 0 | AD60: 0 | AE60: 0 | AF60: 0 | AG60: 0 | AH60: 0 | AI60: 0 | AJ60: 0 | AK60: 0 | AL60: 0 | AM60: 0 | AN60: 0 | AO60: 0 | AP60: 0 | AQ60: 0 | AR60: 0 | AS60: 0 | AT60: 0 | AU60: 0 | AV60: 0 | AW60: 0 | AX60: 0 | AY60: 0 | AZ60: 0 | BA60: 0 | BB60: 0 | BC60: 0 | BD60: 0 | BE60: 0 | BF60: 0 | BG60: 0 | BH60: 0 | BI60: 0 | BJ60: 0 | BK60: 0 | BL60: 0 | BM60: 0 | BN60: 0 | BO60: 0 | BP60: 0 | BQ60: 0 | BR60: 0 | BS60: 0 | BT60: 0 | BU60: 0 | BV60: 0 | BW60: 0 | BX60: 0 | BY60: 0 | BZ60: 0 | CA60: 0 | CB60: 0 | CC60: 0 | CD60: 0 | CE60: 0 | CF60: 0 | CG60: 0 | CH60: 0 | CI60: 0 | CJ60: 0 | CK60: 0 | CL60: 0 | CM60: 0 | CN60: 0 | CO60: 0 | CP60: 0 | CQ60: 0 | CR60: 0 | CS60: 0 | CT60: 0 | CU60: 0 | CV60: 0 | CW60: 0 | CX60: 0 | CY60: 0 | CZ60: 0 | DA60: 0 | DB60: 0 | DC60: 0 | DD60: 0 | DE60: 0 | DF60: 0 | DG60: 0 | DH60: 0
C61: > 132 kV ; Commercial & Industrial | D61: 0 | E61: 0 | F61: 0 | G61: 0 | H61: 0 | I61: 0 | J61: 0 | K61: 0 | L61: 0 | M61: 0 | N61: 0 | O61: 0 | P61: 0 | Q61: 0 | R61: 0 | S61: 0 | T61: 0 | U61: 0 | V61: 0 | W61: 0 | X61: 0 | Y61: 0 | Z61: 0 | AA61: 0 | AB61: 0 | AC61: 0 | AD61: 0 | AE61: 0 | AF61: 0 | AG61: 0 | AH61: 0 | AI61: 0 | AJ61: 0 | AK61: 0 | AL61: 0 | AM61: 0 | AN61: 0 | AO61: 0 | AP61: 0 | AQ61: 0 | AR61: 0 | AS61: 0 | AT61: 0 | AU61: 0 | AV61: 0 | AW61: 0 | AX61: 0 | AY61: 0 | AZ61: 0 | BA61: 0 | BB61: 0 | BC61: 0 | BD61: 0 | BE61: 0 | BF61: 0 | BG61: 0 | BH61: 0 | BI61: 0 | BJ61: 0 | BK61: 0 | BL61: 0 | BM61: 0 | BN61: 0 | BO61: 0 | BP61: 0 | BQ61: 0 | BR61: 0 | BS61: 0 | BT61: 0 | BU61: 0 | BV61: 0 | BW61: 0 | BX61: 0 | BY61: 0 | BZ61: 0 | CA61: 0 | CB61: 0 | CC61: 0 | CD61: 0 | CE61: 0 | CF61: 0 | CG61: 0 | CH61: 0 | CI61: 0 | CJ61: 0 | CK61: 0 | CL61: 0 | CM61: 0 | CN61: 0 | CO61: 0 | CP61: 0 | CQ61: 0 | CR61: 0 | CS61: 0 | CT61: 0 | CU61: 0 | CV61: 0 | CW61: 0 | CX61: 0 | CY61: 0 | CZ61: 0 | DA61: 0 | DB61: 0 | DC61: 0 | DD61: 0 | DE61: 0 | DF61: 0 | DG61: 0 | DH61: 0
C62: > 132 kV ; Subdivision | D62: 0 | E62: 0 | F62: 0 | G62: 0 | H62: 0 | I62: 0 | J62: 0 | K62: 0 | L62: 0 | M62: 0 | N62: 0 | O62: 0 | P62: 0 | Q62: 0 | R62: 0 | S62: 0 | T62: 0 | U62: 0 | V62: 0 | W62: 0 | X62: 0 | Y62: 0 | Z62: 0 | AA62: 0 | AB62: 0 | AC62: 0 | AD62: 0 | AE62: 0 | AF62: 0 | AG62: 0 | AH62: 0 | AI62: 0 | AJ62: 0 | AK62: 0 | AL62: 0 | AM62: 0 | AN62: 0 | AO62: 0 | AP62: 0 | AQ62: 0 | AR62: 0 | AS62: 0 | AT62: 0 | AU62: 0 | AV62: 0 | AW62: 0 | AX62: 0 | AY62: 0 | AZ62: 0 | BA62: 0 | BB62: 0 | BC62: 0 | BD62: 0 | BE62: 0 | BF62: 0 | BG62: 0 | BH62: 0 | BI62: 0 | BJ62: 0 | BK62: 0 | BL62: 0 | BM62: 0 | BN62: 0 | BO62: 0 | BP62: 0 | BQ62: 0 | BR62: 0 | BS62: 0 | BT62: 0 | BU62: 0 | BV62: 0 | BW62: 0 | BX62: 0 | BY62: 0 | BZ62: 0 | CA62: 0 | CB62: 0 | CC62: 0 | CD62: 0 | CE62: 0 | CF62: 0 | CG62: 0 | CH62: 0 | CI62: 0 | CJ62: 0 | CK62: 0 | CL62: 0 | CM62: 0 | CN62: 0 | CO62: 0 | CP62: 0 | CQ62: 0 | CR62: 0 | CS62: 0 | CT62: 0 | CU62: 0 | CV62: 0 | CW62: 0 | CX62: 0 | CY62: 0 | CZ62: 0 | DA62: 0 | DB62: 0 | DC62: 0 | DD62: 0 | DE62: 0 | DF62: 0 | DG62: 0 | DH62: 0
C63: Other | D63: 0 | E63: 0 | F63: 0 | G63: 0 | H63: 0 | I63: 0 | J63: 0 | K63: 0 | L63: 0 | M63: 0 | N63: 0 | O63: 0 | P63: 0 | Q63: 0 | R63: 0 | S63: 0 | T63: 0 | U63: 0 | V63: 0 | W63: 0 | X63: 0 | Y63: 0 | Z63: 0 | AA63: 0 | AB63: 0 | AC63: 0 | AD63: 0 | AE63: 0 | AF63: 0 | AG63: 0 | AH63: 0 | AI63: 0 | AJ63: 0 | AK63: 0 | AL63: 0 | AM63: 0 | AN63: 0 | AO63: 0 | AP63: 0 | AQ63: 0 | AR63: 0 | AS63: 0 | AT63: 0 | AU63: 0 | AV63: 0 | AW63: 0 | AX63: 0 | AY63: 0 | AZ63: 0 | BA63: 0 | BB63: 0 | BC63: 0 | BD63: 0 | BE63: 0 | BF63: 0 | BG63: 0 | BH63: 0 | BI63: 0 | BJ63: 0 | BK63: 0 | BL63: 0 | BM63: 0 | BN63: 0 | BO63: 0 | BP63: 0 | BQ63: 0 | BR63: 0 | BS63: 0 | BT63: 0 | BU63: 0 | BV63: 0 | BW63: 0 | BX63: 0 | BY63: 0 | BZ63: 0 | CA63: 0 | CB63: 0 | CC63: 0 | CD63: 0 | CE63: 0 | CF63: 0 | CG63: 0 | CH63: 0 | CI63: 0 | CJ63: 0 | CK63: 0 | CL63: 0 | CM63: 0 | CN63: 0 | CO63: 0 | CP63: 0 | CQ63: 0 | CR63: 0 | CS63: 0 | CT63: 0 | CU63: 0 | CV63: 0 | CW63: 0 | CX63: 0 | CY63: 0 | CZ63: 0 | DA63: 0 | DB63: 0 | DC63: 0 | DD63: 0 | DE63: 0 | DF63: 0 | DG63: 0 | DH63: 0
B64: TRANSFORMERS BY: MOUNTING TYPE; HIGHEST OPERATING VOLTAGE ; AMPERE RATING; NUMBER OF PHASES (AT LV) | C64: Pole Mounted ; < = 22kV ; < = 60 kVA ; Single Phase | D64: 58 | E64: 7.615773106 | F64: 365 | G64: 283.0193928 | H64: 352.247158 | I64: 447.9443627 | J64: 463.2151933 | K64: 465.251304 | L64: 508.0096295 | M64: 582.3276715 | N64: 610.8332219 | O64: 586.399893 | P64: 566.0387856 | Q64: 533.4610138 | R64: 623.0498863 | S64: 599.6346128 | T64: 685.1512639 | U64: 640.3568276 | V64: 500.8832419 | W64: 574.1832286 | X64: 691.2595961 | Y64: 693.2957068 | Z64: 571.1290625 | AA64: 536.5151799 | AB64: 590.4721145 | AC64: 757.4331951 | AD64: 781.866524 | AE64: 877.5637288 | AF64: 835.8234586 | AG64: 1078.120637 | AH64: 1305.146984 | AI64: 1162.619232 | AJ64: 1262.388659 | AK64: 1269.515046 | AL64: 1237.95533 | AM64: 1146.330346 | AN64: 886.7262271 | AO64: 1022.127591 | AP64: 1436.476127 | AQ64: 1089.319246 | AR64: 1055.723418 | AS64: 910.1415006 | AT64: 838.8776247 | AU64: 846.0040123 | AV64: 361.4096563 | AW64: 322.7235522 | AX64: 335.958272 | AY64: 371.59021 | AZ64: 374.6443761 | BA64: 362.4277116 | BB64: 353.2652133 | BC64: 424.5290892 | BD64: 607.7790558 | BE64: 435.7276983 | BF64: 387.8790959 | BG64: 447.9443627 | BH64: 331.8860506 | BI64: 294.2180019 | BJ64: 206.6652401 | BK64: 145.5819179 | BL64: 95.69720476 | BM64: 88.57081717 | BN64: 72.28193126 | BO64: 28.50555035 | BP64: 26.46943961 | BQ64: 11.19860907 | BR64: 12.21666444 | BS64: 2.03611074 | BT64: 3.054166109 | BU64: 29.52360572 | BV64: 1.01805537 | BW64: 3.054166109 | BX64: 4.072221479 | BY64: 0 | BZ64: 3.054166109 | CA64: 0 | CB64: 0 | CC64: 0 | CD64: 0 | CE64: 1.01805537 | CF64: 3.054166109 | CG64: 1.01805537 | CH64: 0 | CI64: 2.03611074 | CJ64: 0 | CK64: 0 | CL64: 0 | CM64: 0 | CN64: 0 | CO64: 0 | CP64: 1.01805537 | CQ64: 0 | CR64: 0 | CS64: 0 | CT64: 0 | CU64: 0 | CV64: 0 | CW64: 0 | CX64: 0 | CY64: 0 | CZ64: 1.01805537 | DA64: 0 | DB64: 0 | DC64: 0 | DD64: 0 | DE64: 0 | DF64: 0 | DG64: 1.01805537 | DH64: 0
C65: Pole Mounted ; < = 22kV ; > 60 kVA and < = 600 kVA ; Single Phase | D65: 58 | E65: 7.615773106 | F65: 7 | G65: 5.158172232 | H65: 9.284710018 | I65: 15.4745167 | J65: 33.01230228 | K65: 19.60105448 | L65: 17.53778559 | M65: 10.31634446 | N65: 27.85413005 | O65: 12.37961336 | P65: 21.66432337 | Q65: 18.56942004 | R65: 11.34797891 | S65: 10.31634446 | T65: 14.44288225 | U65: 8.253075571 | V65: 8.253075571 | W65: 7.221441125 | X65: 11.34797891 | Y65: 14.44288225 | Z65: 15.4745167 | AA65: 15.4745167 | AB65: 14.44288225 | AC65: 14.44288225 | AD65: 10.31634446 | AE65: 12.37961336 | AF65: 7.221441125 | AG65: 10.31634446 | AH65: 11.34797891 | AI65: 13.4112478 | AJ65: 14.44288225 | AK65: 9.284710018 | AL65: 10.31634446 | AM65: 8.253075571 | AN65: 10.31634446 | AO65: 9.284710018 | AP65: 13.4112478 | AQ65: 17.53778559 | AR65: 15.4745167 | AS65: 7.221441125 | AT65: 8.253075571 | AU65: 13.4112478 | AV65: 5.158172232 | AW65: 4.126537786 | AX65: 1.031634446 | AY65: 2.063268893 | AZ65: 0 | BA65: 2.063268893 | BB65: 0 | BC65: 4.126537786 | BD65: 5.158172232 | BE65: 4.126537786 | BF65: 1.031634446 | BG65: 0 | BH65: 3.094903339 | BI65: 3.094903339 | BJ65: 4.126537786 | BK65: 6.189806678 | BL65: 1.031634446 | BM65: 1.031634446 | BN65: 0 | BO65: 0 | BP65: 0 | BQ65: 0 | BR65: 0 | BS65: 0 | BT65: 0 | BU65: 0 | BV65: 0 | BW65: 0 | BX65: 0 | BY65: 0 | BZ65: 0 | CA65: 0 | CB65: 0 | CC65: 0 | CD65: 0 | CE65: 0 | CF65: 0 | CG65: 0 | CH65: 1.031634446 | CI65: 0 | CJ65: 0 | CK65: 0 | CL65: 0 | CM65: 0 | CN65: 0 | CO65: 0 | CP65: 0 | CQ65: 0 | CR65: 0 | CS65: 0 | CT65: 0 | CU65: 0 | CV65: 0 | CW65: 0 | CX65: 0 | CY65: 0 | CZ65: 0 | DA65: 0 | DB65: 0 | DC65: 0 | DD65: 0 | DE65: 0 | DF65: 0 | DG65: 0 | DH65: 0
C66: Pole Mounted ; < = 22kV ; > 600 kVA ; Single Phase | D66: 58 | E66: 7.615773106 | F66: 0 | G66: 1 | H66: 0 | I66: 0 | J66: 0 | K66: 0 | L66: 0 | M66: 0 | N66: 0 | O66: 0 | P66: 0 | Q66: 0 | R66: 0 | S66: 0 | T66: 0 | U66: 0 | V66: 0 | W66: 0 | X66: 0 | Y66: 0 | Z66: 0 | AA66: 0 | AB66: 0 | AC66: 2 | AD66: 0 | AE66: 0 | AF66: 0 | AG66: 1 | AH66: 0 | AI66: 0 | AJ66: 0 | AK66: 1 | AL66: 0 | AM66: 1 | AN66: 0 | AO66: 0 | AP66: 0 | AQ66: 0 | AR66: 0 | AS66: 0 | AT66: 0 | AU66: 0 | AV66: 1 | AW66: 0 | AX66: 0 | AY66: 0 | AZ66: 1 | BA66: 0 | BB66: 1 | BC66: 0 | BD66: 0 | BE66: 0 | BF66: 0 | BG66: 1 | BH66: 0 | BI66: 0 | BJ66: 0 | BK66: 1 | BL66: 0 | BM66: 0 | BN66: 0 | BO66: 0 | BP66: 0 | BQ66: 0 | BR66: 0 | BS66: 0 | BT66: 0 | BU66: 1 | BV66: 0 | BW66: 0 | BX66: 0 | BY66: 0 | BZ66: 0 | CA66: 0 | CB66: 0 | CC66: 0 | CD66: 0 | CE66: 0 | CF66: 0 | CG66: 0 | CH66: 0 | CI66: 0 | CJ66: 0 | CK66: 0 | CL66: 0 | CM66: 0 | CN66: 0 | CO66: 0 | CP66: 0 | CQ66: 0 | CR66: 0 | CS66: 0 | CT66: 0 | CU66: 0 | CV66: 0 | CW66: 0 | CX66: 0 | CY66: 0 | CZ66: 0 | DA66: 0 | DB66: 0 | DC66: 0 | DD66: 0 | DE66: 0 | DF66: 0 | DG66: 0 | DH66: 0
C67: Pole Mounted ; < = 22kV ; < = 60 kVA ; Multiple Phase | D67: 58 | E67: 7.615773106 | F67: 27 | G67: 34.39527813 | H67: 45.52316223 | I67: 36.41852978 | J67: 45.52316223 | K67: 38.44178143 | L67: 58.67429798 | M67: 63.73242712 | N67: 76.88356287 | O67: 81.94169201 | P67: 80.93006618 | Q67: 71.82543373 | R67: 92.05795028 | S67: 98.12770524 | T67: 79.91844035 | U67: 97.11607941 | V67: 167.9298873 | W67: 200.3019138 | X67: 223.5693078 | Y67: 196.2554105 | Z67: 148.7089966 | AA67: 131.5113575 | AB67: 132.5229834 | AC67: 179.0577714 | AD67: 156.8020032 | AE67: 158.8252549 | AF67: 165.9066357 | AG67: 237.7320694 | AH67: 267.0692184 | AI67: 181.0810231 | AJ67: 151.7438741 | AK67: 151.7438741 | AL67: 154.7787516 | AM67: 138.5927383 | AN67: 133.5346092 | AO67: 137.5811125 | AP67: 177.0345198 | AQ67: 129.4881059 | AR67: 113.3020926 | AS67: 97.11607941 | AT67: 80.93006618 | AU67: 73.84868539 | AV67: 35.40690395 | AW67: 35.40690395 | AX67: 59.68592381 | AY67: 46.53478805 | AZ67: 42.48828474 | BA67: 59.68592381 | BB67: 37.43015561 | BC67: 56.65104632 | BD67: 39.45340726 | BE67: 27.31389734 | BF67: 31.36040064 | BG67: 20.23251654 | BH67: 20.23251654 | BI67: 19.22089072 | BJ67: 10.11625827 | BK67: 5.058129136 | BL67: 3.034877482 | BM67: 8.093006618 | BN67: 1.011625827 | BO67: 0 | BP67: 1.011625827 | BQ67: 0 | BR67: 0 | BS67: 0 | BT67: 0 | BU67: 5.058129136 | BV67: 0 | BW67: 0 | BX67: 1.011625827 | BY67: 0 | BZ67: 0 | CA67: 0 | CB67: 0 | CC67: 0 | CD67: 0 | CE67: 0 | CF67: 0 | CG67: 1.011625827 | CH67: 0 | CI67: 0 | CJ67: 0 | CK67: 0 | CL67: 0 | CM67: 0 | CN67: 0 | CO67: 0 | CP67: 0 | CQ67: 0 | CR67: 0 | CS67: 0 | CT67: 1.011625827 | CU67: 0 | CV67: 0 | CW67: 0 | CX67: 0 | CY67: 0 | CZ67: 0 | DA67: 0 | DB67: 0 | DC67: 0 | DD67: 0 | DE67: 0 | DF67: 0 | DG67: 0 | DH67: 0
C68: Pole Mounted ; < = 22kV ; > 60 kVA and < = 600 kVA ; Multiple Phase | D68: 58 | E68: 7.615773106 | F68: 368 | G68: 217.3581468 | H68: 253.5845046 | I68: 365.2008503 | J68: 371.0753948 | K68: 358.347215 | L68: 466.0471976 | M68: 649.1371681 | N68: 494.4408294 | O68: 408.2808433 | P68: 421.0090231 | Q68: 350.514489 | R68: 343.6608537 | S68: 280.0199549 | T68: 327.9954017 | U68: 266.3126844 | V68: 216.379056 | W68: 207.5672393 | X68: 191.9017873 | Y68: 157.633611 | Z68: 156.6545202 | AA68: 114.5536179 | AB68: 120.4281624 | AC68: 122.3863439 | AD68: 130.2190699 | AE68: 135.1145237 | AF68: 127.2817977 | AG68: 224.2117821 | AH68: 256.5217769 | AI68: 224.2117821 | AJ68: 209.5254208 | AK68: 221.2745098 | AL68: 215.3999653 | AM68: 157.633611 | AN68: 183.0899705 | AO68: 211.4836023 | AP68: 278.0617734 | AQ68: 194.8390595 | AR68: 220.2954191 | AS68: 213.4417838 | AT68: 248.6890508 | AU68: 232.0445081 | AV68: 93.01362138 | AW68: 80.28544161 | AX68: 62.66180809 | AY68: 70.4945341 | AZ68: 66.57817109 | BA68: 49.93362832 | BB68: 41.12181156 | BC68: 38.1845393 | BD68: 47.97544682 | BE68: 33.28908555 | BF68: 32.30999479 | BG68: 17.62363352 | BH68: 21.53999653 | BI68: 15.66545202 | BJ68: 13.70727052 | BK68: 19.58181503 | BL68: 5.874544508 | BM68: 9.790907513 | BN68: 2.937272254 | BO68: 3.916363005 | BP68: 1.958181503 | BQ68: 2.937272254 | BR68: 0 | BS68: 1.958181503 | BT68: 0 | BU68: 4.895453757 | BV68: 0 | BW68: 0 | BX68: 0.9790907513 | BY68: 0 | BZ68: 0 | CA68: 0.9790907513 | CB68: 0 | CC68: 0 | CD68: 0 | CE68: 0 | CF68: 0 | CG68: 0 | CH68: 0 | CI68: 0.9790907513 | CJ68: 0 | CK68: 0 | CL68: 0 | CM68: 0 | CN68: 0 | CO68: 0 | CP68: 0 | CQ68: 0 | CR68: 0 | CS68: 0 | CT68: 0 | CU68: 0 | CV68: 0 | CW68: 0 | CX68: 0 | CY68: 0 | CZ68: 0 | DA68: 0 | DB68: 0 | DC68: 0 | DD68: 0 | DE68: 0 | DF68: 0 | DG68: 0 | DH68: 0
C69: Pole Mounted ; < = 22kV ; > 600 kVA ; Multiple Phase | D69: 58 | E69: 7.615773106 | F69: 0 | G69: 0 | H69: 0 | I69: 0 | J69: 0 | K69: 0 | L69: 0 | M69: 1 | N69: 0 | O69: 0 | P69: 0 | Q69: 0 | R69: 0 | S69: 0 | T69: 0 | U69: 0 | V69: 0 | W69: 0 | X69: 0 | Y69: 0 | Z69: 0 | AA69: 0 | AB69: 1 | AC69: 1 | AD69: 0 | AE69: 0 | AF69: 0 | AG69: 0 | AH69: 0 | AI69: 0 | AJ69: 0 | AK69: 1 | AL69: 0 | AM69: 0 | AN69: 0 | AO69: 0 | AP69: 0 | AQ69: 0 | AR69: 0 | AS69: 0 | AT69: 1 | AU69: 0 | AV69: 0 | AW69: 0 | AX69: 0 | AY69: 0 | AZ69: 0 | BA69: 0 | BB69: 0 | BC69: 0 | BD69: 0 | BE69: 0 | BF69: 0 | BG69: 0 | BH69: 0 | BI69: 0 | BJ69: 0 | BK69: 0 | BL69: 0 | BM69: 0 | BN69: 0 | BO69: 0 | BP69: 0 | BQ69: 0 | BR69: 0 | BS69: 0 | BT69: 0 | BU69: 0 | BV69: 0 | BW69: 0 | BX69: 0 | BY69: 0 | BZ69: 0 | CA69: 0 | CB69: 0 | CC69: 0 | CD69: 0 | CE69: 0 | CF69: 0 | CG69: 0 | CH69: 0 | CI69: 0 | CJ69: 0 | CK69: 0 | CL69: 0 | CM69: 0 | CN69: 0 | CO69: 0 | CP69: 0 | CQ69: 0 | CR69: 0 | CS69: 0 | CT69: 0 | CU69: 0 | CV69: 0 | CW69: 0 | CX69: 0 | CY69: 0 | CZ69: 0 | DA69: 0 | DB69: 0 | DC69: 0 | DD69: 0 | DE69: 0 | DF69: 0 | DG69: 0 | DH69: 0
C70: Kiosk Mounted ; < = 22kV ; < = 60 kVA ; Single Phase | D70: 58 | E70: 7.615773106 | F70: 1 | G70: 0 | H70: 1 | I70: 4 | J70: 1 | K70: 0 | L70: 1 | M70: 4 | N70: 1 | O70: 2 | P70: 0 | Q70: 6 | R70: 3 | S70: 2 | T70: 3 | U70: 2 | V70: 3 | W70: 5 | X70: 5 | Y70: 7 | Z70: 4 | AA70: 1 | AB70: 2 | AC70: 2 | AD70: 0 | AE70: 0 | AF70: 0 | AG70: 0 | AH70: 0 | AI70: 0 | AJ70: 0 | AK70: 0 | AL70: 0 | AM70: 0 | AN70: 0 | AO70: 0 | AP70: 0 | AQ70: 0 | AR70: 0 | AS70: 0 | AT70: 0 | AU70: 0 | AV70: 0 | AW70: 0 | AX70: 0 | AY70: 0 | AZ70: 0 | BA70: 0 | BB70: 0 | BC70: 0 | BD70: 0 | BE70: 0 | BF70: 0 | BG70: 0 | BH70: 0 | BI70: 0 | BJ70: 0 | BK70: 0 | BL70: 0 | BM70: 0 | BN70: 0 | BO70: 0 | BP70: 0 | BQ70: 0 | BR70: 0 | BS70: 0 | BT70: 0 | BU70: 0 | BV70: 0 | BW70: 0 | BX70: 0 | BY70: 0 | BZ70: 0 | CA70: 0 | CB70: 0 | CC70: 0 | CD70: 0 | CE70: 0 | CF70: 0 | CG70: 0 | CH70: 0 | CI70: 0 | CJ70: 0 | CK70: 0 | CL70: 0 | CM70: 0 | CN70: 0 | CO70: 0 | CP70: 0 | CQ70: 0 | CR70: 0 | CS70: 0 | CT70: 0 | CU70: 0 | CV70: 0 | CW70: 0 | CX70: 0 | CY70: 0 | CZ70: 0 | DA70: 0 | DB70: 0 | DC70: 0 | DD70: 0 | DE70: 0 | DF70: 0 | DG70: 0 | DH70: 0
C71: Kiosk Mounted ; < = 22kV ; > 60 kVA and < = 600 kVA ; Single Phase | D71: 0 | E71: 0 | F71: 0 | G71: 0 | H71: 0 | I71: 0 | J71: 0 | K71: 0 | L71: 0 | M71: 0 | N71: 0 | O71: 0 | P71: 0 | Q71: 0 | R71: 0 | S71: 0 | T71: 0 | U71: 0 | V71: 0 | W71: 0 | X71: 0 | Y71: 0 | Z71: 0 | AA71: 0 | AB71: 0 | AC71: 0 | AD71: 0 | AE71: 0 | AF71: 0 | AG71: 0 | AH71: 0 | AI71: 0 | AJ71: 0 | AK71: 0 | AL71: 0 | AM71: 0 | AN71: 0 | AO71: 0 | AP71: 0 | AQ71: 0 | AR71: 0 | AS71: 0 | AT71: 0 | AU71: 0 | AV71: 0 | AW71: 0 | AX71: 0 | AY71: 0 | AZ71: 0 | BA71: 0 | BB71: 0 | BC71: 0 | BD71: 0 | BE71: 0 | BF71: 0 | BG71: 0 | BH71: 0 | BI71: 0 | BJ71: 0 | BK71: 0 | BL71: 0 | BM71: 0 | BN71: 0 | BO71: 0 | BP71: 0 | BQ71: 0 | BR71: 0 | BS71: 0 | BT71: 0 | BU71: 0 | BV71: 0 | BW71: 0 | BX71: 0 | BY71: 0 | BZ71: 0 | CA71: 0 | CB71: 0 | CC71: 0 | CD71: 0 | CE71: 0 | CF71: 0 | CG71: 0 | CH71: 0 | CI71: 0 | CJ71: 0 | CK71: 0 | CL71: 0 | CM71: 0 | CN71: 0 | CO71: 0 | CP71: 0 | CQ71: 0 | CR71: 0 | CS71: 0 | CT71: 0 | CU71: 0 | CV71: 0 | CW71: 0 | CX71: 0 | CY71: 0 | CZ71: 0 | DA71: 0 | DB71: 0 | DC71: 0 | DD71: 0 | DE71: 0 | DF71: 0 | DG71: 0 | DH71: 0
C72: Kiosk Mounted ; < = 22kV ; > 600 kVA ; Single Phase | D72: 0 | E72: 0 | F72: 0 | G72: 0 | H72: 0 | I72: 0 | J72: 0 | K72: 0 | L72: 0 | M72: 0 | N72: 0 | O72: 0 | P72: 0 | Q72: 0 | R72: 0 | S72: 0 | T72: 0 | U72: 0 | V72: 0 | W72: 0 | X72: 0 | Y72: 0 | Z72: 0 | AA72: 0 | AB72: 0 | AC72: 0 | AD72: 0 | AE72: 0 | AF72: 0 | AG72: 0 | AH72: 0 | AI72: 0 | AJ72: 0 | AK72: 0 | AL72: 0 | AM72: 0 | AN72: 0 | AO72: 0 | AP72: 0 | AQ72: 0 | AR72: 0 | AS72: 0 | AT72: 0 | AU72: 0 | AV72: 0 | AW72: 0 | AX72: 0 | AY72: 0 | AZ72: 0 | BA72: 0 | BB72: 0 | BC72: 0 | BD72: 0 | BE72: 0 | BF72: 0 | BG72: 0 | BH72: 0 | BI72: 0 | BJ72: 0 | BK72: 0 | BL72: 0 | BM72: 0 | BN72: 0 | BO72: 0 | BP72: 0 | BQ72: 0 | BR72: 0 | BS72: 0 | BT72: 0 | BU72: 0 | BV72: 0 | BW72: 0 | BX72: 0 | BY72: 0 | BZ72: 0 | CA72: 0 | CB72: 0 | CC72: 0 | CD72: 0 | CE72: 0 | CF72: 0 | CG72: 0 | CH72: 0 | CI72: 0 | CJ72: 0 | CK72: 0 | CL72: 0 | CM72: 0 | CN72: 0 | CO72: 0 | CP72: 0 | CQ72: 0 | CR72: 0 | CS72: 0 | CT72: 0 | CU72: 0 | CV72: 0 | CW72: 0 | CX72: 0 | CY72: 0 | CZ72: 0 | DA72: 0 | DB72: 0 | DC72: 0 | DD72: 0 | DE72: 0 | DF72: 0 | DG72: 0 | DH72: 0
C73: Kiosk Mounted ; < = 22kV ; < = 60 kVA ; Multiple Phase | D73: 58 | E73: 7.615773106 | F73: 1 | G73: 0 | H73: 0 | I73: 4 | J73: 2 | K73: 1 | L73: 40 | M73: 1 | N73: 2 | O73: 0 | P73: 1 | Q73: 3 | R73: 3 | S73: 0 | T73: 2 | U73: 1 | V73: 1 | W73: 9 | X73: 0 | Y73: 0 | Z73: 0 | AA73: 0 | AB73: 0 | AC73: 0 | AD73: 0 | AE73: 0 | AF73: 0 | AG73: 0 | AH73: 0 | AI73: 0 | AJ73: 0 | AK73: 0 | AL73: 0 | AM73: 0 | AN73: 0 | AO73: 0 | AP73: 0 | AQ73: 0 | AR73: 0 | AS73: 0 | AT73: 0 | AU73: 0 | AV73: 0 | AW73: 0 | AX73: 0 | AY73: 0 | AZ73: 0 | BA73: 0 | BB73: 0 | BC73: 0 | BD73: 0 | BE73: 0 | BF73: 0 | BG73: 0 | BH73: 0 | BI73: 0 | BJ73: 0 | BK73: 0 | BL73: 0 | BM73: 0 | BN73: 0 | BO73: 0 | BP73: 0 | BQ73: 0 | BR73: 0 | BS73: 0 | BT73: 0 | BU73: 0 | BV73: 0 | BW73: 0 | BX73: 0 | BY73: 0 | BZ73: 0 | CA73: 0 | CB73: 0 | CC73: 0 | CD73: 0 | CE73: 0 | CF73: 0 | CG73: 0 | CH73: 0 | CI73: 0 | CJ73: 0 | CK73: 0 | CL73: 0 | CM73: 0 | CN73: 0 | CO73: 0 | CP73: 0 | CQ73: 0 | CR73: 0 | CS73: 0 | CT73: 0 | CU73: 0 | CV73: 0 | CW73: 0 | CX73: 0 | CY73: 0 | CZ73: 0 | DA73: 0 | DB73: 0 | DC73: 0 | DD73: 0 | DE73: 0 | DF73: 0 | DG73: 0 | DH73: 0
C74: Kiosk Mounted ; < = 22kV ; > 60 kVA and < = 600 kVA ; Multiple Phase | D74: 58 | E74: 7.615773106 | F74: 121 | G74: 87.47128927 | H74: 97.52546046 | I74: 138.7475623 | J74: 116.6283857 | K74: 160.8667389 | L74: 181.9804984 | M74: 195.0509209 | N74: 227.2242687 | O74: 183.9913326 | P74: 109.5904659 | Q74: 117.6338028 | R74: 108.5850488 | S74: 71.38461538 | T74: 74.40086674 | U74: 41.22210184 | V74: 70.37919827 | W74: 88.47670639 | X74: 57.30877573 | Y74: 38.20585049 | Z74: 28.15167931 | AA74: 25.13542795 | AB74: 31.16793066 | AC74: 47.25460455 | AD74: 25.13542795 | AE74: 36.19501625 | AF74: 45.24377031 | AG74: 49.26543879 | AH74: 52.28169014 | AI74: 55.2979415 | AJ74: 30.16251354 | AK74: 33.1787649 | AL74: 31.16793066 | AM74: 19.10292524 | AN74: 6.032502709 | AO74: 8.043336945 | AP74: 10.05417118 | AQ74: 12.06500542 | AR74: 18.09750813 | AS74: 18.09750813 | AT74: 23.12459372 | AU74: 11.0595883 | AV74: 0 | AW74: 0 | AX74: 0 | AY74: 0 | AZ74: 0 | BA74: 1.005417118 | BB74: 0 | BC74: 0 | BD74: 0 | BE74: 0 | BF74: 0 | BG74: 0 | BH74: 0 | BI74: 0 | BJ74: 0 | BK74: 0 | BL74: 0 | BM74: 0 | BN74: 0 | BO74: 0 | BP74: 0 | BQ74: 0 | BR74: 0 | BS74: 0 | BT74: 0 | BU74: 1.005417118 | BV74: 0 | BW74: 0 | BX74: 0 | BY74: 0 | BZ74: 0 | CA74: 0 | CB74: 0 | CC74: 0 | CD74: 0 | CE74: 0 | CF74: 0 | CG74: 0 | CH74: 0 | CI74: 0 | CJ74: 0 | CK74: 0 | CL74: 0 | CM74: 0 | CN74: 0 | CO74: 0 | CP74: 0 | CQ74: 0 | CR74: 0 | CS74: 0 | CT74: 0 | CU74: 0 | CV74: 0 | CW74: 0 | CX74: 0 | CY74: 0 | CZ74: 0 | DA74: 0 | DB74: 0 | DC74: 0 | DD74: 0 | DE74: 0 | DF74: 0 | DG74: 0 | DH74: 0
C75: Kiosk Mounted ; < = 22kV ; > 600 kVA ; Multiple Phase | D75: 58 | E75: 7.615773106 | F75: 30 | G75: 15 | H75: 21 | I75: 23 | J75: 20 | K75: 21 | L75: 16 | M75: 18 | N75: 13 | O75: 17 | P75: 13 | Q75: 12 | R75: 9 | S75: 10 | T75: 7 | U75: 7 | V75: 8 | W75: 10 | X75: 3 | Y75: 1 | Z75: 1 | AA75: 1 | AB75: 1 | AC75: 0 | AD75: 3 | AE75: 0 | AF75: 2 | AG75: 0 | AH75: 2 | AI75: 0 | AJ75: 1 | AK75: 0 | AL75: 0 | AM75: 0 | AN75: 1 | AO75: 0 | AP75: 0 | AQ75: 0 | AR75: 0 | AS75: 0 | AT75: 0 | AU75: 0 | AV75: 0 | AW75: 0 | AX75: 0 | AY75: 0 | AZ75: 0 | BA75: 0 | BB75: 0 | BC75: 0 | BD75: 0 | BE75: 0 | BF75: 0 | BG75: 0 | BH75: 0 | BI75: 0 | BJ75: 0 | BK75: 0 | BL75: 0 | BM75: 0 | BN75: 0 | BO75: 0 | BP75: 0 | BQ75: 0 | BR75: 0 | BS75: 0 | BT75: 0 | BU75: 0 | BV75: 0 | BW75: 0 | BX75: 0 | BY75: 0 | BZ75: 0 | CA75: 0 | CB75: 0 | CC75: 0 | CD75: 0 | CE75: 0 | CF75: 0 | CG75: 0 | CH75: 0 | CI75: 0 | CJ75: 0 | CK75: 0 | CL75: 0 | CM75: 0 | CN75: 0 | CO75: 0 | CP75: 0 | CQ75: 0 | CR75: 0 | CS75: 0 | CT75: 0 | CU75: 0 | CV75: 0 | CW75: 0 | CX75: 0 | CY75: 0 | CZ75: 0 | DA75: 0 | DB75: 0 | DC75: 0 | DD75: 0 | DE75: 0 | DF75: 0 | DG75: 0 | DH75: 0
C76: Ground Outdoor / Indoor Chamber Mounted; ˂ 22 kV ; < = 60 kVA ; Single Phase | D76: 0 | E76: 0 | F76: 0 | G76: 0 | H76: 0 | I76: 0 | J76: 0 | K76: 0 | L76: 0 | M76: 0 | N76: 0 | O76: 0 | P76: 0 | Q76: 0 | R76: 0 | S76: 0 | T76: 0 | U76: 0 | V76: 0 | W76: 0 | X76: 0 | Y76: 0 | Z76: 0 | AA76: 0 | AB76: 0 | AC76: 0 | AD76: 0 | AE76: 0 | AF76: 0 | AG76: 0 | AH76: 0 | AI76: 0 | AJ76: 0 | AK76: 0 | AL76: 0 | AM76: 0 | AN76: 0 | AO76: 0 | AP76: 0 | AQ76: 0 | AR76: 0 | AS76: 0 | AT76: 0 | AU76: 0 | AV76: 0 | AW76: 0 | AX76: 0 | AY76: 0 | AZ76: 0 | BA76: 0 | BB76: 0 | BC76: 0 | BD76: 0 | BE76: 0 | BF76: 0 | BG76: 0 | BH76: 0 | BI76: 0 | BJ76: 0 | BK76: 0 | BL76: 0 | BM76: 0 | BN76: 0 | BO76: 0 | BP76: 0 | BQ76: 0 | BR76: 0 | BS76: 0 | BT76: 0 | BU76: 0 | BV76: 0 | BW76: 0 | BX76: 0 | BY76: 0 | BZ76: 0 | CA76: 0 | CB76: 0 | CC76: 0 | CD76: 0 | CE76: 0 | CF76: 0 | CG76: 0 | CH76: 0 | CI76: 0 | CJ76: 0 | CK76: 0 | CL76: 0 | CM76: 0 | CN76: 0 | CO76: 0 | CP76: 0 | CQ76: 0 | CR76: 0 | CS76: 0 | CT76: 0 | CU76: 0 | CV76: 0 | CW76: 0 | CX76: 0 | CY76: 0 | CZ76: 0 | DA76: 0 | DB76: 0 | DC76: 0 | DD76: 0 | DE76: 0 | DF76: 0 | DG76: 0 | DH76: 0
C77: Ground Outdoor / Indoor Chamber Mounted; ˂ 22 kV ; > 60 kVA and < = 600 kVA ; Single Phase | D77: 0 | E77: 0 | F77: 0 | G77: 0 | H77: 0 | I77: 0 | J77: 0 | K77: 0 | L77: 0 | M77: 0 | N77: 0 | O77: 0 | P77: 0 | Q77: 0 | R77: 0 | S77: 0 | T77: 0 | U77: 0 | V77: 0 | W77: 0 | X77: 0 | Y77: 0 | Z77: 0 | AA77: 0 | AB77: 0 | AC77: 0 | AD77: 0 | AE77: 0 | AF77: 0 | AG77: 0 | AH77: 0 | AI77: 0 | AJ77: 0 | AK77: 0 | AL77: 0 | AM77: 0 | AN77: 0 | AO77: 0 | AP77: 0 | AQ77: 0 | AR77: 0 | AS77: 0 | AT77: 0 | AU77: 0 | AV77: 0 | AW77: 0 | AX77: 0 | AY77: 0 | AZ77: 0 | BA77: 0 | BB77: 0 | BC77: 0 | BD77: 0 | BE77: 0 | BF77: 0 | BG77: 0 | BH77: 0 | BI77: 0 | BJ77: 0 | BK77: 0 | BL77: 0 | BM77: 0 | BN77: 0 | BO77: 0 | BP77: 0 | BQ77: 0 | BR77: 0 | BS77: 0 | BT77: 0 | BU77: 0 | BV77: 0 | BW77: 0 | BX77: 0 | BY77: 0 | BZ77: 0 | CA77: 0 | CB77: 0 | CC77: 0 | CD77: 0 | CE77: 0 | CF77: 0 | CG77: 0 | CH77: 0 | CI77: 0 | CJ77: 0 | CK77: 0 | CL77: 0 | CM77: 0 | CN77: 0 | CO77: 0 | CP77: 0 | CQ77: 0 | CR77: 0 | CS77: 0 | CT77: 0 | CU77: 0 | CV77: 0 | CW77: 0 | CX77: 0 | CY77: 0 | CZ77: 0 | DA77: 0 | DB77: 0 | DC77: 0 | DD77: 0 | DE77: 0 | DF77: 0 | DG77: 0 | DH77: 0
C78: Ground Outdoor / Indoor Chamber Mounted; ˂ 22 kV ; > 600 kVA ; Single Phase | D78: 0 | E78: 0 | F78: 0 | G78: 0 | H78: 0 | I78: 0 | J78: 0 | K78: 0 | L78: 0 | M78: 0 | N78: 0 | O78: 0 | P78: 0 | Q78: 0 | R78: 0 | S78: 0 | T78: 0 | U78: 0 | V78: 0 | W78: 0 | X78: 0 | Y78: 0 | Z78: 0 | AA78: 0 | AB78: 0 | AC78: 0 | AD78: 0 | AE78: 0 | AF78: 0 | AG78: 0 | AH78: 0 | AI78: 0 | AJ78: 0 | AK78: 0 | AL78: 0 | AM78: 0 | AN78: 0 | AO78: 0 | AP78: 0 | AQ78: 0 | AR78: 0 | AS78: 0 | AT78: 0 | AU78: 0 | AV78: 0 | AW78: 0 | AX78: 0 | AY78: 0 | AZ78: 0 | BA78: 0 | BB78: 0 | BC78: 0 | BD78: 0 | BE78: 0 | BF78: 0 | BG78: 0 | BH78: 0 | BI78: 0 | BJ78: 0 | BK78: 0 | BL78: 0 | BM78: 0 | BN78: 0 | BO78: 0 | BP78: 0 | BQ78: 0 | BR78: 0 | BS78: 0 | BT78: 0 | BU78: 0 | BV78: 0 | BW78: 0 | BX78: 0 | BY78: 0 | BZ78: 0 | CA78: 0 | CB78: 0 | CC78: 0 | CD78: 0 | CE78: 0 | CF78: 0 | CG78: 0 | CH78: 0 | CI78: 0 | CJ78: 0 | CK78: 0 | CL78: 0 | CM78: 0 | CN78: 0 | CO78: 0 | CP78: 0 | CQ78: 0 | CR78: 0 | CS78: 0 | CT78: 0 | CU78: 0 | CV78: 0 | CW78: 0 | CX78: 0 | CY78: 0 | CZ78: 0 | DA78: 0 | DB78: 0 | DC78: 0 | DD78: 0 | DE78: 0 | DF78: 0 | DG78: 0 | DH78: 0
C79: Ground Outdoor / Indoor Chamber Mounted; ˂ 22 kV ; < = 60 kVA ; Multiple Phase | D79: 50 | E79: 7.071067812 | F79: 0 | G79: 0 | H79: 0 | I79: 0 | J79: 0 | K79: 0 | L79: 0 | M79: 0 | N79: 0 | O79: 0 | P79: 1 | Q79: 0 | R79: 0 | S79: 1 | T79: 0 | U79: 0 | V79: 0 | W79: 0 | X79: 0 | Y79: 3 | Z79: 0 | AA79: 0 | AB79: 0 | AC79: 0 | AD79: 0 | AE79: 0 | AF79: 0 | AG79: 0 | AH79: 0 | AI79: 0 | AJ79: 0 | AK79: 0 | AL79: 0 | AM79: 0 | AN79: 0 | AO79: 0 | AP79: 0 | AQ79: 0 | AR79: 0 | AS79: 0 | AT79: 0 | AU79: 0 | AV79: 0 | AW79: 0 | AX79: 0 | AY79: 0 | AZ79: 0 | BA79: 0 | BB79: 0 | BC79: 0 | BD79: 0 | BE79: 0 | BF79: 0 | BG79: 0 | BH79: 0 | BI79: 1 | BJ79: 0 | BK79: 0 | BL79: 0 | BM79: 0 | BN79: 0 | BO79: 0 | BP79: 0 | BQ79: 0 | BR79: 0 | BS79: 0 | BT79: 0 | BU79: 0 | BV79: 0 | BW79: 0 | BX79: 0 | BY79: 0 | BZ79: 0 | CA79: 0 | CB79: 0 | CC79: 0 | CD79: 0 | CE79: 0 | CF79: 0 | CG79: 0 | CH79: 0 | CI79: 0 | CJ79: 0 | CK79: 0 | CL79: 0 | CM79: 0 | CN79: 0 | CO79: 0 | CP79: 0 | CQ79: 0 | CR79: 0 | CS79: 0 | CT79: 0 | CU79: 0 | CV79: 0 | CW79: 0 | CX79: 0 | CY79: 0 | CZ79: 0 | DA79: 0 | DB79: 0 | DC79: 0 | DD79: 0 | DE79: 0 | DF79: 0 | DG79: 0 | DH79: 0
C80: Ground Outdoor / Indoor Chamber Mounted; ˂ 22 kV ; > 60 kVA and < = 600 kVA ; Multiple Phase | D80: 50 | E80: 7.071067812 | F80: 1 | G80: 3.019354839 | H80: 4.025806452 | I80: 6.038709677 | J80: 3.019354839 | K80: 7.04516129 | L80: 7.04516129 | M80: 5.032258065 | N80: 2.012903226 | O80: 9.058064516 | P80: 8.051612903 | Q80: 10.06451613 | R80: 6.038709677 | S80: 13.08387097 | T80: 6.038709677 | U80: 6.038709677 | V80: 5.032258065 | W80: 7.04516129 | X80: 6.038709677 | Y80: 19.12258065 | Z80: 6.038709677 | AA80: 9.058064516 | AB80: 9.058064516 | AC80: 12.07741935 | AD80: 18.11612903 | AE80: 10.06451613 | AF80: 11.07096774 | AG80: 23.1483871 | AH80: 24.15483871 | AI80: 17.10967742 | AJ80: 13.08387097 | AK80: 11.07096774 | AL80: 11.07096774 | AM80: 7.04516129 | AN80: 11.07096774 | AO80: 10.06451613 | AP80: 24.15483871 | AQ80: 10.06451613 | AR80: 15.09677419 | AS80: 14.09032258 | AT80: 15.09677419 | AU80: 13.08387097 | AV80: 4.025806452 | AW80: 2.012903226 | AX80: 4.025806452 | AY80: 5.032258065 | AZ80: 8.051612903 | BA80: 6.038709677 | BB80: 1.006451613 | BC80: 0 | BD80: 3.019354839 | BE80: 2.012903226 | BF80: 2.012903226 | BG80: 0 | BH80: 0 | BI80: 0 | BJ80: 0 | BK80: 0 | BL80: 0 | BM80: 0 | BN80: 0 | BO80: 1.006451613 | BP80: 0 | BQ80: 0 | BR80: 0 | BS80: 0 | BT80: 0 | BU80: 1.006451613 | BV80: 0 | BW80: 0 | BX80: 0 | BY80: 0 | BZ80: 0 | CA80: 0 | CB80: 1.006451613 | CC80: 0 | CD80: 0 | CE80: 0 | CF80: 0 | CG80: 0 | CH80: 0 | CI80: 0 | CJ80: 0 | CK80: 0 | CL80: 0 | CM80: 0 | CN80: 0 | CO80: 0 | CP80: 0 | CQ80: 0 | CR80: 0 | CS80: 0 | CT80: 0 | CU80: 0 | CV80: 0 | CW80: 0 | CX80: 0 | CY80: 0 | CZ80: 0 | DA80: 0 | DB80: 0 | DC80: 0 | DD80: 0 | DE80: 0 | DF80: 0 | DG80: 0 | DH80: 0
C81: Ground Outdoor / Indoor Chamber Mounted; ˂ 22 kV ; > 600 kVA ; Multiple Phase | D81: 50 | E81: 7.071067812 | F81: 9 | G81: 1.00625 | H81: 11.06875 | I81: 6.0375 | J81: 13.08125 | K81: 20.125 | L81: 17.10625 | M81: 10.0625 | N81: 29.18125 | O81: 26.1625 | P81: 24.15 | Q81: 41.25625 | R81: 17.10625 | S81: 16.1 | T81: 18.1125 | U81: 26.1625 | V81: 18.1125 | W81: 10.0625 | X81: 22.1375 | Y81: 33.20625 | Z81: 14.0875 | AA81: 16.1 | AB81: 18.1125 | AC81: 16.1 | AD81: 18.1125 | AE81: 9.05625 | AF81: 4.025 | AG81: 12.075 | AH81: 12.075 | AI81: 22.1375 | AJ81: 13.08125 | AK81: 18.1125 | AL81: 12.075 | AM81: 9.05625 | AN81: 5.03125 | AO81: 10.0625 | AP81: 5.03125 | AQ81: 7.04375 | AR81: 8.05 | AS81: 11.06875 | AT81: 6.0375 | AU81: 8.05 | AV81: 1.00625 | AW81: 2.0125 | AX81: 2.0125 | AY81: 1.00625 | AZ81: 2.0125 | BA81: 1.00625 | BB81: 1.00625 | BC81: 2.0125 | BD81: 1.00625 | BE81: 1.00625 | BF81: 1.00625 | BG81: 0 | BH81: 0 | BI81: 3.01875 | BJ81: 0 | BK81: 0 | BL81: 2.0125 | BM81: 0 | BN81: 0 | BO81: 0 | BP81: 1.00625 | BQ81: 0 | BR81: 0 | BS81: 0 | BT81: 0 | BU81: 1.00625 | BV81: 0 | BW81: 0 | BX81: 0 | BY81: 0 | BZ81: 0 | CA81: 0 | CB81: 0 | CC81: 0 | CD81: 3.01875 | CE81: 0 | CF81: 0 | CG81: 0 | CH81: 1.00625 | CI81: 0 | CJ81: 1.00625 | CK81: 0 | CL81: 0 | CM81: 0 | CN81: 0 | CO81: 0 | CP81: 0 | CQ81: 2.0125 | CR81: 0 | CS81: 0 | CT81: 0 | CU81: 0 | CV81: 0 | CW81: 0 | CX81: 0 | CY81: 0 | CZ81: 0 | DA81: 0 | DB81: 0 | DC81: 0 | DD81: 0 | DE81: 0 | DF81: 0 | DG81: 0 | DH81: 0
C82: Ground Outdoor / Indoor Chamber Mounted; > = 22 kV & < = 33 kV ; < = 15 MVA | D82: 50 | E82: 7.071067812 | F82: 0 | G82: 0 | H82: 1 | I82: 2 | J82: 0 | K82: 0 | L82: 0 | M82: 0 | N82: 0 | O82: 0 | P82: 0 | Q82: 0 | R82: 0 | S82: 0 | T82: 0 | U82: 0 | V82: 0 | W82: 0 | X82: 0 | Y82: 0 | Z82: 0 | AA82: 0 | AB82: 0 | AC82: 0 | AD82: 0 | AE82: 0 | AF82: 0 | AG82: 0 | AH82: 0 | AI82: 0 | AJ82: 0 | AK82: 0 | AL82: 0 | AM82: 0 | AN82: 0 | AO82: 0 | AP82: 0 | AQ82: 0 | AR82: 0 | AS82: 0 | AT82: 0 | AU82: 0 | AV82: 0 | AW82: 0 | AX82: 0 | AY82: 0 | AZ82: 0 | BA82: 0 | BB82: 0 | BC82: 0 | BD82: 0 | BE82: 0 | BF82: 0 | BG82: 0 | BH82: 0 | BI82: 0 | BJ82: 0 | BK82: 0 | BL82: 0 | BM82: 0 | BN82: 0 | BO82: 0 | BP82: 0 | BQ82: 0 | BR82: 0 | BS82: 0 | BT82: 0 | BU82: 0 | BV82: 1 | BW82: 1 | BX82: 0 | BY82: 0 | BZ82: 0 | CA82: 0 | CB82: 0 | CC82: 0 | CD82: 0 | CE82: 0 | CF82: 0 | CG82: 0 | CH82: 0 | CI82: 0 | CJ82: 0 | CK82: 0 | CL82: 0 | CM82: 0 | CN82: 0 | CO82: 0 | CP82: 0 | CQ82: 0 | CR82: 0 | CS82: 0 | CT82: 0 | CU82: 0 | CV82: 0 | CW82: 0 | CX82: 0 | CY82: 0 | CZ82: 0 | DA82: 0 | DB82: 0 | DC82: 0 | DD82: 0 | DE82: 0 | DF82: 0 | DG82: 0 | DH82: 0
C83: Ground Outdoor / Indoor Chamber Mounted; > = 22 kV & < = 33 kV ; > 15 MVA and < = 40 MVA | D83: 0 | E83: 0 | F83: 0 | G83: 0 | H83: 0 | I83: 0 | J83: 0 | K83: 0 | L83: 0 | M83: 0 | N83: 0 | O83: 0 | P83: 0 | Q83: 0 | R83: 0 | S83: 0 | T83: 0 | U83: 0 | V83: 0 | W83: 0 | X83: 0 | Y83: 0 | Z83: 0 | AA83: 0 | AB83: 0 | AC83: 0 | AD83: 0 | AE83: 0 | AF83: 0 | AG83: 0 | AH83: 0 | AI83: 0 | AJ83: 0 | AK83: 0 | AL83: 0 | AM83: 0 | AN83: 0 | AO83: 0 | AP83: 0 | AQ83: 0 | AR83: 0 | AS83: 0 | AT83: 0 | AU83: 0 | AV83: 0 | AW83: 0 | AX83: 0 | AY83: 0 | AZ83: 0 | BA83: 0 | BB83: 0 | BC83: 0 | BD83: 0 | BE83: 0 | BF83: 0 | BG83: 0 | BH83: 0 | BI83: 0 | BJ83: 0 | BK83: 0 | BL83: 0 | BM83: 0 | BN83: 0 | BO83: 0 | BP83: 0 | BQ83: 0 | BR83: 0 | BS83: 0 | BT83: 0 | BU83: 0 | BV83: 0 | BW83: 0 | BX83: 0 | BY83: 0 | BZ83: 0 | CA83: 0 | CB83: 0 | CC83: 0 | CD83: 0 | CE83: 0 | CF83: 0 | CG83: 0 | CH83: 0 | CI83: 0 | CJ83: 0 | CK83: 0 | CL83: 0 | CM83: 0 | CN83: 0 | CO83: 0 | CP83: 0 | CQ83: 0 | CR83: 0 | CS83: 0 | CT83: 0 | CU83: 0 | CV83: 0 | CW83: 0 | CX83: 0 | CY83: 0 | CZ83: 0 | DA83: 0 | DB83: 0 | DC83: 0 | DD83: 0 | DE83: 0 | DF83: 0 | DG83: 0 | DH83: 0
C84: Ground Outdoor / Indoor Chamber Mounted; > = 22 kV & < = 33 kV ; > 40 MVA | D84: 0 | E84: 0 | F84: 0 | G84: 0 | H84: 0 | I84: 0 | J84: 0 | K84: 0 | L84: 0 | M84: 0 | N84: 0 | O84: 0 | P84: 0 | Q84: 0 | R84: 0 | S84: 0 | T84: 0 | U84: 0 | V84: 0 | W84: 0 | X84: 0 | Y84: 0 | Z84: 0 | AA84: 0 | AB84: 0 | AC84: 0 | AD84: 0 | AE84: 0 | AF84: 0 | AG84: 0 | AH84: 0 | AI84: 0 | AJ84: 0 | AK84: 0 | AL84: 0 | AM84: 0 | AN84: 0 | AO84: 0 | AP84: 0 | AQ84: 0 | AR84: 0 | AS84: 0 | AT84: 0 | AU84: 0 | AV84: 0 | AW84: 0 | AX84: 0 | AY84: 0 | AZ84: 0 | BA84: 0 | BB84: 0 | BC84: 0 | BD84: 0 | BE84: 0 | BF84: 0 | BG84: 0 | BH84: 0 | BI84: 0 | BJ84: 0 | BK84: 0 | BL84: 0 | BM84: 0 | BN84: 0 | BO84: 0 | BP84: 0 | BQ84: 0 | BR84: 0 | BS84: 0 | BT84: 0 | BU84: 0 | BV84: 0 | BW84: 0 | BX84: 0 | BY84: 0 | BZ84: 0 | CA84: 0 | CB84: 0 | CC84: 0 | CD84: 0 | CE84: 0 | CF84: 0 | CG84: 0 | CH84: 0 | CI84: 0 | CJ84: 0 | CK84: 0 | CL84: 0 | CM84: 0 | CN84: 0 | CO84: 0 | CP84: 0 | CQ84: 0 | CR84: 0 | CS84: 0 | CT84: 0 | CU84: 0 | CV84: 0 | CW84: 0 | CX84: 0 | CY84: 0 | CZ84: 0 | DA84: 0 | DB84: 0 | DC84: 0 | DD84: 0 | DE84: 0 | DF84: 0 | DG84: 0 | DH84: 0
C85: Ground Outdoor / Indoor Chamber Mounted; > 33 kV & < = 66 kV ; < = 15 MVA | D85: 50 | E85: 7.071067812 | F85: 0 | G85: 1 | H85: 0 | I85: 1 | J85: 3 | K85: 2 | L85: 0 | M85: 3 | N85: 3 | O85: 0 | P85: 1 | Q85: 3 | R85: 1 | S85: 2 | T85: 0 | U85: 0 | V85: 0 | W85: 0 | X85: 1 | Y85: 1 | Z85: 0 | AA85: 0 | AB85: 0 | AC85: 0 | AD85: 0 | AE85: 0 | AF85: 0 | AG85: 0 | AH85: 0 | AI85: 0 | AJ85: 0 | AK85: 0 | AL85: 0 | AM85: 0 | AN85: 1 | AO85: 0 | AP85: 0 | AQ85: 0 | AR85: 1 | AS85: 1 | AT85: 2 | AU85: 3 | AV85: 2 | AW85: 0 | AX85: 0 | AY85: 0 | AZ85: 0 | BA85: 0 | BB85: 0 | BC85: 3 | BD85: 3 | BE85: 2 | BF85: 3 | BG85: 1 | BH85: 1 | BI85: 7 | BJ85: 0 | BK85: 3 | BL85: 0 | BM85: 0 | BN85: 0 | BO85: 0 | BP85: 2 | BQ85: 0 | BR85: 0 | BS85: 2 | BT85: 0 | BU85: 3 | BV85: 4 | BW85: 0 | BX85: 1 | BY85: 2 | BZ85: 1 | CA85: 0 | CB85: 1 | CC85: 0 | CD85: 0 | CE85: 0 | CF85: 0 | CG85: 0 | CH85: 0 | CI85: 2 | CJ85: 0 | CK85: 0 | CL85: 0 | CM85: 0 | CN85: 0 | CO85: 0 | CP85: 0 | CQ85: 0 | CR85: 0 | CS85: 0 | CT85: 0 | CU85: 0 | CV85: 0 | CW85: 0 | CX85: 0 | CY85: 0 | CZ85: 0 | DA85: 0 | DB85: 0 | DC85: 0 | DD85: 0 | DE85: 0 | DF85: 0 | DG85: 0 | DH85: 0
C86: Ground Outdoor / Indoor Chamber Mounted; > 33 kV & < = 66 kV ; > 15 MVA and < = 40 MVA | D86: 50 | E86: 7.071067812 | F86: 0 | G86: 0 | H86: 0 | I86: 3 | J86: 0 | K86: 0 | L86: 2 | M86: 3 | N86: 0 | O86: 1 | P86: 0 | Q86: 0 | R86: 3 | S86: 0 | T86: 1 | U86: 2 | V86: 2 | W86: 0 | X86: 1 | Y86: 0 | Z86: 0 | AA86: 1 | AB86: 0 | AC86: 0 | AD86: 0 | AE86: 0 | AF86: 0 | AG86: 0 | AH86: 1 | AI86: 0 | AJ86: 0 | AK86: 2 | AL86: 2 | AM86: 2 | AN86: 6 | AO86: 2 | AP86: 6 | AQ86: 2 | AR86: 0 | AS86: 3 | AT86: 2 | AU86: 0 | AV86: 0 | AW86: 0 | AX86: 0 | AY86: 0 | AZ86: 0 | BA86: 0 | BB86: 3 | BC86: 2 | BD86: 1 | BE86: 2 | BF86: 0 | BG86: 0 | BH86: 0 | BI86: 2 | BJ86: 0 | BK86: 0 | BL86: 0 | BM86: 0 | BN86: 0 | BO86: 0 | BP86: 0 | BQ86: 0 | BR86: 0 | BS86: 0 | BT86: 0 | BU86: 0 | BV86: 0 | BW86: 0 | BX86: 0 | BY86: 0 | BZ86: 0 | CA86: 0 | CB86: 0 | CC86: 0 | CD86: 0 | CE86: 0 | CF86: 0 | CG86: 0 | CH86: 0 | CI86: 0 | CJ86: 0 | CK86: 0 | CL86: 0 | CM86: 0 | CN86: 0 | CO86: 0 | CP86: 0 | CQ86: 0 | CR86: 0 | CS86: 0 | CT86: 0 | CU86: 0 | CV86: 0 | CW86: 0 | CX86: 0 | CY86: 0 | CZ86: 0 | DA86: 0 | DB86: 0 | DC86: 0 | DD86: 0 | DE86: 0 | DF86: 0 | DG86: 0 | DH86: 0
C87: Ground Outdoor / Indoor Chamber Mounted; > 33 kV & < = 66 kV ; > 40 MVA | D87: 50 | E87: 7.071067812 | F87: 0 | G87: 0 | H87: 0 | I87: 0 | J87: 0 | K87: 0 | L87: 0 | M87: 0 | N87: 0 | O87: 0 | P87: 0 | Q87: 0 | R87: 0 | S87: 0 | T87: 0 | U87: 0 | V87: 0 | W87: 0 | X87: 0 | Y87: 0 | Z87: 0 | AA87: 0 | AB87: 0 | AC87: 0 | AD87: 0 | AE87: 0 | AF87: 0 | AG87: 0 | AH87: 0 | AI87: 0 | AJ87: 0 | AK87: 0 | AL87: 0 | AM87: 0 | AN87: 0 | AO87: 0 | AP87: 0 | AQ87: 0 | AR87: 0 | AS87: 0 | AT87: 0 | AU87: 0 | AV87: 0 | AW87: 0 | AX87: 0 | AY87: 0 | AZ87: 0 | BA87: 0 | BB87: 0 | BC87: 0 | BD87: 0 | BE87: 0 | BF87: 0 | BG87: 0 | BH87: 0 | BI87: 0 | BJ87: 0 | BK87: 0 | BL87: 0 | BM87: 0 | BN87: 1 | BO87: 0 | BP87: 0 | BQ87: 0 | BR87: 0 | BS87: 0 | BT87: 1 | BU87: 2 | BV87: 0 | BW87: 0 | BX87: 0 | BY87: 0 | BZ87: 0 | CA87: 0 | CB87: 0 | CC87: 0 | CD87: 0 | CE87: 0 | CF87: 0 | CG87: 0 | CH87: 0 | CI87: 0 | CJ87: 0 | CK87: 0 | CL87: 0 | CM87: 0 | CN87: 0 | CO87: 0 | CP87: 0 | CQ87: 0 | CR87: 0 | CS87: 0 | CT87: 0 | CU87: 0 | CV87: 0 | CW87: 0 | CX87: 0 | CY87: 0 | CZ87: 0 | DA87: 0 | DB87: 0 | DC87: 0 | DD87: 0 | DE87: 0 | DF87: 0 | DG87: 0 | DH87: 0
C88: Ground Outdoor / Indoor Chamber Mounted; > 66 kV & < = 132 kV ; < = 100 MVA | D88: 50 | E88: 7.071067812 | F88: 0 | G88: 0 | H88: 0 | I88: 0 | J88: 0 | K88: 0 | L88: 0 | M88: 0 | N88: 0 | O88: 0 | P88: 0 | Q88: 0 | R88: 0 | S88: 0 | T88: 0 | U88: 0 | V88: 0 | W88: 0 | X88: 0 | Y88: 0 | Z88: 0 | AA88: 0 | AB88: 0 | AC88: 0 | AD88: 0 | AE88: 0 | AF88: 0 | AG88: 0 | AH88: 0 | AI88: 0 | AJ88: 0 | AK88: 0 | AL88: 0 | AM88: 0 | AN88: 0 | AO88: 0 | AP88: 0 | AQ88: 0 | AR88: 0 | AS88: 0 | AT88: 0 | AU88: 0 | AV88: 0 | AW88: 0 | AX88: 0 | AY88: 0 | AZ88: 0 | BA88: 0 | BB88: 0 | BC88: 0 | BD88: 0 | BE88: 0 | BF88: 0 | BG88: 0 | BH88: 0 | BI88: 0 | BJ88: 0 | BK88: 0 | BL88: 0 | BM88: 0 | BN88: 0 | BO88: 0 | BP88: 0 | BQ88: 0 | BR88: 0 | BS88: 0 | BT88: 0 | BU88: 0 | BV88: 0 | BW88: 0 | BX88: 0 | BY88: 0 | BZ88: 0 | CA88: 0 | CB88: 0 | CC88: 0 | CD88: 2 | CE88: 0 | CF88: 0 | CG88: 0 | CH88: 0 | CI88: 0 | CJ88: 0 | CK88: 0 | CL88: 0 | CM88: 0 | CN88: 0 | CO88: 0 | CP88: 0 | CQ88: 0 | CR88: 0 | CS88: 0 | CT88: 0 | CU88: 0 | CV88: 0 | CW88: 0 | CX88: 0 | CY88: 0 | CZ88: 0 | DA88: 0 | DB88: 0 | DC88: 0 | DD88: 0 | DE88: 0 | DF88: 0 | DG88: 0 | DH88: 0
C89: Ground Outdoor / Indoor Chamber Mounted; > 66 kV & < = 132 kV ; > 100 MVA | D89: 0 | E89: 0 | F89: 0 | G89: 0 | H89: 0 | I89: 0 | J89: 0 | K89: 0 | L89: 0 | M89: 0 | N89: 0 | O89: 0 | P89: 0 | Q89: 0 | R89: 0 | S89: 0 | T89: 0 | U89: 0 | V89: 0 | W89: 0 | X89: 0 | Y89: 0 | Z89: 0 | AA89: 0 | AB89: 0 | AC89: 0 | AD89: 0 | AE89: 0 | AF89: 0 | AG89: 0 | AH89: 0 | AI89: 0 | AJ89: 0 | AK89: 0 | AL89: 0 | AM89: 0 | AN89: 0 | AO89: 0 | AP89: 0 | AQ89: 0 | AR89: 0 | AS89: 0 | AT89: 0 | AU89: 0 | AV89: 0 | AW89: 0 | AX89: 0 | AY89: 0 | AZ89: 0 | BA89: 0 | BB89: 0 | BC89: 0 | BD89: 0 | BE89: 0 | BF89: 0 | BG89: 0 | BH89: 0 | BI89: 0 | BJ89: 0 | BK89: 0 | BL89: 0 | BM89: 0 | BN89: 0 | BO89: 0 | BP89: 0 | BQ89: 0 | BR89: 0 | BS89: 0 | BT89: 0 | BU89: 0 | BV89: 0 | BW89: 0 | BX89: 0 | BY89: 0 | BZ89: 0 | CA89: 0 | CB89: 0 | CC89: 0 | CD89: 0 | CE89: 0 | CF89: 0 | CG89: 0 | CH89: 0 | CI89: 0 | CJ89: 0 | CK89: 0 | CL89: 0 | CM89: 0 | CN89: 0 | CO89: 0 | CP89: 0 | CQ89: 0 | CR89: 0 | CS89: 0 | CT89: 0 | CU89: 0 | CV89: 0 | CW89: 0 | CX89: 0 | CY89: 0 | CZ89: 0 | DA89: 0 | DB89: 0 | DC89: 0 | DD89: 0 | DE89: 0 | DF89: 0 | DG89: 0 | DH89: 0
C90: Ground Outdoor / Indoor Chamber Mounted; > 132 kV ; < = 100 MVA | D90: 0 | E90: 0 | F90: 0 | G90: 0 | H90: 0 | I90: 0 | J90: 0 | K90: 0 | L90: 0 | M90: 0 | N90: 0 | O90: 0 | P90: 0 | Q90: 0 | R90: 0 | S90: 0 | T90: 0 | U90: 0 | V90: 0 | W90: 0 | X90: 0 | Y90: 0 | Z90: 0 | AA90: 0 | AB90: 0 | AC90: 0 | AD90: 0 | AE90: 0 | AF90: 0 | AG90: 0 | AH90: 0 | AI90: 0 | AJ90: 0 | AK90: 0 | AL90: 0 | AM90: 0 | AN90: 0 | AO90: 0 | AP90: 0 | AQ90: 0 | AR90: 0 | AS90: 0 | AT90: 0 | AU90: 0 | AV90: 0 | AW90: 0 | AX90: 0 | AY90: 0 | AZ90: 0 | BA90: 0 | BB90: 0 | BC90: 0 | BD90: 0 | BE90: 0 | BF90: 0 | BG90: 0 | BH90: 0 | BI90: 0 | BJ90: 0 | BK90: 0 | BL90: 0 | BM90: 0 | BN90: 0 | BO90: 0 | BP90: 0 | BQ90: 0 | BR90: 0 | BS90: 0 | BT90: 0 | BU90: 0 | BV90: 0 | BW90: 0 | BX90: 0 | BY90: 0 | BZ90: 0 | CA90: 0 | CB90: 0 | CC90: 0 | CD90: 0 | CE90: 0 | CF90: 0 | CG90: 0 | CH90: 0 | CI90: 0 | CJ90: 0 | CK90: 0 | CL90: 0 | CM90: 0 | CN90: 0 | CO90: 0 | CP90: 0 | CQ90: 0 | CR90: 0 | CS90: 0 | CT90: 0 | CU90: 0 | CV90: 0 | CW90: 0 | CX90: 0 | CY90: 0 | CZ90: 0 | DA90: 0 | DB90: 0 | DC90: 0 | DD90: 0 | DE90: 0 | DF90: 0 | DG90: 0 | DH90: 0
C91: Ground Outdoor / Indoor Chamber Mounted; > 132 kV ; > 100 MVA | D91: 0 | E91: 0 | F91: 0 | G91: 0 | H91: 0 | I91: 0 | J91: 0 | K91: 0 | L91: 0 | M91: 0 | N91: 0 | O91: 0 | P91: 0 | Q91: 0 | R91: 0 | S91: 0 | T91: 0 | U91: 0 | V91: 0 | W91: 0 | X91: 0 | Y91: 0 | Z91: 0 | AA91: 0 | AB91: 0 | AC91: 0 | AD91: 0 | AE91: 0 | AF91: 0 | AG91: 0 | AH91: 0 | AI91: 0 | AJ91: 0 | AK91: 0 | AL91: 0 | AM91: 0 | AN91: 0 | AO91: 0 | AP91: 0 | AQ91: 0 | AR91: 0 | AS91: 0 | AT91: 0 | AU91: 0 | AV91: 0 | AW91: 0 | AX91: 0 | AY91: 0 | AZ91: 0 | BA91: 0 | BB91: 0 | BC91: 0 | BD91: 0 | BE91: 0 | BF91: 0 | BG91: 0 | BH91: 0 | BI91: 0 | BJ91: 0 | BK91: 0 | BL91: 0 | BM91: 0 | BN91: 0 | BO91: 0 | BP91: 0 | BQ91: 0 | BR91: 0 | BS91: 0 | BT91: 0 | BU91: 0 | BV91: 0 | BW91: 0 | BX91: 0 | BY91: 0 | BZ91: 0 | CA91: 0 | CB91: 0 | CC91: 0 | CD91: 0 | CE91: 0 | CF91: 0 | CG91: 0 | CH91: 0 | CI91: 0 | CJ91: 0 | CK91: 0 | CL91: 0 | CM91: 0 | CN91: 0 | CO91: 0 | CP91: 0 | CQ91: 0 | CR91: 0 | CS91: 0 | CT91: 0 | CU91: 0 | CV91: 0 | CW91: 0 | CX91: 0 | CY91: 0 | CZ91: 0 | DA91: 0 | DB91: 0 | DC91: 0 | DD91: 0 | DE91: 0 | DF91: 0 | DG91: 0 | DH91: 0
C92: Other | D92: 0 | E92: 0 | F92: 0 | G92: 0 | H92: 0 | I92: 0 | J92: 0 | K92: 0 | L92: 0 | M92: 0 | N92: 0 | O92: 0 | P92: 0 | Q92: 0 | R92: 0 | S92: 0 | T92: 0 | U92: 0 | V92: 0 | W92: 0 | X92: 0 | Y92: 0 | Z92: 0 | AA92: 0 | AB92: 0 | AC92: 0 | AD92: 0 | AE92: 0 | AF92: 0 | AG92: 0 | AH92: 0 | AI92: 0 | AJ92: 0 | AK92: 0 | AL92: 0 | AM92: 0 | AN92: 0 | AO92: 0 | AP92: 0 | AQ92: 0 | AR92: 0 | AS92: 0 | AT92: 0 | AU92: 0 | AV92: 0 | AW92: 0 | AX92: 0 | AY92: 0 | AZ92: 0 | BA92: 0 | BB92: 0 | BC92: 0 | BD92: 0 | BE92: 0 | BF92: 0 | BG92: 0 | BH92: 0 | BI92: 0 | BJ92: 0 | BK92: 0 | BL92: 0 | BM92: 0 | BN92: 0 | BO92: 0 | BP92: 0 | BQ92: 0 | BR92: 0 | BS92: 0 | BT92: 0 | BU92: 0 | BV92: 0 | BW92: 0 | BX92: 0 | BY92: 0 | BZ92: 0 | CA92: 0 | CB92: 0 | CC92: 0 | CD92: 0 | CE92: 0 | CF92: 0 | CG92: 0 | CH92: 0 | CI92: 0 | CJ92: 0 | CK92: 0 | CL92: 0 | CM92: 0 | CN92: 0 | CO92: 0 | CP92: 0 | CQ92: 0 | CR92: 0 | CS92: 0 | CT92: 0 | CU92: 0 | CV92: 0 | CW92: 0 | CX92: 0 | CY92: 0 | CZ92: 0 | DA92: 0 | DB92: 0 | DC92: 0 | DD92: 0 | DE92: 0 | DF92: 0 | DG92: 0 | DH92: 0
B93: SWITCHGEAR BY: HIGHEST OPERATING VOLTAGE ; SWITCH FUNCTION | C93: ˂ = 11 kV ; Fuse | D93: 50 | E93: 7.071067812 | F93: 55 | G93: 6.47864303 | H93: 12.761244 | I93: 5.955303294 | J93: 14.46251884 | K93: 12.761244 | L93: 5.104665878 | M93: 0 | N93: 12.761244 | O93: 0 | P93: 0 | Q93: 1.701274832 | R93: 5.104665878 | S93: 2.551912248 | T93: 2.551912248 | U93: 0 | V93: 0 | W93: 2.551912248 | X93: 0 | Y93: 0 | Z93: 2.551912248 | AA93: 7.656578126 | AB93: 5.104665878 | AC93: 5.104665878 | AD93: 5.104665878 | AE93: 1.701274832 | AF93: 8.507215542 | AG93: 17.01527247 | AH93: 74.86618919 | AI93: 7.656578126 | AJ93: 141.2243215 | AK93: 5.104665878 | AL93: 24.67185059 | AM93: 9.357852958 | AN93: 7.656578126 | AO93: 15.31315625 | AP93: 10.20933176 | AQ93: 2.551912248 | AR93: 2.551912248 | AS93: 10.20933176 | AT93: 10.20933176 | AU93: 2.551912248 | AV93: 2.551912248 | AW93: 0 | AX93: 7.656578126 | AY93: 0 | AZ93: 0 | BA93: 0 | BB93: 0 | BC93: 0 | BD93: 0 | BE93: 0 | BF93: 0 | BG93: 0 | BH93: 0 | BI93: 0 | BJ93: 0 | BK93: 0 | BL93: 0 | BM93: 0 | BN93: 0 | BO93: 0 | BP93: 0 | BQ93: 0 | BR93: 0 | BS93: 0 | BT93: 0 | BU93: 0 | BV93: 0 | BW93: 0 | BX93: 0 | BY93: 0 | BZ93: 0 | CA93: 0 | CB93: 0 | CC93: 0 | CD93: 0 | CE93: 0 | CF93: 0 | CG93: 0 | CH93: 0 | CI93: 0 | CJ93: 0 | CK93: 0 | CL93: 0 | CM93: 0 | CN93: 0 | CO93: 0 | CP93: 0 | CQ93: 0 | CR93: 0 | CS93: 0 | CT93: 16.16379367 | CU93: 0 | CV93: 0 | CW93: 0 | CX93: 0 | CY93: 0 | CZ93: 0 | DA93: 0 | DB93: 0 | DC93: 0 | DD93: 0 | DE93: 0 | DF93: 0 | DG93: 0 | DH93: 0
C94: ˂ = 11 kV ; Switch | D94: 47 | E94: 6.8556546 | F94: 701 | G94: 55.95713236 | H94: 0 | I94: 104.6131913 | J94: 52.30659563 | K94: 0 | L94: 26.13997469 | M94: 0 | N94: 0 | O94: 52.30659563 | P94: 313.8129275 | Q94: 0 | R94: 0 | S94: 26.13997469 | T94: 0 | U94: 0 | V94: 0 | W94: 0 | X94: 0 | Y94: 0 | Z94: 0 | AA94: 0 | AB94: 0 | AC94: 0 | AD94: 0 | AE94: 0 | AF94: 0 | AG94: 0 | AH94: 0 | AI94: 0 | AJ94: 0 | AK94: 0 | AL94: 0 | AM94: 0 | AN94: 78.44657032 | AO94: 0 | AP94: 0 | AQ94: 0 | AR94: 0 | AS94: 52.30659563 | AT94: 0 | AU94: 0 | AV94: 0 | AW94: 0 | AX94: 78.44657032 | AY94: 78.44657032 | AZ94: 0 | BA94: 0 | BB94: 0 | BC94: 0 | BD94: 287.6729529 | BE94: 26.13997469 | BF94: 0 | BG94: 0 | BH94: 0 | BI94: 52.30659563 | BJ94: 0 | BK94: 0 | BL94: 0 | BM94: 0 | BN94: 0 | BO94: 0 | BP94: 0 | BQ94: 0 | BR94: 0 | BS94: 0 | BT94: 627.6258551 | BU94: 0 | BV94: 0 | BW94: 0 | BX94: 0 | BY94: 0 | BZ94: 0 | CA94: 0 | CB94: 0 | CC94: 0 | CD94: 0 | CE94: 0 | CF94: 0 | CG94: 967.5787573 | CH94: 0 | CI94: 0 | CJ94: 0 | CK94: 0 | CL94: 0 | CM94: 0 | CN94: 0 | CO94: 0 | CP94: 0 | CQ94: 0 | CR94: 0 | CS94: 0 | CT94: 130.753166 | CU94: 0 | CV94: 0 | CW94: 0 | CX94: 0 | CY94: 0 | CZ94: 0 | DA94: 0 | DB94: 0 | DC94: 0 | DD94: 0 | DE94: 0 | DF94: 0 | DG94: 0 | DH94: 0
C95: ˂ = 11 kV ; Circuit Breaker | D95: 45 | E95: 6.708203932 | F95: 0 | G95: 0 | H95: 1 | I95: 0 | J95: 0 | K95: 1 | L95: 0 | M95: 0 | N95: 0 | O95: 0 | P95: 0 | Q95: 0 | R95: 0 | S95: 1 | T95: 0 | U95: 0 | V95: 0 | W95: 0 | X95: 0 | Y95: 0 | Z95: 0 | AA95: 0 | AB95: 0 | AC95: 0 | AD95: 2 | AE95: 0 | AF95: 0 | AG95: 0 | AH95: 0 | AI95: 1 | AJ95: 0 | AK95: 1 | AL95: 0 | AM95: 0 | AN95: 1 | AO95: 0 | AP95: 0 | AQ95: 0 | AR95: 0 | AS95: 0 | AT95: 0 | AU95: 0 | AV95: 10 | AW95: 4 | AX95: 0 | AY95: 0 | AZ95: 4 | BA95: 0 | BB95: 0 | BC95: 0 | BD95: 0 | BE95: 0 | BF95: 0 | BG95: 0 | BH95: 0 | BI95: 0 | BJ95: 0 | BK95: 0 | BL95: 0 | BM95: 0 | BN95: 6 | BO95: 0 | BP95: 0 | BQ95: 0 | BR95: 0 | BS95: 0 | BT95: 0 | BU95: 0 | BV95: 0 | BW95: 0 | BX95: 0 | BY95: 0 | BZ95: 0 | CA95: 0 | CB95: 0 | CC95: 0 | CD95: 0 | CE95: 0 | CF95: 2 | CG95: 0 | CH95: 0 | CI95: 15 | CJ95: 0 | CK95: 0 | CL95: 0 | CM95: 0 | CN95: 0 | CO95: 0 | CP95: 0 | CQ95: 0 | CR95: 0 | CS95: 0 | CT95: 0 | CU95: 0 | CV95: 0 | CW95: 0 | CX95: 0 | CY95: 0 | CZ95: 0 | DA95: 0 | DB95: 0 | DC95: 0 | DD95: 0 | DE95: 0 | DF95: 0 | DG95: 0 | DH95: 0
C96: > 11 kV & < = 22 kV ; Switch | D96: 47 | E96: 6.8556546 | F96: 8486 | G96: 1532.174051 | H96: 1901.644637 | I96: 4588.545517 | J96: 3143.728092 | K96: 1766.488657 | L96: 2128.706683 | M96: 1624.574878 | N96: 3000.462753 | O96: 1731.348102 | P96: 1485.364219 | Q96: 2024.636579 | R96: 1397.512832 | S96: 1400.215952 | T96: 641.9909044 | U96: 910.9513044 | V96: 2001.660062 | W96: 1515.098534 | X96: 1585.379644 | Y96: 2127.355123 | Z96: 1335.341081 | AA96: 1713.777825 | AB96: 2334.143773 | AC96: 3399.172894 | AD96: 3508.649238 | AE96: 3291.04811 | AF96: 4912.919869 | AG96: 5999.573947 | AH96: 22149.36198 | AI96: 3397.821334 | AJ96: 18548.80668 | AK96: 2189.526874 | AL96: 2612.565091 | AM96: 1206.9429 | AN96: 2044.909976 | AO96: 1670.527911 | AP96: 2532.823063 | AQ96: 641.9909044 | AR96: 1185.317944 | AS96: 2020.581899 | AT96: 1027.185447 | AU96: 633.8815456 | AV96: 425.7413366 | AW96: 286.5306773 | AX96: 2294.948538 | AY96: 181.109013 | AZ96: 1169.099226 | BA96: 177.0543336 | BB96: 629.8268663 | BC96: 375.7336241 | BD96: 579.8191537 | BE96: 340.5930693 | BF96: 331.1321507 | BG96: 1128.552432 | BH96: 64.87487034 | BI96: 102.7185447 | BJ96: 21.62495678 | BK96: 70.28110954 | BL96: 0 | BM96: 4.054679396 | BN96: 17.57027738 | BO96: 79.74202813 | BP96: 0 | BQ96: 0 | BR96: 27.03119598 | BS96: 4.054679396 | BT96: 114.8825829 | BU96: 0 | BV96: 62.17175075 | BW96: 0 | BX96: 0 | BY96: 0 | BZ96: 0 | CA96: 0 | CB96: 0 | CC96: 2.703119598 | CD96: 0 | CE96: 17.57027738 | CF96: 0 | CG96: 0 | CH96: 0 | CI96: 0 | CJ96: 0 | CK96: 0 | CL96: 0 | CM96: 0 | CN96: 0 | CO96: 0 | CP96: 0 | CQ96: 0 | CR96: 0 | CS96: 0 | CT96: 13881.87069 | CU96: 0 | CV96: 0 | CW96: 0 | CX96: 0 | CY96: 0 | CZ96: 0 | DA96: 0 | DB96: 0 | DC96: 0 | DD96: 0 | DE96: 0 | DF96: 0 | DG96: 0 | DH96: 0
C97: > 11 kV & < = 22 kV ; Circuit Breaker | D97: 45 | E97: 6.708203932 | F97: 100 | G97: 48.04639538 | H97: 70.62211939 | I97: 19.61793114 | J97: 58.85176616 | K97: 7.847577912 | L97: 100.0480025 | M97: 29.42588308 | N97: 1.962401297 | O97: 60.81416745 | P97: 33.3486584 | Q97: 82.39247262 | R97: 7.847577912 | S97: 19.61793114 | T97: 7.847577912 | U97: 66.69934407 | V97: 9.807951935 | W97: 35.31105969 | X97: 76.507296 | Y97: 0 | Z97: 33.3486584 | AA97: 0 | AB97: 1.962401297 | AC97: 3.922775319 | AD97: 0 | AE97: 0 | AF97: 0 | AG97: 9.807951935 | AH97: 1.962401297 | AI97: 51.00418824 | AJ97: 11.77035323 | AK97: 5.885176616 | AL97: 13.73275453 | AM97: 27.46348178 | AN97: 0 | AO97: 82.39247262 | AP97: 0 | AQ97: 15.69312855 | AR97: 78.4696973 | AS97: 0 | AT97: 78.4696973 | AU97: 0 | AV97: 0 | AW97: 0 | AX97: 0 | AY97: 0 | AZ97: 7.847577912 | BA97: 60.81416745 | BB97: 15.69312855 | BC97: 21.57830517 | BD97: 11.77035323 | BE97: 31.38828437 | BF97: 23.54070646 | BG97: 7.847577912 | BH97: 49.04381422 | BI97: 23.54070646 | BJ97: 7.847577912 | BK97: 1.962401297 | BL97: 7.847577912 | BM97: 0 | BN97: 7.847577912 | BO97: 3.922775319 | BP97: 1.962401297 | BQ97: 0 | BR97: 0 | BS97: 0 | BT97: 0 | BU97: 0 | BV97: 0 | BW97: 0 | BX97: 0 | BY97: 0 | BZ97: 0 | CA97: 0 | CB97: 0 | CC97: 0 | CD97: 0 | CE97: 0 | CF97: 0 | CG97: 0 | CH97: 0 | CI97: 0 | CJ97: 0 | CK97: 0 | CL97: 0 | CM97: 0 | CN97: 0 | CO97: 0 | CP97: 0 | CQ97: 0 | CR97: 0 | CS97: 0 | CT97: 49.04381422 | CU97: 0 | CV97: 0 | CW97: 0 | CX97: 0 | CY97: 0 | CZ97: 0 | DA97: 0 | DB97: 0 | DC97: 0 | DD97: 0 | DE97: 0 | DF97: 0 | DG97: 0 | DH97: 0
C98: > 22 kV & < = 33 kV ; Switch | D98: 47 | E98: 6.8556546 | F98: 0 | G98: 6.128446488 | H98: 7.606268615 | I98: 18.35343422 | J98: 12.5744 | K98: 7.065666723 | L98: 8.514479793 | M98: 6.498034737 | N98: 12.00136199 | O98: 6.925110231 | P98: 5.941214789 | Q98: 8.098216336 | R98: 5.589823559 | S98: 5.600635597 | T98: 2.567858985 | U98: 3.643656749 | V98: 8.006314015 | W98: 6.060147205 | X98: 6.341260189 | Y98: 8.509073774 | Z98: 5.341146689 | AA98: 6.854831986 | AB98: 9.336194668 | AC98: 13.59613757 | AD98: 14.03402511 | AE98: 13.16365606 | AF98: 19.65087876 | AG98: 23.99731797 | AH98: 88.593838 | AI98: 13.59073156 | AJ98: 74.1922036 | AK98: 8.757750644 | AL98: 10.44983456 | AM98: 4.827574892 | AN98: 8.17930662 | AO98: 6.68183938 | AP98: 10.13087945 | AQ98: 2.567858985 | AR98: 4.741078589 | AS98: 8.08199828 | AT98: 4.108574376 | AU98: 2.535422872 | AV98: 1.702895959 | AW98: 1.14607601 | AX98: 9.179420119 | AY98: 0.7244065348 | AZ98: 4.676206362 | BA98: 0.708188478 | BB98: 2.519204815 | BC98: 1.502873259 | BD98: 2.319182115 | BE98: 1.362316767 | BF98: 1.324474634 | BG98: 4.514025795 | BH98: 0.259488908 | BI98: 0.4108574376 | BJ98: 0.08649630266 | BK98: 0.2811129836 | BL98: 0 | BM98: 0.01621805675 | BN98: 0.07027824591 | BO98: 0.318955116 | BP98: 0 | BQ98: 0 | BR98: 0.1081203783 | BS98: 0.01621805675 | BT98: 0.4595116079 | BU98: 0 | BV98: 0.2486768701 | BW98: 0 | BX98: 0 | BY98: 0 | BZ98: 0 | CA98: 0 | CB98: 0 | CC98: 0.01081203783 | CD98: 0 | CE98: 0.07027824591 | CF98: 0 | CG98: 0 | CH98: 0 | CI98: 0 | CJ98: 0 | CK98: 0 | CL98: 0 | CM98: 0 | CN98: 0 | CO98: 0 | CP98: 0 | CQ98: 0 | CR98: 0 | CS98: 0 | CT98: 55.52522029 | CU98: 0 | CV98: 0 | CW98: 0 | CX98: 0 | CY98: 0 | CZ98: 0 | DA98: 0 | DB98: 0 | DC98: 0 | DD98: 0 | DE98: 0 | DF98: 0 | DG98: 0 | DH98: 0
C99: > 22 kV & < = 33 kV ; Circuit Breaker | D99: 45 | E99: 6.708203932 | F99: 0 | G99: 7.342158859 | H99: 0 | I99: 35.66191446 | J99: 9.439918534 | K99: 29.36863544 | L99: 4.195519348 | M99: 48.24847251 | N99: 14.68431772 | O99: 0 | P99: 31.46639511 | Q99: 14.68431772 | R99: 27.27087576 | S99: 4.195519348 | T99: 10.48879837 | U99: 4.195519348 | V99: 33.56415479 | W99: 3.146639511 | X99: 15.73319756 | Y99: 11.53767821 | Z99: 0 | AA99: 16.78207739 | AB99: 0 | AC99: 0 | AD99: 0 | AE99: 0 | AF99: 0 | AG99: 0 | AH99: 5.244399185 | AI99: 0 | AJ99: 27.27087576 | AK99: 4.195519348 | AL99: 3.146639511 | AM99: 7.342158859 | AN99: 14.68431772 | AO99: 0 | AP99: 29.36863544 | AQ99: 0 | AR99: 0 | AS99: 14.68431772 | AT99: 0 | AU99: 0 | AV99: 0 | AW99: 0 | AX99: 0 | AY99: 0 | AZ99: 0 | BA99: 4.195519348 | BB99: 0 | BC99: 6.293279022 | BD99: 0 | BE99: 6.293279022 | BF99: 13.63543788 | BG99: 11.53767821 | BH99: 2.097759674 | BI99: 16.78207739 | BJ99: 11.53767821 | BK99: 4.195519348 | BL99: 0 | BM99: 4.195519348 | BN99: 0 | BO99: 3.146639511 | BP99: 2.097759674 | BQ99: 1.048879837 | BR99: 0 | BS99: 0 | BT99: 0 | BU99: 0 | BV99: 0 | BW99: 0 | BX99: 0 | BY99: 0 | BZ99: 0 | CA99: 0 | CB99: 0 | CC99: 0 | CD99: 0 | CE99: 0 | CF99: 0 | CG99: 0 | CH99: 0 | CI99: 0 | CJ99: 0 | CK99: 0 | CL99: 0 | CM99: 0 | CN99: 0 | CO99: 0 | CP99: 0 | CQ99: 0 | CR99: 0 | CS99: 0 | CT99: 0 | CU99: 0 | CV99: 0 | CW99: 0 | CX99: 0 | CY99: 0 | CZ99: 0 | DA99: 0 | DB99: 0 | DC99: 0 | DD99: 0 | DE99: 0 | DF99: 0 | DG99: 0 | DH99: 0
C100: > 33 kV & < = 66 kV ; Switch | D100: 47 | E100: 6.8556546 | F100: 0 | G100: 4.681510165 | H100: 29.64956438 | I100: 5.461761859 | J100: 6.242013553 | K100: 27.30880929 | L100: 39.0125847 | M100: 21.84704743 | N100: 14.82478219 | O100: 14.82478219 | P100: 15.60503388 | Q100: 21.06679574 | R100: 9.363020329 | S100: 17.16553727 | T100: 3.121006776 | U100: 48.37560503 | V100: 0 | W100: 33.55082285 | X100: 3.121006776 | Y100: 0 | Z100: 9.363020329 | AA100: 0 | AB100: 0 | AC100: 0.7802516941 | AD100: 0 | AE100: 0 | AF100: 0.7802516941 | AG100: 0 | AH100: 3.90125847 | AI100: 7.802516941 | AJ100: 3.121006776 | AK100: 3.90125847 | AL100: 20.28654405 | AM100: 10.14327202 | AN100: 22.62729913 | AO100: 24.18780252 | AP100: 2.340755082 | AQ100: 42.13359148 | AR100: 17.94578896 | AS100: 17.16553727 | AT100: 15.60503388 | AU100: 0 | AV100: 0 | AW100: 0 | AX100: 0 | AY100: 0 | AZ100: 53.0571152 | BA100: 7.802516941 | BB100: 19.50629235 | BC100: 31.99031946 | BD100: 31.99031946 | BE100: 17.16553727 | BF100: 42.91384318 | BG100: 26.5285576 | BH100: 0 | BI100: 21.06679574 | BJ100: 0 | BK100: 1.560503388 | BL100: 3.121006776 | BM100: 0 | BN100: 0 | BO100: 0 | BP100: 0 | BQ100: 0 | BR100: 0 | BS100: 3.121006776 | BT100: 24.18780252 | BU100: 0 | BV100: 3.90125847 | BW100: 0.7802516941 | BX100: 0 | BY100: 0 | BZ100: 0 | CA100: 0 | CB100: 0 | CC100: 0 | CD100: 0 | CE100: 0 | CF100: 0 | CG100: 0 | CH100: 0 | CI100: 0 | CJ100: 0 | CK100: 0 | CL100: 0 | CM100: 0 | CN100: 0 | CO100: 0 | CP100: 0 | CQ100: 0 | CR100: 0 | CS100: 0 | CT100: 0 | CU100: 0 | CV100: 0 | CW100: 0 | CX100: 0 | CY100: 0 | CZ100: 0 | DA100: 0 | DB100: 0 | DC100: 0 | DD100: 0 | DE100: 0 | DF100: 0 | DG100: 0 | DH100: 0
C101: > 33 kV & < = 66 kV ; Circuit Breaker | D101: 45 | E101: 6.708203932 | F101: 0 | G101: 2 | H101: 2 | I101: 0 | J101: 0 | K101: 0 | L101: 0 | M101: 0 | N101: 3 | O101: 3 | P101: 0 | Q101: 2 | R101: 0 | S101: 0 | T101: 0 | U101: 0 | V101: 1 | W101: 0 | X101: 7 | Y101: 0 | Z101: 0 | AA101: 1 | AB101: 0 | AC101: 0 | AD101: 0 | AE101: 0 | AF101: 0 | AG101: 0 | AH101: 0 | AI101: 0 | AJ101: 1 | AK101: 0 | AL101: 0 | AM101: 0 | AN101: 2 | AO101: 4 | AP101: 1 | AQ101: 0 | AR101: 0 | AS101: 2 | AT101: 5 | AU101: 0 | AV101: 2 | AW101: 0 | AX101: 0 | AY101: 0 | AZ101: 0 | BA101: 0 | BB101: 0 | BC101: 0 | BD101: 4 | BE101: 11 | BF101: 0 | BG101: 1 | BH101: 2 | BI101: 1 | BJ101: 0 | BK101: 3 | BL101: 0 | BM101: 0 | BN101: 0 | BO101: 0 | BP101: 0 | BQ101: 1 | BR101: 0 | BS101: 0 | BT101: 0 | BU101: 0 | BV101: 0 | BW101: 0 | BX101: 1 | BY101: 0 | BZ101: 0 | CA101: 0 | CB101: 0 | CC101: 0 | CD101: 0 | CE101: 0 | CF101: 0 | CG101: 0 | CH101: 1 | CI101: 0 | CJ101: 0 | CK101: 0 | CL101: 0 | CM101: 0 | CN101: 0 | CO101: 0 | CP101: 0 | CQ101: 0 | CR101: 0 | CS101: 0 | CT101: 0 | CU101: 0 | CV101: 0 | CW101: 0 | CX101: 0 | CY101: 0 | CZ101: 0 | DA101: 0 | DB101: 0 | DC101: 0 | DD101: 0 | DE101: 0 | DF101: 0 | DG101: 0 | DH101: 0
C102: > 66 kV & < = 132 kV ; Switch | D102: 47 | E102: 6.8556546 | F102: 0 | G102: 1.987323055 | H102: 2.466548906 | I102: 5.951622981 | J102: 4.077606791 | K102: 2.291243369 | L102: 2.761062208 | M102: 2.107172555 | N102: 3.891782922 | O102: 2.245663929 | P102: 1.926607852 | Q102: 2.626076944 | R102: 1.812659253 | S102: 1.816165363 | T102: 0.8327013008 | U102: 1.181559319 | V102: 2.596275003 | W102: 1.96517507 | X102: 2.056333949 | Y102: 2.759309152 | Z102: 1.732018706 | AA102: 2.222874209 | AB102: 3.027526624 | AC102: 4.408934256 | AD102: 4.550931741 | AE102: 4.268689826 | AF102: 6.37235627 | AG102: 7.781812788 | AH102: 28.7290714 | AI102: 4.4071812 | AJ102: 24.0589319 | AK102: 2.8399497 | AL102: 3.38865603 | AM102: 1.565478445 | AN102: 2.652372775 | AO102: 2.166776437 | AP102: 3.285225764 | AQ102: 0.8327013008 | AR102: 1.53742956 | AS102: 2.620817778 | AT102: 1.332322081 | AU102: 0.8221829686 | AV102: 0.5522124416 | AW102: 0.3716477385 | AX102: 2.976688018 | AY102: 0.2349094196 | AZ102: 1.516392895 | BA102: 0.2296502535 | BB102: 0.8169238025 | BC102: 0.4873493929 | BD102: 0.7520607538 | BE102: 0.4417699533 | BF102: 0.4294985657 | BG102: 1.463801234 | BH102: 0.08414665776 | BI102: 0.1332322081 | BJ102: 0.02804888592 | BK102: 0.09115887924 | BL102: 0 | BM102: 0.00525916611 | BN102: 0.02278971981 | BO102: 0.1034302668 | BP102: 0 | BQ102: 0 | BR102: 0.0350611074 | BS102: 0.00525916611 | BT102: 0.1490097065 | BU102: 0 | BV102: 0.08064054702 | BW102: 0 | BX102: 0 | BY102: 0 | BZ102: 0 | CA102: 0 | CB102: 0 | CC102: 0.00350611074 | CD102: 0 | CE102: 0.02278971981 | CF102: 0 | CG102: 0 | CH102: 0 | CI102: 0 | CJ102: 0 | CK102: 0 | CL102: 0 | CM102: 0 | CN102: 0 | CO102: 0 | CP102: 0 | CQ102: 0 | CR102: 0 | CS102: 0 | CT102: 18.00563171 | CU102: 0 | CV102: 0 | CW102: 0 | CX102: 0 | CY102: 0 | CZ102: 0 | DA102: 0 | DB102: 0 | DC102: 0 | DD102: 0 | DE102: 0 | DF102: 0 | DG102: 0 | DH102: 0
C103: > 66 kV & < = 132 kV ; Circuit Breaker | D103: 45 | E103: 6.708203932 | F103: 0 | G103: 2 | H103: 2 | I103: 10 | J103: 3 | K103: 0 | L103: 7 | M103: 11 | N103: 4 | O103: 2 | P103: 4 | Q103: 0 | R103: 13 | S103: 2 | T103: 3 | U103: 0 | V103: 6 | W103: 1 | X103: 1 | Y103: 0 | Z103: 0 | AA103: 0 | AB103: 0 | AC103: 0 | AD103: 0 | AE103: 0 | AF103: 0 | AG103: 0 | AH103: 0 | AI103: 0 | AJ103: 0 | AK103: 2 | AL103: 1 | AM103: 0 | AN103: 0 | AO103: 8 | AP103: 3 | AQ103: 0 | AR103: 0 | AS103: 0 | AT103: 3 | AU103: 0 | AV103: 0 | AW103: 0 | AX103: 0 | AY103: 0 | AZ103: 0 | BA103: 0 | BB103: 8 | BC103: 0 | BD103: 3 | BE103: 0 | BF103: 3 | BG103: 2 | BH103: 7 | BI103: 4 | BJ103: 0 | BK103: 0 | BL103: 0 | BM103: 0 | BN103: 0 | BO103: 0 | BP103: 0 | BQ103: 0 | BR103: 0 | BS103: 0 | BT103: 0 | BU103: 0 | BV103: 0 | BW103: 0 | BX103: 0 | BY103: 0 | BZ103: 0 | CA103: 0 | CB103: 0 | CC103: 0 | CD103: 0 | CE103: 0 | CF103: 0 | CG103: 0 | CH103: 0 | CI103: 0 | CJ103: 0 | CK103: 0 | CL103: 0 | CM103: 0 | CN103: 0 | CO103: 0 | CP103: 0 | CQ103: 0 | CR103: 0 | CS103: 0 | CT103: 0 | CU103: 0 | CV103: 0 | CW103: 0 | CX103: 0 | CY103: 0 | CZ103: 0 | DA103: 0 | DB103: 0 | DC103: 0 | DD103: 0 | DE103: 0 | DF103: 0 | DG103: 0 | DH103: 0
C104: > 132 kV ; Switch | D104: 0 | E104: 0 | F104: 0 | G104: 0 | H104: 0 | I104: 0 | J104: 0 | K104: 0 | L104: 0 | M104: 0 | N104: 0 | O104: 0 | P104: 0 | Q104: 0 | R104: 0 | S104: 0 | T104: 0 | U104: 0 | V104: 0 | W104: 0 | X104: 0 | Y104: 0 | Z104: 0 | AA104: 0 | AB104: 0 | AC104: 0 | AD104: 0 | AE104: 0 | AF104: 0 | AG104: 0 | AH104: 0 | AI104: 0 | AJ104: 0 | AK104: 0 | AL104: 0 | AM104: 0 | AN104: 0 | AO104: 0 | AP104: 0 | AQ104: 0 | AR104: 0 | AS104: 0 | AT104: 0 | AU104: 0 | AV104: 0 | AW104: 0 | AX104: 0 | AY104: 0 | AZ104: 0 | BA104: 0 | BB104: 0 | BC104: 0 | BD104: 0 | BE104: 0 | BF104: 0 | BG104: 0 | BH104: 0 | BI104: 0 | BJ104: 0 | BK104: 0 | BL104: 0 | BM104: 0 | BN104: 0 | BO104: 0 | BP104: 0 | BQ104: 0 | BR104: 0 | BS104: 0 | BT104: 0 | BU104: 0 | BV104: 0 | BW104: 0 | BX104: 0 | BY104: 0 | BZ104: 0 | CA104: 0 | CB104: 0 | CC104: 0 | CD104: 0 | CE104: 0 | CF104: 0 | CG104: 0 | CH104: 0 | CI104: 0 | CJ104: 0 | CK104: 0 | CL104: 0 | CM104: 0 | CN104: 0 | CO104: 0 | CP104: 0 | CQ104: 0 | CR104: 0 | CS104: 0 | CT104: 0 | CU104: 0 | CV104: 0 | CW104: 0 | CX104: 0 | CY104: 0 | CZ104: 0 | DA104: 0 | DB104: 0 | DC104: 0 | DD104: 0 | DE104: 0 | DF104: 0 | DG104: 0 | DH104: 0
C105: > 132 kV ; Circuit Breaker | D105: 0 | E105: 0 | F105: 0 | G105: 0 | H105: 0 | I105: 0 | J105: 0 | K105: 0 | L105: 0 | M105: 0 | N105: 0 | O105: 0 | P105: 0 | Q105: 0 | R105: 0 | S105: 0 | T105: 0 | U105: 0 | V105: 0 | W105: 0 | X105: 0 | Y105: 0 | Z105: 0 | AA105: 0 | AB105: 0 | AC105: 0 | AD105: 0 | AE105: 0 | AF105: 0 | AG105: 0 | AH105: 0 | AI105: 0 | AJ105: 0 | AK105: 0 | AL105: 0 | AM105: 0 | AN105: 0 | AO105: 0 | AP105: 0 | AQ105: 0 | AR105: 0 | AS105: 0 | AT105: 0 | AU105: 0 | AV105: 0 | AW105: 0 | AX105: 0 | AY105: 0 | AZ105: 0 | BA105: 0 | BB105: 0 | BC105: 0 | BD105: 0 | BE105: 0 | BF105: 0 | BG105: 0 | BH105: 0 | BI105: 0 | BJ105: 0 | BK105: 0 | BL105: 0 | BM105: 0 | BN105: 0 | BO105: 0 | BP105: 0 | BQ105: 0 | BR105: 0 | BS105: 0 | BT105: 0 | BU105: 0 | BV105: 0 | BW105: 0 | BX105: 0 | BY105: 0 | BZ105: 0 | CA105: 0 | CB105: 0 | CC105: 0 | CD105: 0 | CE105: 0 | CF105: 0 | CG105: 0 | CH105: 0 | CI105: 0 | CJ105: 0 | CK105: 0 | CL105: 0 | CM105: 0 | CN105: 0 | CO105: 0 | CP105: 0 | CQ105: 0 | CR105: 0 | CS105: 0 | CT105: 0 | CU105: 0 | CV105: 0 | CW105: 0 | CX105: 0 | CY105: 0 | CZ105: 0 | DA105: 0 | DB105: 0 | DC105: 0 | DD105: 0 | DE105: 0 | DF105: 0 | DG105: 0 | DH105: 0
C106: Other | D106: 0 | E106: 0 | F106: 0 | G106: 0 | H106: 0 | I106: 0 | J106: 0 | K106: 0 | L106: 0 | M106: 0 | N106: 0 | O106: 0 | P106: 0 | Q106: 0 | R106: 0 | S106: 0 | T106: 0 | U106: 0 | V106: 0 | W106: 0 | X106: 0 | Y106: 0 | Z106: 0 | AA106: 0 | AB106: 0 | AC106: 0 | AD106: 0 | AE106: 0 | AF106: 0 | AG106: 0 | AH106: 0 | AI106: 0 | AJ106: 0 | AK106: 0 | AL106: 0 | AM106: 0 | AN106: 0 | AO106: 0 | AP106: 0 | AQ106: 0 | AR106: 0 | AS106: 0 | AT106: 0 | AU106: 0 | AV106: 0 | AW106: 0 | AX106: 0 | AY106: 0 | AZ106: 0 | BA106: 0 | BB106: 0 | BC106: 0 | BD106: 0 | BE106: 0 | BF106: 0 | BG106: 0 | BH106: 0 | BI106: 0 | BJ106: 0 | BK106: 0 | BL106: 0 | BM106: 0 | BN106: 0 | BO106: 0 | BP106: 0 | BQ106: 0 | BR106: 0 | BS106: 0 | BT106: 0 | BU106: 0 | BV106: 0 | BW106: 0 | BX106: 0 | BY106: 0 | BZ106: 0 | CA106: 0 | CB106: 0 | CC106: 0 | CD106: 0 | CE106: 0 | CF106: 0 | CG106: 0 | CH106: 0 | CI106: 0 | CJ106: 0 | CK106: 0 | CL106: 0 | CM106: 0 | CN106: 0 | CO106: 0 | CP106: 0 | CQ106: 0 | CR106: 0 | CS106: 0 | CT106: 0 | CU106: 0 | CV106: 0 | CW106: 0 | CX106: 0 | CY106: 0 | CZ106: 0 | DA106: 0 | DB106: 0 | DC106: 0 | DD106: 0 | DE106: 0 | DF106: 0 | DG106: 0 | DH106: 0
B107: PUBLIC LIGHTING BY: ASSET TYPE ; LIGHTING OBLIGATION | C107: Luminaires ; Major Road | D107: 35 | E107: 5.916079783 | F107: 1953.79557 | G107: 2288.640407 | H107: 9658.621262 | I107: 8047.466439 | J107: 3129.098577 | K107: 6234.423251 | L107: 1398.698007 | M107: 105.8504765 | N107: 16.41531453 | O107: 31.13249308 | P107: 107.5486125 | Q107: 82.07657267 | R107: 126.7941536 | S107: 10.18881592 | T107: 6.792543945 | U107: 52.64221557 | V107: 313.5891121 | W107: 721.1417488 | X107: 142.6434228 | Y107: 85.47284464 | Z107: 0 | AA107: 0 | AB107: 0 | AC107: 0 | AD107: 0 | AE107: 0 | AF107: 0 | AG107: 0 | AH107: 0 | AI107: 0 | AJ107: 0 | AK107: 0 | AL107: 0 | AM107: 0 | AN107: 0 | AO107: 0 | AP107: 0 | AQ107: 0 | AR107: 0 | AS107: 0 | AT107: 0 | AU107: 0 | AV107: 0 | AW107: 0 | AX107: 0 | AY107: 0 | AZ107: 0 | BA107: 0 | BB107: 0 | BC107: 0 | BD107: 0 | BE107: 0 | BF107: 0 | BG107: 0 | BH107: 0 | BI107: 0 | BJ107: 0 | BK107: 0 | BL107: 0 | BM107: 0 | BN107: 0 | BO107: 0 | BP107: 0 | BQ107: 0 | BR107: 0 | BS107: 0 | BT107: 0 | BU107: 0 | BV107: 0 | BW107: 0 | BX107: 0 | BY107: 0 | BZ107: 0 | CA107: 0 | CB107: 0 | CC107: 0 | CD107: 0 | CE107: 0 | CF107: 0 | CG107: 0 | CH107: 0 | CI107: 0 | CJ107: 0 | CK107: 0 | CL107: 0 | CM107: 0 | CN107: 0 | CO107: 0 | CP107: 0 | CQ107: 0 | CR107: 0 | CS107: 0 | CT107: 0 | CU107: 1282.658715 | CV107: 0 | CW107: 0 | CX107: 0 | CY107: 0 | CZ107: 0 | DA107: 0 | DB107: 0 | DC107: 0 | DD107: 0 | DE107: 0 | DF107: 0 | DG107: 0 | DH107: 0
C108: Luminaires ; Minor Road | D108: 35 | E108: 5.916079783 | F108: 3930.664874 | G108: 4983.302454 | H108: 20093.33546 | I108: 31835.59677 | J108: 12377.95949 | K108: 24665.22566 | L108: 5532.292886 | M108: 417.6371679 | N108: 63.82122941 | O108: 123.1637761 | P108: 426.5945334 | Q108: 323.5848298 | R108: 500.492799 | S108: 40.30814489 | T108: 26.87209659 | U108: 208.2587486 | V108: 1239.475455 | W108: 2854.040592 | X108: 563.1943578 | Y108: 339.2602195 | Z108: 0 | AA108: 0 | AB108: 0 | AC108: 0 | AD108: 0 | AE108: 0 | AF108: 0 | AG108: 0 | AH108: 0 | AI108: 0 | AJ108: 0 | AK108: 0 | AL108: 0 | AM108: 0 | AN108: 0 | AO108: 0 | AP108: 0 | AQ108: 0 | AR108: 0 | AS108: 0 | AT108: 0 | AU108: 0 | AV108: 0 | AW108: 0 | AX108: 0 | AY108: 0 | AZ108: 0 | BA108: 0 | BB108: 0 | BC108: 0 | BD108: 0 | BE108: 0 | BF108: 0 | BG108: 0 | BH108: 0 | BI108: 0 | BJ108: 0 | BK108: 0 | BL108: 0 | BM108: 0 | BN108: 0 | BO108: 0 | BP108: 0 | BQ108: 0 | BR108: 0 | BS108: 0 | BT108: 0 | BU108: 0 | BV108: 0 | BW108: 0 | BX108: 0 | BY108: 0 | BZ108: 0 | CA108: 0 | CB108: 0 | CC108: 0 | CD108: 0 | CE108: 0 | CF108: 0 | CG108: 0 | CH108: 0 | CI108: 0 | CJ108: 0 | CK108: 0 | CL108: 0 | CM108: 0 | CN108: 0 | CO108: 0 | CP108: 0 | CQ108: 0 | CR108: 0 | CS108: 0 | CT108: 0 | CU108: 5073.227903 | CV108: 0 | CW108: 0 | CX108: 0 | CY108: 0 | CZ108: 0 | DA108: 0 | DB108: 0 | DC108: 0 | DD108: 0 | DE108: 0 | DF108: 0 | DG108: 0 | DH108: 0
C109: Brackets ; Major Road | D109: 35 | E109: 5.916079783 | F109: 1593.252534 | G109: 4146.704254 | H109: 2949.493009 | I109: 1950.412693 | J109: 3543.018036 | K109: 1276.501892 | L109: 258.6850426 | M109: 12.69249041 | N109: 58.02281329 | O109: 67.08887786 | P109: 67.08887786 | Q109: 105.1663491 | R109: 25.98938512 | S109: 15.71451193 | T109: 16.31891624 | U109: 77.96815536 | V109: 129.9469256 | W109: 32.63783247 | X109: 33.84664108 | Y109: 0 | Z109: 0 | AA109: 0 | AB109: 0 | AC109: 0 | AD109: 0 | AE109: 0 | AF109: 0 | AG109: 0 | AH109: 0 | AI109: 0 | AJ109: 0 | AK109: 0 | AL109: 0 | AM109: 0 | AN109: 0 | AO109: 0 | AP109: 0 | AQ109: 0 | AR109: 0 | AS109: 0 | AT109: 0 | AU109: 0 | AV109: 0 | AW109: 0 | AX109: 0 | AY109: 0 | AZ109: 0 | BA109: 0 | BB109: 0 | BC109: 0 | BD109: 0 | BE109: 0 | BF109: 0 | BG109: 0 | BH109: 0 | BI109: 0 | BJ109: 0 | BK109: 0 | BL109: 0 | BM109: 0 | BN109: 0 | BO109: 0 | BP109: 0 | BQ109: 0 | BR109: 0 | BS109: 0 | BT109: 0 | BU109: 0 | BV109: 0 | BW109: 0 | BX109: 0 | BY109: 0 | BZ109: 0 | CA109: 0 | CB109: 0 | CC109: 0 | CD109: 0 | CE109: 0 | CF109: 0 | CG109: 0 | CH109: 0 | CI109: 0 | CJ109: 0 | CK109: 0 | CL109: 0 | CM109: 0 | CN109: 0 | CO109: 0 | CP109: 0 | CQ109: 0 | CR109: 0 | CS109: 0 | CT109: 535.5022143 | CU109: 0 | CV109: 0 | CW109: 0 | CX109: 0 | CY109: 0 | CZ109: 0 | DA109: 0 | DB109: 0 | DC109: 0 | DD109: 0 | DE109: 0 | DF109: 0 | DG109: 0 | DH109: 0
C110: Brackets ; Minor Road | D110: 35 | E110: 5.916079783 | F110: 5179.747466 | G110: 8292.814807 | H110: 10961.32844 | I110: 7248.022586 | J110: 13168.42039 | K110: 4744.4053 | L110: 960.3377206 | M110: 47.17448452 | N110: 215.6547864 | O110: 249.3508467 | P110: 248.2276447 | Q110: 389.7510983 | R110: 97.71857508 | S110: 57.28330263 | T110: 61.77611068 | U110: 288.6629172 | V110: 481.8536633 | W110: 121.3058173 | X110: 125.7986254 | Y110: 0 | Z110: 0 | AA110: 0 | AB110: 0 | AC110: 0 | AD110: 0 | AE110: 0 | AF110: 0 | AG110: 0 | AH110: 0 | AI110: 0 | AJ110: 0 | AK110: 0 | AL110: 0 | AM110: 0 | AN110: 0 | AO110: 0 | AP110: 0 | AQ110: 0 | AR110: 0 | AS110: 0 | AT110: 0 | AU110: 0 | AV110: 0 | AW110: 0 | AX110: 0 | AY110: 0 | AZ110: 0 | BA110: 0 | BB110: 0 | BC110: 0 | BD110: 0 | BE110: 0 | BF110: 0 | BG110: 0 | BH110: 0 | BI110: 0 | BJ110: 0 | BK110: 0 | BL110: 0 | BM110: 0 | BN110: 0 | BO110: 0 | BP110: 0 | BQ110: 0 | BR110: 0 | BS110: 0 | BT110: 0 | BU110: 0 | BV110: 0 | BW110: 0 | BX110: 0 | BY110: 0 | BZ110: 0 | CA110: 0 | CB110: 0 | CC110: 0 | CD110: 0 | CE110: 0 | CF110: 0 | CG110: 0 | CH110: 0 | CI110: 0 | CJ110: 0 | CK110: 0 | CL110: 0 | CM110: 0 | CN110: 0 | CO110: 0 | CP110: 0 | CQ110: 0 | CR110: 0 | CS110: 0 | CT110: 1990.313966 | CU110: 0 | CV110: 0 | CW110: 0 | CX110: 0 | CY110: 0 | CZ110: 0 | DA110: 0 | DB110: 0 | DC110: 0 | DD110: 0 | DE110: 0 | DF110: 0 | DG110: 0 | DH110: 0
C111: Lamps ; Major Road | D111: 0 | E111: 0 | F111: 0 | G111: 0 | H111: 0 | I111: 0 | J111: 0 | K111: 0 | L111: 0 | M111: 0 | N111: 0 | O111: 0 | P111: 0 | Q111: 0 | R111: 0 | S111: 0 | T111: 0 | U111: 0 | V111: 0 | W111: 0 | X111: 0 | Y111: 0 | Z111: 0 | AA111: 0 | AB111: 0 | AC111: 0 | AD111: 0 | AE111: 0 | AF111: 0 | AG111: 0 | AH111: 0 | AI111: 0 | AJ111: 0 | AK111: 0 | AL111: 0 | AM111: 0 | AN111: 0 | AO111: 0 | AP111: 0 | AQ111: 0 | AR111: 0 | AS111: 0 | AT111: 0 | AU111: 0 | AV111: 0 | AW111: 0 | AX111: 0 | AY111: 0 | AZ111: 0 | BA111: 0 | BB111: 0 | BC111: 0 | BD111: 0 | BE111: 0 | BF111: 0 | BG111: 0 | BH111: 0 | BI111: 0 | BJ111: 0 | BK111: 0 | BL111: 0 | BM111: 0 | BN111: 0 | BO111: 0 | BP111: 0 | BQ111: 0 | BR111: 0 | BS111: 0 | BT111: 0 | BU111: 0 | BV111: 0 | BW111: 0 | BX111: 0 | BY111: 0 | BZ111: 0 | CA111: 0 | CB111: 0 | CC111: 0 | CD111: 0 | CE111: 0 | CF111: 0 | CG111: 0 | CH111: 0 | CI111: 0 | CJ111: 0 | CK111: 0 | CL111: 0 | CM111: 0 | CN111: 0 | CO111: 0 | CP111: 0 | CQ111: 0 | CR111: 0 | CS111: 0 | CT111: 0 | CU111: 0 | CV111: 0 | CW111: 0 | CX111: 0 | CY111: 0 | CZ111: 0 | DA111: 0 | DB111: 0 | DC111: 0 | DD111: 0 | DE111: 0 | DF111: 0 | DG111: 0 | DH111: 0
C112: Lamps ; Minor Road | D112: 0 | E112: 0 | F112: 0 | G112: 0 | H112: 0 | I112: 0 | J112: 0 | K112: 0 | L112: 0 | M112: 0 | N112: 0 | O112: 0 | P112: 0 | Q112: 0 | R112: 0 | S112: 0 | T112: 0 | U112: 0 | V112: 0 | W112: 0 | X112: 0 | Y112: 0 | Z112: 0 | AA112: 0 | AB112: 0 | AC112: 0 | AD112: 0 | AE112: 0 | AF112: 0 | AG112: 0 | AH112: 0 | AI112: 0 | AJ112: 0 | AK112: 0 | AL112: 0 | AM112: 0 | AN112: 0 | AO112: 0 | AP112: 0 | AQ112: 0 | AR112: 0 | AS112: 0 | AT112: 0 | AU112: 0 | AV112: 0 | AW112: 0 | AX112: 0 | AY112: 0 | AZ112: 0 | BA112: 0 | BB112: 0 | BC112: 0 | BD112: 0 | BE112: 0 | BF112: 0 | BG112: 0 | BH112: 0 | BI112: 0 | BJ112: 0 | BK112: 0 | BL112: 0 | BM112: 0 | BN112: 0 | BO112: 0 | BP112: 0 | BQ112: 0 | BR112: 0 | BS112: 0 | BT112: 0 | BU112: 0 | BV112: 0 | BW112: 0 | BX112: 0 | BY112: 0 | BZ112: 0 | CA112: 0 | CB112: 0 | CC112: 0 | CD112: 0 | CE112: 0 | CF112: 0 | CG112: 0 | CH112: 0 | CI112: 0 | CJ112: 0 | CK112: 0 | CL112: 0 | CM112: 0 | CN112: 0 | CO112: 0 | CP112: 0 | CQ112: 0 | CR112: 0 | CS112: 0 | CT112: 0 | CU112: 0 | CV112: 0 | CW112: 0 | CX112: 0 | CY112: 0 | CZ112: 0 | DA112: 0 | DB112: 0 | DC112: 0 | DD112: 0 | DE112: 0 | DF112: 0 | DG112: 0 | DH112: 0
C113: Poles / Columns ; Major Road | D113: 35 | E113: 5.916079783 | F113: 613.8059962 | G113: 1022.910145 | H113: 2285.033268 | I113: 830.9659144 | J113: 781.5212285 | K113: 652.8666479 | L113: 941.9089657 | M113: 939.4490311 | N113: 645.978831 | O113: 788.163052 | P113: 970.9361942 | Q113: 506.0085512 | R113: 402.4453037 | S113: 1278.428022 | T113: 736.504425 | U113: 508.9604727 | V113: 312.9036836 | W113: 161.371711 | X113: 1051.62205 | Y113: 420.156833 | Z113: 304.5399059 | AA113: 124.4726917 | AB113: 112.4190121 | AC113: 123.2427244 | AD113: 309.7057686 | AE113: 302.8179516 | AF113: 200.7306649 | AG113: 190.1529461 | AH113: 379.5679117 | AI113: 494.9388454 | AJ113: 409.3331206 | AK113: 141.4462406 | AL113: 391.3755979 | AM113: 336.5190559 | AN113: 106.7611625 | AO113: 36.89901929 | AP113: 64.45028702 | AQ113: 60.26839817 | AR113: 92.00155476 | AS113: 11.80768617 | AT113: 36.89901929 | AU113: 48.21471854 | AV113: 51.16664008 | AW113: 22.87739196 | AX113: 10.3317254 | AY113: 15.4975881 | AZ113: 17.95752272 | BA113: 7.379803858 | BB113: 23.36937888 | BC113: 20.90944426 | BD113: 11.06970579 | BE113: 13.03765348 | BF113: 3.935895391 | BG113: 4.673875777 | BH113: 3.197915005 | BI113: 3.197915005 | BJ113: 2.459934619 | BK113: 2.213941157 | BL113: 3.689901929 | BM113: 2.459934619 | BN113: 0.7379803858 | BO113: 1.967947695 | BP113: 0 | BQ113: 0.7379803858 | BR113: 0.4919869238 | BS113: 0.2459934619 | BT113: 0.4919869238 | BU113: 0 | BV113: 0 | BW113: 0.2459934619 | BX113: 0.7379803858 | BY113: 0.9839738477 | BZ113: 0.4919869238 | CA113: 0.2459934619 | CB113: 0 | CC113: 0 | CD113: 0 | CE113: 0.7379803858 | CF113: 0.7379803858 | CG113: 0.9839738477 | CH113: 1.475960772 | CI113: 0.7379803858 | CJ113: 0.4919869238 | CK113: 0.2459934619 | CL113: 0 | CM113: 0 | CN113: 0 | CO113: 0 | CP113: 0 | CQ113: 0 | CR113: 0 | CS113: 0 | CT113: 0 | CU113: 0 | CV113: 0 | CW113: 0 | CX113: 0 | CY113: 0 | CZ113: 0 | DA113: 0 | DB113: 0 | DC113: 0 | DD113: 0 | DE113: 0 | DF113: 0 | DG113: 0 | DH113: 0
C114: Poles / Columns ; Minor Road | D114: 35 | E114: 5.916079783 | F114: 1996.194004 | G114: 3325.499331 | H114: 7428.684369 | I114: 2701.485176 | J114: 2540.73961 | K114: 2122.481248 | L114: 3062.163037 | M114: 3054.165745 | N114: 2100.088831 | O114: 2562.332298 | P114: 3156.53108 | Q114: 1645.042927 | R114: 1308.356941 | S114: 4156.192557 | T114: 2394.38917 | U114: 1654.639677 | V114: 1017.255519 | W114: 524.6223432 | X114: 3418.842252 | Y114: 1365.937442 | Z114: 990.064727 | AA114: 404.6629659 | AB114: 365.476236 | AC114: 400.66432 | AD114: 1006.85904 | AE114: 984.4666227 | AF114: 652.5790123 | AG114: 618.1906575 | AH114: 1233.982127 | AI114: 1609.055114 | AJ114: 1330.749358 | AK114: 459.8442795 | AL114: 1272.369128 | AM114: 1094.029521 | AN114: 347.0824649 | AO114: 119.9593773 | AP114: 209.5290456 | AQ114: 195.9336495 | AR114: 299.098714 | AS114: 38.38700072 | AT114: 119.9593773 | AU114: 156.7469196 | AV114: 166.3436698 | AW114: 74.3748139 | AX114: 33.58862563 | AY114: 50.38293845 | AZ114: 58.38023026 | BA114: 23.99187545 | BB114: 75.97427226 | BC114: 67.97698045 | BD114: 35.98781318 | BE114: 42.38564663 | BF114: 12.79566691 | BG114: 15.19485445 | BH114: 10.39647936 | BI114: 10.39647936 | BJ114: 7.997291817 | BK114: 7.197562635 | BL114: 11.99593773 | BM114: 7.997291817 | BN114: 2.399187545 | BO114: 6.397833454 | BP114: 0 | BQ114: 2.399187545 | BR114: 1.599458363 | BS114: 0.7997291817 | BT114: 1.599458363 | BU114: 0 | BV114: 0 | BW114: 0.7997291817 | BX114: 2.399187545 | BY114: 3.198916727 | BZ114: 1.599458363 | CA114: 0.7997291817 | CB114: 0 | CC114: 0 | CD114: 0 | CE114: 2.399187545 | CF114: 2.399187545 | CG114: 3.198916727 | CH114: 4.79837509 | CI114: 2.399187545 | CJ114: 1.599458363 | CK114: 0.7997291817 | CL114: 0 | CM114: 0 | CN114: 0 | CO114: 0 | CP114: 0 | CQ114: 0 | CR114: 0 | CS114: 0 | CT114: 0 | CU114: 0 | CV114: 0 | CW114: 0 | CX114: 0 | CY114: 0 | CZ114: 0 | DA114: 0 | DB114: 0 | DC114: 0 | DD114: 0 | DE114: 0 | DF114: 0 | DG114: 0 | DH114: 0
C115: Other | D115: 0 | E115: 0 | F115: 0 | G115: 0 | H115: 0 | I115: 0 | J115: 0 | K115: 0 | L115: 0 | M115: 0 | N115: 0 | O115: 0 | P115: 0 | Q115: 0 | R115: 0 | S115: 0 | T115: 0 | U115: 0 | V115: 0 | W115: 0 | X115: 0 | Y115: 0 | Z115: 0 | AA115: 0 | AB115: 0 | AC115: 0 | AD115: 0 | AE115: 0 | AF115: 0 | AG115: 0 | AH115: 0 | AI115: 0 | AJ115: 0 | AK115: 0 | AL115: 0 | AM115: 0 | AN115: 0 | AO115: 0 | AP115: 0 | AQ115: 0 | AR115: 0 | AS115: 0 | AT115: 0 | AU115: 0 | AV115: 0 | AW115: 0 | AX115: 0 | AY115: 0 | AZ115: 0 | BA115: 0 | BB115: 0 | BC115: 0 | BD115: 0 | BE115: 0 | BF115: 0 | BG115: 0 | BH115: 0 | BI115: 0 | BJ115: 0 | BK115: 0 | BL115: 0 | BM115: 0 | BN115: 0 | BO115: 0 | BP115: 0 | BQ115: 0 | BR115: 0 | BS115: 0 | BT115: 0 | BU115: 0 | BV115: 0 | BW115: 0 | BX115: 0 | BY115: 0 | BZ115: 0 | CA115: 0 | CB115: 0 | CC115: 0 | CD115: 0 | CE115: 0 | CF115: 0 | CG115: 0 | CH115: 0 | CI115: 0 | CJ115: 0 | CK115: 0 | CL115: 0 | CM115: 0 | CN115: 0 | CO115: 0 | CP115: 0 | CQ115: 0 | CR115: 0 | CS115: 0 | CT115: 0 | CU115: 0 | CV115: 0 | CW115: 0 | CX115: 0 | CY115: 0 | CZ115: 0 | DA115: 0 | DB115: 0 | DC115: 0 | DD115: 0 | DE115: 0 | DF115: 0 | DG115: 0 | DH115: 0
B116: SCADA, NETWORK CONTROL AND PROTECTION SYSTEMS BY: FUNCTION | C116: Field Devices | D116: 20 | E116: 4.472135955 | F116: 231 | G116: 238.8780539 | H116: 438.693134 | I116: 558.8266639 | J116: 461.2228307 | K116: 429.0080034 | L116: 271.141112 | M116: 567.3822662 | N116: 396.0598147 | O116: 401.4264954 | P116: 297.1781803 | Q116: 263.8816344 | R116: 127.1594356 | S116: 45.22598989 | T116: 19.12594777 | U116: 19.42965459 | V116: 100.0593934 | W116: 42.74452401 | X116: 76.08529907 | Y116: 23.67038753 | Z116: 54.13711036 | AA116: 30.25189553 | AB116: 23.88521483 | AC116: 67.11120472 | AD116: 59.50379107 | AE116: 44.07413648 | AF116: 43.92228307 | AG116: 9.214827296 | AH116: 24.25189553 | AI116: 4.607413648 | AJ116: 9.214827296 | AK116: 5.75926706 | AL116: 41.46672283 | AM116: 6.911120472 | AN116: 90.23715249 | AO116: 1.303706824 | AP116: 0 | AQ116: 0 | AR116: 132.070556 | AS116: 8.062973884 | AT116: 133.6149958 | AU116: 4.75926706 | AV116: 3.455560236 | AW116: 0 | AX116: 11.51853412 | AY116: 29.94818871 | AZ116: 0 | BA116: 0 | BB116: 3.455560236 | BC116: 2.303706824 | BD116: 0 | BE116: 1.151853412 | BF116: 0 | BG116: 0 | BH116: 2.303706824 | BI116: 0 | BJ116: 0 | BK116: 1.151853412 | BL116: 0 | BM116: 0 | BN116: 0 | BO116: 0 | BP116: 0 | BQ116: 0 | BR116: 0 | BS116: 0 | BT116: 0 | BU116: 0 | BV116: 1.151853412 | BW116: 0 | BX116: 0 | BY116: 0 | BZ116: 0 | CA116: 0 | CB116: 0 | CC116: 0 | CD116: 0 | CE116: 0 | CF116: 0 | CG116: 0 | CH116: 0 | CI116: 0 | CJ116: 0 | CK116: 0 | CL116: 0 | CM116: 0 | CN116: 0 | CO116: 0 | CP116: 0 | CQ116: 0 | CR116: 0 | CS116: 0 | CT116: 0 | CU116: 0 | CV116: 0 | CW116: 0 | CX116: 0 | CY116: 0 | CZ116: 0 | DA116: 0 | DB116: 0 | DC116: 0 | DD116: 0 | DE116: 0 | DF116: 0 | DG116: 0 | DH116: 0
C117: Local Network Wiring Assets | D117: 0 | E117: 0 | F117: 0 | G117: 0 | H117: 0 | I117: 0 | J117: 0 | K117: 0 | L117: 0 | M117: 0 | N117: 0 | O117: 0 | P117: 0 | Q117: 0 | R117: 0 | S117: 0 | T117: 0 | U117: 0 | V117: 0 | W117: 0 | X117: 0 | Y117: 0 | Z117: 0 | AA117: 0 | AB117: 0 | AC117: 0 | AD117: 0 | AE117: 0 | AF117: 0 | AG117: 0 | AH117: 0 | AI117: 0 | AJ117: 0 | AK117: 0 | AL117: 0 | AM117: 0 | AN117: 0 | AO117: 0 | AP117: 0 | AQ117: 0 | AR117: 0 | AS117: 0 | AT117: 0 | AU117: 0 | AV117: 0 | AW117: 0 | AX117: 0 | AY117: 0 | AZ117: 0 | BA117: 0 | BB117: 0 | BC117: 0 | BD117: 0 | BE117: 0 | BF117: 0 | BG117: 0 | BH117: 0 | BI117: 0 | BJ117: 0 | BK117: 0 | BL117: 0 | BM117: 0 | BN117: 0 | BO117: 0 | BP117: 0 | BQ117: 0 | BR117: 0 | BS117: 0 | BT117: 0 | BU117: 0 | BV117: 0 | BW117: 0 | BX117: 0 | BY117: 0 | BZ117: 0 | CA117: 0 | CB117: 0 | CC117: 0 | CD117: 0 | CE117: 0 | CF117: 0 | CG117: 0 | CH117: 0 | CI117: 0 | CJ117: 0 | CK117: 0 | CL117: 0 | CM117: 0 | CN117: 0 | CO117: 0 | CP117: 0 | CQ117: 0 | CR117: 0 | CS117: 0 | CT117: 0 | CU117: 0 | CV117: 0 | CW117: 0 | CX117: 0 | CY117: 0 | CZ117: 0 | DA117: 0 | DB117: 0 | DC117: 0 | DD117: 0 | DE117: 0 | DF117: 0 | DG117: 0 | DH117: 0
C118: Communications Network Assets | D118: 20 | E118: 4.472135955 | F118: 20 | G118: 311 | H118: 123 | I118: 618 | J118: 82 | K118: 1 | L118: 23 | M118: 1959 | N118: 176 | O118: 94 | P118: 17 | Q118: 19 | R118: 1 | S118: 2 | T118: 1 | U118: 53 | V118: 0 | W118: 0 | X118: 0 | Y118: 0 | Z118: 0 | AA118: 0 | AB118: 0 | AC118: 0 | AD118: 0 | AE118: 0 | AF118: 0 | AG118: 0 | AH118: 0 | AI118: 0 | AJ118: 0 | AK118: 0 | AL118: 0 | AM118: 0 | AN118: 0 | AO118: 0 | AP118: 0 | AQ118: 0 | AR118: 0 | AS118: 0 | AT118: 0 | AU118: 0 | AV118: 0 | AW118: 0 | AX118: 0 | AY118: 0 | AZ118: 0 | BA118: 0 | BB118: 0 | BC118: 0 | BD118: 0 | BE118: 0 | BF118: 0 | BG118: 0 | BH118: 0 | BI118: 0 | BJ118: 0 | BK118: 0 | BL118: 0 | BM118: 0 | BN118: 0 | BO118: 0 | BP118: 0 | BQ118: 0 | BR118: 0 | BS118: 0 | BT118: 0 | BU118: 0 | BV118: 0 | BW118: 0 | BX118: 0 | BY118: 0 | BZ118: 0 | CA118: 0 | CB118: 0 | CC118: 0 | CD118: 0 | CE118: 0 | CF118: 0 | CG118: 0 | CH118: 0 | CI118: 0 | CJ118: 0 | CK118: 0 | CL118: 0 | CM118: 0 | CN118: 0 | CO118: 0 | CP118: 0 | CQ118: 0 | CR118: 0 | CS118: 0 | CT118: 0 | CU118: 0 | CV118: 0 | CW118: 0 | CX118: 0 | CY118: 0 | CZ118: 0 | DA118: 0 | DB118: 0 | DC118: 0 | DD118: 0 | DE118: 0 | DF118: 0 | DG118: 0 | DH118: 0
C119: Master Station Assets | D119: 0 | E119: 0 | F119: 0 | G119: 0 | H119: 0 | I119: 0 | J119: 0 | K119: 0 | L119: 0 | M119: 0 | N119: 0 | O119: 0 | P119: 0 | Q119: 0 | R119: 0 | S119: 0 | T119: 0 | U119: 0 | V119: 0 | W119: 0 | X119: 0 | Y119: 0 | Z119: 0 | AA119: 0 | AB119: 0 | AC119: 0 | AD119: 0 | AE119: 0 | AF119: 0 | AG119: 0 | AH119: 0 | AI119: 0 | AJ119: 0 | AK119: 0 | AL119: 0 | AM119: 0 | AN119: 0 | AO119: 0 | AP119: 0 | AQ119: 0 | AR119: 0 | AS119: 0 | AT119: 0 | AU119: 0 | AV119: 0 | AW119: 0 | AX119: 0 | AY119: 0 | AZ119: 0 | BA119: 0 | BB119: 0 | BC119: 0 | BD119: 0 | BE119: 0 | BF119: 0 | BG119: 0 | BH119: 0 | BI119: 0 | BJ119: 0 | BK119: 0 | BL119: 0 | BM119: 0 | BN119: 0 | BO119: 0 | BP119: 0 | BQ119: 0 | BR119: 0 | BS119: 0 | BT119: 0 | BU119: 0 | BV119: 0 | BW119: 0 | BX119: 0 | BY119: 0 | BZ119: 0 | CA119: 0 | CB119: 0 | CC119: 0 | CD119: 0 | CE119: 0 | CF119: 0 | CG119: 0 | CH119: 0 | CI119: 0 | CJ119: 0 | CK119: 0 | CL119: 0 | CM119: 0 | CN119: 0 | CO119: 0 | CP119: 0 | CQ119: 0 | CR119: 0 | CS119: 0 | CT119: 0 | CU119: 0 | CV119: 0 | CW119: 0 | CX119: 0 | CY119: 0 | CZ119: 0 | DA119: 0 | DB119: 0 | DC119: 0 | DD119: 0 | DE119: 0 | DF119: 0 | DG119: 0 | DH119: 0
C120: Communications Site Infrastructure | D120: 0 | E120: 0 | F120: 0 | G120: 0 | H120: 0 | I120: 0 | J120: 0 | K120: 0 | L120: 0 | M120: 0 | N120: 0 | O120: 0 | P120: 0 | Q120: 0 | R120: 0 | S120: 0 | T120: 0 | U120: 0 | V120: 0 | W120: 0 | X120: 0 | Y120: 0 | Z120: 0 | AA120: 0 | AB120: 0 | AC120: 0 | AD120: 0 | AE120: 0 | AF120: 0 | AG120: 0 | AH120: 0 | AI120: 0 | AJ120: 0 | AK120: 0 | AL120: 0 | AM120: 0 | AN120: 0 | AO120: 0 | AP120: 0 | AQ120: 0 | AR120: 0 | AS120: 0 | AT120: 0 | AU120: 0 | AV120: 0 | AW120: 0 | AX120: 0 | AY120: 0 | AZ120: 0 | BA120: 0 | BB120: 0 | BC120: 0 | BD120: 0 | BE120: 0 | BF120: 0 | BG120: 0 | BH120: 0 | BI120: 0 | BJ120: 0 | BK120: 0 | BL120: 0 | BM120: 0 | BN120: 0 | BO120: 0 | BP120: 0 | BQ120: 0 | BR120: 0 | BS120: 0 | BT120: 0 | BU120: 0 | BV120: 0 | BW120: 0 | BX120: 0 | BY120: 0 | BZ120: 0 | CA120: 0 | CB120: 0 | CC120: 0 | CD120: 0 | CE120: 0 | CF120: 0 | CG120: 0 | CH120: 0 | CI120: 0 | CJ120: 0 | CK120: 0 | CL120: 0 | CM120: 0 | CN120: 0 | CO120: 0 | CP120: 0 | CQ120: 0 | CR120: 0 | CS120: 0 | CT120: 0 | CU120: 0 | CV120: 0 | CW120: 0 | CX120: 0 | CY120: 0 | CZ120: 0 | DA120: 0 | DB120: 0 | DC120: 0 | DD120: 0 | DE120: 0 | DF120: 0 | DG120: 0 | DH120: 0
C121: Communications Linear Assets | D121: 0 | E121: 0 | F121: 0 | G121: 0 | H121: 0 | I121: 0 | J121: 0 | K121: 0 | L121: 0 | M121: 0 | N121: 0 | O121: 0 | P121: 0 | Q121: 0 | R121: 0 | S121: 0 | T121: 0 | U121: 0 | V121: 0 | W121: 0 | X121: 0 | Y121: 0 | Z121: 0 | AA121: 0 | AB121: 0 | AC121: 0 | AD121: 0 | AE121: 0 | AF121: 0 | AG121: 0 | AH121: 0 | AI121: 0 | AJ121: 0 | AK121: 0 | AL121: 0 | AM121: 0 | AN121: 0 | AO121: 0 | AP121: 0 | AQ121: 0 | AR121: 0 | AS121: 0 | AT121: 0 | AU121: 0 | AV121: 0 | AW121: 0 | AX121: 0 | AY121: 0 | AZ121: 0 | BA121: 0 | BB121: 0 | BC121: 0 | BD121: 0 | BE121: 0 | BF121: 0 | BG121: 0 | BH121: 0 | BI121: 0 | BJ121: 0 | BK121: 0 | BL121: 0 | BM121: 0 | BN121: 0 | BO121: 0 | BP121: 0 | BQ121: 0 | BR121: 0 | BS121: 0 | BT121: 0 | BU121: 0 | BV121: 0 | BW121: 0 | BX121: 0 | BY121: 0 | BZ121: 0 | CA121: 0 | CB121: 0 | CC121: 0 | CD121: 0 | CE121: 0 | CF121: 0 | CG121: 0 | CH121: 0 | CI121: 0 | CJ121: 0 | CK121: 0 | CL121: 0 | CM121: 0 | CN121: 0 | CO121: 0 | CP121: 0 | CQ121: 0 | CR121: 0 | CS121: 0 | CT121: 0 | CU121: 0 | CV121: 0 | CW121: 0 | CX121: 0 | CY121: 0 | CZ121: 0 | DA121: 0 | DB121: 0 | DC121: 0 | DD121: 0 | DE121: 0 | DF121: 0 | DG121: 0 | DH121: 0
C122: AFLC | D122: 0 | E122: 0 | F122: 0 | G122: 0 | H122: 0 | I122: 0 | J122: 0 | K122: 0 | L122: 0 | M122: 0 | N122: 0 | O122: 0 | P122: 0 | Q122: 0 | R122: 0 | S122: 0 | T122: 0 | U122: 0 | V122: 0 | W122: 0 | X122: 0 | Y122: 0 | Z122: 0 | AA122: 0 | AB122: 0 | AC122: 0 | AD122: 0 | AE122: 0 | AF122: 0 | AG122: 0 | AH122: 0 | AI122: 0 | AJ122: 0 | AK122: 0 | AL122: 0 | AM122: 0 | AN122: 0 | AO122: 0 | AP122: 0 | AQ122: 0 | AR122: 0 | AS122: 0 | AT122: 0 | AU122: 0 | AV122: 0 | AW122: 0 | AX122: 0 | AY122: 0 | AZ122: 0 | BA122: 0 | BB122: 0 | BC122: 0 | BD122: 0 | BE122: 0 | BF122: 0 | BG122: 0 | BH122: 0 | BI122: 0 | BJ122: 0 | BK122: 0 | BL122: 0 | BM122: 0 | BN122: 0 | BO122: 0 | BP122: 0 | BQ122: 0 | BR122: 0 | BS122: 0 | BT122: 0 | BU122: 0 | BV122: 0 | BW122: 0 | BX122: 0 | BY122: 0 | BZ122: 0 | CA122: 0 | CB122: 0 | CC122: 0 | CD122: 0 | CE122: 0 | CF122: 0 | CG122: 0 | CH122: 0 | CI122: 0 | CJ122: 0 | CK122: 0 | CL122: 0 | CM122: 0 | CN122: 0 | CO122: 0 | CP122: 0 | CQ122: 0 | CR122: 0 | CS122: 0 | CT122: 0 | CU122: 0 | CV122: 0 | CW122: 0 | CX122: 0 | CY122: 0 | CZ122: 0 | DA122: 0 | DB122: 0 | DC122: 0 | DD122: 0 | DE122: 0 | DF122: 0 | DG122: 0 | DH122: 0
C123: Other | D123: 0 | E123: 0 | F123: 0 | G123: 0 | H123: 0 | I123: 0 | J123: 0 | K123: 0 | L123: 0 | M123: 0 | N123: 0 | O123: 0 | P123: 0 | Q123: 0 | R123: 0 | S123: 0 | T123: 0 | U123: 0 | V123: 0 | W123: 0 | X123: 0 | Y123: 0 | Z123: 0 | AA123: 0 | AB123: 0 | AC123: 0 | AD123: 0 | AE123: 0 | AF123: 0 | AG123: 0 | AH123: 0 | AI123: 0 | AJ123: 0 | AK123: 0 | AL123: 0 | AM123: 0 | AN123: 0 | AO123: 0 | AP123: 0 | AQ123: 0 | AR123: 0 | AS123: 0 | AT123: 0 | AU123: 0 | AV123: 0 | AW123: 0 | AX123: 0 | AY123: 0 | AZ123: 0 | BA123: 0 | BB123: 0 | BC123: 0 | BD123: 0 | BE123: 0 | BF123: 0 | BG123: 0 | BH123: 0 | BI123: 0 | BJ123: 0 | BK123: 0 | BL123: 0 | BM123: 0 | BN123: 0 | BO123: 0 | BP123: 0 | BQ123: 0 | BR123: 0 | BS123: 0 | BT123: 0 | BU123: 0 | BV123: 0 | BW123: 0 | BX123: 0 | BY123: 0 | BZ123: 0 | CA123: 0 | CB123: 0 | CC123: 0 | CD123: 0 | CE123: 0 | CF123: 0 | CG123: 0 | CH123: 0 | CI123: 0 | CJ123: 0 | CK123: 0 | CL123: 0 | CM123: 0 | CN123: 0 | CO123: 0 | CP123: 0 | CQ123: 0 | CR123: 0 | CS123: 0 | CT123: 0 | CU123: 0 | CV123: 0 | CW123: 0 | CX123: 0 | CY123: 0 | CZ123: 0 | DA123: 0 | DB123: 0 | DC123: 0 | DD123: 0 | DE123: 0 | DF123: 0 | DG123: 0 | DH123: 0
B124: OTHER BY: DNSP DEFINED | C124: OTHER – MEASURING TRANSFORMERS | D124: 45 | E124: 6.708203932 | F124: 17 | G124: 29.04265403 | H124: 20.63191153 | I124: 57.16903633 | J124: 78.69510269 | K124: 46.58451817 | L124: 40.72195893 | M124: 115.7740916 | N124: 49.12638231 | O124: 10.13744076 | P124: 73.83728278 | Q124: 54.35387046 | R124: 150.6161137 | S124: 40.33175355 | T124: 19.17377567 | U124: 12.56398104 | V124: 102.2685624 | W124: 18.91627172 | X124: 60.05845182 | Y124: 86.4107425 | Z124: 27.14218009 | AA124: 9.015797788 | AB124: 1 | AC124: 0 | AD124: 0 | AE124: 0 | AF124: 0 | AG124: 0.04739336493 | AH124: 3.078988942 | AI124: 9.347551343 | AJ124: 23.12638231 | AK124: 8 | AL124: 0.1421800948 | AM124: 9.379146919 | AN124: 25.7535545 | AO124: 111.1058452 | AP124: 67.42654028 | AQ124: 23.5371248 | AR124: 34.30015798 | AS124: 20.72669826 | AT124: 45.69510269 | AU124: 46.39494471 | AV124: 22.04739336 | AW124: 1.347551343 | AX124: 22.20537125 | AY124: 13.10584518 | AZ124: 67.4107425 | BA124: 27.6793049 | BB124: 44.60031596 | BC124: 37.31595577 | BD124: 19.36334913 | BE124: 24.6793049 | BF124: 44.09478673 | BG124: 2.047393365 | BH124: 3.015797788 | BI124: 1.157977883 | BJ124: 10.06319115 | BK124: 4 | BL124: 0 | BM124: 0 | BN124: 0 | BO124: 1.042654028 | BP124: 65 | BQ124: 0.01579778831 | BR124: 1 | BS124: 0 | BT124: 0.04739336493 | BU124: 3.126382306 | BV124: 8 | BW124: 0 | BX124: 0 | BY124: 0 | BZ124: 0 | CA124: 0 | CB124: 0 | CC124: 0 | CD124: 0 | CE124: 0 | CF124: 0 | CG124: 0 | CH124: 0 | CI124: 0 | CJ124: 0 | CK124: 0 | CL124: 0 | CM124: 0 | CN124: 0 | CO124: 0 | CP124: 0 | CQ124: 0 | CR124: 0 | CS124: 0 | CT124: 0 | CU124: 0 | CV124: 0 | CW124: 0 | CX124: 0 | CY124: 0 | CZ124: 0 | DA124: 0 | DB124: 0 | DC124: 0 | DD124: 0 | DE124: 0 | DF124: 0 | DG124: 0 | DH124: 0
C125: OTHER - CAPACITOR BANK | D125: 30 | E125: 5.477225575 | F125: 0 | G125: 0 | H125: 0 | I125: 2.032258065 | J125: 2.032258065 | K125: 3.048387097 | L125: 0 | M125: 2.032258065 | N125: 1.016129032 | O125: 1.016129032 | P125: 1.016129032 | Q125: 3.048387097 | R125: 2.032258065 | S125: 0 | T125: 19.30645161 | U125: 2.032258065 | V125: 2.032258065 | W125: 0 | X125: 5.080645161 | Y125: 0 | Z125: 0 | AA125: 0 | AB125: 0 | AC125: 0 | AD125: 0 | AE125: 1.016129032 | AF125: 0 | AG125: 0 | AH125: 1.016129032 | AI125: 0 | AJ125: 2.032258065 | AK125: 1.016129032 | AL125: 2.032258065 | AM125: 3.048387097 | AN125: 0 | AO125: 3.048387097 | AP125: 1.016129032 | AQ125: 0 | AR125: 0 | AS125: 0 | AT125: 0 | AU125: 0 | AV125: 0 | AW125: 0 | AX125: 0 | AY125: 1.016129032 | AZ125: 0 | BA125: 0 | BB125: 0 | BC125: 0 | BD125: 0 | BE125: 0 | BF125: 2.032258065 | BG125: 0 | BH125: 0 | BI125: 0 | BJ125: 0 | BK125: 0 | BL125: 0 | BM125: 0 | BN125: 0 | BO125: 0 | BP125: 0 | BQ125: 0 | BR125: 0 | BS125: 0 | BT125: 0 | BU125: 0 | BV125: 0 | BW125: 0 | BX125: 0 | BY125: 0 | BZ125: 0 | CA125: 0 | CB125: 0 | CC125: 0 | CD125: 0 | CE125: 0 | CF125: 0 | CG125: 0 | CH125: 0 | CI125: 0 | CJ125: 0 | CK125: 0 | CL125: 0 | CM125: 0 | CN125: 0 | CO125: 0 | CP125: 0 | CQ125: 0 | CR125: 0 | CS125: 0 | CT125: 0 | CU125: 0 | CV125: 0 | CW125: 0 | CX125: 0 | CY125: 0 | CZ125: 0 | DA125: 0 | DB125: 0 | DC125: 0 | DD125: 0 | DE125: 0 | DF125: 0 | DG125: 0 | DH125: 0
C126: OTHER - CAPACITORS | D126: 30 | E126: 5.477225575 | F126: 2 | G126: 3 | H126: 1 | I126: 2 | J126: 0 | K126: 0 | L126: 42 | M126: 3 | N126: 0 | O126: 3 | P126: 4 | Q126: 3 | R126: 0 | S126: 0 | T126: 1 | U126: 0 | V126: 0 | W126: 0 | X126: 0 | Y126: 0 | Z126: 0 | AA126: 0 | AB126: 0 | AC126: 0 | AD126: 0 | AE126: 0 | AF126: 0 | AG126: 0 | AH126: 0 | AI126: 0 | AJ126: 0 | AK126: 0 | AL126: 0 | AM126: 0 | AN126: 0 | AO126: 0 | AP126: 0 | AQ126: 0 | AR126: 0 | AS126: 0 | AT126: 0 | AU126: 0 | AV126: 0 | AW126: 0 | AX126: 0 | AY126: 0 | AZ126: 0 | BA126: 0 | BB126: 0 | BC126: 0 | BD126: 0 | BE126: 0 | BF126: 0 | BG126: 0 | BH126: 0 | BI126: 0 | BJ126: 0 | BK126: 0 | BL126: 0 | BM126: 0 | BN126: 0 | BO126: 0 | BP126: 0 | BQ126: 0 | BR126: 0 | BS126: 0 | BT126: 0 | BU126: 0 | BV126: 0 | BW126: 0 | BX126: 0 | BY126: 0 | BZ126: 0 | CA126: 0 | CB126: 0 | CC126: 0 | CD126: 0 | CE126: 0 | CF126: 0 | CG126: 0 | CH126: 0 | CI126: 0 | CJ126: 0 | CK126: 0 | CL126: 0 | CM126: 0 | CN126: 0 | CO126: 0 | CP126: 0 | CQ126: 0 | CR126: 0 | CS126: 0 | CT126: 0 | CU126: 0 | CV126: 0 | CW126: 0 | CX126: 0 | CY126: 0 | CZ126: 0 | DA126: 0 | DB126: 0 | DC126: 0 | DD126: 0 | DE126: 0 | DF126: 0 | DG126: 0 | DH126: 0
C127: OTHER - EARTHING | D127: 60 | E127: 7.745966692 | F127: 0 | G127: 0.02777777778 | H127: 0.01388888889 | I127: 2.013888889 | J127: 1 | K127: 0.01388888889 | L127: 1.027777778 | M127: 2.027777778 | N127: 2.041666667 | O127: 3 | P127: 0.01388888889 | Q127: 1.041666667 | R127: 4.013888889 | S127: 1 | T127: 0.01388888889 | U127: 1.027777778 | V127: 2 | W127: 0.01388888889 | X127: 1.013888889 | Y127: 1 | Z127: 0 | AA127: 0 | AB127: 0 | AC127: 0 | AD127: 0 | AE127: 0 | AF127: 0 | AG127: 0.01388888889 | AH127: 1 | AI127: 0.01388888889 | AJ127: 1.013888889 | AK127: 1.013888889 | AL127: 2.013888889 | AM127: 2 | AN127: 0.01388888889 | AO127: 1.027777778 | AP127: 3 | AQ127: 0.04166666667 | AR127: 3.027777778 | AS127: 2 | AT127: 0.04166666667 | AU127: 3 | AV127: 0 | AW127: 0 | AX127: 0.01388888889 | AY127: 1.013888889 | AZ127: 1.027777778 | BA127: 2.041666667 | BB127: 4.041666667 | BC127: 4.013888889 | BD127: 1.013888889 | BE127: 1.013888889 | BF127: 1.013888889 | BG127: 1.027777778 | BH127: 2.041666667 | BI127: 3.027777778 | BJ127: 2.041666667 | BK127: 4 | BL127: 0.02777777778 | BM127: 2.027777778 | BN127: 2 | BO127: 0 | BP127: 0 | BQ127: 0 | BR127: 0 | BS127: 0 | BT127: 0 | BU127: 0 | BV127: 0 | BW127: 0.01388888889 | BX127: 1.013888889 | BY127: 1 | BZ127: 0 | CA127: 0.01388888889 | CB127: 1 | CC127: 0 | CD127: 0 | CE127: 0 | CF127: 0 | CG127: 0 | CH127: 0 | CI127: 0 | CJ127: 0 | CK127: 0 | CL127: 0 | CM127: 0 | CN127: 0 | CO127: 0 | CP127: 0 | CQ127: 0 | CR127: 0.01388888889 | CS127: 1 | CT127: 0.02777777778 | CU127: 0 | CV127: 0 | CW127: 0 | CX127: 0 | CY127: 0 | CZ127: 0 | DA127: 0 | DB127: 0 | DC127: 0 | DD127: 0 | DE127: 0 | DF127: 0 | DG127: 0 | DH127: 0
C128: OTHER - NEUTRAL EARTH RESISTORS | D128: 30 | E128: 5.477225575 | F128: 1 | G128: 0.05769230769 | H128: 0.03846153846 | I128: 3.115384615 | J128: 6.096153846 | K128: 5 | L128: 0.05769230769 | M128: 3.019230769 | N128: 1 | O128: 0 | P128: 0.05769230769 | Q128: 3.096153846 | R128: 5 | S128: 0 | T128: 0.01923076923 | U128: 1.038461538 | V128: 2 | W128: 0.05769230769 | X128: 3.019230769 | Y128: 1 | Z128: 0 | AA128: 0.01923076923 | AB128: 1.038461538 | AC128: 1 | AD128: 0.01923076923 | AE128: 1 | AF128: 0 | AG128: 0.01923076923 | AH128: 1.038461538 | AI128: 3.019230769 | AJ128: 1 | AK128: 0.01923076923 | AL128: 1 | AM128: 0 | AN128: 0 | AO128: 0 | AP128: 0 | AQ128: 0 | AR128: 0 | AS128: 0.01923076923 | AT128: 2.019230769 | AU128: 2.019230769 | AV128: 2 | AW128: 0 | AX128: 0 | AY128: 0 | AZ128: 0 | BA128: 0 | BB128: 0 | BC128: 0.07692307692 | BD128: 4 | BE128: 0 | BF128: 0 | BG128: 0 | BH128: 0 | BI128: 0 | BJ128: 0 | BK128: 0 | BL128: 0 | BM128: 0 | BN128: 0 | BO128: 0 | BP128: 0 | BQ128: 0 | BR128: 0 | BS128: 0 | BT128: 0 | BU128: 0 | BV128: 0 | BW128: 0 | BX128: 0 | BY128: 0 | BZ128: 0 | CA128: 0 | CB128: 0 | CC128: 0 | CD128: 0 | CE128: 0 | CF128: 0 | CG128: 0 | CH128: 0 | CI128: 0 | CJ128: 0 | CK128: 0 | CL128: 0 | CM128: 0 | CN128: 0 | CO128: 0 | CP128: 0 | CQ128: 0 | CR128: 0 | CS128: 0 | CT128: 0.01923076923 | CU128: 0 | CV128: 0 | CW128: 0 | CX128: 0 | CY128: 0 | CZ128: 0 | DA128: 0 | DB128: 0 | DC128: 0 | DD128: 0 | DE128: 0 | DF128: 0 | DG128: 0 | DH128: 0
C129: OTHER - REGULATORS | D129: 50 | E129: 7.071067812 | F129: 10 | G129: 16.59793814 | H129: 0.3195876289 | I129: 2 | J129: 1.597938144 | K129: 9 | L129: 9.195876289 | M129: 12.31958763 | N129: 4 | O129: 1.278350515 | P129: 12.51546392 | Q129: 9.319587629 | R129: 3 | S129: 0 | T129: 3.319587629 | U129: 0 | V129: 0.9587628866 | W129: 0 | X129: 2 | Y129: 0.3195876289 | Z129: 1 | AA129: 0 | AB129: 0 | AC129: 0 | AD129: 0 | AE129: 0 | AF129: 0 | AG129: 0 | AH129: 0 | AI129: 0 | AJ129: 0 | AK129: 0 | AL129: 0 | AM129: 1 | AN129: 0.3195876289 | AO129: 0 | AP129: 2 | AQ129: 0 | AR129: 2 | AS129: 0 | AT129: 0.6391752577 | AU129: 3 | AV129: 0 | AW129: 0 | AX129: 0 | AY129: 0 | AZ129: 0 | BA129: 0.9587628866 | BB129: 4.639175258 | BC129: 3 | BD129: 0.3195876289 | BE129: 1.319587629 | BF129: 3 | BG129: 0.3195876289 | BH129: 3 | BI129: 0 | BJ129: 0.3195876289 | BK129: 1 | BL129: 0 | BM129: 0 | BN129: 0 | BO129: 0 | BP129: 1.319587629 | BQ129: 1 | BR129: 0 | BS129: 0.3195876289 | BT129: 1 | BU129: 0.3195876289 | BV129: 1.319587629 | BW129: 1.319587629 | BX129: 0 | BY129: 0 | BZ129: 0 | CA129: 0 | CB129: 0 | CC129: 0 | CD129: 0 | CE129: 0.3195876289 | CF129: 0 | CG129: 0 | CH129: 0 | CI129: 0 | CJ129: 0 | CK129: 0 | CL129: 0 | CM129: 0 | CN129: 0 | CO129: 0 | CP129: 0 | CQ129: 0 | CR129: 0 | CS129: 0 | CT129: 11.50515464 | CU129: 0 | CV129: 0 | CW129: 0 | CX129: 0 | CY129: 0 | CZ129: 0 | DA129: 0 | DB129: 0 | DC129: 0 | DD129: 0 | DE129: 0 | DF129: 0 | DG129: 0 | DH129: 0
C130: OTHER - SUPPLY TRANSFORMERS (LINES) | D130: 58 | E130: 7.615773106 | F130: 24 | G130: 14.38834951 | H130: 52.97087379 | I130: 52.19417476 | J130: 42.77669903 | K130: 12.19417476 | L130: 6.553398058 | M130: 9.388349515 | N130: 7.194174757 | O130: 9 | P130: 1.165048544 | Q130: 0.3883495146 | R130: 0.1941747573 | S130: 1 | T130: 0 | U130: 0.3883495146 | V130: 1.388349515 | W130: 0 | X130: 0.5825242718 | Y130: 0.3883495146 | Z130: 0 | AA130: 0 | AB130: 0 | AC130: 0 | AD130: 0 | AE130: 0 | AF130: 0 | AG130: 0 | AH130: 0 | AI130: 0 | AJ130: 0 | AK130: 0.1941747573 | AL130: 0 | AM130: 0.1941747573 | AN130: 0 | AO130: 0.5825242718 | AP130: 0.7766990291 | AQ130: 0 | AR130: 1.165048544 | AS130: 0 | AT130: 0 | AU130: 0 | AV130: 0 | AW130: 0 | AX130: 0.1941747573 | AY130: 0 | AZ130: 0 | BA130: 0.1941747573 | BB130: 0 | BC130: 0 | BD130: 0 | BE130: 0.3883495146 | BF130: 1.359223301 | BG130: 0.1941747573 | BH130: 0.9708737864 | BI130: 0 | BJ130: 0 | BK130: 0.3883495146 | BL130: 0 | BM130: 0.3883495146 | BN130: 0 | BO130: 0.1941747573 | BP130: 0 | BQ130: 0 | BR130: 0 | BS130: 0.1941747573 | BT130: 0.5825242718 | BU130: 0 | BV130: 0.1941747573 | BW130: 0 | BX130: 0.1941747573 | BY130: 0 | BZ130: 0 | CA130: 0 | CB130: 0 | CC130: 0.5825242718 | CD130: 0.3883495146 | CE130: 0 | CF130: 0 | CG130: 0.1941747573 | CH130: 0 | CI130: 0 | CJ130: 0.1941747573 | CK130: 0 | CL130: 0 | CM130: 0 | CN130: 0 | CO130: 0 | CP130: 0.3883495146 | CQ130: 0 | CR130: 0 | CS130: 0 | CT130: 0 | CU130: 0 | CV130: 0 | CW130: 0 | CX130: 0 | CY130: 0 | CZ130: 0 | DA130: 0 | DB130: 0 | DC130: 0 | DD130: 0 | DE130: 0 | DF130: 0 | DG130: 1.747572816 | DH130: 0
C131: OTHER - STATION SUPPLIES TRANSFORMERS | D131: 50 | E131: 7.071067812 | F131: 0 | G131: 3.184466019 | H131: 7.961165049 | I131: 1.59223301 | J131: 6.368932039 | K131: 1.59223301 | L131: 12.73786408 | M131: 3.184466019 | N131: 1.59223301 | O131: 0 | P131: 9.553398058 | Q131: 3.184466019 | R131: 1.59223301 | S131: 0 | T131: 0 | U131: 3.184466019 | V131: 3.184466019 | W131: 0 | X131: 4.776699029 | Y131: 3.184466019 | Z131: 0 | AA131: 0 | AB131: 0 | AC131: 0 | AD131: 0 | AE131: 0 | AF131: 0 | AG131: 0 | AH131: 0 | AI131: 0 | AJ131: 0 | AK131: 1.59223301 | AL131: 0 | AM131: 1.59223301 | AN131: 0 | AO131: 4.776699029 | AP131: 6.368932039 | AQ131: 0 | AR131: 9.553398058 | AS131: 0 | AT131: 0 | AU131: 0 | AV131: 0 | AW131: 0 | AX131: 1.59223301 | AY131: 0 | AZ131: 0 | BA131: 1.59223301 | BB131: 0 | BC131: 0 | BD131: 0 | BE131: 3.184466019 | BF131: 11.14563107 | BG131: 1.59223301 | BH131: 7.961165049 | BI131: 0 | BJ131: 0 | BK131: 3.184466019 | BL131: 0 | BM131: 3.184466019 | BN131: 0 | BO131: 1.59223301 | BP131: 0 | BQ131: 0 | BR131: 0 | BS131: 1.59223301 | BT131: 4.776699029 | BU131: 0 | BV131: 1.59223301 | BW131: 0 | BX131: 1.59223301 | BY131: 0 | BZ131: 0 | CA131: 0 | CB131: 0 | CC131: 4.776699029 | CD131: 3.184466019 | CE131: 0 | CF131: 0 | CG131: 1.59223301 | CH131: 0 | CI131: 0 | CJ131: 1.59223301 | CK131: 0 | CL131: 0 | CM131: 0 | CN131: 0 | CO131: 0 | CP131: 3.184466019 | CQ131: 0 | CR131: 0 | CS131: 0 | CT131: 0 | CU131: 0 | CV131: 0 | CW131: 0 | CX131: 0 | CY131: 0 | CZ131: 0 | DA131: 0 | DB131: 0 | DC131: 0 | DD131: 0 | DE131: 0 | DF131: 0 | DG131: 14.33009709 | DH131: 0
C132: OTHER - SURGE DIVERTERS | D132: 45 | E132: 6.708203932 | F132: 9259 | G132: 6983.39734 | H132: 8388.651429 | I132: 6544.779635 | J132: 7317.168754 | K132: 6357.355805 | L132: 3983.213328 | M132: 4232.298541 | N132: 3680.888298 | O132: 2086.529362 | P132: 2077.311413 | Q132: 1589.496945 | R132: 1186.048237 | S132: 992.1568389 | T132: 885.3091793 | U132: 1120.946429 | V132: 2566.251824 | W132: 1793.652295 | X132: 2507.656049 | Y132: 637.2699696 | Z132: 551.5482523 | AA132: 1121.176444 | AB132: 1318.021839 | AC132: 2328.84459 | AD132: 2258.386824 | AE132: 2006.715638 | AF132: 3006.044422 | AG132: 3644.360395 | AH132: 3250.405653 | AI132: 3022.308374 | AJ132: 3443.929027 | AK132: 3555.546672 | AL132: 3886.675623 | AM132: 2185.607036 | AN132: 1379.801626 | AO132: 4102.18693 | AP132: 2468.944134 | AQ132: 730.7616717 | AR132: 1713.378541 | AS132: 1998.623632 | AT132: 1885.097994 | AU132: 4428.545897 | AV132: 620.0980243 | AW132: 590.5241185 | AX132: 651.579924 | AY132: 736.4856535 | AZ132: 710.7277356 | BA132: 821.437386 | BB132: 763.1975684 | BC132: 649.6719301 | BD132: 536.2382979 | BE132: 591.4781155 | BF132: 466.5045137 | BG132: 318.6349848 | BH132: 317.6809878 | BI132: 504.7563982 | BJ132: 332.9449392 | BK132: 291.9230699 | BL132: 190.7993921 | BM132: 339.6229179 | BN132: 183.1674164 | BO132: 135.4675684 | BP132: 165.0414742 | BQ132: 117.4796353 | BR132: 91.58370821 | BS132: 67.73378419 | BT132: 109.7096505 | BU132: 49.60784195 | BV132: 75.36575988 | BW132: 47.69984802 | BX132: 63.91779635 | BY132: 21.94193009 | BZ132: 10.49396657 | CA132: 25.75791793 | CB132: 41.0218693 | CC132: 61.05580547 | CD132: 113.5256383 | CE132: 114.4796353 | CF132: 165.9954711 | CG132: 120.203617 | CH132: 132.6055775 | CI132: 57.23981763 | CJ132: 73.45776596 | CK132: 68.68778116 | CL132: 5.723981763 | CM132: 1.907993921 | CN132: 4.769984802 | CO132: 2.861990881 | CP132: 14.30995441 | CQ132: 0 | CR132: 8.585972644 | CS132: 0 | CT132: 0 | CU132: 0 | CV132: 0 | CW132: 0 | CX132: 0 | CY132: 0 | CZ132: 0 | DA132: 0 | DB132: 0 | DC132: 0 | DD132: 0 | DE132: 0 | DF132: 0 | DG132: 0 | DH132: 0
C133: OTHER< = 11 kV ; REACTOR ; | D133: 62 | E133: 7.874007874 | F133: 0 | G133: 0.1615457713 | H133: 0.1938549256 | I133: 0.5834653152 | J133: 0.680392778 | K133: 0.5844155844 | L133: 0.09692746278 | M133: 0.2917326576 | N133: 0.1948051948 | O133: 0.1938549256 | P133: 0.680392778 | Q133: 0.9721254355 | R133: 0.7792207792 | S133: 0.5169464682 | T133: 1.038961039 | U133: 0.5492556224 | V133: 1.168831169 | W133: 0.6138739309 | X133: 1.233766234 | Y133: 0 | Z133: 0 | AA133: 0 | AB133: 0 | AC133: 0 | AD133: 0 | AE133: 0 | AF133: 0 | AG133: 0.129236617 | AH133: 0.3246753247 | AI133: 0 | AJ133: 0 | AK133: 0 | AL133: 0 | AM133: 0 | AN133: 0.09692746278 | AO133: 0.3886601204 | AP133: 0.5844155844 | AQ133: 0 | AR133: 0 | AS133: 0 | AT133: 0 | AU133: 0 | AV133: 0 | AW133: 0 | AX133: 0 | AY133: 0 | AZ133: 0 | BA133: 0 | BB133: 0 | BC133: 0 | BD133: 0.06461830852 | BE133: 0.1298701299 | BF133: 0.1298701299 | BG133: 0 | BH133: 0 | BI133: 0 | BJ133: 0 | BK133: 0.3230915426 | BL133: 0.4545454545 | BM133: 0 | BN133: 0 | BO133: 0 | BP133: 0 | BQ133: 0 | BR133: 0 | BS133: 0 | BT133: 0 | BU133: 0 | BV133: 0 | BW133: 0 | BX133: 0 | BY133: 0 | BZ133: 0 | CA133: 0 | CB133: 0 | CC133: 0 | CD133: 0 | CE133: 0 | CF133: 0 | CG133: 0 | CH133: 0 | CI133: 0 | CJ133: 0 | CK133: 0 | CL133: 0 | CM133: 0 | CN133: 0 | CO133: 0 | CP133: 0 | CQ133: 0 | CR133: 0 | CS133: 0 | CT133: 2.229331644 | CU133: 0 | CV133: 0 | CW133: 0 | CX133: 0 | CY133: 0 | CZ133: 0 | DA133: 0 | DB133: 0 | DC133: 0 | DD133: 0 | DE133: 0 | DF133: 0 | DG133: 0 | DH133: 0
C134: OTHER> 11 kV & < = 22 kV ; REACTOR ; | D134: 62 | E134: 7.874007874 | F134: 0 | G134: 2.207792208 | H134: 2.649350649 | I134: 2.649350649 | J134: 9.298701299 | K134: 5.324675325 | L134: 9.311688312 | M134: 1.324675325 | N134: 2.662337662 | O134: 5.311688312 | P134: 3.974025974 | Q134: 10.62337662 | R134: 7.987012987 | S134: 17.71428571 | T134: 0 | U134: 21.70562771 | V134: 0 | W134: 24.36363636 | X134: 0 | Y134: 16.86147186 | Z134: 0 | AA134: 0 | AB134: 0 | AC134: 0 | AD134: 0 | AE134: 0 | AF134: 0 | AG134: 1.766233766 | AH134: 0 | AI134: 4.437229437 | AJ134: 0 | AK134: 0 | AL134: 0 | AM134: 0 | AN134: 1.324675325 | AO134: 2.649350649 | AP134: 2.662337662 | AQ134: 7.987012987 | AR134: 0 | AS134: 0 | AT134: 0 | AU134: 0 | AV134: 0 | AW134: 0 | AX134: 0 | AY134: 0 | AZ134: 0 | BA134: 0 | BB134: 0 | BC134: 0 | BD134: 0.8831168831 | BE134: 0 | BF134: 1.774891775 | BG134: 1.774891775 | BH134: 0 | BI134: 0 | BJ134: 0 | BK134: 4.415584416 | BL134: 0 | BM134: 6.212121212 | BN134: 0 | BO134: 0 | BP134: 0 | BQ134: 0 | BR134: 0 | BS134: 0 | BT134: 0 | BU134: 0 | BV134: 0 | BW134: 0 | BX134: 0 | BY134: 0 | BZ134: 0 | CA134: 0 | CB134: 0 | CC134: 0 | CD134: 0 | CE134: 0 | CF134: 0 | CG134: 0 | CH134: 0 | CI134: 0 | CJ134: 0 | CK134: 0 | CL134: 0 | CM134: 0 | CN134: 0 | CO134: 0 | CP134: 0 | CQ134: 0 | CR134: 0 | CS134: 0 | CT134: 30.46753247 | CU134: 0 | CV134: 0 | CW134: 0 | CX134: 0 | CY134: 0 | CZ134: 0 | DA134: 0 | DB134: 0 | DC134: 0 | DD134: 0 | DE134: 0 | DF134: 0 | DG134: 0 | DH134: 0
C135: OTHER> 22 kV & < = 66 kV ; REACTOR ; | D135: 62 | E135: 7.874007874 | F135: 0 | G135: 0.118466899 | H135: 0.1421602787 | I135: 0.4278745645 | J135: 0.4989547038 | K135: 0.4285714286 | L135: 0.07108013937 | M135: 0.2139372822 | N135: 0.1428571429 | O135: 0.1421602787 | P135: 0.4989547038 | Q135: 0.7128919861 | R135: 0.5714285714 | S135: 0.3790940767 | T135: 0.7619047619 | U135: 0.4027874564 | V135: 0.8571428571 | W135: 0.450174216 | X135: 0.9047619048 | Y135: 0 | Z135: 0 | AA135: 0 | AB135: 0 | AC135: 0 | AD135: 0 | AE135: 0 | AF135: 0 | AG135: 0.09477351916 | AH135: 0.2380952381 | AI135: 0 | AJ135: 0 | AK135: 0 | AL135: 0 | AM135: 0 | AN135: 0.07108013937 | AO135: 0.2850174216 | AP135: 0.4285714286 | AQ135: 0 | AR135: 0 | AS135: 0 | AT135: 0 | AU135: 0 | AV135: 0 | AW135: 0 | AX135: 0 | AY135: 0 | AZ135: 0 | BA135: 0 | BB135: 0 | BC135: 0 | BD135: 0.04738675958 | BE135: 0.09523809524 | BF135: 0.09523809524 | BG135: 0 | BH135: 0 | BI135: 0 | BJ135: 0 | BK135: 0.2369337979 | BL135: 0.3333333333 | BM135: 0 | BN135: 0 | BO135: 0 | BP135: 0 | BQ135: 0 | BR135: 0 | BS135: 0 | BT135: 0 | BU135: 0 | BV135: 0 | BW135: 0 | BX135: 0 | BY135: 0 | BZ135: 0 | CA135: 0 | CB135: 0 | CC135: 0 | CD135: 0 | CE135: 0 | CF135: 0 | CG135: 0 | CH135: 0 | CI135: 0 | CJ135: 0 | CK135: 0 | CL135: 0 | CM135: 0 | CN135: 0 | CO135: 0 | CP135: 0 | CQ135: 0 | CR135: 0 | CS135: 0 | CT135: 1.634843206 | CU135: 0 | CV135: 0 | CW135: 0 | CX135: 0 | CY135: 0 | CZ135: 0 | DA135: 0 | DB135: 0 | DC135: 0 | DD135: 0 | DE135: 0 | DF135: 0 | DG135: 0 | DH135: 0
C136: OTHER - CROSS ARMS | D136: 45 | E136: 6.708203932 | F136: 13152 | G136: 13171.72921 | H136: 13513.35003 | I136: 18112.43548 | J136: 17777.74411 | K136: 19859.41948 | L136: 17851.17749 | M136: 11804.82712 | N136: 12354.22074 | O136: 10745.24969 | P136: 6226.076065 | Q136: 5842.725785 | R136: 4711.145063 | S136: 3340.914861 | T136: 2802.795761 | U136: 2615.63165 | V136: 3371.714582 | W136: 7628.150242 | X136: 5443.394302 | Y136: 6996.07736 | Z136: 2204.404661 | AA136: 1912.228216 | AB136: 3775.59366 | AC136: 4594.53715 | AD136: 7912.035783 | AE136: 7587.730571 | AF136: 6774.887824 | AG136: 10181.96518 | AH136: 12275.08589 | AI136: 10826.03623 | AJ136: 10144.92582 | AK136: 11415.35667 | AL136: 11690.25494 | AM136: 12803.98369 | AN136: 7017.599904 | AO136: 4452.626087 | AP136: 13238.36109 | AQ136: 7581.137448 | AR136: 2270.353177 | AS136: 5155.888735 | AT136: 5917.297434 | AU136: 5714.116337 | AV136: 13362.77079 | AW136: 1560.538148 | AX136: 1470.18451 | AY136: 1699.566096 | AZ136: 1878.626864 | BA136: 1725.924759 | BB136: 1983.574095 | BC136: 1776.003424 | BD136: 1482.322726 | BE136: 1345.67339 | BF136: 1518.224792 | BG136: 1121.082233 | BH136: 730.9928355 | BI136: 747.9754758 | BJ136: 1156.120616 | BK136: 774.0536037 | BL136: 684.3860739 | BM136: 432.6157387 | BN136: 729.8244761 | BO136: 417.2371265 | BP136: 317.4491344 | BQ136: 375.6371457 | BR136: 305.9477677 | BS136: 229.1391934 | BT136: 156.2978948 | BU136: 244.7661439 | BV136: 116.6618232 | BW136: 164.5827651 | BX136: 109.8022347 | BY136: 125.6435333 | BZ136: 33.81145159 | CA136: 25.93923176 | CB136: 43.11285665 | CC136: 110.6005179 | CD136: 138.5454563 | CE136: 276.6577758 | CF136: 283.5385316 | CG136: 407.0657939 | CH136: 278.0354097 | CI136: 331.3277418 | CJ136: 133.5242891 | CK136: 162.2056682 | CL136: 133.4515705 | CM136: 13.15816429 | CN136: 2.33695871 | CO136: 12.17879442 | CP136: 7.08193545 | CQ136: 32 | CR136: 0.6785018923 | CS136: 21 | CT136: 1072.938423 | CU136: 0 | CV136: 1 | CW136: 0 | CX136: 0 | CY136: 5 | CZ136: 0 | DA136: 0 | DB136: 0 | DC136: 0 | DD136: 0 | DE136: 0 | DF136: 0 | DG136: 0 | DH136: 1

Sheet 5.3 MD - Network level
B1: REGULATORY REPORTING STATEMENT
B2: AusNet Services (D)
B3: CATEGORY ANALYSIS 2017
B4: 5.3 MAXIMUM DEMAND AT NETWORK LEVEL
B7: 5.3.1 - RAW AND WEATHER CORRECTED COINCIDENT MD AT NETWORK LEVEL (Summed at transmission connection point)
C8: UNIT | D8: 2017
B9: Raw network coincident MD | C9: MW | D9: 1669.974104
B10: Date MD occurred | D10: 2017-01-23
B11: Half hour time period MD occurred | D11: 17:30:00
B12: Winter/summer peaking | D12: Summer
B13: Embedded generation | C13: MW | D13: 133.554372
B14: Weather corrected (10% POE) network coincident MD | C14: MW | D14: 1993.348494
B15: Weather corrected (50% POE) network coincident MD | C15: MW | D15: 1784.513026

Sheet 5.4 MD & utilisation-Spatial
B1: REGULATORY REPORTING STATEMENT
B2: AusNet Services (D)
B3: CATEGORY ANALYSIS 2017
B4: 5.4 MAXIMUM DEMAND AND UTILISATION AT SPATIAL LEVEL
B6: There is ONE table on this worksheet. It has two sub-tables based on the Network Level. Each sub-table has been grouped for ease of navigation. See the Instructions sheet on how to group or ungroup data.
B8: 5.4.1 NON-COINCIDENT & COINCIDENT MAXIMUM DEMAND
B9: NETWORK LEVEL | C9: SUBSTATION | D9: FORECASTING ELEMENTS | E9: UNIT | F9: MAX DEMAND | G9: 2017
B10: SUBTRANSMISSION SUBSTATION | C10: <Enter substation name> | D10: Substation Rating | E10: MVA | F10: Non-Coincident
F11: Coincident
D12: Raw Adjusted MD | E12: MW | F12: Non-Coincident
F13: Coincident
D14: Raw Adjusted MD | E14: MVA | F14: Non-Coincident
F15: Coincident
D16: Date MD occurred | F16: Non-Coincident
F17: Coincident
D18: Half hour time period MD occurred | F18: Non-Coincident
F19: Coincident
D20: Winter/Summer Peaking | F20: Non-Coincident
F21: Coincident
D22: Adjustments - Embedded generation | E22: MW | F22: Non-Coincident
F23: Coincident
D24: Weather Corrected MD 10% POE | E24: MW | F24: Non-Coincident
F25: Coincident
D26: Weather Corrected MD 10% POE | E26: MVA | F26: Non-Coincident
F27: Coincident
D28: Weather Corrected MD 50% POE | E28: MW | F28: Non-Coincident
F29: Coincident
D30: Weather Corrected MD 50% POE | E30: MVA | F30: Non-Coincident
F31: Coincident
C32: <Enter substation name> | D32: Substation Rating | E32: MVA | F32: Non-Coincident
F33: Coincident
D34: Raw Adjusted MD | E34: MW | F34: Non-Coincident
F35: Coincident
D36: Raw Adjusted MD | E36: MVA | F36: Non-Coincident
F37: Coincident
D38: Date MD occurred | F38: Non-Coincident
F39: Coincident
D40: Half hour time period MD occurred | F40: Non-Coincident
F41: Coincident
D42: Winter/Summer Peaking | F42: Non-Coincident
F43: Coincident
D44: Adjustments - Embedded generation | E44: MW | F44: Non-Coincident
F45: Coincident
D46: Weather Corrected MD 10% POE | E46: MW | F46: Non-Coincident
F47: Coincident
D48: Weather Corrected MD 10% POE | E48: MVA | F48: Non-Coincident
F49: Coincident
D50: Weather Corrected MD 50% POE | E50: MW | F50: Non-Coincident
F51: Coincident
D52: Weather Corrected MD 50% POE | E52: MVA | F52: Non-Coincident
F53: Coincident
C54: <Enter substation name> | D54: Substation Rating | E54: MVA | F54: Non-Coincident
F55: Coincident
D56: Raw Adjusted MD | E56: MW | F56: Non-Coincident
F57: Coincident
D58: Raw Adjusted MD | E58: MVA | F58: Non-Coincident
F59: Coincident
D60: Date MD occurred | F60: Non-Coincident
F61: Coincident
D62: Half hour time period MD occurred | F62: Non-Coincident
F63: Coincident
D64: Winter/Summer Peaking | F64: Non-Coincident
F65: Coincident
D66: Adjustments - Embedded generation | E66: MW | F66: Non-Coincident
F67: Coincident
D68: Weather Corrected MD 10% POE | E68: MW | F68: Non-Coincident
F69: Coincident
D70: Weather Corrected MD 10% POE | E70: MVA | F70: Non-Coincident
F71: Coincident
D72: Weather Corrected MD 50% POE | E72: MW | F72: Non-Coincident
F73: Coincident
D74: Weather Corrected MD 50% POE | E74: MVA | F74: Non-Coincident
F75: Coincident
C76: <Enter substation name> | D76: Substation Rating | E76: MVA | F76: Non-Coincident
F77: Coincident
D78: Raw Adjusted MD | E78: MW | F78: Non-Coincident
F79: Coincident
D80: Raw Adjusted MD | E80: MVA | F80: Non-Coincident
F81: Coincident
D82: Date MD occurred | F82: Non-Coincident
F83: Coincident
D84: Half hour time period MD occurred | F84: Non-Coincident
F85: Coincident
D86: Winter/Summer Peaking | F86: Non-Coincident
F87: Coincident
D88: Adjustments - Embedded generation | E88: MW | F88: Non-Coincident
F89: Coincident
D90: Weather Corrected MD 10% POE | E90: MW | F90: Non-Coincident
F91: Coincident
D92: Weather Corrected MD 10% POE | E92: MVA | F92: Non-Coincident
F93: Coincident
D94: Weather Corrected MD 50% POE | E94: MW | F94: Non-Coincident
F95: Coincident
D96: Weather Corrected MD 50% POE | E96: MVA | F96: Non-Coincident
F97: Coincident
C98: <Enter substation name> | D98: Substation Rating | E98: MVA | F98: Non-Coincident
F99: Coincident
D100: Raw Adjusted MD | E100: MW | F100: Non-Coincident
F101: Coincident
D102: Raw Adjusted MD | E102: MVA | F102: Non-Coincident
F103: Coincident
D104: Date MD occurred | F104: Non-Coincident
F105: Coincident
D106: Half hour time period MD occurred | F106: Non-Coincident
F107: Coincident
D108: Winter/Summer Peaking | F108: Non-Coincident
F109: Coincident
D110: Adjustments - Embedded generation | E110: MW | F110: Non-Coincident
F111: Coincident
D112: Weather Corrected MD 10% POE | E112: MW | F112: Non-Coincident
F113: Coincident
D114: Weather Corrected MD 10% POE | E114: MVA | F114: Non-Coincident
F115: Coincident
D116: Weather Corrected MD 50% POE | E116: MW | F116: Non-Coincident
F117: Coincident
D118: Weather Corrected MD 50% POE | E118: MVA | F118: Non-Coincident
F119: Coincident
C120: <Enter substation name> | D120: Substation Rating | E120: MVA | F120: Non-Coincident
F121: Coincident
D122: Raw Adjusted MD | E122: MW | F122: Non-Coincident
F123: Coincident
D124: Raw Adjusted MD | E124: MVA | F124: Non-Coincident
F125: Coincident
D126: Date MD occurred | F126: Non-Coincident
F127: Coincident
D128: Half hour time period MD occurred | F128: Non-Coincident
F129: Coincident
D130: Winter/Summer Peaking | F130: Non-Coincident
F131: Coincident
D132: Adjustments - Embedded generation | E132: MW | F132: Non-Coincident
F133: Coincident
D134: Weather Corrected MD 10% POE | E134: MW | F134: Non-Coincident
F135: Coincident
D136: Weather Corrected MD 10% POE | E136: MVA | F136: Non-Coincident
F137: Coincident
D138: Weather Corrected MD 50% POE | E138: MW | F138: Non-Coincident
F139: Coincident
D140: Weather Corrected MD 50% POE | E140: MVA | F140: Non-Coincident
F141: Coincident
C142: <Enter substation name> | D142: Substation Rating | E142: MVA | F142: Non-Coincident
F143: Coincident
D144: Raw Adjusted MD | E144: MW | F144: Non-Coincident
F145: Coincident
D146: Raw Adjusted MD | E146: MVA | F146: Non-Coincident
F147: Coincident
D148: Date MD occurred | F148: Non-Coincident
F149: Coincident
D150: Half hour time period MD occurred | F150: Non-Coincident
F151: Coincident
D152: Winter/Summer Peaking | F152: Non-Coincident
F153: Coincident
D154: Adjustments - Embedded generation | E154: MW | F154: Non-Coincident
F155: Coincident
D156: Weather Corrected MD 10% POE | E156: MW | F156: Non-Coincident
F157: Coincident
